Workbook

Sheet COVER
B2: VALVOLA MOTORE - SOLUZIONE PDE CON METODO DIFFERENZE FINITE DI CRANK-NICOLSON E SOLUZIONE MATRICE TRIDIAGONALE
B4: Autore: Hume
X8: x
Z11: camma
V13: Ta
V14: miscela alimentazione
Y15: materiale: Invar
N19: Motore a scoppio. Viene evidenziato il flusso
N20: di alimentazione ( blu) miscela che lambisce la relativa valvola
N21: (immagine da Wikipedia Inglese)

Sheet CN ret=5 5s
A1: 1 | B1: 2 | C1: 3 | D1: 4 | E1: 5 | F1: 6 | G1: 7 | H1: 8 | I1: 9 | J1: 10 | K1: 11 | L1: 12 | M1: 13 | N1: 14 | O1: 15 | P1: 16 | Q1: 17 | R1: 18 | S1: 19 | T1: 20 | U1: 21 | V1: 22 | W1: 23 | X1: 24
B2: VALVOLA DI MOTORE A SCOPPIO
B3: ELABORAZIONE CON METODO CRANK-NICOLSON E MATRICE TRIDIAGONALE
B4: DATI | L4: CALCOLO COSTANTI E PARAMETRI
A5: L | B5: 0.1 | C5: m | D5: lunghezza valvola | K5: 5 | L5: ∆x | M5: =B5/(B7-1) -> 0.025 | N5: m | W5: TETAC | X5: TETAM
A6: d | B6: 0.009 | C6: m | D6: diametro valvola | K6: 6 | L6: Nt | M6: =INT(B8/B9) -> 204 | N6: adimensionale | O6: numero punti reticolo temporale ( arrot.) | W6: 0.2777777778 | X6: 0.1851851852
A7: Nx | B7: 5 | C7: adim | D7: numero punti reticolo x | K7: 7 | L7: D = K/(ρc) | M7: =B18/B17/B19 -> 3.236245955e-06 | N7: m^2/s | O7: diffusività termica
A8: τ | B8: 1024 | C8: s | D8: durata temporale integrazione | K8: 8 | L8: G = 4γa/(ρcd) | M8: =4*B14/(B17*B19*B6) -> 0.005327153835 | N8: 1/s | O8: convettività laterale
A9: ∆t | B9: 5 | C9: s | D9: passo temporale | K9: 9 | L9: μ = G∆t | M9: =B9*M8 -> 0.02663576917 | N9: adimensionale | O9: parametro
A10: T0 | B10: 20 | C10: °C | D10: temperatura iniziale della valvola | K10: 10 | L10: θc = γc*∆x/K | M10: =B16*M5/B18 -> 0.2777777778 | N10: adimensionale | O10: coefficiente termico lato carter
A11: Ta | B11: 20 | C11: °C | D11: temperatura miscela alimentazione | K11: 11 | L11: θm = γm*∆x/K | M11: =B15*M5/B18 -> 0.1851851852 | N11: adimensionale | O11: coefficiente termico lato cilindro motore
A12: Tm | B12: 1300 | C12: °C | D12: temperatura media gas nel cilindro | K12: 12 | L12: λ = 0,5*D*Δt/(Δx)^2 | M12: =M7*B9/(2*M5^2) -> 0.01294498382 | N12: adimensionale | O12: parametro CN tridiagonale
A13: Tc | B13: 80 | C13: °C | D13: temperatura olio nel carter distribuzione | K13: 13 | L13: α = 1 + 2λ + μ | M13: =1+2*M12+M9 -> 1.052525737 | N13: adimensionale | O13: parametro CN tridiagonale
A14: γa | B14: 50 | C14: W/(m^2*°K) | D14: coefficiente scambio convettivo valvola-miscela alimentazione | K14: 14
A15: γm | B15: 100 | C15: W/(m^2*°K) | D15: coefficiente scambio convettivo valvola cilindro motore | K15: 15
A16: γc | B16: 150 | C16: W/(m^2*°K) | D16: coefficiente scambio convettivo valvola olio carter distribuzione | K16: 16
A17: ρ | B17: 8100 | C17: kg/m^3 | D17: densità valvola | K17: 17
A18: K | B18: 13.5 | C18: W/(m*°K) | D18: conduttività valvola | K18: 18
A19: c | B19: 515 | C19: W*s/(kg*°K) | D19: calore specifico a p costante valvola | K19: 19
B23: Andamento della temperatura in funzione della ascissa x e del tempo t
B24: x (m)
B25: i | C25: 1 | D25: 2 | E25: 3 | F25: 4 | G25: 5
A29: t (s) | B29: j | C29: Tc sfera
A30: 0 | C30: 20 | D30: 20 | E30: 20 | F30: 20 | G30: 20
A31: 10 | C31: 222.0975563 | D31: 22.48599265 | E31: 20.03257232 | F31: 20.16238497 | G31: 33.17056215
A32: 15 | C32: 226.1800701 | D32: 27.32452748 | E32: 20.15870143 | F32: 20.47966198 | G32: 33.4188659
A33: 20 | C33: 230.0446979 | D33: 31.90482715 | E33: 20.3989182 | F33: 20.78378795 | G33: 33.65687752
A34: 25 | C34: 233.7055097 | D34: 36.243567 | E34: 20.73829398 | F34: 21.07814475 | G34: 33.88724372
A35: 30 | C35: 237.1755145 | D35: 40.35616536 | E35: 21.16348359 | F35: 21.36557449 | G35: 34.11218873
A36: 35 | C36: 240.4667502 | D36: 44.25688912 | E36: 21.6625653 | F36: 21.64844693 | G36: 34.33356716
A37: 40 | C37: 243.590364 | D37: 47.95894989 | E37: 22.22489675 | F37: 21.92871941 | G37: 34.55291084
A38: 45 | C38: 246.5566866 | D38: 51.47459152 | E38: 22.84098527 | F38: 22.20799003 | G38: 34.77147045
A39: 50 | C39: 249.3752995 | D39: 54.81516975 | E39: 23.50237114 | F39: 22.48754478 | G39: 34.99025244
A40: 55 | C40: 252.055096 | D40: 57.99122483 | E40: 24.20152251 | F40: 22.76839934 | G40: 35.21005166
A41: 60 | C41: 254.6043371 | D41: 61.01254772 | E41: 24.93174084 | F41: 23.05133598 | G41: 35.43148033
A42: 65 | C42: 257.0307028 | D42: 63.88824039 | E42: 25.68707579 | F42: 23.33693626 | G42: 35.6549936
A43: 70 | C43: 259.341338 | D43: 66.62677094 | E43: 26.46224862 | F43: 23.62560986 | G43: 35.88091206
A44: 75 | C44: 261.5428951 | D44: 69.23602381 | E44: 27.25258325 | F44: 23.91761995 | G44: 36.1094417
A45: 80 | C45: 263.641573 | D45: 71.72334574 | E45: 28.05394426 | F45: 24.21310562 | G45: 36.34069135
A46: 85 | C46: 265.6431521 | D46: 74.09558769 | E46: 28.86268109 | F46: 24.51210149 | G46: 36.57468812
A47: 90 | C47: 267.553027 | D47: 76.35914317 | E47: 29.67557783 | F47: 24.814555 | G47: 36.81139087
A48: 95 | C48: 269.376236 | D48: 78.51998339 | E48: 30.48980805 | F48: 25.12034145 | G48: 37.05070201
A49: 100 | C49: 271.1174879 | D49: 80.58368933 | E49: 31.30289417 | F49: 25.42927728 | G49: 37.29247787
A50: 105 | C50: 272.7811872 | D50: 82.55548114 | E50: 32.11267097 | F50: 25.74113146 | G50: 37.53653766
A51: 110 | C51: 274.3714568 | D51: 84.44024513 | E51: 32.91725268 | F51: 26.05563557 | G51: 37.78267132
A52: 115 | C52: 275.8921587 | D52: 86.24255845 | E52: 33.71500346 | F52: 26.37249245 | G52: 38.03064626
A53: 120 | C53: 277.3469131 | D53: 87.96671178 | E53: 34.50451084 | F53: 26.69138361 | G53: 38.28021326
A54: 125 | C54: 278.739116 | D54: 89.61673012 | E54: 35.28456184 | F54: 27.01197578 | G54: 38.53111148
A55: 130 | C55: 280.0719557 | D55: 91.19639197 | E55: 36.05412153 | F55: 27.33392633 | G55: 38.78307278
A56: 135 | C56: 281.348427 | D56: 92.70924681 | E56: 36.81231369 | F56: 27.65688803 | G56: 39.03582541
A57: 140 | C57: 282.5713452 | D57: 94.15863136 | E57: 37.55840356 | F57: 27.980513 | G57: 39.28909713
A58: 145 | C58: 283.7433587 | D58: 95.54768441 | E58: 38.29178222 | F58: 28.3044561 | G58: 39.54261781
A59: 150 | C59: 284.8669604 | D59: 96.87936052 | E59: 39.01195264 | F59: 28.62837769 | G59: 39.79612167
A60: 155 | C60: 285.9444985 | D60: 98.15644268 | E60: 39.71851713 | F60: 28.95194599 | G60: 40.04934904
A61: 160 | C61: 286.9781861 | D61: 99.38155392 | E61: 40.41116607 | F61: 29.27483893 | G61: 40.30204786
A62: 165 | C62: 287.9701106 | D62: 100.5571681 | E62: 41.08966783 | F62: 29.59674569 | G62: 40.55397489
A63: 170 | C63: 288.9222418 | D63: 101.6856199 | E63: 41.75385965 | F63: 29.91736789 | G63: 40.80489661
A64: 175 | C64: 289.8364396 | D64: 102.7691136 | E64: 42.40363958 | F64: 30.23642052 | G64: 41.05458997
A65: 180 | C65: 290.7144617 | D65: 103.8097324 | E65: 43.03895914 | F65: 30.55363258 | G65: 41.30284289
A66: 185 | C66: 291.5579695 | D66: 104.8094453 | E66: 43.65981682 | F66: 30.8687476 | G66: 41.54945464
A67: 190 | C67: 292.3685345 | D67: 105.770115 | E67: 44.2662522 | F67: 31.18152386 | G67: 41.79423606
A68: 195 | C68: 293.1476444 | D68: 106.6935045 | E68: 44.85834078 | F68: 31.49173457 | G68: 42.03700966
A69: 200 | C69: 293.8967077 | D69: 107.5812832 | E69: 45.43618922 | F69: 31.79916785 | G69: 42.27760962
A70: 205 | C70: 294.617059 | D70: 108.4350329 | E70: 45.99993121 | F70: 32.10362664 | G70: 42.51588172
A71: 210 | C71: 295.3099636 | D71: 109.2562531 | E71: 46.54972371 | F71: 32.40492846 | G71: 42.75168314
A72: 215 | C72: 295.9766214 | D72: 110.0463661 | E72: 47.08574359 | F72: 32.70290516 | G72: 42.9848823
A73: 220 | C73: 296.6181711 | D73: 110.8067213 | E73: 47.60818468 | F73: 32.9974026 | G73: 43.21535856
A74: 225 | C74: 297.2356938 | D74: 111.5386 | E74: 48.1172551 | F74: 33.28828019 | G74: 43.44300189
A75: 230 | C75: 297.8302163 | D75: 112.2432193 | E75: 48.6131749 | F75: 33.57541054 | G75: 43.6677126
A76: 235 | C76: 298.4027144 | D76: 112.9217356 | E76: 49.09617394 | F76: 33.85867893 | G76: 43.88940091
A77: 240 | C77: 298.9541158 | D77: 113.5752484 | E77: 49.56649004 | F77: 34.13798286 | G77: 44.10798659
A78: 245 | C78: 299.4853029 | D78: 114.2048034 | E78: 50.0243673 | F78: 34.41323152 | G78: 44.32339858
A79: 250 | C79: 299.9971153 | D79: 114.8113959 | E79: 50.47005463 | F79: 34.68434529 | G79: 44.53557458
A80: 255 | C80: 300.4903522 | D80: 115.3959729 | E80: 50.90380448 | F80: 34.95125524 | G80: 44.74446062
A81: 260 | C81: 300.9657748 | D81: 115.9594368 | E81: 51.32587166 | F81: 35.21390256 | G81: 44.9500107
A82: 265 | C82: 301.4241083 | D82: 116.5026469 | E82: 51.73651231 | F82: 35.47223808 | G82: 45.15218633
A83: 270 | C83: 301.866044 | D83: 117.0264225 | E83: 52.13598308 | F83: 35.72622174 | G83: 45.35095614
A84: 275 | C84: 302.2922408 | D84: 117.5315446 | E84: 52.52454026 | F84: 35.97582207 | G84: 45.54629553
A85: 280 | C85: 302.7033273 | D85: 118.0187583 | E85: 52.90243915 | F85: 36.22101572 | G85: 45.73818622
A86: 285 | C86: 303.0999033 | D86: 118.4887743 | E86: 53.26993348 | F86: 36.46178698 | G86: 45.9266159
A87: 290 | C87: 303.4825414 | D87: 118.9422713 | E87: 53.62727484 | F87: 36.69812727 | G87: 46.11157786
A88: 295 | C88: 303.8517882 | D88: 119.3798971 | E88: 53.97471226 | F88: 36.9300347 | G88: 46.29307064
A89: 300 | C89: 304.2081659 | D89: 119.8022707 | E89: 54.31249184 | F89: 37.15751366 | G89: 46.47109765
A90: 305 | C90: 304.5521734 | D90: 120.2099833 | E90: 54.64085641 | F90: 37.38057435 | G90: 46.64566688
A91: 310 | C91: 304.8842876 | D91: 120.6036001 | E91: 54.96004524 | F91: 37.59923238 | G91: 46.81679056
A92: 315 | C92: 305.2049646 | D92: 120.9836617 | E92: 55.27029383 | F92: 37.81350842 | G92: 46.98448485
A93: 320 | C93: 305.5146403 | D93: 121.3506848 | E93: 55.57183369 | F93: 38.02342773 | G93: 47.14876953
A94: 325 | C94: 305.8137321 | D94: 121.705164 | E94: 55.86489221 | F94: 38.22901992 | G94: 47.30966776
A95: 330 | C95: 306.1026393 | D95: 122.0475724 | E95: 56.14969249 | F95: 38.4303185 | G95: 47.46720578
A96: 335 | C96: 306.381744 | D96: 122.3783632 | E96: 56.42645331 | F96: 38.62736062 | G96: 47.62141266
A97: 340 | C97: 306.6514123 | D97: 122.6979702 | E97: 56.69538898 | F97: 38.82018672 | G97: 47.77232004
A98: 345 | C98: 306.9119949 | D98: 123.0068088 | E98: 56.95670934 | F98: 39.00884026 | G98: 47.91996195
A99: 350 | C99: 307.1638276 | D99: 123.3052771 | E99: 57.21061969 | F99: 39.19336744 | G99: 48.06437452
A100: 355 | C100: 307.4072323 | D100: 123.5937568 | E100: 57.4573208 | F100: 39.37381691 | G100: 48.20559584
A101: 360 | C101: 307.6425177 | D101: 123.8726135 | E101: 57.69700889 | F101: 39.55023954 | G101: 48.34366572
A102: 365 | C102: 307.8699796 | D102: 124.142198 | E102: 57.92987567 | F102: 39.72268818 | G102: 48.47862553
A103: 370 | C103: 308.0899018 | D103: 124.4028466 | E103: 58.15610831 | F103: 39.89121744 | G103: 48.61051799
A104: 375 | C104: 308.3025567 | D104: 124.654882 | E104: 58.37588952 | F104: 40.05588347 | G104: 48.73938706
A105: 380 | C105: 308.5082055 | D105: 124.8986139 | E105: 58.58939756 | F105: 40.21674378 | G105: 48.86527774
A106: 385 | C106: 308.7070989 | D106: 125.1343395 | E106: 58.79680632 | F106: 40.37385704 | G106: 48.98823595
A107: 390 | C107: 308.8994778 | D107: 125.3623441 | E107: 58.99828535 | F107: 40.52728291 | G107: 49.10830837
A108: 395 | C108: 309.0855733 | D108: 125.5829017 | E108: 59.19399991 | F108: 40.67708188 | G108: 49.22554234
A109: 400 | C109: 309.2656075 | D109: 125.7962755 | E109: 59.38411106 | F109: 40.82331512 | G109: 49.33998575
A110: 405 | C110: 309.4397936 | D110: 126.0027184 | E110: 59.56877573 | F110: 40.96604433 | G110: 49.45168687
A111: 410 | C111: 309.6083368 | D111: 126.2024732 | E111: 59.74814676 | F111: 41.10533163 | G111: 49.56069432
A112: 415 | C112: 309.7714339 | D112: 126.3957736 | E112: 59.92237301 | F112: 41.24123939 | G112: 49.66705692
A113: 420 | C113: 309.9292745 | D113: 126.5828439 | E113: 60.09159941 | F113: 41.37383019 | G113: 49.77082363
A114: 425 | C114: 310.0820407 | D114: 126.7639 | E114: 60.25596705 | F114: 41.50316665 | G114: 49.87204346
A115: 430 | C115: 310.2299075 | D115: 126.9391496 | E115: 60.41561325 | F115: 41.62931134 | G115: 49.9707654
A116: 435 | C116: 310.3730434 | D116: 127.1087922 | E116: 60.57067165 | F116: 41.75232672 | G116: 50.06703831
A117: 440 | C117: 310.5116106 | D117: 127.2730199 | E117: 60.7212723 | F117: 41.87227505 | G117: 50.16091091
A118: 445 | C118: 310.645765 | D118: 127.4320177 | E118: 60.8675417 | F118: 41.98921829 | G118: 50.2524317
A119: 450 | C119: 310.7756567 | D119: 127.5859635 | E119: 61.00960292 | F119: 42.10321803 | G119: 50.34164889
A120: 455 | C120: 310.9014302 | D120: 127.7350284 | E120: 61.14757566 | F120: 42.21433546 | G120: 50.42861036
A121: 460 | C121: 311.0232248 | D121: 127.8793775 | E121: 61.28157636 | F121: 42.32263129 | G121: 50.51336362
A122: 465 | C122: 311.1411743 | D122: 128.0191696 | E122: 61.41171821 | F122: 42.42816567 | G122: 50.59595574
A123: 470 | C123: 311.2554079 | D123: 128.1545575 | E123: 61.53811131 | F123: 42.53099819 | G123: 50.67643337
A124: 475 | C124: 311.3660498 | D124: 128.2856886 | E124: 61.66086269 | F124: 42.63118781 | G124: 50.75484263
A125: 480 | C125: 311.4732198 | D125: 128.4127049 | E125: 61.78007642 | F125: 42.72879281 | G125: 50.83122915
A126: 485 | C126: 311.5770334 | D126: 128.5357433 | E126: 61.89585366 | F126: 42.82387078 | G126: 50.905638
A127: 490 | C127: 311.6776018 | D127: 128.6549355 | E127: 62.00829274 | F127: 42.91647856 | G127: 50.97811366
A128: 495 | C128: 311.7750323 | D128: 128.7704087 | E128: 62.11748925 | F128: 43.00667225 | G128: 51.04870002
A129: 500 | C129: 311.8694283 | D129: 128.8822854 | E129: 62.2235361 | F129: 43.09450713 | G129: 51.11744036
A130: 505 | C130: 311.9608894 | D130: 128.9906837 | E130: 62.32652357 | F130: 43.18003771 | G130: 51.18437734
A131: 510 | C131: 312.0495118 | D131: 129.0957177 | E131: 62.42653942 | F131: 43.26331763 | G131: 51.24955293
A132: 515 | C132: 312.1353883 | D132: 129.1974973 | E132: 62.52366893 | F132: 43.34439971 | G132: 51.31300847
A133: 520 | C133: 312.2186083 | D133: 129.2961284 | E133: 62.61799496 | F133: 43.42333591 | G133: 51.37478462
A134: 525 | C134: 312.2992582 | D134: 129.3917135 | E134: 62.70959804 | F134: 43.50017731 | G134: 51.43492137
A135: 530 | C135: 312.3774213 | D135: 129.4843512 | E135: 62.7985564 | F135: 43.57497412 | G135: 51.49345801
A136: 535 | C136: 312.4531779 | D136: 129.5741368 | E136: 62.88494609 | F136: 43.64777567 | G136: 51.55043313
A137: 540 | C137: 312.5266057 | D137: 129.6611623 | E137: 62.96884095 | F137: 43.71863038 | G137: 51.60588464
A138: 545 | C138: 312.5977795 | D138: 129.7455165 | E138: 63.05031275 | F138: 43.7875858 | G138: 51.65984975
A139: 550 | C139: 312.6667718 | D139: 129.8272851 | E139: 63.12943123 | F139: 43.85468856 | G139: 51.71236496
A140: 555 | C140: 312.7336523 | D140: 129.9065509 | E140: 63.20626411 | F140: 43.91998443 | G140: 51.76346607
A141: 560 | C141: 312.7984885 | D141: 129.9833937 | E141: 63.28087721 | F141: 43.98351824 | G141: 51.81318819
A142: 565 | C142: 312.8613455 | D142: 130.057891 | E142: 63.35333445 | F142: 44.04533397 | G142: 51.86156572
A143: 570 | C143: 312.9222863 | D143: 130.1301171 | E143: 63.42369793 | F143: 44.1054747 | G143: 51.90863237
A144: 575 | C144: 312.9813717 | D144: 130.2001442 | E144: 63.492028 | F144: 44.16398261 | G144: 51.95442117
A145: 580 | C145: 313.0386603 | D145: 130.2680419 | E145: 63.55838324 | F145: 44.22089902 | G145: 51.99896445
A146: 585 | C146: 313.0942091 | D146: 130.3338774 | E146: 63.62282058 | F146: 44.27626438 | G146: 52.04229386
A147: 590 | C147: 313.1480727 | D147: 130.3977158 | E147: 63.68539533 | F147: 44.33011827 | G147: 52.08444039
A148: 595 | C148: 313.2003043 | D148: 130.45962 | E148: 63.7461612 | F148: 44.38249942 | G148: 52.12543433
A149: 600 | C149: 313.2509551 | D149: 130.5196505 | E149: 63.80517035 | F149: 44.43344572 | G149: 52.16530534
A150: 605 | C150: 313.3000747 | D150: 130.5778663 | E150: 63.86247347 | F150: 44.4829942 | G150: 52.20408242
A151: 610 | C151: 313.3477108 | D151: 130.634324 | E151: 63.91811978 | F151: 44.5311811 | G151: 52.2417939
A152: 615 | C152: 313.39391 | D152: 130.6890785 | E152: 63.97215709 | F152: 44.57804181 | G152: 52.2784675
A153: 620 | C153: 313.4387169 | D153: 130.7421829 | E153: 64.02463184 | F153: 44.62361094 | G153: 52.3141303
A154: 625 | C154: 313.4821748 | D154: 130.7936887 | E154: 64.07558912 | F154: 44.66792229 | G154: 52.34880875
A155: 630 | C155: 313.5243257 | D155: 130.8436453 | E155: 64.12507275 | F155: 44.71100889 | G155: 52.38252869
A156: 635 | C156: 313.5652101 | D156: 130.8921009 | E156: 64.17312528 | F156: 44.75290299 | G156: 52.41531538
A157: 640 | C157: 313.6048672 | D157: 130.9391019 | E157: 64.21978803 | F157: 44.79363608 | G157: 52.44719346
A158: 645 | C158: 313.643335 | D158: 130.9846933 | E158: 64.26510113 | F158: 44.83323893 | G158: 52.47818699
A159: 650 | C159: 313.68065 | D159: 131.0289185 | E159: 64.30910356 | F159: 44.87174155 | G159: 52.50831948
A160: 655 | C160: 313.7168479 | D160: 131.0718198 | E160: 64.35183318 | F160: 44.90917324 | G160: 52.53761384
A161: 660 | C161: 313.751963 | D161: 131.1134377 | E161: 64.39332677 | F161: 44.94556258 | G161: 52.56609245
A162: 665 | C162: 313.7860286 | D162: 131.1538117 | E162: 64.43362003 | F162: 44.98093747 | G162: 52.59377715
A163: 670 | C163: 313.8190769 | D163: 131.19298 | E163: 64.47274764 | F163: 45.01532512 | G163: 52.62068923
A164: 675 | C164: 313.8511389 | D164: 131.2309795 | E164: 64.51074328 | F164: 45.04875209 | G164: 52.64684946
A165: 680 | C165: 313.882245 | D165: 131.2678459 | E165: 64.54763966 | F165: 45.08124425 | G165: 52.67227811
A166: 685 | C166: 313.9124242 | D166: 131.3036139 | E166: 64.58346856 | F166: 45.11282685 | G166: 52.69699493
A167: 690 | C167: 313.9417049 | D167: 131.3383169 | E167: 64.61826082 | F167: 45.1435245 | G167: 52.72101918
A168: 695 | C168: 313.9701144 | D168: 131.3719874 | E168: 64.65204641 | F168: 45.1733612 | G168: 52.74436964
A169: 700 | C169: 313.9976793 | D169: 131.4046569 | E169: 64.68485443 | F169: 45.20236034 | G169: 52.76706462
A170: 705 | C170: 314.0244251 | D170: 131.4363557 | E170: 64.71671313 | F170: 45.23054472 | G170: 52.78912195
A171: 710 | C171: 314.0503769 | D171: 131.4671134 | E171: 64.74764997 | F171: 45.25793654 | G171: 52.81055903
A172: 715 | C172: 314.0755586 | D172: 131.4969583 | E172: 64.77769158 | F172: 45.28455748 | G172: 52.83139281
A173: 720 | C173: 314.0999935 | D173: 131.5259183 | E173: 64.80686386 | F173: 45.3104286 | G173: 52.85163978
A174: 725 | C174: 314.1237044 | D174: 131.55402 | E174: 64.83519194 | F174: 45.33557048 | G174: 52.87131603
A175: 730 | C175: 314.1467129 | D175: 131.5812894 | E175: 64.86270024 | F175: 45.36000313 | G175: 52.89043723
A176: 735 | C176: 314.1690404 | D176: 131.6077516 | E176: 64.88941245 | F176: 45.38374604 | G176: 52.90901864
A177: 740 | C177: 314.1907073 | D177: 131.6334309 | E177: 64.91535161 | F177: 45.40681822 | G177: 52.92707513
A178: 745 | C178: 314.2117336 | D178: 131.658351 | E178: 64.94054006 | F178: 45.42923815 | G178: 52.94462116
A179: 750 | C179: 314.2321386 | D179: 131.6825346 | E179: 64.96499952 | F179: 45.45102386 | G179: 52.96167084
A180: 755 | C180: 314.2519409 | D180: 131.706004 | E180: 64.98875107 | F180: 45.47219287 | G180: 52.9782379
A181: 760 | C181: 314.2711586 | D181: 131.7287805 | E181: 65.01181519 | F181: 45.49276227 | G181: 52.99433569
A182: 765 | C182: 314.2898092 | D182: 131.750885 | E182: 65.03421177 | F182: 45.51274868 | G182: 53.00997723
A183: 770 | C183: 314.3079098 | D183: 131.7723376 | E183: 65.0559601 | F183: 45.53216829 | G183: 53.02517518
A184: 775 | C184: 314.3254769 | D184: 131.7931578 | E184: 65.07707895 | F184: 45.55103685 | G184: 53.03994188
A185: 780 | C185: 314.3425263 | D185: 131.8133646 | E185: 65.09758653 | F185: 45.56936969 | G185: 53.05428932
A186: 785 | C186: 314.3590737 | D186: 131.8329762 | E186: 65.11750051 | F186: 45.58718173 | G186: 53.06822918
A187: 790 | C187: 314.3751339 | D187: 131.8520106 | E187: 65.13683807 | F187: 45.60448751 | G187: 53.08177283
A188: 795 | C188: 314.3907216 | D188: 131.8704848 | E188: 65.15561588 | F188: 45.62130116 | G188: 53.09493134
A189: 800 | C189: 314.4058507 | D189: 131.8884157 | E189: 65.17385015 | F189: 45.63763642 | G189: 53.10771546
A190: 805 | C190: 314.4205351 | D190: 131.9058194 | E190: 65.19155659 | F190: 45.65350669 | G190: 53.12013567
A191: 810 | C191: 314.4347879 | D191: 131.9227116 | E191: 65.20875048 | F191: 45.66892499 | G191: 53.13220217
A192: 815 | C192: 314.448622 | D192: 131.9391075 | E192: 65.22544665 | F192: 45.68390398 | G192: 53.14392486
A193: 820 | C193: 314.4620498 | D193: 131.955022 | E193: 65.24165951 | F193: 45.698456 | G193: 53.15531339
A194: 825 | C194: 314.4750834 | D194: 131.9704692 | E194: 65.25740302 | F194: 45.71259302 | G194: 53.16637715
A195: 830 | C195: 314.4877346 | D195: 131.9854632 | E195: 65.27269079 | F195: 45.72632672 | G195: 53.17712526
A196: 835 | C196: 314.5000146 | D196: 132.0000173 | E196: 65.28753599 | F196: 45.73966843 | G196: 53.1875666
A197: 840 | C197: 314.5119345 | D197: 132.0141446 | E197: 65.30195143 | F197: 45.7526292 | G197: 53.19770981
A198: 845 | C198: 314.523505 | D198: 132.0278577 | E198: 65.31594955 | F198: 45.76521976 | G198: 53.20756329
A199: 850 | C199: 314.5347363 | D199: 132.041169 | E199: 65.32954243 | F199: 45.77745055 | G199: 53.21713521
A200: 855 | C200: 314.5456387 | D200: 132.0540903 | E200: 65.34274179 | F200: 45.78933171 | G200: 53.22643351
A201: 860 | C201: 314.5562217 | D201: 132.0666331 | E201: 65.35555902 | F201: 45.80087313 | G201: 53.23546592
A202: 865 | C202: 314.5664949 | D202: 132.0788087 | E202: 65.36800518 | F202: 45.81208439 | G202: 53.24423996
A203: 870 | C203: 314.5764673 | D203: 132.0906279 | E203: 65.38009101 | F203: 45.82297485 | G203: 53.25276292
A204: 875 | C204: 314.5861479 | D204: 132.1021012 | E204: 65.39182695 | F204: 45.83355356 | G204: 53.26104192
A205: 880 | C205: 314.5955453 | D205: 132.1132389 | E205: 65.4032231 | F205: 45.84382937 | G205: 53.26908386
A206: 885 | C206: 314.6046679 | D206: 132.1240509 | E206: 65.41428932 | F206: 45.85381086 | G206: 53.27689545
... 27 more rows

Sheet CN ret=20 1s
A1: 1 | B1: 2 | C1: 3 | D1: 4 | E1: 5 | F1: 6 | G1: 7 | H1: 8 | I1: 9 | J1: 10 | K1: 11 | L1: 12 | M1: 13 | N1: 14 | O1: 15 | P1: 16 | Q1: 17 | R1: 18 | S1: 19 | T1: 20 | U1: 21 | V1: 22 | W1: 23 | X1: 24
B2: VALVOLA DI MOTORE A SCOPPIO
B3: ELABORAZIONE CON METODO CRANK-NICOLSON E MATRICE TRIDIAGONALE
B4: DATI | L4: CALCOLO COSTANTI E PARAMETRI
A5: L | B5: 0.1 | C5: m | D5: lunghezza valvola | K5: 5 | L5: ∆x | M5: =B5/(B7-1) -> 0.005263157895 | N5: m | V5: ALFA | W5: TETAC | X5: TETAM
A6: d | B6: 0.009 | C6: m | D6: diametro valvola | K6: 6 | L6: Nt | M6: =INT(B8/B9) -> 1024 | N6: adimensionale | O6: numero punti reticolo temporale ( arrot.) | V6: 1.122155633 | W6: 0.05847953216 | X6: 0.03898635478
A7: Nx | B7: 20 | C7: adim | D7: numero punti reticolo x | K7: 7 | L7: D = K/(ρc) | M7: =B18/B17/B19 -> 3.236245955e-06 | N7: m^2/s | O7: diffusività termica
A8: τ | B8: 1024 | C8: s | D8: durata temporale integrazione | K8: 8 | L8: G = 4γa/(ρcd) | M8: =4*B14/(B17*B19*B6) -> 0.005327153835 | N8: 1/s | O8: convettività laterale
A9: ∆t | B9: 1 | C9: s | D9: passo temporale | K9: 9 | L9: μ = G∆t | M9: =B9*M8 -> 0.005327153835 | N9: adimensionale | O9: parametro
A10: T0 | B10: 20 | C10: °C | D10: temperatura iniziale della valvola | K10: 10 | L10: θc = γc*∆x/K | M10: =B16*M5/B18 -> 0.05847953216 | N10: adimensionale | O10: coefficiente termico lato carter
A11: Ta | B11: 20 | C11: °C | D11: temperatura miscela alimentazione | K11: 11 | L11: θm = γm*∆x/K | M11: =B15*M5/B18 -> 0.03898635478 | N11: adimensionale | O11: coefficiente termico lato cilindro motore
A12: Tm | B12: 1300 | C12: °C | D12: temperatura media gas nel cilindro | K12: 12 | L12: λ = 0,5*D*Δt/(Δx)^2 | M12: =M7*B9/(2*M5^2) -> 0.05841423948 | N12: adimensionale | O12: parametro CN tridiagonale
A13: Tc | B13: 80 | C13: °C | D13: temperatura olio nel carter distribuzione | K13: 13 | L13: α = 1 + 2λ + μ | M13: =1+2*M12+M9 -> 1.122155633 | N13: adimensionale | O13: parametro CN tridiagonale
A14: γa | B14: 50 | C14: W/(m^2*°K) | D14: coefficiente scambio convettivo valvola-miscela alimentazione | K14: 14
A15: γm | B15: 100 | C15: W/(m^2*°K) | D15: coefficiente scambio convettivo valvola cilindro motore | K15: 15
A16: γc | B16: 150 | C16: W/(m^2*°K) | D16: coefficiente scambio convettivo valvola olio carter distribuzione | K16: 16
A17: ρ | B17: 8100 | C17: kg/m^3 | D17: densità valvola | K17: 17
A18: K | B18: 13.5 | C18: W/(m*°K) | D18: conduttività valvola | K18: 18
A19: c | B19: 515 | C19: W*s/(kg*°K) | D19: calore specifico a p costante valvola | K19: 19
B23: Andamento della temperatura in funzione della ascissa x e del tempo t
B25: i | C25: 1 | D25: 2 | E25: 3 | F25: 4 | G25: 5 | H25: 6 | I25: 7 | J25: 8 | K25: 9 | L25: 10 | M25: 11 | N25: 12 | O25: 13 | P25: 14 | Q25: 15 | R25: 16 | S25: 17 | T25: 18 | U25: 19 | V25: 20
B27: x (m) | C27: 0 | D27: =C27+$M$5 -> 0.005263157895 | E27: =D27+$M$5 -> 0.01052631579 | F27: 0.01578947368 | G27: 0.02105263158 | H27: 0.02631578947 | I27: 0.03157894737 | J27: 0.03684210526 | K27: 0.04210526316 | L27: 0.04736842105 | M27: 0.05263157895 | N27: 0.05789473684 | O27: 0.06315789474 | P27: 0.06842105263 | Q27: 0.07368421053 | R27: 0.07894736842 | S27: 0.08421052632 | T27: 0.08947368421 | U27: 0.09473684211 | V27: 0.1
A29: t (s) | B29: j | C29: Tc sfera
A30: 0 | C30: 20 | D30: 20 | E30: 20 | F30: 20 | G30: 20 | H30: 20 | I30: 20 | J30: 20 | K30: 20 | L30: 20 | M30: 20 | N30: 20 | O30: 20 | P30: 20 | Q30: 20 | R30: 20 | S30: 20 | T30: 20 | U30: 20 | V30: 20
A31: 2 | C31: 70.57061513 | D31: 22.63964496 | E31: 20.1377821 | F31: 20.00719184 | G31: 20.00037539 | H31: 20.00001959 | I31: 20.00000102 | J31: 20.00000005 | K31: 20 | L31: 20 | M31: 20 | N31: 20 | O31: 20 | P31: 20.00000007 | Q31: 20.00000135 | R31: 20.00002588 | S31: 20.00049588 | T31: 20.00950014 | U31: 20.18200469 | V31: 23.48686631
A32: 3 | C32: 75.37701404 | D32: 27.63342784 | E32: 20.64600989 | F32: 20.04664218 | G32: 20.0031091 | H32: 20.00019749 | I32: 20.00001215 | J32: 20.00000073 | K32: 20.00000004 | L32: 20 | M32: 20 | N32: 20 | O32: 20.00000005 | P32: 20.00000084 | Q32: 20.00001361 | R32: 20.00021433 | S32: 20.00321509 | T32: 20.04452518 | U32: 20.52599314 | V32: 23.81184987
A33: 4 | C33: 79.68714111 | D33: 32.11159106 | E33: 21.54658793 | F33: 20.1516752 | G33: 20.01283224 | H33: 20.00098963 | I33: 20.00007165 | J33: 20.00000496 | K33: 20.00000033 | L33: 20.00000002 | M33: 20 | N33: 20.00000002 | O33: 20.00000034 | P33: 20.00000494 | Q33: 20.00006821 | R33: 20.00088435 | S33: 20.01045133 | T33: 20.10654026 | U33: 20.83383065 | V33: 24.10267979
A34: 5 | C34: 83.59474662 | D34: 36.17153986 | E34: 22.71529301 | F34: 20.34377497 | G34: 20.03611588 | H34: 20.00334537 | I34: 20.00028348 | J34: 20.00002249 | K34: 20.0000017 | L34: 20.00000012 | M34: 20.00000002 | N34: 20.00000012 | O34: 20.00000155 | P34: 20.00001954 | Q34: 20.00023051 | R34: 20.00248819 | S34: 20.02367814 | T34: 20.18693677 | U34: 21.11235878 | V34: 24.36581962
A35: 6 | C35: 87.17129105 | D35: 39.88752072 | E35: 24.06475426 | F35: 20.62952937 | G35: 20.07971823 | H35: 20.00872204 | I35: 20.00085649 | J35: 20.00007747 | K35: 20.00000657 | L35: 20.00000053 | M35: 20.00000008 | N35: 20.00000046 | O35: 20.00000534 | P35: 20.00005901 | Q35: 20.00060083 | R35: 20.00549021 | S35: 20.04333999 | T35: 20.27966687 | U35: 21.36679201 | V35: 24.60619576
A36: 7 | C36: 90.47189028 | D36: 43.31679828 | E36: 25.53329676 | F36: 21.00701485 | G36: 20.1493719 | H36: 20.01894534 | I36: 20.00212969 | J36: 20.00021784 | K36: 20.00002067 | L36: 20.00000186 | M36: 20.00000028 | N36: 20.00000144 | O36: 20.00001501 | P36: 20.00014669 | Q36: 20.00130468 | R36: 20.01028339 | S36: 20.06929456 | T36: 20.38046724 | U36: 21.60115174 | V36: 24.82760745
A37: 8 | C37: 93.53956086 | D37: 46.50406616 | E37: 27.0772506 | F37: 21.46975463 | G37: 20.24935053 | H37: 20.03601528 | I37: 20.00457577 | J37: 20.00052446 | K37: 20.00005529 | L37: 20.00000548 | M37: 20.00000088 | N37: 20.00000385 | O37: 20.00003613 | P37: 20.0003151 | Q37: 20.00247942 | R37: 20.01715959 | S37: 20.10108669 | T37: 20.4863241 | U37: 21.81857627 | V37: 25.03301957
A38: 9 | C38: 96.40827477 | D38: 49.48462077 | E38: 28.66562444 | F38: 22.00913225 | G38: 20.38243995 | H38: 20.06192876 | I38: 20.00878528 | J38: 20.00111792 | K38: 20.00013003 | L38: 20.00001413 | M38: 20.00000239 | N38: 20.00000909 | O38: 20.00007699 | P38: 20.00060481 | Q38: 20.00426198 | R38: 20.02630781 | S38: 20.13811519 | T38: 20.59510291 | U38: 22.02154373 | V38: 25.22477335
A39: 10 | C39: 99.10517506 | D39: 52.28666336 | E39: 30.27639882 | F39: 22.61582777 | G39: 20.55009974 | H39: 20.09854455 | I39: 20.01543852 | J39: 20.00216193 | K39: 20.00027551 | L39: 20.00003265 | M39: 20.00000579 | N39: 20.00001934 | O39: 20.00014887 | P39: 20.00106253 | Q39: 20.00677959 | R39: 20.03782549 | S39: 20.17973193 | T39: 20.70529072 | U39: 22.21203385 | V39: 25.40473916
A40: 11 | C40: 101.6521962 | D40: 54.93298359 | E40: 31.89393402 | F40: 23.2806408 | G40: 20.75269624 | H40: 20.14749438 | I40: 20.02527188 | J40: 20.00386293 | K40: 20.00053575 | L40: 20.0000689 | M40: 20.00001282 | N40: 20.00003778 | O40: 20.00026596 | P40: 20.00173879 | Q40: 20.01014367 | R40: 20.05173481 | S40: 20.22529854 | T40: 20.81581616 | U40: 22.39164625 | V40: 25.57442823
A41: 12 | C41: 104.0672594 | D41: 57.44220132 | E41: 33.50714809 | F41: 23.99493319 | G41: 20.98974471 | H41: 20.21013409 | I41: 20.03904395 | J41: 20.00646661 | K41: 20.00096995 | L41: 20.00013464 | M41: 20.00002623 | N41: 20.00006879 | O41: 20.00044518 | P41: 20.00268555 | Q41: 20.0144465 | R41: 20.06799941 | S41: 20.27421669 | T41: 20.92592293 | U41: 22.56168768 | V41: 25.7350751
A42: 13 | C42: 106.3651619 | D42: 59.82969063 | E42: 35.10822964 | F42: 24.75083967 | G42: 21.26013042 | H42: 20.28752609 | I42: 20.05750499 | J42: 20.01025188 | K42: 20.00165351 | L42: 20.00024651 | M42: 20.00005021 | N42: 20.00011803 | O42: 20.00070573 | P42: 20.00395416 | Q42: 20.01976008 | R42: 20.08653981 | S42: 20.32594248 | T42: 21.03508054 | U42: 22.72323691 | V42: 25.88769896
A43: 14 | C43: 108.5582445 | D43: 62.10827351 | E43: 36.6917238 | F43: 25.54134039 | G43: 21.56229677 | H43: 20.3804438 | I43: 20.08137139 | J43: 20.0155233 | K43: 20.00267815 | L43: 20.00042683 | M43: 20.00009074 | N43: 20.00019259 | O43: 20.00106861 | P43: 20.00559357 | Q43: 20.02613642 | R43: 20.10724634 | S43: 20.37999121 | T43: 21.14292089 | U43: 22.87719349 | V43: 26.03314965
A44: 15 | C44: 110.6568975 | D44: 64.28874532 | E44: 38.25387962 | F44: 26.36025419 | G44: 21.89439795 | H44: 20.48939061 | I44: 20.11130605 | J44: 20.02260273 | K44: 20.00415134 | L44: 20.00070429 | M44: 20.00015599 | N44: 20.00030105 | O44: 20.00155607 | P44: 20.00764901 | Q44: 20.03360894 | R44: 20.12998973 | S44: 20.43593677 | T44: 21.24919313 | U44: 23.02431467 | V44: 26.17214259
A45: 16 | C45: 112.6699472 | D45: 66.3802765 | E45: 39.79218189 | F45: 27.20218911 | G45: 22.25441856 | H45: 20.61462722 | I45: 20.14790445 | J45: 20.03182094 | K45: 20.00619495 | L45: 20.00111436 | M45: 20.00025672 | N45: 20.00045348 | O45: 20.00219106 | P45: 20.01016104 | Q45: 20.04219435 | R45: 20.15462934 | S45: 20.49340802 | T45: 21.35373121 | U45: 23.16524356 | V45: 26.30528536
A46: 17 | C46: 114.6049542 | D46: 68.39072237 | E46: 41.30501341 | F46: 28.06247249 | G46: 22.64026467 | H46: 20.75620292 | I46: 20.19168587 | J46: 20.04350961 | K46: 20.00894346 | L46: 20.0016996 | M46: 20.00040657 | N46: 20.00066148 | O46: 20.00299672 | P46: 20.01316495 | Q46: 20.05189484 | R46: 20.18101945 | S46: 20.55208389 | T46: 21.45643057 | U46: 23.30053098 | V46: 26.43309833
A47: 18 | C47: 116.4684454 | D47: 70.3268643 | E47: 42.79141028 | F47: 28.93707384 | G47: 23.04983102 | H47: 20.91398778 | I47: 20.243089 | J47: 20.05799421 | K47: 20.01254171 | L47: 20.00250962 | M47: 20.00062236 | N47: 20.00093817 | O47: 20.00399592 | P47: 20.01669053 | Q47: 20.06270033 | R47: 20.20901384 | S47: 20.61168791 | T47: 21.55723123 | U47: 23.43065231 | V47: 26.55603064
A48: 19 | C48: 118.2660962 | D48: 72.19459899 | E48: 44.25088364 | F48: 29.82252818 | G48: 23.48104929 | H48: 21.08770373 | I48: 20.30247111 | J48: 20.07558782 | K48: 20.01714247 | L48: 20.00360088 | M48: 20.00092432 | N48: 20.00129815 | O48: 20.00521093 | P48: 20.02076197 | Q48: 20.07459062 | R48: 20.23846912 | S48: 20.67198285 | T48: 21.65610551 | U48: 23.55602086 | V48: 26.67447275
A49: 20 | C49: 120.002875 | D49: 73.99908847 | E49: 45.68328936 | F49: 30.71586382 | G49: 23.93192143 | H49: 21.27695327 | I49: 20.3701099 | J49: 20.09658606 | K49: 20.02290385 | L49: 20.0050363 | M49: 20.00133614 | N49: 20.00175746 | O49: 20.0066631 | P49: 20.02539806 | Q49: 20.08753738 | R49: 20.269247 | S49: 20.73276568 | T49: 21.75304904 | U49: 23.67699834 | V49: 26.78876639
A50: 21 | C50: 121.6831582 | D50: 75.74487979 | E50: 47.0887323 | F50: 31.61453667 | G50: 24.40054153 | H50: 21.48124534 | I50: 20.44620736 | J50: 20.12126319 | K50: 20.02998682 | L50: 20.00688465 | M50: 20.00188509 | N50: 20.00233355 | O50: 20.00837268 | P50: 20.03061248 | Q50: 20.10150596 | R50: 20.30121576 | S50: 20.79386297 | T50: 21.8480742 | U50: 23.79390331 | V50: 26.89921252
A51: 22 | C51: 123.3108232 | D51: 77.4360015 | E51: 48.46749572 | F51: 32.51637173 | G51: 24.8851091 | H51: 21.70001785 | I51: 20.53089489 | J51: 20.14986921 | K51: 20.03855279 | L51: 20.00921987 | M51: 20.00260195 | N51: 20.00304522 | O51: 20.01035865 | P51: 20.03641419 | Q51: 20.11645693 | R51: 20.33425114 | S51: 20.85512681 | T51: 21.94120529 | U51: 23.90701794 | V51: 27.00607772
A52: 23 | C52: 124.8893236 | D52: 79.07604186 | E52: 49.81998916 | F52: 33.41951168 | G52: 25.38393598 | H52: 21.93265714 | I52: 20.6242394 | J52: 20.18262787 | K52: 20.04876138 | L52: 20.01212022 | M52: 20.00352087 | N52: 20.00391254 | O52: 20.01263871 | P52: 20.04280784 | Q52: 20.13234745 | R52: 20.36823682 | S52: 20.91643121 | T52: 22.03247492 | U52: 24.01659351 | V52: 27.10959939
A53: 24 | C53: 126.4217509 | D53: 80.66821287 | E53: 51.14670976 | F53: 34.32237214 | G53: 25.89544867 | H53: 22.17851441 | I53: 20.72624969 | J53: 20.21973568 | K53: 20.06076841 | L53: 20.01566747 | M53: 20.00467923 | N53: 20.00495683 | O53: 20.0152292 | P53: 20.04979433 | Q53: 20.1491324 | R53: 20.40306453 | S53: 20.97766905 | T53: 22.12192142 | U53: 24.12285487 | V53: 27.20998996
A54: 25 | C54: 127.910885 | D54: 82.21540293 | E54: 52.4482136 | F54: 35.22360309 | G54: 26.41818736 | H54: 22.43691936 | I54: 20.83688304 | J54: 20.26136143 | K54: 20.0747242 | L54: 20.01994593 | M54: 20.00611737 | N54: 20.00620052 | O54: 20.01814519 | P54: 20.05737118 | Q54: 20.16676533 | R54: 20.43863397 | S54: 21.03874932 | T54: 22.20958689 | U54: 24.22600421 | V54: 27.30744044
A55: 26 | C55: 129.3592367 | D55: 83.72022055 | E55: 53.7250944 | F55: 36.12205563 | G55: 26.95080272 | H55: 22.7071914 | I55: 20.95605166 | J55: 20.30764648 | K55: 20.09077205 | L55: 20.02504159 | M55: 20.00787829 | N55: 20.00766712 | O55: 20.02140055 | P55: 20.06553313 | Q55: 20.18519925 | R55: 20.4748526 | S55: 21.09959488 | T55: 22.2955157 | U55: 24.32622405 | V55: 27.40212327
A56: 27 | C56: 130.7690822 | D56: 85.18503087 | E56: 54.9779677 | F56: 37.01675355 | G56: 27.49205126 | H56: 22.98864878 | I56: 21.08362884 | J56: 20.35870539 | K56: 20.10904705 | L56: 20.03104121 | M56: 20.01000732 | N56: 20.00938112 | O56: 20.02500799 | P56: 20.07427251 | Q56: 20.20438723 | R56: 20.51163528 | S56: 21.16014043 | T56: 22.3797535 | U56: 24.42367985 | V56: 27.49419477
A57: 28 | C57: 132.1424933 | D57: 86.61198627 | E57: 56.20745921 | F57: 37.90686888 | G57: 28.04078971 | H57: 23.28061576 | I57: 21.2194548 | J57: 20.41462701 | K57: 20.12967515 | L57: 20.0380315 | M57: 20.01255178 | N57: 20.01136788 | O57: 20.02897922 | P57: 20.0835797 | Q57: 20.22428296 | R57: 20.54890387 | S57: 21.22033087 | T57: 22.46234638 | U57: 24.51852214 | V57: 27.58379716
A58: 29 | C58: 133.4813617 | D58: 88.00305226 | E58: 57.41419617 | F58: 38.79170111 | G58: 28.59596901 | H58: 23.58242833 | I58: 21.36334202 | J58: 20.4754758 | K58: 20.15277244 | L58: 20.04609829 | M58: 20.01556055 | N58: 20.01365355 | O58: 20.03332506 | P58: 20.09344354 | Q58: 20.24484111 | R58: 20.58658683 | S58: 21.28011983 | T58: 22.54334035 | U58: 24.61088837 | V58: 27.67106028
A59: 30 | C59: 134.7874206 | D59: 89.36002954 | E59: 58.59880106 | F59: 39.67065929 | G59: 29.15662795 | H59: 23.89343853 | I59: 21.51508015 | J59: 20.54129329 | K59: 20.17844466 | L59: 20.05532585 | M59: 20.01908373 | N59: 20.01626494 | O59: 20.03805556 | P59: 20.10385167 | Q59: 20.26601764 | R59: 20.62461877 | S59: 21.33946846 | T59: 22.62278086 | U59: 24.7009044 | V59: 27.75610305
A60: 31 | C60: 136.0622623 | D60: 90.68457274 | E60: 59.76188705 | F60: 40.54324686 | G60: 29.72188699 | H60: 24.21301769 | I60: 21.67444037 | J60: 20.61209981 | K60: 20.20678689 | L60: 20.0657962 | M60: 20.02317222 | N60: 20.01922942 | O60: 20.04318011 | P60: 20.1147909 | Q60: 20.28777008 | R60: 20.66293999 | S60: 21.39834434 | T60: 22.70071256 | U60: 24.78868586 | V60: 27.83903471
A61: 32 | C61: 137.3073545 | D61: 91.97820658 | E61: 60.90405476 | F61: 41.40904854 | G61: 30.29094212 | H61: 24.54055885 | I61: 21.8411794 | J61: 20.68789607 | K61: 20.23788347 | L61: 20.07758855 | M61: 20.02787734 | N61: 20.0225748 | O61: 20.04870757 | P61: 20.12624742 | Q61: 20.31005762 | R61: 20.70149612 | S61: 21.45672064 | T61: 22.77717907 | U61: 24.8743393 | V61: 27.91995592
A62: 33 | C62: 138.5240531 | D62: 93.2423398 | E62: 62.02589001 | F62: 42.26771918 | G62: 30.86305898 | H62: 24.87547831 | I62: 22.01504292 | J62: 20.76866499 | K62: 20.27180799 | L62: 20.09077883 | M62: 20.03325048 | N62: 20.02632924 | O62: 20.05464638 | P62: 20.13820714 | Q62: 20.33284131 | R62: 20.74023764 | S62: 21.51457529 | T62: 22.85222284 | U62: 24.95796311 | V62: 27.99895962
A63: 34 | C63: 139.7136139 | D63: 94.47827722 | E63: 63.12796234 | F63: 43.11897415 | G63: 31.43756733 | H63: 25.21721667 | I63: 22.19576867 | J63: 20.85437333 | K63: 20.30862346 | L63: 20.10543922 | M63: 20.03934274 | N63: 20.03052106 | O63: 20.06100464 | P63: 20.15065586 | Q63: 20.3560841 | R63: 20.77911956 | S63: 21.57189037 | T63: 22.92588506 | U63: 25.03964841 | V63: 28.07613192
A64: 35 | C64: 140.8772028 | D64: 95.68723024 | E64: 64.21082407 | F64: 43.96258113 | G64: 32.01385579 | H64: 25.56523938 | I64: 22.38308904 | J64: 20.94497337 | K64: 20.34838256 | L64: 20.12163785 | M64: 20.04620457 | N64: 20.03517869 | O64: 20.06779023 | P64: 20.16357951 | Q64: 20.37975087 | R64: 20.81810102 | S64: 21.62865153 | T64: 22.99820562 | U64: 25.11947977 | V64: 28.15155271
A65: 36 | C65: 142.0159048 | D65: 96.87032602 | E65: 65.27500978 | F65: 44.79835303 | G65: 32.59136703 | H65: 25.91903687 | I65: 22.57673347 | J65: 21.04040451 | K65: 20.39112799 | L65: 20.13943852 | M65: 20.05388553 | N65: 20.04033052 | O65: 20.07501082 | P65: 20.17696422 | Q65: 20.4038085 | R65: 20.85714498 | S65: 21.68484749 | T65: 23.06922308 | U65: 25.19753586 | V65: 28.22529631
A66: 37 | C66: 143.1307313 | D66: 98.02861552 | E66: 66.32103616 | F66: 45.62614185 | G66: 33.1695932 | H66: 26.27812443 | I66: 22.77643033 | J66: 21.14059476 | K66: 20.43689284 | L66: 20.15890046 | M66: 20.06243396 | N66: 20.04600478 | O66: 20.082674 | P66: 20.19079658 | Q66: 20.4282258 | R66: 20.89621792 | S66: 21.74046966 | T66: 23.13897465 | U66: 25.27389004 | V66: 28.29743202
A67: 38 | C67: 144.2226273 | D67: 99.16308058 | E67: 67.34940201 | F67: 46.44583349 | G67: 33.74807178 | H67: 26.6420418 | I67: 22.98190864 | J67: 21.2454622 | K67: 20.48570107 | L67: 20.18007824 | M67: 20.07189676 | N67: 20.05222943 | O67: 20.09078729 | P67: 20.20506362 | Q67: 20.45297355 | R67: 20.93528951 | S67: 21.79551175 | T67: 23.20749626 | U67: 25.34861079 | V67: 28.36802456
A68: 39 | C68: 145.2924773 | D68: 100.2746402 | E68: 68.36058853 | F68: 47.25734315 | G68: 34.3263817 | H68: 27.01035267 | I68: 23.19289951 | J68: 21.35491629 | K68: 20.53756801 | L68: 20.20302163 | M68: 20.08231917 | N68: 20.05903205 | O68: 20.09935819 | P68: 20.21975302 | Q68: 20.47802441 | R68: 20.97433242 | S68: 21.84996948 | T68: 23.2748225 | U68: 25.42176224 | V68: 28.43713449
A69: 40 | C69: 146.3411108 | D69: 101.3641561 | E69: 69.35505959 | F69: 48.06061142 | G69: 34.90413988 | H69: 27.38264393 | I69: 23.40913724 | J69: 21.46885913 | K69: 20.59250083 | L69: 20.22777559 | M69: 20.09374455 | N69: 20.06643976 | O69: 20.10839417 | P69: 20.23485309 | Q69: 20.50335294 | R69: 21.01332201 | S69: 21.90384033 | T69: 23.34098673 | U69: 25.49340447 | V69: 28.50481859
A70: 41 | C70: 147.3693066 | D70: 102.4324375 | E70: 70.33326225 | F70: 48.8556009 | G70: 35.48099791 | H70: 27.75852496 | I70: 23.6303604 | J70: 21.58718657 | K70: 20.65049909 | L70: 20.25438027 | M70: 20.10621428 | N70: 20.07447907 | O70: 20.11790276 | P70: 20.25035286 | Q70: 20.52893548 | R70: 21.05223616 | S70: 21.95712327 | T70: 23.40602107 | U70: 25.56359394 | V70: 28.57113018
A71: 42 | C71: 148.3777976 | D71: 103.4802458 | E71: 71.29562719 | F71: 49.64229322 | G71: 36.05663916 | H71: 28.13762674 | I71: 23.85631256 | J71: 21.70978926 | K71: 20.71155525 | L71: 20.28287104 | M71: 20.11976756 | N71: 20.08317584 | O71: 20.12789149 | P71: 20.2662421 | Q71: 20.55475013 | R71: 21.09105506 | S71: 22.0098186 | T71: 23.46995649 | U71: 25.63238372 | V71: 28.63611943
A72: 43 | C72: 149.367274 | D72: 104.5082984 | E72: 72.24256931 | F72: 50.42068649 | G72: 36.63077603 | H72: 28.51960098 | I72: 24.08674297 | J72: 21.83655363 | K72: 20.77565523 | L72: 20.3132786 | M72: 20.13444135 | N72: 20.09255516 | O72: 20.13836791 | P72: 20.28251136 | Q72: 20.58077667 | R72: 21.12976099 | S72: 22.06192776 | T72: 23.5328228 | U72: 25.69982385 | V72: 28.69983358
A73: 44 | C73: 150.3383874 | D73: 105.5172719 | E73: 73.17448824 | F73: 51.19079305 | G73: 37.20314748 | H73: 28.90411924 | I73: 24.32140704 | J73: 21.96736271 | K73: 20.84277889 | L73: 20.34562901 | M73: 20.15027026 | N73: 20.1026413 | O73: 20.1493396 | P73: 20.29915197 | Q73: 20.60699651 | R73: 21.16833821 | S73: 22.11345321 | T73: 23.59464873 | U73: 25.76596151 | V73: 28.76231723
A74: 45 | C74: 151.2917531 | D74: 106.5078058 | E74: 74.09176896 | F74: 51.95263756 | G74: 37.77351679 | H74: 29.29087197 | I74: 24.56006675 | J74: 22.10209695 | K74: 20.91290055 | L74: 20.37994392 | M74: 20.16728647 | N74: 20.11345761 | O74: 20.16081413 | P74: 20.31615604 | Q74: 20.63339261 | R74: 21.20677277 | S74: 22.16439825 | T74: 23.65546197 | U74: 25.8308413 | V74: 28.8236125
A75: 46 | C75: 152.2279534 | D75: 107.4805052 | E75: 74.99478235 | F75: 52.70625528 | G75: 38.34166947 | H75: 29.67956764 | I75: 24.80249095 | J75: 22.2406349 | K75: 20.98598949 | L75: 20.41624064 | M75: 20.18551975 | N75: 20.12502651 | O75: 20.17279907 | P75: 20.33351645 | Q75: 20.6599494 | R75: 21.24505237 | S75: 22.21476696 | T75: 23.71528922 | U75: 25.89450542 | V75: 28.88375926
A76: 47 | C76: 153.1475398 | D76: 108.4359429 | E76: 75.88388577 | F76: 53.45169059 | G76: 38.90741141 | H76: 30.06993186 | I76: 25.04845553 | J76: 22.38285382 | K76: 21.0620104 | L76: 20.45453231 | M76: 20.20499737 | N76: 20.13736937 | O76: 20.18530196 | P76: 20.35122683 | Q76: 20.68665274 | R76: 21.28316627 | S76: 22.26456408 | T76: 23.77415623 | U76: 25.95699385 | V76: 28.9427953
A77: 48 | C77: 154.0510355 | D77: 109.3746626 | E77: 76.75942363 | F77: 54.18899573 | G77: 39.47056713 | H77: 30.46170644 | I77: 25.29774357 | J77: 22.52863028 | K77: 21.14092384 | L77: 20.49482812 | M77: 20.22574414 | N77: 20.15050652 | O77: 20.19833025 | P77: 20.36928156 | Q77: 20.71348983 | R77: 21.3211051 | S77: 22.31379491 | T77: 23.83208782 | U77: 26.01834453 | V77: 29.00075643
A78: 49 | C78: 154.938937 | D78: 110.2971802 | E78: 77.62172792 | F78: 54.91822964 | G78: 40.03097825 | H78: 30.85464864 | I78: 25.55014543 | J78: 22.67784063 | K78: 21.22268667 | L78: 20.53713343 | M78: 20.24778239 | N78: 20.16445718 | O78: 20.21189136 | P78: 20.38767571 | Q78: 20.74044912 | R78: 21.35886082 | S78: 22.36246528 | T78: 23.889108 | U78: 26.07859348 | V78: 29.05767671
A79: 50 | C79: 155.8117165 | D79: 111.2039862 | E79: 78.47111878 | F79: 55.63945696 | G79: 40.58850202 | H79: 31.24853025 | I79: 25.80545872 | J79: 22.83036144 | K79: 21.30725243 | L79: 20.58145001 | M79: 20.27113203 | N79: 20.17923943 | O79: 20.22599255 | P79: 20.40640502 | Q79: 20.76752029 | R79: 21.39642658 | S79: 22.41058145 | T79: 23.94523992 | U79: 26.13777497 | V79: 29.11358851
A80: 51 | C80: 156.6698232 | D80: 112.0955473 | E80: 79.30790495 | F80: 56.35274721 | G80: 41.14301005 | H80: 31.64313687 | I80: 26.06348829 | J80: 22.98606988 | K80: 21.39457177 | L80: 20.62777622 | M80: 20.29581052 | N80: 20.19487023 | O80: 20.24064097 | P80: 20.4254659 | Q80: 20.79469414 | R80: 21.43379667 | S80: 22.45815005 | T80: 24.00050596 | U80: 26.19592165 | V80: 29.16852267
A81: 52 | C81: 157.5136851 | D81: 112.9723083 | E81: 80.13238433 | F81: 57.05817399 | G81: 41.6943871 | H81: 32.03826714 | I81: 26.3240462 | J81: 23.14484407 | K81: 21.48459273 | L81: 20.67610716 | M81: 20.32183301 | N81: 20.21136532 | O81: 20.25584361 | P81: 20.44485532 | Q81: 20.82196255 | R81: 21.47096636 | S81: 22.50517807 | T81: 24.05492777 | U81: 26.25306462 | V81: 29.22250857
A82: 53 | C82: 158.3437099 | D82: 113.8346928 | E82: 80.94484443 | F82: 57.75581433 | G82: 42.24252998 | H82: 32.43373201 | I82: 26.58695154 | J82: 23.30656336 | K82: 21.57726118 | L82: 20.72643494 | M82: 20.34921231 | N82: 20.22873928 | O82: 20.27160725 | P82: 20.46457085 | Q82: 20.84931841 | R82: 21.50793192 | S82: 22.55167276 | T82: 24.10852629 | U82: 26.30923357 | V82: 29.27557426
A83: 54 | C83: 159.1602873 | D83: 114.6831055 | E83: 81.74556279 | F83: 58.4457481 | G83: 42.78734657 | H83: 32.82935405 | I83: 26.85203041 | J83: 23.47110859 | K83: 21.67252101 | L83: 20.77874881 | M83: 20.37795898 | N83: 20.2470055 | O83: 20.28793846 | P83: 20.48461057 | Q83: 20.87675553 | R83: 21.54469047 | S83: 22.59764165 | T83: 24.16132179 | U83: 26.36445688 | V83: 29.32774655
A84: 55 | C84: 159.9637889 | D84: 115.5179327 | E84: 82.53480748 | F84: 59.12805751 | G84: 43.32875491 | H84: 33.22496681 | I84: 27.11911571 | J84: 23.6383623 | K84: 21.77031451 | L84: 20.83303538 | M84: 20.40808143 | N84: 20.26617617 | O84: 20.30484358 | P84: 20.50497303 | Q84: 20.90426863 | R84: 21.58123994 | S84: 22.64309249 | T84: 24.21333391 | U84: 26.41876167 | V84: 29.37905108
A85: 56 | C85: 160.7545704 | D85: 116.3395439 | E85: 83.31283747 | F85: 59.80282664 | G85: 43.86668235 | H85: 33.62041419 | I85: 27.388047 | J85: 23.80820891 | K85: 21.87058262 | L85: 20.88927879 | M85: 20.43958594 | N85: 20.28626229 | O85: 20.32232866 | P85: 20.52565726 | Q85: 20.93185324 | R85: 21.61757901 | S85: 22.68803319 | T85: 24.26458169 | U85: 26.47217393 | V85: 29.42951238
A86: 57 | C86: 161.532972 | D86: 117.1482925 | E86: 84.07990303 | F86: 60.47014105 | G86: 44.40106482 | H86: 34.01554985 | I86: 27.65867035 | J86: 23.98053489 | K86: 21.97326515 | L86: 20.94746091 | M86: 20.47247679 | N86: 20.3072737 | O86: 20.34039949 | P86: 20.54666265 | Q86: 20.95950566 | R86: 21.65370705 | S86: 22.73247184 | T86: 24.3150836 | U86: 26.52471856 | V86: 29.479154
A87: 58 | C87: 162.2993194 | D87: 117.9445171 | E87: 84.83624615 | F87: 61.13008745 | G87: 44.93184609 | H87: 34.41023666 | I87: 27.93083815 | J87: 24.15522888 | K87: 22.07830101 | L87: 21.00756149 | M87: 20.5067563 | N87: 20.32921906 | O87: 20.35906151 | P87: 20.56798898 | Q87: 20.98722291 | R87: 21.68962408 | S87: 22.77641668 | T87: 24.36485756 | U87: 26.57641945 | V87: 29.52799849
A88: 59 | C88: 163.053925 | D88: 118.7285419 | E88: 85.58210081 | F88: 61.78275338 | G88: 45.45897715 | H88: 34.80434616 | I88: 28.2044089 | J88: 24.33218179 | K88: 22.18562845 | L88: 21.06955836 | M88: 20.54242492 | N88: 20.35210588 | O88: 20.37831988 | P88: 20.58963635 | Q88: 21.01500265 | R88: 21.72533067 | S88: 22.81987606 | T88: 24.41392097 | U88: 26.62729956 | V88: 29.57606754
A89: 60 | C89: 163.797088 | D89: 119.5006782 | E89: 86.31769342 | F89: 62.42822695 | G89: 45.98241562 | H89: 35.19775807 | I89: 28.47924709 | J89: 24.51128688 | K89: 22.29518524 | L89: 21.13342755 | M89: 20.57948136 | N89: 20.37594054 | O89: 20.39817938 | P89: 20.61160513 | Q89: 21.04284318 | R89: 21.76082797 | S89: 22.86285841 | T89: 24.46229075 | U89: 26.67738094 | V89: 29.62338199
A90: 61 | C90: 164.5290959 | D90: 120.2612244 | E90: 87.0432431 | F90: 63.06659659 | G90: 46.50212524 | H90: 35.59035984 | I90: 28.75522294 | J90: 24.69243984 | K90: 22.40690883 | L90: 21.19914349 | M90: 20.61792259 | N90: 20.40072834 | O90: 20.41864443 | P90: 20.63389596 | Q90: 21.07074334 | R90: 21.79611759 | S90: 22.90537226 | T90: 24.50998335 | U90: 26.72668482 | V90: 29.6699619
A91: 62 | C91: 165.2502247 | D91: 121.0104674 | E91: 87.75896197 | F91: 63.69795088 | G91: 47.01807531 | H91: 35.98204616 | I91: 29.03221225 | J91: 24.87553885 | K91: 22.52073652 | L91: 21.26667914 | M91: 20.65774402 | N91: 20.42647347 | O91: 20.4397191 | P91: 20.65650969 | Q91: 21.09870248 | R91: 21.83120161 | S91: 22.94742622 | T91: 24.55701479 | U91: 26.77523164 | V91: 29.71582658
A92: 63 | C92: 165.9607397 | D92: 121.7486828 | E92: 88.46505548 | F92: 64.32237832 | G92: 47.53024031 | H92: 36.37271859 | I92: 29.31009617 | J92: 25.06048458 | K92: 22.63660561 | L92: 21.33600612 | M92: 20.6989395 | N92: 20.45317908 | O92: 20.46140707 | P92: 20.67944733 | Q92: 21.12672045 | R92: 21.86608252 | S92: 22.98902892 | T92: 24.60340064 | U92: 26.82304113 | V92: 29.76099466
A93: 64 | C93: 166.660896 | D93: 122.4761356 | E93: 89.16172267 | F93: 64.93996723 | G93: 48.03859942 | H93: 36.76228512 | I93: 29.58876106 | J93: 25.24718024 | K93: 22.75445353 | L93: 21.40709488 | M93: 20.74150148 | N93: 20.4808473 | O93: 20.4837116 | P93: 20.70271006 | Q93: 21.15479749 | R93: 21.90076319 | S93: 23.03018905 | T93: 24.64915609 | U93: 26.87013229 | V93: 29.8054841
A94: 65 | C94: 167.3509391 | D94: 123.193081 | E94: 89.84915645 | F94: 65.55080558 | G94: 48.5431362 | H94: 37.15065983 | I94: 29.86809827 | J94: 25.43553156 | K94: 22.87421796 | L94: 21.47991478 | M94: 20.78542103 | N94: 20.50947928 | O94: 20.50663558 | P94: 20.72629918 | Q94: 21.18293427 | R94: 21.93524681 | S94: 23.07091532 | T94: 24.69429595 | U94: 26.91652351 | V94: 29.84931227
A95: 66 | C95: 168.0311054 | D95: 123.8997645 | E95: 90.52754384 | F95: 66.15498085 | G95: 49.04383816 | H95: 37.53776255 | I95: 30.14800397 | J95: 25.62544684 | K95: 22.99583693 | L95: 21.55443426 | M95: 20.83068798 | N95: 20.53907518 | O95: 20.53018149 | P95: 20.75021606 | Q95: 21.21113178 | R95: 21.96953691 | S95: 23.11121646 | T95: 24.73883465 | U95: 26.96223253 | V95: 29.89249593
A96: 67 | C96: 168.7016227 | D96: 124.5964228 | E96: 91.19706622 | F96: 66.75258 | G96: 49.54069652 | H96: 37.92351848 | I96: 30.42837894 | J96: 25.8168369 | K96: 23.11924891 | L96: 21.63062091 | M96: 20.87729093 | N96: 20.56963426 | O96: 20.55435138 | P96: 20.77446215 | Q96: 21.23939133 | R96: 22.0036373 | S96: 23.15110121 | T96: 24.78278629 | U96: 27.00727653 | V96: 29.93505131
A97: 68 | C97: 169.3627105 | D97: 125.283284 | E97: 91.85789954 | F97: 67.3436893 | G97: 50.03370584 | H97: 38.30785793 | I97: 30.70912843 | J97: 26.00961507 | K97: 23.24439293 | L97: 21.70844164 | M97: 20.9252174 | N97: 20.6011549 | O97: 20.57914692 | P97: 20.79903893 | Q97: 21.26771452 | R97: 22.03755201 | S97: 23.1905783 | T97: 24.82616463 | U97: 27.05167215 | V97: 29.97699413
A98: 69 | C98: 170.0145806 | D98: 125.9605682 | E98: 92.51021457 | F98: 67.92839431 | G98: 50.5228638 | H98: 38.690716 | I98: 30.99016196 | J98: 26.2036972 | K98: 23.37120862 | L98: 21.78786269 | M98: 20.97445388 | N98: 20.63363459 | O98: 20.60456935 | P98: 20.8239479 | Q98: 21.29610321 | R98: 22.07128533 | S98: 23.22965645 | T98: 24.86898311 | U98: 27.0954355 | V98: 30.01833962
A99: 70 | C99: 170.6574375 | D99: 126.6284877 | E99: 93.15417708 | F99: 68.50677978 | G99: 51.00817089 | H99: 39.07203231 | I99: 31.27139318 | J99: 26.3990016 | K99: 23.4996363 | L99: 21.86884981 | M99: 21.02498587 | N99: 20.66707003 | O99: 20.63061949 | P99: 20.84919054 | Q99: 21.32455944 | R99: 22.10484173 | S99: 23.26834437 | T99: 24.91125487 | U99: 27.13858221 | V99: 30.05910253
A100: 71 | C100: 171.2914785 | D100: 127.2872477 | E100: 93.78994804 | F100: 69.07892961 | G100: 51.48963023 | H100: 39.45175075 | I100: 31.55273967 | J100: 26.595449 | K100: 23.62961704 | L100: 21.95136832 | M100: 21.076798 | N100: 20.70145713 | O100: 20.65729777 | P100: 20.87476832 | Q100: 21.35308548 | R100: 22.13822587 | S100: 23.30665075 | T100: 24.95299276 | U100: 27.18112746 | V100: 30.09929721
A101: 72 | C101: 171.9168943 | D101: 127.9370461 | E101: 94.41768382 | F101: 69.64492681 | G101: 51.96724733 | H101: 39.82981921 | I101: 31.83412282 | J101: 26.79296256 | K101: 23.76109268 | L101: 22.03538316 | M101: 21.12987407 | N101: 20.73679104 | O101: 20.6846042 | P101: 20.90068266 | Q101: 21.38168373 | R101: 22.17144255 | S101: 23.34458422 | T101: 24.99420935 | U101: 27.22308596 | V101: 30.13893757
A102: 73 | C102: 172.5338692 | D102: 128.5780746 | E102: 95.03753636 | F102: 70.20485343 | G102: 52.44102988 | H102: 40.20618939 | I102: 32.11546764 | J102: 26.99146778 | K102: 23.89400593 | L102: 22.12085904 | M102: 21.18419714 | N102: 20.7730662 | O102: 20.71253841 | P102: 20.9269349 | Q102: 21.41035675 | R102: 22.20449671 | S102: 23.38215339 | T102: 25.03491695 | U102: 27.26447205 | V102: 30.17803713
A103: 74 | C103: 173.1425814 | D103: 129.2105183 | E103: 95.64965335 | F103: 70.75879057 | G103: 52.9109876 | H103: 40.58081653 | I103: 32.39670265 | J103: 27.1908925 | K103: 24.02830036 | L103: 22.20776043 | M103: 21.23974956 | N103: 20.81027639 | O103: 20.7410996 | P103: 20.95352632 | Q103: 21.43910721 | R103: 22.23739341 | S103: 23.41936683 | T103: 25.0751276 | U103: 27.30529964 | V103: 30.21660905
A104: 75 | C104: 173.7432034 | D104: 129.8345564 | E104: 96.25417838 | F104: 71.30681832 | G104: 53.37713203 | H104: 40.95365928 | I104: 32.6777597 | J104: 27.3911668 | K104: 24.16392048 | L104: 22.29605169 | M104: 21.29651307 | N104: 20.84841472 | O104: 20.77028662 | P104: 20.98045812 | Q104: 21.46793786 | R104: 22.27013779 | S104: 23.45623305 | T104: 25.11485311 | U104: 27.34558228 | V104: 30.25466613
A105: 76 | C105: 174.3359021 | D105: 130.4503622 | E105: 96.85125108 | F105: 71.84901573 | G105: 53.8394764 | H105: 41.32467942 | I105: 32.95857385 | J105: 27.59222304 | K105: 24.30081172 | L105: 22.38569711 | M105: 21.35446883 | N105: 20.88747372 | O105: 20.80009792 | P105: 21.00773136 | Q105: 21.49685154 | R105: 22.30273508 | S105: 23.4927605 | T105: 25.15410503 | U105: 27.38533319 | V105: 30.29222086
A106: 77 | C106: 174.920839 | D106: 131.0581037 | E106: 97.44100731 | F106: 72.38546084 | G106: 54.29803549 | H106: 41.69384174 | I106: 33.23908325 | J106: 27.79399572 | K106: 24.43892051 | L106: 22.47666096 | M106: 21.41359746 | N106: 20.92744531 | O106: 20.83053157 | P106: 21.03534702 | Q106: 21.52585111 | R106: 22.33519056 | S106: 23.52895758 | T106: 25.19289471 | U106: 27.42456521 | V106: 30.32928536
A107: 78 | C107: 175.4981709 | D107: 131.6579436 | E107: 98.02357926 | F107: 72.91623061 | G107: 54.75282546 | H107: 42.06111387 | I107: 33.51922899 | J107: 27.99642149 | K107: 24.57819422 | L107: 22.56890755 | M107: 21.47387917 | N107: 20.96832091 | O107: 20.86158529 | P107: 21.06330595 | Q107: 21.5549395 | R107: 22.36750957 | S107: 23.56483261 | T107: 25.23123326 | U107: 27.46329088 | V107: 30.3658715
A108: 79 | C108: 176.0680493 | D108: 132.2500395 | E108: 98.59909562 | F108: 73.44140096 | G108: 55.20386378 | H108: 42.42646608 | I108: 33.79895498 | J108: 28.19943907 | K108: 24.71858128 | L108: 22.66240129 | M108: 21.53529371 | N108: 21.01009139 | O108: 20.89325645 | P108: 21.09160886 | Q108: 21.58411963 | R108: 22.39969747 | S108: 23.60039385 | T108: 25.26913158 | U108: 27.50152245 | V108: 30.40199082
A109: 80 | C109: 176.6306215 | D109: 132.8345443 | E109: 99.16768166 | F109: 73.96104673 | G109: 55.65116906 | H109: 42.78987115 | I109: 34.07820784 | J109: 28.40298923 | K109: 24.86003109 | L109: 22.75710672 | M109: 21.59782049 | N109: 21.05274716 | O109: 20.92554205 | P109: 21.12025632 | Q109: 21.61339444 | R109: 22.43175964 | S109: 23.63564948 | T109: 25.30660036 | U109: 27.53927185 | V109: 30.43765462
A110: 81 | C110: 177.1860301 | D110: 133.4116063 | E110: 99.72945941 | F110: 74.47524169 | G110: 56.09476098 | H110: 43.15130423 | I110: 34.3569368 | J110: 28.60701471 | K110: 25.00249411 | L110: 22.85298856 | M110: 21.6614386 | N110: 21.09627821 | O110: 20.95843878 | P110: 21.14924876 | Q110: 21.64276685 | R110: 22.46370149 | S110: 23.6706076 | T110: 25.34365008 | U110: 27.57655073 | V110: 30.4728739
A111: 82 | C111: 177.7344136 | D111: 133.9813693 | E111: 100.2845477 | F111: 74.98405853 | G111: 56.53466018 | H111: 43.51074272 | I111: 34.63509355 | J111: 28.81146018 | K111: 25.14592181 | L111: 22.95001175 | M111: 21.72612685 | N111: 21.14067406 | O111: 20.991943 | P111: 21.17858646 | Q111: 21.67223976 | R111: 22.49552838 | S111: 23.70527624 | T111: 25.38029105 | U111: 27.61337051 | V111: 30.50765943
A112: 83 | C112: 178.2759064 | D112: 134.543973 | E112: 100.8330624 | F112: 75.48756888 | G112: 56.97088819 | H112: 43.86816611 | I112: 34.91263216 | J112: 29.01627219 | K112: 25.2902667 | L112: 23.04814148 | M112: 21.79186383 | N112: 21.18592388 | O112: 21.02605076 | P112: 21.20826954 | Q112: 21.70181602 | R112: 22.52724568 | S112: 23.73966333 | T112: 25.41653338 | U112: 27.6497423 | V112: 30.54202173
A113: 84 | C113: 178.8106391 | D113: 135.0995529 | E113: 101.3751164 | F113: 75.9858433 | G113: 57.4034673 | H113: 44.22355587 | I113: 35.18950901 | J113: 29.22139914 | K113: 25.43548234 | L113: 23.14734322 | M113: 21.85862791 | N113: 21.23201648 | O113: 21.06075779 | P113: 21.23829796 | Q113: 21.73149846 | R113: 22.55885874 | S113: 23.77377671 | T113: 25.45238699 | U113: 27.68567702 | V113: 30.5759711
A114: 85 | C114: 179.3387384 | D114: 135.6482409 | E114: 101.9108196 | F114: 76.47895129 | G114: 57.83242052 | H114: 44.57689535 | I114: 35.46568263 | J114: 29.42679117 | K114: 25.58152328 | L114: 23.24758275 | M114: 21.92639732 | N114: 21.27894032 | O114: 21.09605957 | P114: 21.26867154 | Q114: 21.76128982 | R114: 22.59037287 | S114: 23.80762413 | T114: 25.48786161 | U114: 27.7211853 | V114: 30.6095176
A115: 86 | C115: 179.8603275 | D115: 136.1901648 | E115: 102.4402795 | F115: 76.96696128 | G115: 58.25777152 | H115: 44.92816968 | I115: 35.74111364 | J115: 29.63240019 | K115: 25.72834516 | L115: 23.34882619 | M115: 21.99515017 | N115: 21.32668357 | O115: 21.13195127 | P115: 21.29938991 | Q115: 21.7911928 | R115: 22.62179331 | S115: 23.84121325 | T115: 25.52296682 | U115: 27.75627757 | V115: 30.64267108
A116: 87 | C116: 180.3755261 | D116: 136.7254492 | E116: 102.9636007 | F116: 77.44994065 | G116: 58.6795445 | H116: 45.27736564 | I116: 36.01576469 | J116: 29.83817977 | K116: 25.8759046 | L116: 23.45104003 | M116: 22.06486447 | N116: 21.37523411 | O116: 21.1684278 | P116: 21.33045254 | Q116: 21.82121001 | R116: 22.65312529 | S116: 23.87455163 | T116: 25.55771201 | U116: 27.79096406 | V116: 30.67544118
A117: 88 | C117: 180.8844508 | D117: 137.254215 | E117: 103.4808852 | F117: 77.92795577 | G117: 59.09776421 | H117: 45.62447158 | I117: 36.28960032 | J117: 30.04408513 | K117: 26.02415925 | L117: 23.55419114 | M117: 22.13551816 | N117: 21.42457958 | O117: 21.20548382 | P117: 21.36185877 | Q117: 21.851344 | R117: 22.68437395 | S117: 23.90764672 | T117: 25.59210642 | U117: 27.82525475 | V117: 30.70783736
A118: 89 | C118: 181.3872147 | D118: 137.7765798 | E118: 103.9922328 | F118: 78.40107195 | G118: 59.51245581 | H118: 45.96947735 | I118: 36.56258691 | J118: 30.25007305 | K118: 26.17306778 | L118: 23.65824679 | M118: 22.20708917 | N118: 21.47470737 | O118: 21.24311376 | P118: 21.39360773 | Q118: 21.8815972 | R118: 22.71554437 | S118: 23.94050588 | T118: 25.6261591 | U118: 27.85915944 | V118: 30.73986887
A119: 90 | C119: 181.8839281 | D119: 138.2926582 | E119: 104.4977408 | F119: 78.8693535 | G119: 59.92364491 | H119: 46.31237419 | I119: 36.83469261 | J119: 30.45610189 | K119: 26.32258985 | L119: 23.76317467 | M119: 22.2795554 | N119: 21.52560468 | O119: 21.28131179 | P119: 21.42569842 | Q119: 21.91197197 | R119: 22.74664156 | S119: 23.97313635 | T119: 25.65987896 | U119: 27.89268773 | V119: 30.77154476
A120: 91 | C120: 182.3746982 | D120: 138.8025617 | E120: 104.9975039 | F120: 79.3328637 | G120: 60.33135742 | H120: 46.65315465 | I120: 37.10588722 | J120: 30.66213147 | K120: 26.47268611 | L120: 23.8689429 | M120: 22.35289479 | N120: 21.5772585 | O120: 21.32007188 | P120: 21.45812967 | Q120: 21.94247058 | R120: 22.77767046 | S120: 24.00554528 | T120: 25.69327474 | U120: 27.92584903 | V120: 30.80287394
A121: 92 | C121: 182.8596294 | D121: 139.3063986 | E121: 105.4916151 | F121: 79.79166486 | G121: 60.73561959 | H121: 46.99181252 | I121: 37.3761422 | J121: 30.86812307 | K121: 26.62331819 | L121: 23.97552005 | M121: 22.42708532 | N121: 21.62965567 | O121: 21.3593878 | P121: 21.49090015 | Q121: 21.97309518 | R121: 22.80863592 | S121: 24.0377397 | T121: 25.72635504 | U121: 27.95865255 | V121: 30.83386511
A122: 93 | C122: 183.3388235 | D122: 139.8042747 | E122: 105.9801647 | F122: 80.24581829 | G122: 61.13645791 | H122: 47.32834279 | I122: 37.6454305 | J122: 31.07403939 | K122: 26.7744487 | L122: 24.08287516 | M122: 22.50210502 | N122: 21.68278288 | O122: 21.39925311 | P122: 21.52400836 | Q122: 22.00384782 | R122: 22.8395427 | S122: 24.06972653 | T122: 25.7591283 | U122: 27.99110734 | V122: 30.86452682
A123: 94 | C123: 183.8123794 | D123: 140.2962929 | E123: 106.4632413 | F123: 80.69538435 | G123: 61.53389912 | H123: 47.66274153 | I123: 37.91372658 | J123: 31.27984448 | K123: 26.92604117 | L123: 24.19097772 | M123: 22.57793201 | N123: 21.7366267 | O123: 21.43966119 | P123: 21.55745266 | Q123: 22.03473044 | R123: 22.87039546 | S123: 24.10151257 | T123: 25.7916028 | U123: 28.02322227 | V123: 30.89486745
A124: 95 | C124: 184.2803938 | D124: 140.7825534 | E124: 106.9409313 | F124: 81.14042241 | G124: 61.92797011 | H124: 47.99500584 | I124: 38.18100631 | J124: 31.48550373 | K124: 27.0780601 | L124: 24.29979772 | M124: 22.65454453 | N124: 21.79117359 | O124: 21.48060524 | P124: 21.59123126 | Q124: 22.06574487 | R124: 22.9011988 | S124: 24.13310453 | T124: 25.82378668 | U124: 28.05500604 | V124: 30.92489521
A125: 96 | C125: 184.7429606 | D125: 141.263154 | E125: 107.4133192 | F125: 81.58099093 | G125: 62.31869797 | H125: 48.32513384 | I125: 38.4472469 | J125: 31.69098379 | K125: 27.23047089 | L125: 24.40930562 | M125: 22.73192092 | N125: 21.84640989 | O125: 21.52207831 | P125: 21.62534222 | Q125: 22.09689283 | R125: 22.93195717 | S125: 24.16450898 | T125: 25.85568794 | U125: 28.08646718 | V125: 30.95461817
A126: 97 | C126: 185.2001717 | D126: 141.7381901 | E126: 107.8804875 | F126: 82.01714742 | G126: 62.70610986 | H126: 48.65312455 | I126: 38.71242686 | J126: 31.89625256 | K126: 27.38323988 | L126: 24.51947236 | M126: 22.81003967 | N126: 21.90232191 | O126: 21.56407329 | P126: 21.65978344 | Q126: 22.12817592 | R126: 22.96267496 | S126: 24.19573239 | T126: 25.88731443 | U126: 28.11761407 | V126: 30.98404423
A127: 98 | C127: 185.6521164 | D127: 142.2077545 | E127: 108.3425169 | F127: 82.4489485 | G127: 63.09023308 | H127: 48.97897785 | I127: 38.97652595 | J127: 32.10127915 | K127: 27.53633428 | L127: 24.63026939 | M127: 22.88887942 | N127: 21.95889586 | O127: 21.60658292 | P127: 21.69455269 | Q127: 22.15959564 | R127: 22.99335643 | S127: 24.22678111 | T127: 25.91867386 | U127: 28.14845492 | V127: 31.01318117
A128: 99 | C128: 186.0988821 | D128: 142.6719379 | E128: 108.7994864 | F128: 82.87644986 | G128: 63.47109497 | H128: 49.30269447 | I128: 39.23952511 | J128: 32.30603383 | K128: 27.68972219 | L128: 24.74166867 | M128: 22.96841898 | N128: 22.01611795 | O128: 21.64959984 | P128: 21.72964761 | Q128: 22.19115333 | R128: 23.02400576 | S128: 24.25766136 | T128: 25.9497738 | U128: 28.17899779 | V128: 31.04203658
A129: 100 | C129: 186.5405537 | D129: 143.1308287 | E129: 109.2514732 | F129: 83.29970633 | G129: 63.84872293 | H129: 49.62427588 | I129: 39.50140642 | J129: 32.51048801 | K129: 27.84337257 | L129: 24.85364263 | M129: 23.04863732 | N129: 22.07397431 | O129: 21.69311653 | P129: 21.76506569 | Q129: 22.22285027 | R129: 23.054627 | S129: 24.28837927 | T129: 25.98062168 | U129: 28.20925059 | V129: 31.07061796
A130: 101 | C130: 186.9772145 | D130: 143.5845133 | E130: 109.6985527 | F130: 83.71877184 | G130: 64.22314438 | H130: 49.94372431 | I130: 39.76215305 | J130: 32.71461417 | K130: 27.99725522 | L130: 24.96616422 | M130: 23.12951363 | N130: 22.1324511 | O130: 21.73712537 | P130: 21.8008043 | Q130: 22.25468758 | R130: 23.0852241 | S130: 24.31894082 | T130: 26.0112248 | U130: 28.2392211 | V130: 31.09893264
A131: 102 | C131: 187.4089455 | D131: 144.0330759 | E131: 110.1407989 | F131: 84.13369949 | G131: 64.59438671 | H131: 50.26104266 | I131: 40.0217492 | J131: 32.91838588 | K131: 28.15134078 | L131: 25.07920691 | M131: 23.21102729 | N131: 22.19153443 | O131: 21.78161866 | P131: 21.83686069 | Q131: 22.28666629 | R131: 23.11580089 | S131: 24.34935188 | T131: 26.04159031 | U131: 28.26891692 | V131: 31.1269878
A132: 103 | C132: 187.8358259 | D132: 144.4765988 | E132: 110.5782841 | F132: 84.54454151 | G132: 64.96247733 | H132: 50.57623446 | I132: 40.28018009 | J132: 33.12177772 | K132: 28.30560072 | L132: 25.19274463 | M132: 23.29315787 | N132: 22.25121047 | O132: 21.82658859 | P132: 21.87323196 | Q132: 22.31878729 | R132: 23.1463611 | S132: 24.37961823 | T132: 26.07172525 | U132: 28.29834553 | V132: 31.15479053
A133: 104 | C133: 188.2579329 | D133: 144.9151623 | E133: 111.0110791 | F133: 84.95134934 | G133: 65.32744359 | H133: 50.88930386 | I133: 40.53743188 | J133: 33.32476526 | K133: 28.46000727 | L133: 25.30675186 | M133: 23.3758852 | N133: 22.31146537 | O133: 21.87202725 | P133: 21.90991513 | Q133: 22.35105136 | R133: 23.17690834 | S133: 24.40974549 | T133: 26.10163651 | U133: 28.32751428 | V133: 31.18234775
A134: 105 | C134: 188.6753422 | D134: 145.3488448 | E134: 111.439253 | F134: 85.35417355 | G134: 65.6893128 | H134: 51.20025558 | I134: 40.79349165 | J134: 33.52732503 | K134: 28.61453349 | L134: 25.42120356 | M134: 23.4591893 | N134: 22.37228533 | O134: 21.91792668 | P134: 21.94690709 | Q134: 22.38345919 | R134: 23.20744611 | S134: 24.43973918 | T134: 26.13133085 | U134: 28.35643037 | V134: 31.20966626
A135: 106 | C135: 189.0881275 | D135: 145.7777231 | E135: 111.8628737 | F135: 85.75306396 | G135: 66.04811218 | H135: 51.50909487 | I135: 41.04834735 | J135: 33.7294345 | K135: 28.76915317 | L135: 25.53607517 | M135: 23.54305045 | N135: 22.43365657 | O135: 21.96427884 | P135: 21.98420463 | Q135: 22.41601132 | R135: 23.2379778 | S135: 24.46960469 | T135: 26.16081491 | U135: 28.38510086 | V135: 31.23675275
A136: 107 | C136: 189.4963609 | D136: 146.2018721 | E136: 112.2820077 | F136: 86.14806958 | G136: 66.40386889 | H136: 51.81582748 | I136: 41.30198778 | J136: 33.93107204 | K136: 28.92384087 | L136: 25.65134266 | M136: 23.62744916 | N136: 22.4955654 | O136: 22.01107564 | P136: 22.02180442 | Q136: 22.44870821 | R136: 23.26850668 | S136: 24.49934732 | T136: 26.19009519 | U136: 28.41353269 | V136: 31.26361376
A137: 108 | C137: 189.900113 | D137: 146.6213649 | E137: 112.6967199 | F137: 86.53923864 | G137: 66.75660998 | H137: 52.12045965 | I137: 41.55440254 | J137: 34.13221689 | K137: 29.07857188 | L137: 25.76698248 | M137: 23.7123662 | N137: 22.55799814 | O137: 22.05830893 | P137: 22.05970306 | Q137: 22.48155018 | R137: 23.29903591 | S137: 24.52897222 | T137: 26.21917808 | U137: 28.44173266 | V137: 31.29025572
A138: 109 | C138: 190.2994526 | D138: 147.0362733 | E138: 113.1070741 | F138: 86.92661862 | G138: 67.10636239 | H138: 52.42299803 | I138: 41.80558198 | J138: 34.33284912 | K138: 29.23332221 | L138: 25.88297157 | M138: 23.79778258 | N138: 22.62094122 | O138: 22.10597051 | P138: 22.09789702 | Q138: 22.51453747 | R138: 23.32956854 | S138: 24.55848442 | T138: 26.24806982 | U138: 28.46970745 | V138: 31.31668494
A139: 110 | C139: 190.6944471 | D139: 147.4466672 | E139: 113.5131328 | F139: 87.31025625 | G139: 67.45315295 | H139: 52.72344971 | I139: 42.05551722 | J139: 34.53294963 | K139: 29.38806856 | L139: 25.99928736 | M139: 23.88367957 | N139: 22.68438113 | O139: 22.15405218 | P139: 22.13638271 | Q139: 22.54767018 | R139: 23.3601075 | S139: 24.58788887 | T139: 26.27677655 | U139: 28.49746361 | V139: 31.34290761
A140: 111 | C140: 191.0851624 | D140: 147.8526151 | E140: 113.914957 | F140: 87.69019753 | G140: 67.79700836 | H140: 53.02182215 | I140: 42.30420007 | J140: 34.73250011 | K140: 29.54278834 | L140: 26.11590775 | M140: 23.97003871 | N140: 22.74830443 | O140: 22.20254566 | P140: 22.17515646 | Q140: 22.58094835 | R140: 23.39065562 | S140: 24.61719036 | T140: 26.30530427 | U140: 28.52500756 | V140: 31.36892979
A141: 112 | C141: 191.471663 | D141: 148.254184 | E141: 114.3126067 | F141: 88.06648774 | G141: 68.13795518 | H141: 53.3181232 | I141: 42.55162299 | J141: 34.93148302 | K141: 29.69745962 | L141: 26.23281113 | M141: 24.05684179 | N141: 22.81269778 | O141: 22.25144267 | P141: 22.21421449 | Q141: 22.61437187 | R141: 23.42121562 | S141: 24.64639358 | T141: 26.33365886 | U141: 28.5523456 | V141: 31.39475745
A142: 113 | C142: 191.854012 | D142: 148.6514393 | E142: 114.7061406 | F142: 88.43917146 | G142: 68.47601982 | H142: 53.61236102 | I142: 42.79777913 | J142: 35.12988154 | K142: 29.85206111 | L142: 26.34997637 | M142: 24.14407087 | N142: 22.87754796 | O142: 22.30073493 | P142: 22.25355296 | Q142: 22.64794057 | R142: 23.45179008 | S142: 24.67550311 | T142: 26.3618461 | U142: 28.57948391 | V142: 31.42039641
A143: 114 | C143: 192.232271 | D143: 149.0444453 | E143: 115.0956164 | F143: 88.80829255 | G143: 68.81122854 | H143: 53.90454411 | I143: 43.04266222 | J143: 35.32767957 | K143: 30.00657219 | L143: 26.46738278 | M143: 24.2317083 | N143: 22.94284181 | O143: 22.35041413 | P143: 22.29316797 | Q143: 22.68165414 | R143: 23.48238152 | S143: 24.70452341 | T143: 26.38987161 | U143: 28.60642856 | V143: 31.44585239
A144: 115 | C144: 192.6065005 | D144: 149.4332647 | E144: 115.4810905 | F144: 89.17389422 | G144: 69.14360745 | H144: 54.19468126 | I144: 43.2862666 | J144: 35.52486172 | K144: 30.16097286 | L144: 26.58501017 | M144: 24.31973667 | N144: 23.00856631 | O144: 22.40047196 | P144: 22.33305553 | Q144: 22.71551222 | R144: 23.51299231 | S144: 24.73345883 | T144: 26.41774092 | U144: 28.63318547 | V144: 31.47113102
A145: 116 | C145: 192.9767597 | D145: 149.8179589 | E145: 115.8626183 | F145: 89.53601898 | G145: 69.47318247 | H145: 54.48278152 | I145: 43.52858718 | J145: 35.72141326 | K145: 30.31524371 | L145: 26.70283877 | M145: 24.40813888 | N145: 23.07470854 | O145: 22.45090011 | P145: 22.37321162 | Q145: 22.74951433 | R145: 23.54362473 | S145: 24.76231359 | T145: 26.44545944 | U145: 28.65976047 | V145: 31.49623779
A146: 117 | C146: 193.3431063 | D146: 150.1985881 | E146: 116.240254 | F146: 89.89470872 | G146: 69.79997938 | H146: 54.76885423 | I146: 43.76961941 | J146: 35.91732008 | K146: 30.46936595 | L146: 26.82084928 | M146: 24.49689806 | N146: 23.1412557 | O146: 22.50169028 | P146: 22.41363212 | Q146: 22.7836599 | R146: 23.57428097 | S146: 24.79109181 | T146: 26.47303246 | U146: 28.68615927 | V146: 31.52117809
A147: 118 | C147: 193.7055972 | D147: 150.5752111 | E147: 116.614051 | F147: 90.25000465 | G147: 70.12402374 | H147: 55.05290895 | I147: 44.00935925 | J147: 36.11256875 | K147: 30.62332137 | L147: 26.93902284 | M147: 24.58599766 | N147: 23.20819512 | O147: 22.55283418 | P147: 22.45431289 | Q147: 22.81794828 | R147: 23.60496308 | S147: 24.8197975 | T147: 26.50046516 | U147: 28.71238745 | V147: 31.54595721
A148: 119 | C148: 194.0642879 | D148: 150.9478858 | E148: 116.9840615 | F148: 90.60194736 | G148: 70.44534096 | H148: 55.33495547 | I148: 44.24780316 | J148: 36.3071464 | K148: 30.77709232 | L148: 27.05734103 | M148: 24.67542138 | N148: 23.27551424 | O148: 22.60432354 | P148: 22.49524973 | Q148: 22.85237873 | R148: 23.63567305 | S148: 24.84843457 | T148: 26.52776258 | U148: 28.7384505 | V148: 31.57058031
A149: 120 | C149: 194.4192327 | D149: 151.3166686 | E149: 117.3503366 | F149: 90.95057682 | G149: 70.76395626 | H149: 55.61500377 | I149: 44.48494809 | J149: 36.50104075 | K149: 30.9306617 | L149: 27.17578588 | M149: 24.76515319 | N149: 23.34320066 | O149: 22.65615012 | P149: 22.53643838 | Q149: 22.88695043 | R149: 23.66641274 | S149: 24.87700679 | T149: 26.55492969 | U149: 28.76435378 | V149: 31.59505246
A150: 121 | C150: 194.7704849 | D150: 151.681615 | E150: 117.7129268 | F150: 91.2959324 | G150: 71.07989467 | H150: 55.89306405 | I150: 44.72079141 | J150: 36.69424012 | K150: 31.08401298 | L150: 27.2943398 | M150: 24.85517735 | N150: 23.41124207 | O150: 22.70830568 | P150: 22.57787455 | Q150: 22.92166247 | R150: 23.69718392 | S150: 24.90551785 | T150: 26.5819713 | U150: 28.79010254 | V150: 31.61937864
A151: 122 | C151: 195.1180969 | D151: 152.042779 | E151: 118.0718814 | F151: 91.63805284 | G151: 71.393181 | H151: 56.16914666 | I151: 44.95533097 | J151: 36.88673335 | K151: 31.23713012 | L151: 27.41298567 | M151: 24.94547839 | N151: 23.47962634 | O151: 22.76078204 | P151: 22.61955392 | Q151: 22.95651388 | R151: 23.72798826 | S151: 24.93397131 | T151: 26.60889216 | U151: 28.81570192 | V151: 31.6435637
A152: 123 | C152: 195.4621197 | D152: 152.4002141 | E152: 118.4272489 | F152: 91.97697633 | G152: 71.7038399 | H152: 56.44326214 | I152: 45.188565 | J152: 37.07850981 | K152: 31.38999762 | L152: 27.53170676 | M152: 25.03604112 | N152: 23.54834146 | O152: 22.81357104 | P152: 22.66147212 | Q152: 22.9915036 | R152: 23.75882733 | S152: 24.96237065 | T152: 26.63569686 | U152: 28.84115697 | V152: 31.66761239
A153: 124 | C153: 195.8026036 | D153: 152.7539722 | E153: 118.7790767 | F153: 92.31274044 | G153: 72.0118958 | H153: 56.71542116 | I153: 45.42049214 | J153: 37.26955939 | K153: 31.54260049 | L153: 27.65048673 | M153: 25.12685061 | N153: 23.61737556 | O153: 22.86666455 | P153: 22.70362476 | Q153: 23.02663051 | R153: 23.78970263 | S153: 24.99071924 | T153: 26.66238993 | U153: 28.8664726 | V153: 31.69152937
A154: 125 | C154: 196.1395977 | D154: 153.1041044 | E154: 119.1274116 | F154: 92.64538222 | G154: 72.31737294 | H154: 56.98563453 | I154: 45.65111143 | J154: 37.45987248 | K154: 31.69492419 | L154: 27.76930968 | M154: 25.21789221 | N154: 23.68671691 | O154: 22.92005451 | P154: 22.74600741 | Q154: 23.06189341 | R154: 23.82061555 | S154: 25.01902032 | T154: 26.68897574 | U154: 28.89165365 | V154: 31.71531919
A155: 126 | C155: 196.4731503 | D155: 153.450661 | E155: 119.4722993 | F155: 92.97493813 | G155: 72.62029534 | H155: 57.2539132 | I155: 45.88042225 | J155: 37.64943993 | K155: 31.84695471 | L155: 27.88816007 | M155: 25.30915155 | N155: 23.75635395 | O155: 22.97373288 | P155: 22.78861562 | Q155: 23.09729104 | R155: 23.85156738 | S155: 25.04727705 | T155: 26.71545861 | U155: 28.91670481 | V155: 31.73898632
A156: 127 | C156: 196.8033086 | D156: 153.793691 | E156: 119.813785 | F156: 93.30144408 | G156: 72.92068685 | H156: 57.52026822 | I156: 46.10842432 | J156: 37.83825308 | K156: 31.99867846 | L156: 28.00702276 | M156: 25.4006145 | N156: 23.82627525 | O156: 23.02769168 | P156: 22.83144492 | Q156: 23.13282207 | R156: 23.88255933 | S156: 25.0754925 | T156: 26.7418427 | U156: 28.94163072 | V156: 31.7625351
A157: 128 | C157: 197.1301191 | D157: 154.1332426 | E157: 120.1519128 | F157: 93.62493548 | G157: 73.21857107 | H157: 57.78471076 | I157: 46.33511773 | J157: 38.02630369 | K157: 32.15008234 | L157: 28.12588299 | M157: 25.49226723 | N157: 23.89646953 | O157: 23.08192298 | P157: 22.87449083 | Q157: 23.16848511 | R157: 23.91359254 | S157: 25.10366963 | T157: 26.76813212 | U157: 28.96643586 | V157: 31.78596979
A158: 129 | C158: 197.4536272 | D158: 154.4693631 | E158: 120.4867262 | F158: 93.94544717 | G158: 73.51397142 | H158: 58.04725207 | I158: 46.56050286 | J158: 38.21358398 | K158: 32.30115367 | L158: 28.24472637 | M158: 25.58409615 | N158: 23.96692566 | O158: 23.13641889 | P158: 22.91774885 | Q158: 23.20427871 | R158: 23.94466804 | S158: 25.13181129 | T158: 26.79433083 | U158: 28.99112466 | V158: 31.80929457
A159: 130 | C159: 197.7738776 | D159: 154.8020989 | E159: 120.8182677 | F159: 94.2630135 | G159: 73.80691112 | H159: 58.30790349 | I159: 46.78458041 | J159: 38.40008656 | K159: 32.45188019 | L159: 28.36353888 | M159: 25.67608795 | N159: 24.03763267 | O159: 23.19117161 | P159: 22.96121445 | Q159: 23.24020137 | R159: 23.97578679 | S159: 25.15992025 | T159: 26.82044272 | U159: 29.01570141 | V159: 31.83251349
A160: 131 | C160: 198.0909141 | D160: 155.1314955 | E160: 121.1465793 | F160: 94.5776683 | G160: 74.09741315 | H160: 58.56667645 | I160: 47.00735134 | J160: 38.58580448 | K160: 32.6022501 | L160: 28.48230687 | M160: 25.76822956 | N160: 24.10857975 | O160: 23.24617338 | P160: 23.00488312 | Q160: 23.27625153 | R160: 24.00694968 | S160: 25.18799917 | T160: 26.84647156 | U160: 29.04017032 | V160: 31.85563052
A161: 132 | C161: 198.4047796 | D161: 155.4575975 | E161: 121.4717021 | F161: 94.88944492 | G161: 74.38550031 | H161: 58.82358243 | I161: 47.22881694 | J161: 38.77073115 | K161: 32.75225197 | L161: 28.60101701 | M161: 25.8605082 | N161: 24.17975621 | O161: 23.3014165 | P161: 23.04875033 | Q161: 23.31242757 | R161: 24.0381575 | S161: 25.21605065 | T161: 26.87242104 | U161: 29.0645355 | V161: 31.87864956
A162: 133 | C162: 198.7155164 | D162: 155.7804488 | E162: 121.7936767 | F162: 95.19837619 | G162: 74.67119518 | H162: 59.07863298 | I162: 47.44897871 | J162: 38.95486037 | K162: 32.90187479 | L162: 28.71965636 | M162: 25.95291132 | N162: 24.25115157 | O162: 23.35689333 | P162: 23.09281155 | Q162: 23.34872784 | R162: 24.06941096 | S162: 25.24407716 | T162: 26.89829474 | U162: 29.08880096 | V162: 31.90157439
A163: 134 | C163: 199.0231658 | D163: 156.1000924 | E163: 122.1125426 | F163: 95.50449449 | G163: 74.95452013 | H163: 59.33183971 | I163: 47.66783845 | J163: 39.13818631 | K163: 33.05110793 | L163: 28.83821229 | M163: 26.04542663 | N163: 24.32275544 | O163: 23.41259632 | P163: 23.13706224 | Q163: 23.38515063 | R163: 24.10071073 | S163: 25.27208109 | T163: 26.92409614 | U163: 29.11297061 | V163: 31.9244087
A164: 135 | C164: 199.3277686 | D164: 156.4165705 | E164: 122.4283391 | F164: 95.8078317 | G164: 75.23549733 | H164: 59.58321425 | I164: 47.88539817 | J164: 39.32070349 | K164: 33.19994114 | L164: 28.95667252 | M164: 26.13804209 | N164: 24.39455765 | O164: 23.46851798 | P164: 23.18149786 | Q164: 23.42169418 | R164: 24.13205737 | S164: 25.30006477 | T164: 26.94982864 | U164: 29.13704827 | V164: 31.9471561
A165: 136 | C165: 199.6293645 | D165: 156.7299245 | E165: 122.7411044 | F165: 96.10841927 | G165: 75.51414871 | H165: 59.8327683 | I165: 48.10166012 | J165: 39.50240676 | K165: 33.34836454 | L165: 29.07502509 | M165: 26.23074592 | N165: 24.46654813 | O165: 23.52465086 | P165: 23.2261139 | Q165: 23.45835671 | R165: 24.16345139 | S165: 25.32803039 | T165: 26.97549553 | U165: 29.16103766 | V165: 31.96982011
A166: 137 | C166: 199.9279928 | D166: 157.0401953 | E166: 123.0508764 | F166: 96.40628815 | G166: 75.79049604 | H166: 60.08051356 | I166: 48.31662679 | J166: 39.68329133 | K166: 33.4963686 | L166: 29.19325837 | M166: 26.32352656 | N166: 24.53871701 | O166: 23.58098763 | P166: 23.27090583 | Q166: 23.49513637 | R166: 24.19489322 | S166: 25.35598011 | T166: 27.00110002 | U166: 29.18494242 | V166: 31.99240416
A167: 138 | C167: 200.223692 | D167: 157.3474227 | E167: 123.3576922 | F167: 96.70146889 | G167: 76.06456084 | H167: 60.32646179 | I167: 48.53030085 | J167: 39.8633527 | K167: 33.64394416 | L167: 29.31136103 | M167: 26.41637272 | N167: 24.61105454 | O167: 23.63752101 | P167: 23.31586913 | Q167: 23.53203129 | R167: 24.22638323 | S167: 25.38391597 | T167: 27.02664521 | U167: 29.20876608 | V167: 32.0149116
A168: 139 | C168: 200.5164999 | D168: 157.6516461 | E168: 123.6615882 | F168: 96.99399158 | G168: 76.33636445 | H168: 60.57062475 | I168: 48.74268518 | J168: 40.04258669 | K168: 33.79108237 | L168: 29.42932207 | M168: 26.50927332 | N168: 24.68355115 | O168: 23.69424379 | P168: 23.36099931 | Q168: 23.56903957 | R168: 24.25792171 | S168: 25.41183993 | T168: 27.05213414 | U168: 29.23251209 | V168: 32.03734568
A169: 140 | C169: 200.8064535 | D169: 157.9529039 | E169: 123.9626004 | F169: 97.28388586 | G169: 76.60592798 | H169: 60.81301421 | I169: 48.95378288 | J169: 40.22098942 | K169: 33.93777474 | L169: 29.54713078 | M169: 26.60221755 | N169: 24.7561974 | O169: 23.75114885 | P169: 23.40629186 | Q169: 23.60615927 | R169: 24.2895089 | S169: 25.43975389 | T169: 27.07756974 | U169: 29.25618382 | V169: 32.05970958
A170: 141 | C170: 201.0935894 | D170: 158.2512342 | E170: 124.2607639 | F170: 97.57118098 | G170: 76.87327236 | H170: 61.05364197 | I170: 49.16359718 | J170: 40.39855729 | K170: 34.08401308 | L170: 29.66477675 | M170: 26.69519481 | N170: 24.82898404 | O170: 23.80822913 | P170: 23.45174233 | Q170: 23.6433884 | R170: 24.32114498 | S170: 25.46765965 | T170: 27.10295485 | U170: 29.27978453 | V170: 32.08200638
A171: 142 | C171: 201.3779435 | D171: 158.5466742 | E171: 124.5561136 | F171: 97.85590576 | G171: 77.13841829 | H171: 61.29251981 | I171: 49.37213153 | J171: 40.57528699 | K171: 34.22978953 | L171: 29.78224986 | M171: 26.78819474 | N171: 24.90190194 | O171: 23.86547767 | P171: 23.49734624 | Q171: 23.68072497 | R171: 24.35283006 | S171: 25.49555894 | T171: 27.12829223 | U171: 29.3033174 | V171: 32.10423909
A172: 143 | C172: 201.6595508 | D172: 158.8392604 | E172: 124.8486836 | F172: 98.1380886 | G172: 77.40138629 | H172: 61.52965953 | I172: 49.57938953 | J172: 40.75117547 | K172: 34.37509653 | L172: 29.89954026 | M172: 26.88120719 | N172: 24.97494214 | O172: 23.92288758 | P172: 23.54309915 | Q172: 23.71816694 | R172: 24.3845642 | S172: 25.52345341 | T172: 27.15358456 | U172: 29.32678554 | V172: 32.12641065
A173: 144 | C173: 201.9384461 | D173: 159.1290287 | E173: 125.1385073 | F173: 98.41775751 | G173: 77.66219665 | H173: 61.76507292 | I173: 49.78537493 | J173: 40.92621994 | K173: 34.51992681 | L173: 30.01663841 | M173: 26.97422226 | N173: 25.04809582 | O173: 23.98045204 | P173: 23.58899665 | Q173: 23.75571225 | R173: 24.4163474 | S173: 25.55134465 | T173: 27.17883444 | U173: 29.35019195 | V173: 32.14852389
A174: 145 | C174: 202.2146632 | D174: 159.4160146 | E174: 125.425618 | F174: 98.69494012 | G174: 77.92086949 | H174: 61.99877176 | I174: 49.99009163 | J174: 41.10041788 | K174: 34.66427339 | L174: 30.13353503 | M174: 27.06723025 | N174: 25.12135433 | O174: 24.03816434 | P174: 23.63503434 | Q174: 23.79335883 | R174: 24.4481796 | S174: 25.57923415 | T174: 27.20404436 | U174: 29.37353957 | V174: 32.17058158
A175: 146 | C175: 202.4882358 | D175: 159.7002528 | E175: 125.710048 | F175: 98.96966365 | G175: 78.1774247 | H175: 62.23076782 | I175: 50.19354368 | J175: 41.27376697 | K175: 34.80812959 | L175: 30.25022109 | M175: 27.16022169 | N175: 25.19470916 | O175: 24.09601782 | P175: 23.68120783 | Q175: 23.83110457 | R175: 24.48006069 | S175: 25.60712335 | T175: 27.22921677 | U175: 29.39683123 | V175: 32.19258641
A176: 147 | C176: 202.7591965 | D176: 159.9817773 | E176: 125.9918294 | F176: 99.24195494 | G176: 78.43188198 | H176: 62.46107284 | I176: 50.39573527 | J176: 41.44626518 | K176: 34.95148898 | L176: 30.36668785 | M176: 27.25318732 | N176: 25.26815194 | O176: 24.15400592 | P176: 23.72751277 | Q176: 23.86894735 | R176: 24.51199051 | S176: 25.63501361 | T176: 27.25435401 | U176: 29.42006972 | V176: 32.214541
A177: 148 | C177: 203.0275778 | D177: 160.2606217 | E177: 126.2709935 | F177: 99.51184047 | G177: 78.68426084 | H177: 62.68969857 | I177: 50.59667072 | J177: 41.61791066 | K177: 35.09434541 | L177: 30.48292681 | M177: 27.3461181 | N177: 25.34167447 | O177: 24.21212216 | P177: 23.77394485 | Q177: 23.90688503 | R177: 24.54396886 | S177: 25.66290622 | T177: 27.27945834 | U177: 29.44325769 | V177: 32.23644788
A178: 149 | C178: 203.2934113 | D178: 160.5368192 | E178: 126.5475715 | F178: 99.77934634 | G178: 78.9345806 | H178: 62.91665671 | I178: 50.79635444 | J178: 41.7887018 | K178: 35.23669299 | L178: 30.59892972 | M178: 27.43900518 | N178: 25.41526868 | O178: 24.27036015 | P178: 23.82049975 | Q178: 23.94491544 | R178: 24.57599548 | S178: 25.69080241 | T178: 27.30453197 | U178: 29.46639778 | V178: 32.2583095
A179: 150 | C179: 203.5567284 | D179: 160.810402 | E179: 126.8215937 | F179: 100.0444983 | G179: 79.18286035 | H179: 63.14195894 | I179: 50.99479101 | J179: 41.95863719 | K179: 35.37852608 | L179: 30.71468859 | M179: 27.53183993 | N179: 25.48892665 | O179: 24.32871357 | P179: 23.86717322 | Q179: 23.98303641 | R179: 24.60807005 | S179: 25.71870335 | T179: 27.32957701 | U179: 29.48949249 | V179: 32.28012826
A180: 151 | C180: 203.8175597 | D180: 161.0814022 | E180: 127.0930901 | F180: 100.3073217 | G180: 79.42911902 | H180: 63.36561692 | I180: 51.19198507 | J180: 42.12771565 | K180: 35.51983928 | L180: 30.83019565 | M180: 27.62461391 | N180: 25.56264061 | O180: 24.3871762 | P180: 23.913961 | Q180: 24.02124575 | R180: 24.64019224 | S180: 25.74661012 | T180: 27.3545955 | U180: 29.51254428 | V180: 32.30190648
A181: 152 | C181: 204.0759354 | D181: 161.3498511 | E181: 127.3620904 | F181: 100.5678417 | G181: 79.67337535 | H181: 63.58764227 | I181: 51.3879414 | J181: 42.29593616 | K181: 35.66062744 | L181: 30.94544339 | M181: 27.7173189 | N181: 25.63640293 | O181: 24.44574189 | P181: 23.96085888 | Q181: 24.05954126 | R181: 24.67236164 | S181: 25.77452375 | T181: 27.37958942 | U181: 29.53555553 | V181: 32.32364639
A182: 153 | C182: 204.3318854 | D182: 161.6157795 | E182: 127.6286235 | F182: 100.8260829 | G182: 79.91564785 | H182: 63.80804658 | I182: 51.58266485 | J182: 42.46329791 | K182: 35.80088563 | L182: 31.06042451 | M182: 27.80994685 | N182: 25.71020613 | O182: 24.50440458 | P182: 24.0078627 | Q182: 24.09792073 | R182: 24.70457783 | S182: 25.80244523 | T182: 27.40456065 | U182: 29.55852854 | V182: 32.34535016
A183: 154 | C183: 204.5854386 | D183: 161.8792179 | E183: 127.8927182 | F183: 101.0820697 | G183: 80.15595489 | H183: 64.02684141 | I183: 51.77616039 | J183: 42.62980028 | K183: 35.94060915 | L183: 31.17513195 | M183: 27.90248991 | N183: 25.78404285 | O183: 24.56315831 | P183: 24.05496829 | Q183: 24.13638193 | R183: 24.73684033 | S183: 25.83037545 | T183: 27.42951104 | U183: 29.58146552 | V183: 32.36701991
A184: 155 | C184: 204.8366241 | D184: 162.1401962 | E184: 128.1544025 | F184: 101.3358261 | G184: 80.39431462 | H184: 64.24403827 | I184: 51.96843307 | J184: 42.79544281 | K184: 36.07979353 | L184: 31.28955885 | M184: 27.99494044 | N184: 25.8579059 | O184: 24.62199718 | P184: 24.10217156 | Q184: 24.17492264 | R184: 24.76914863 | S184: 25.85831528 | T184: 27.45444234 | U184: 29.60436865 | V184: 32.38865767
A185: 156 | C185: 205.08547 | D185: 162.3987437 | E185: 128.4137042 | F185: 101.5873758 | G185: 80.63074502 | H185: 64.45964862 | I185: 52.15948801 | J185: 42.96022522 | K185: 36.21843451 | L185: 31.40369859 | M185: 28.08729095 | N185: 25.9317882 | O185: 24.68091539 | P185: 24.14946842 | Q185: 24.21354062 | R185: 24.80150217 | S185: 25.8862655 | T185: 27.47935623 | U185: 29.62723999 | V185: 32.41026541
A186: 157 | C186: 205.3320041 | D186: 162.6548893 | E186: 128.6706507 | F186: 101.8367422 | G186: 80.86526387 | H186: 64.6736839 | I186: 52.34933042 | J186: 43.12414741 | K186: 36.35652802 | L186: 31.51754474 | M186: 28.17953417 | N186: 26.00568283 | O186: 24.73990721 | P186: 24.19685483 | Q186: 24.25223363 | R186: 24.83390037 | S186: 25.91422686 | T186: 27.50425435 | U186: 29.65008157 | V186: 32.43184502
A187: 158 | C187: 205.576254 | D187: 162.9086615 | E187: 128.9252688 | F187: 102.0839484 | G187: 81.09788878 | H187: 64.88615549 | I187: 52.53796559 | J187: 43.2872094 | K187: 36.49407021 | L187: 31.6310911 | M187: 28.27166298 | N187: 26.07958298 | O187: 24.79896702 | P187: 24.24432679 | Q187: 24.29099941 | R187: 24.8663426 | S187: 25.94220004 | T187: 27.52913824 | U187: 29.67289533 | V187: 32.45339835
A188: 159 | C188: 205.8182465 | D188: 163.1600884 | E188: 129.1775852 | F188: 102.3290171 | G188: 81.32863718 | H188: 65.09707472 | I188: 52.72539888 | J188: 43.4494114 | K188: 36.63105743 | L188: 31.74433164 | M188: 28.36367045 | N188: 26.15348201 | O188: 24.85808927 | P188: 24.29188031 | Q188: 24.32983573 | R188: 24.89882822 | S188: 25.97018566 | T188: 27.5540094 | U188: 29.69568315 | V188: 32.47492717
A189: 160 | C189: 206.0580081 | D189: 163.4091975 | E189: 129.4276258 | F189: 102.5719708 | G189: 81.55752632 | H189: 65.30645289 | I189: 52.91163569 | J189: 43.61075375 | K189: 36.76748622 | L189: 31.85726056 | M189: 28.45554982 | N189: 26.22737338 | O189: 24.91726849 | P189: 24.33951149 | Q189: 24.36874032 | R189: 24.93135652 | S189: 25.99818432 | T189: 27.57886927 | U189: 29.71844683 | V189: 32.49643319
A190: 161 | C190: 206.2955651 | D190: 163.6560159 | E190: 129.6754164 | F190: 102.8128317 | G190: 81.78457325 | H190: 65.51430124 | I190: 53.09668151 | J190: 43.77123694 | K190: 36.90335328 | L190: 31.96987223 | M190: 28.54729451 | N190: 26.3012507 | O190: 24.97649929 | P190: 24.38721641 | Q190: 24.40771094 | R190: 24.96392681 | S190: 26.02619653 | T190: 27.60371921 | U190: 29.74118813 | V190: 32.51791807
A191: 162 | C191: 206.530943 | D191: 163.9005704 | E191: 129.9209824 | F191: 103.0516217 | G191: 82.00979488 | H191: 65.72063094 | I191: 53.28054188 | J191: 43.9308616 | K191: 37.03865553 | L191: 32.08216122 | M191: 28.63889811 | N191: 26.37510769 | O191: 25.03577638 | P191: 24.43499123 | Q191: 24.44674533 | R191: 24.99653832 | S191: 26.05422277 | T191: 27.62856053 | U191: 29.76390874 | V191: 32.53938339
A192: 163 | C192: 206.7641673 | D192: 164.1428873 | E192: 130.1643486 | F192: 103.2883622 | G192: 82.23320792 | H192: 65.92545313 | I192: 53.4632224 | J192: 44.08962848 | K192: 37.17339004 | L192: 32.19412227 | M192: 28.73035435 | N192: 26.44893822 | O192: 25.09509454 | P192: 24.48283212 | Q192: 24.48584124 | R192: 25.02919029 | S192: 26.08226348 | T192: 27.65339447 | U192: 29.78661026 | V192: 32.56083068
A193: 164 | C193: 206.9952628 | D193: 164.3829923 | E193: 130.4055398 | F193: 103.5230746 | G193: 82.45482893 | H193: 66.12877889 | I193: 53.6447287 | J193: 44.24753847 | K193: 37.30755406 | L193: 32.30575033 | M193: 28.82165714 | N193: 26.52273627 | O193: 25.15444865 | P193: 24.53073533 | Q193: 24.52499643 | R193: 25.06188192 | S193: 26.11031904 | T193: 27.67822224 | U193: 29.80929425 | V193: 32.58226142
A194: 165 | C194: 207.2242541 | D194: 164.6209112 | E194: 130.6445801 | F194: 103.75578 | G194: 82.67467426 | H194: 66.33061924 | I194: 53.82506648 | J194: 44.40459259 | K194: 37.441145 | L194: 32.41704048 | M194: 28.91280056 | N194: 26.59649596 | O194: 25.21383365 | P194: 24.57869709 | Q194: 24.56420864 | R194: 25.09461237 | S194: 26.13838979 | T194: 27.70304495 | U194: 29.83196222 | V194: 32.60367702
A195: 166 | C195: 207.4511653 | D195: 164.8566688 | E195: 130.8814935 | F195: 103.986499 | G195: 82.89276013 | H195: 66.53098515 | I195: 54.00424147 | J195: 44.56079195 | K195: 37.57416043 | L195: 32.52798802 | M195: 29.00377883 | N195: 26.67021152 | O195: 25.27324457 | P195: 24.62671374 | Q195: 24.60347564 | R195: 25.12738079 | S195: 26.16647601 | T195: 27.7278637 | U195: 29.8546156 | V195: 32.62507883
A196: 167 | C196: 207.6760203 | D196: 165.0902901 | E196: 131.1163033 | F196: 104.2152521 | G196: 83.10910258 | H196: 66.72988753 | I196: 54.18225946 | J196: 44.7161378 | K196: 37.7065981 | L196: 32.63858839 | M196: 29.09458631 | N196: 26.7438773 | O196: 25.33267652 | P196: 24.6747816 | Q196: 24.64279518 | R196: 25.16018631 | S196: 26.19457797 | T196: 27.75267949 | U196: 29.87725578 | V196: 32.64646817
A197: 168 | C197: 207.8988424 | D197: 165.3217992 | E197: 131.349033 | F197: 104.4420595 | G197: 83.32371749 | H197: 66.92733722 | I197: 54.35912624 | J197: 44.8706315 | K197: 37.83845589 | L197: 32.74883719 | M197: 29.18521755 | N197: 26.81748779 | O197: 25.39212471 | P197: 24.72289706 | Q197: 24.68216504 | R197: 25.19302804 | S197: 26.22269588 | T197: 27.77749331 | U197: 29.89988407 | V197: 32.66784627
A198: 169 | C198: 208.1196548 | D198: 165.5512203 | E198: 131.5797052 | F198: 104.6669412 | G198: 83.53662054 | H198: 67.12334502 | I198: 54.53484768 | J198: 45.02427451 | K198: 37.96973182 | L198: 32.8587302 | M198: 29.27566721 | N198: 26.89103757 | O198: 25.4515844 | P198: 24.77105656 | Q198: 24.721583 | R198: 25.22590504 | S198: 26.25082989 | T198: 27.80230608 | U198: 29.92250173 | V198: 32.68921435
A199: 170 | C199: 208.3384802 | D199: 165.7785769 | E199: 131.8083426 | F199: 104.8899169 | G199: 83.74782731 | H199: 67.31792165 | I199: 54.70942964 | J199: 45.17706838 | K199: 38.10042408 | L199: 32.96826335 | M199: 29.36593013 | N199: 26.96452136 | O199: 25.51105096 | P199: 24.81925656 | Q199: 24.76104682 | R199: 25.25881639 | S199: 26.27898013 | T199: 27.82711865 | U199: 29.94511 | V199: 32.71057353
A200: 171 | C200: 208.555341 | D200: 166.0038923 | E200: 132.0349673 | F200: 105.1110059 | G200: 83.95735316 | H200: 67.51107779 | I200: 54.88287805 | J200: 45.32901479 | K200: 38.23053098 | L200: 33.07743272 | M200: 29.45600125 | N200: 27.03793398 | O200: 25.5705198 | P200: 24.86749358 | Q200: 24.80055432 | R200: 25.29176113 | S200: 26.30714671 | T200: 27.85193184 | U200: 29.96771001 | V200: 32.73192492
A201: 172 | C201: 208.7702592 | D201: 166.2271894 | E201: 132.2596013 | F201: 105.3302275 | G201: 84.16521333 | H201: 67.70282403 | I201: 55.05519884 | J201: 45.48011548 | K201: 38.36005098 | L201: 33.18623453 | M201: 29.54587568 | N201: 27.11127037 | O201: 25.62998646 | P201: 24.91576416 | Q201: 24.84010328 | R201: 25.32473828 | S201: 26.33532967 | T201: 27.87674643 | U201: 29.99030287 | V201: 32.75326956
A202: 173 | C202: 208.9832566 | D202: 166.4484908 | E202: 132.4822661 | F202: 105.5476007 | G202: 84.37142288 | H202: 67.89317093 | I202: 55.22639796 | J202: 45.6303723 | K202: 38.48898266 | L202: 33.29466516 | M202: 29.63554866 | N202: 27.18452558 | O202: 25.68944652 | P202: 24.96406491 | Q202: 24.87969152 | R202: 25.35774684 | S202: 26.36352902 | T202: 27.90156313 | U202: 30.01288964 | V202: 32.77460845
A203: 174 | C203: 209.1943546 | D203: 166.6678188 | E203: 132.702983 | F203: 105.763144 | G203: 84.57599673 | H203: 68.08212897 | I203: 55.3964814 | J203: 45.77978718 | K203: 38.61732474 | L203: 33.40272113 | M203: 29.72501557 | N203: 27.25769478 | O203: 25.74889564 | P203: 25.01239246 | Q203: 24.91931685 | R203: 25.39078581 | S203: 26.39174475 | T203: 27.92638262 | U203: 30.03547133 | V203: 32.79594253
A204: 175 | C204: 209.4035744 | D204: 166.8851952 | E204: 132.921773 | F204: 105.976876 | G204: 84.77894964 | H204: 68.26970855 | I204: 55.56545517 | J204: 45.92836216 | K204: 38.74507605 | L204: 33.5103991 | M204: 29.81427191 | N204: 27.33077324 | O204: 25.80832957 | P204: 25.0607435 | Q204: 24.9589771 | R204: 25.42385417 | S204: 26.41997681 | T204: 27.95120553 | U204: 30.05804888 | V204: 32.8172727
A205: 176 | C205: 209.6109367 | D205: 167.1006418 | E205: 133.1386568 | F205: 106.1888149 | G205: 84.98029621 | H205: 68.45592004 | I205: 55.73332528 | J205: 46.07609932 | K205: 38.87223555 | L205: 33.61769587 | M205: 29.90331332 | N205: 27.40375632 | O205: 25.86774414 | P205: 25.10911475 | Q205: 24.99867012 | R205: 25.45695087 | S205: 26.44822511 | T205: 27.97603243 | U205: 30.08062319 | V205: 32.83859981
A206: 177 | C206: 209.816462 | D206: 167.3141798 | E206: 133.3536548 | F206: 106.3989786 | G206: 85.1800509 | H206: 68.64077373 | I206: 55.90009776 | J206: 46.22300084 | K206: 38.99880233 | L206: 33.72460834 | M206: 29.99213556 | N206: 27.47663952 | O206: 25.92713523 | P206: 25.15750296 | Q206: 25.03839377 | R206: 25.49007486 | S206: 26.47648953 | T206: 28.00086388 | U206: 30.10319514 | V206: 32.85992469
... 847 more rows

Sheet CN 2 ret=150 4s
A1: 1 | B1: 2 | C1: 3 | D1: 4 | E1: 5 | F1: 6 | G1: 7 | H1: 8 | I1: 9 | J1: 10 | K1: 11 | L1: 12 | M1: 13 | N1: 14 | O1: 15 | P1: 16 | Q1: 17 | R1: 18 | S1: 19 | T1: 20 | U1: 21 | V1: 22 | W1: 23 | X1: 24
B2: VALVOLA DI MOTORE A SCOPPIO
B3: ELABORAZIONE CON METODO CRANK-NICOLSON E MATRICE TRIDIAGONALE
B4: DATI | L4: CALCOLO COSTANTI E PARAMETRI
A5: L | B5: 0.1 | C5: m | D5: lunghezza valvola | K5: 5 | L5: ∆x | M5: =B5/(B7-1) -> 0.0006711409396 | N5: m
A6: d | B6: 0.009 | C6: m | D6: diametro valvola | K6: 6 | L6: Nt | M6: =INT(B8/B9) -> 257 | N6: adimensionale | O6: numero punti reticolo temporale ( arrot.)
A7: Nx | B7: 150 | C7: adim | D7: numero punti reticolo x | K7: 7 | L7: D = K/(ρc) | M7: =B18/B17/B19 -> 3.236245955e-06 | N7: m^2/s | O7: diffusività termica
A8: τ | B8: 1028 | C8: s | D8: durata temporale integrazione | K8: 8 | L8: G = 4γa/(ρcd) | M8: =4*B14/(B17*B19*B6) -> 0.005327153835 | N8: 1/s | O8: convettività laterale
A9: ∆t | B9: 4 | C9: s | D9: passo temporale | K9: 9 | L9: μ = G∆t | M9: =B9*M8 -> 0.02130861534 | N9: adimensionale | O9: parametro
A10: T0 | B10: 20 | C10: °C | D10: temperatura iniziale della valvola | K10: 10 | L10: θc = γc*∆x/K | M10: =B16*M5/B18 -> 0.007457121551 | N10: adimensionale | O10: coefficiente termico lato carter
A11: Ta | B11: 20 | C11: °C | D11: temperatura miscela alimentazione | K11: 11 | L11: θm = γm*∆x/K | M11: =B15*M5/B18 -> 0.004971414367 | N11: adimensionale | O11: coefficiente termico lato cilindro motore
A12: Tm | B12: 1300 | C12: °C | D12: temperatura media gas nel cilindro | K12: 12 | L12: λ = 0,5*D*Δt/(Δx)^2 | M12: =M7*B9/(2*M5^2) -> 14.36957929 | N12: adimensionale | O12: parametro CN tridiagonale
A13: Tc | B13: 80 | C13: °C | D13: temperatura olio nel carter distribuzione | K13: 13 | L13: α = 1 + 2λ + μ | M13: =1+2*M12+M9 -> 29.76046719 | N13: adimensionale | O13: parametro CN tridiagonale
A14: γa | B14: 50 | C14: W/(m^2*°K) | D14: coefficiente scambio convettivo valvola-miscela alimentazione | K14: 14
A15: γm | B15: 100 | C15: W/(m^2*°K) | D15: coefficiente scambio convettivo valvola cilindro motore | K15: 15
A16: γc | B16: 150 | C16: W/(m^2*°K) | D16: coefficiente scambio convettivo valvola olio carter distribuzione | K16: 16
A17: ρ | B17: 8100 | C17: kg/m^3 | D17: densità valvola | K17: 17
A18: K | B18: 13.5 | C18: W/(m*°K) | D18: conduttività valvola | K18: 18
A19: c | B19: 515 | C19: W*s/(kg*°K) | D19: calore specifico a p costante valvola | K19: 19
B23: Andamento della temperatura in funzione della ascissa x e del tempo t
B25: i | C25: 1 | D25: 2 | E25: 3 | F25: 4 | G25: 5 | H25: 6 | I25: 7 | J25: 8 | K25: 9 | L25: 10 | M25: 11 | N25: 12 | O25: 13 | P25: 14 | Q25: 15 | R25: 16 | S25: 17 | T25: 18 | U25: 19 | V25: 20 | W25: 21 | X25: 22 | Y25: 23 | Z25: 24 | AA25: 25 | AB25: 26 | AC25: 27 | AD25: 28 | AE25: 29 | AF25: 30 | AG25: 31 | AH25: 32 | AI25: 33 | AJ25: 34 | AK25: 35 | AL25: 36 | AM25: 37 | AN25: 38 | AO25: 39 | AP25: 40
B27: x (m) | C27: 0 | D27: =C27+$M$5 -> 0.0006711409396 | E27: =D27+$M$5 -> 0.001342281879 | F27: 0.002013422819 | G27: 0.002684563758 | H27: 0.003355704698 | I27: 0.004026845638 | J27: 0.004697986577 | K27: 0.005369127517 | L27: 0.006040268456 | M27: 0.006711409396 | N27: 0.007382550336 | O27: 0.008053691275 | P27: 0.008724832215 | Q27: 0.009395973154 | R27: 0.01006711409 | S27: 0.01073825503 | T27: 0.01140939597 | U27: 0.01208053691 | V27: 0.01275167785 | W27: 0.01342281879 | X27: 0.01409395973 | Y27: 0.01476510067 | Z27: 0.01543624161 | AA27: 0.01610738255 | AB27: 0.01677852349 | AC27: 0.01744966443 | AD27: 0.01812080537 | AE27: 0.01879194631 | AF27: 0.01946308725 | AG27: 0.02013422819 | AH27: 0.02080536913 | AI27: 0.02147651007 | AJ27: 0.02214765101 | AK27: 0.02281879195 | AL27: 0.02348993289 | AM27: 0.02416107383 | AN27: 0.02483221477 | AO27: 0.0255033557 | AP27: 0.02617449664 | AQ27: 0.02684563758 | AR27: 0.02751677852 | AS27: 0.02818791946 | AT27: 0.0288590604 | AU27: 0.02953020134 | AV27: 0.03020134228 | AW27: 0.03087248322 | AX27: 0.03154362416 | AY27: 0.0322147651 | AZ27: 0.03288590604 | BA27: 0.03355704698 | BB27: 0.03422818792 | BC27: 0.03489932886 | BD27: 0.0355704698 | BE27: 0.03624161074 | BF27: 0.03691275168 | BG27: 0.03758389262 | BH27: 0.03825503356 | BI27: 0.0389261745 | BJ27: 0.03959731544 | BK27: 0.04026845638 | BL27: 0.04093959732 | BM27: 0.04161073826 | BN27: 0.04228187919 | BO27: 0.04295302013 | BP27: 0.04362416107 | BQ27: =BP27+$M$5 -> 0.04429530201 | BR27: 0.04496644295 | BS27: 0.04563758389 | BT27: 0.04630872483 | BU27: 0.04697986577 | BV27: 0.04765100671 | BW27: 0.04832214765 | BX27: 0.04899328859 | BY27: 0.04966442953 | BZ27: 0.05033557047 | CA27: 0.05100671141 | CB27: 0.05167785235 | CC27: 0.05234899329 | CD27: 0.05302013423 | CE27: 0.05369127517 | CF27: 0.05436241611 | CG27: 0.05503355705 | CH27: 0.05570469799 | CI27: 0.05637583893 | CJ27: 0.05704697987 | CK27: 0.05771812081 | CL27: 0.05838926174 | CM27: 0.05906040268 | CN27: 0.05973154362 | CO27: 0.06040268456 | CP27: 0.0610738255 | CQ27: 0.06174496644 | CR27: 0.06241610738 | CS27: 0.06308724832 | CT27: 0.06375838926 | CU27: 0.0644295302 | CV27: 0.06510067114 | CW27: 0.06577181208 | CX27: 0.06644295302 | CY27: 0.06711409396 | CZ27: 0.0677852349 | DA27: 0.06845637584 | DB27: 0.06912751678 | DC27: 0.06979865772 | DD27: 0.07046979866 | DE27: 0.0711409396 | DF27: 0.07181208054 | DG27: 0.07248322148 | DH27: 0.07315436242 | DI27: 0.07382550336 | DJ27: 0.0744966443 | DK27: 0.07516778523 | DL27: 0.07583892617 | DM27: 0.07651006711 | DN27: 0.07718120805 | DO27: 0.07785234899 | DP27: 0.07852348993 | DQ27: 0.07919463087 | DR27: 0.07986577181 | DS27: 0.08053691275 | DT27: 0.08120805369 | DU27: 0.08187919463 | DV27: 0.08255033557 | DW27: 0.08322147651 | DX27: 0.08389261745 | DY27: 0.08456375839 | DZ27: 0.08523489933 | EA27: 0.08590604027 | EB27: 0.08657718121 | EC27: =EB27+$M$5 -> 0.08724832215 | ED27: 0.08791946309 | EE27: 0.08859060403 | EF27: 0.08926174497 | EG27: 0.08993288591 | EH27: 0.09060402685 | EI27: 0.09127516779 | EJ27: 0.09194630872 | EK27: 0.09261744966 | EL27: 0.0932885906 | EM27: 0.09395973154 | EN27: 0.09463087248 | EO27: 0.09530201342 | EP27: 0.09597315436 | EQ27: 0.0966442953 | ER27: 0.09731543624 | ES27: 0.09798657718 | ET27: 0.09865771812 | EU27: 0.09932885906 | EV27: 0.1 | FE27: ANDAMENTO PROFILO T A DIVERSI VALORI DEL TEMPO
B29: t (s) | C29: Tc sfera | EX29: t | EY29: Tsx | EZ29: Tdx | FA29: Tmotore | FB29: Talimentazione | FC29: Toliocarter | FE29: TABELLA PER DIAGRAMMA VALVOLA
A30: 0 | C30: 20 | D30: 20 | E30: 20 | F30: 20 | G30: 20 | H30: 20 | I30: 20 | J30: 20 | K30: 20 | L30: 20 | M30: 20 | N30: 20 | O30: 20 | P30: 20 | Q30: 20 | R30: 20 | S30: 20 | T30: 20 | U30: 20 | V30: 20 | W30: 20 | X30: 20 | Y30: 20 | Z30: 20 | AA30: 20 | AB30: 20 | AC30: 20 | AD30: 20 | AE30: 20 | AF30: 20 | AG30: 20 | AH30: 20 | AI30: 20 | AJ30: 20 | AK30: 20 | AL30: 20 | AM30: 20 | AN30: 20 | AO30: 20 | AP30: 20 | AQ30: 20 | AR30: 20 | AS30: 20 | AT30: 20 | AU30: 20 | AV30: 20 | AW30: 20 | AX30: 20 | AY30: 20 | AZ30: 20 | BA30: 20 | BB30: 20 | BC30: 20 | BD30: 20 | BE30: 20 | BF30: 20 | BG30: 20 | BH30: 20 | BI30: 20 | BJ30: 20 | BK30: 20 | BL30: 20 | BM30: 20 | BN30: 20 | BO30: 20 | BP30: 20 | BQ30: 20 | BR30: 20 | BS30: 20 | BT30: 20 | BU30: 20 | BV30: 20 | BW30: 20 | BX30: 20 | BY30: 20 | BZ30: 20 | CA30: 20 | CB30: 20 | CC30: 20 | CD30: 20 | CE30: 20 | CF30: 20 | CG30: 20 | CH30: 20 | CI30: 20 | CJ30: 20 | CK30: 20 | CL30: 20 | CM30: 20 | CN30: 20 | CO30: 20 | CP30: 20 | CQ30: 20 | CR30: 20 | CS30: 20 | CT30: 20 | CU30: 20 | CV30: 20 | CW30: 20 | CX30: 20 | CY30: 20 | CZ30: 20 | DA30: 20 | DB30: 20 | DC30: 20 | DD30: 20 | DE30: 20 | DF30: 20 | DG30: 20 | DH30: 20 | DI30: 20 | DJ30: 20 | DK30: 20 | DL30: 20 | DM30: 20 | DN30: 20 | DO30: 20 | DP30: 20 | DQ30: 20 | DR30: 20 | DS30: 20 | DT30: 20 | DU30: 20 | DV30: 20 | DW30: 20 | DX30: 20 | DY30: 20 | DZ30: 20 | EA30: 20 | EB30: 20 | EC30: 20 | ED30: 20 | EE30: 20 | EF30: 20 | EG30: 20 | EH30: 20 | EI30: 20 | EJ30: 20 | EK30: 20 | EL30: 20 | EM30: 20 | EN30: 20 | EO30: 20 | EP30: 20 | EQ30: 20 | ER30: 20 | ES30: 20 | ET30: 20 | EU30: 20 | EV30: 20 | EX30: =A30 -> 0 | EY30: =C30 -> 20 | EZ30: =EV30 -> 20 | FA30: =$B$12 -> 1300 | FB30: =$B$11 -> 20 | FC30: =$B$13 -> 80 | FE30: x | FF30: =C27 -> 0 | FG30: =D27 -> 0.0006711409396 | FH30: 0.001342281879 | FI30: 0.002013422819 | FJ30: 0.002684563758 | FK30: 0.003355704698 | FL30: 0.004026845638 | FM30: 0.004697986577 | FN30: 0.005369127517 | FO30: 0.006040268456 | FP30: 0.006711409396 | FQ30: 0.007382550336 | FR30: 0.008053691275 | FS30: 0.008724832215 | FT30: 0.009395973154 | FU30: 0.01006711409 | FV30: 0.01073825503 | FW30: 0.01140939597 | FX30: 0.01208053691 | FY30: 0.01275167785 | FZ30: 0.01342281879 | GA30: 0.01409395973 | GB30: 0.01476510067 | GC30: 0.01543624161 | GD30: 0.01610738255 | GE30: 0.01677852349 | GF30: 0.01744966443 | GG30: 0.01812080537 | GH30: 0.01879194631 | GI30: 0.01946308725 | GJ30: 0.02013422819 | GK30: 0.02080536913 | GL30: 0.02147651007 | GM30: 0.02214765101 | GN30: 0.02281879195 | GO30: 0.02348993289 | GP30: 0.02416107383 | GQ30: 0.02483221477 | GR30: 0.0255033557 | GS30: 0.02617449664 | GT30: 0.02684563758 | GU30: 0.02751677852 | GV30: 0.02818791946 | GW30: 0.0288590604 | GX30: 0.02953020134 | GY30: 0.03020134228 | GZ30: 0.03087248322 | HA30: 0.03154362416 | HB30: 0.0322147651 | HC30: 0.03288590604 | HD30: 0.03355704698 | HE30: 0.03422818792 | HF30: 0.03489932886 | HG30: 0.0355704698 | HH30: 0.03624161074 | HI30: 0.03691275168 | HJ30: 0.03758389262 | HK30: 0.03825503356 | HL30: 0.0389261745 | HM30: 0.03959731544 | HN30: 0.04026845638 | HO30: 0.04093959732 | HP30: 0.04161073826 | HQ30: 0.04228187919 | HR30: 0.04295302013 | HS30: =BP27 -> 0.04362416107 | HT30: 0.04429530201 | HU30: 0.04496644295 | HV30: 0.04563758389 | HW30: 0.04630872483 | HX30: 0.04697986577 | HY30: 0.04765100671 | HZ30: 0.04832214765 | IA30: 0.04899328859 | IB30: 0.04966442953 | IC30: 0.05033557047 | ID30: 0.05100671141 | IE30: 0.05167785235 | IF30: 0.05234899329 | IG30: 0.05302013423 | IH30: 0.05369127517 | II30: 0.05436241611 | IJ30: 0.05503355705 | IK30: 0.05570469799 | IL30: 0.05637583893 | IM30: 0.05704697987 | IN30: =CK27 -> 0.05771812081 | IO30: =CL27 -> 0.05838926174 | IP30: 0.05906040268 | IQ30: 0.05973154362 | IR30: 0.06040268456 | IS30: 0.0610738255 | IT30: 0.06174496644 | IU30: 0.06241610738 | IV30: 0.06308724832 | IW30: 0.06375838926 | IX30: 0.0644295302 | IY30: 0.06510067114 | IZ30: 0.06577181208 | JA30: 0.06644295302 | JB30: 0.06711409396 | JC30: 0.0677852349 | JD30: 0.06845637584 | JE30: 0.06912751678 | JF30: 0.06979865772 | JG30: 0.07046979866 | JH30: 0.0711409396 | JI30: 0.07181208054 | JJ30: 0.07248322148 | JK30: 0.07315436242 | JL30: 0.07382550336 | JM30: 0.0744966443 | JN30: 0.07516778523 | JO30: 0.07583892617 | JP30: 0.07651006711 | JQ30: 0.07718120805 | JR30: 0.07785234899 | JS30: 0.07852348993 | JT30: 0.07919463087 | JU30: 0.07986577181 | JV30: 0.08053691275 | JW30: 0.08120805369 | JX30: 0.08187919463 | JY30: 0.08255033557 | JZ30: 0.08322147651 | KA30: 0.08389261745 | KB30: 0.08456375839 | KC30: 0.08523489933 | KD30: 0.08590604027 | KE30: 0.08657718121 | KF30: 0.08724832215 | KG30: 0.08791946309 | KH30: 0.08859060403 | KI30: 0.08926174497 | KJ30: 0.08993288591 | KK30: 0.09060402685 | KL30: 0.09127516779 | KM30: 0.09194630872 | KN30: 0.09261744966 | KO30: 0.0932885906 | KP30: 0.09395973154 | KQ30: 0.09463087248 | KR30: 0.09530201342 | KS30: 0.09597315436 | KT30: 0.0966442953 | KU30: 0.09731543624 | KV30: 0.09798657718 | KW30: 0.09865771812 | KX30: 0.09932885906 | KY30: 0.1
A31: 4 | C31: 46.69326792 | D31: 40.46256082 | E31: 35.68621709 | F31: 32.02476116 | G31: 29.2179574 | H31: 27.06631405 | I31: 25.41690442 | J31: 24.15249779 | K31: 23.18322728 | L31: 22.4402026 | M31: 21.87061376 | N31: 21.43397758 | O31: 21.09926044 | P31: 20.84267253 | Q31: 20.64597703 | R31: 20.49519393 | S31: 20.37960642 | T31: 20.2909992 | U31: 20.22307455 | V31: 20.17100479 | W31: 20.13108908 | X31: 20.10049044 | Y31: 20.07703409 | Z31: 20.0590529 | AA31: 20.04526885 | AB31: 20.03470225 | AC31: 20.0266021 | AD31: 20.02039267 | AE31: 20.01563264 | AF31: 20.01198369 | AG31: 20.00918647 | AH31: 20.00704218 | AI31: 20.0053984 | AJ31: 20.00413832 | AK31: 20.00317236 | AL31: 20.00243187 | AM31: 20.00186422 | AN31: 20.00142908 | AO31: 20.00109551 | AP31: 20.00083979 | AQ31: 20.00064377 | AR31: 20.0004935 | AS31: 20.00037831 | AT31: 20.00029001 | AU31: 20.00022231 | AV31: 20.00017042 | AW31: 20.00013064 | AX31: 20.00010015 | AY31: 20.00007677 | AZ31: 20.00005885 | BA31: 20.00004511 | BB31: 20.00003458 | BC31: 20.00002651 | BD31: 20.00002032 | BE31: 20.00001558 | BF31: 20.00001194 | BG31: 20.00000916 | BH31: 20.00000702 | BI31: 20.00000538 | BJ31: 20.00000412 | BK31: 20.00000316 | BL31: 20.00000242 | BM31: 20.00000186 | BN31: 20.00000142 | BO31: 20.00000109 | BP31: 20.00000084 | BQ31: 20.00000064 | BR31: 20.00000049 | BS31: 20.00000038 | BT31: 20.00000029 | BU31: 20.00000022 | BV31: 20.00000017 | BW31: 20.00000013 | BX31: 20.0000001 | BY31: 20.00000008 | BZ31: 20.00000006 | CA31: 20.00000005 | CB31: 20.00000004 | CC31: 20.00000004 | CD31: 20.00000004 | CE31: 20.00000004 | CF31: 20.00000004 | CG31: 20.00000004 | CH31: 20.00000005 | CI31: 20.00000006 | CJ31: 20.00000008 | CK31: 20.0000001 | CL31: 20.00000013 | CM31: 20.00000017 | CN31: 20.00000022 | CO31: 20.00000029 | CP31: 20.00000038 | CQ31: 20.00000049 | CR31: 20.00000064 | CS31: 20.00000083 | CT31: 20.00000108 | CU31: 20.00000141 | CV31: 20.00000185 | CW31: 20.00000241 | CX31: 20.00000314 | CY31: 20.0000041 | CZ31: 20.00000534 | DA31: 20.00000697 | DB31: 20.00000909 | DC31: 20.00001186 | DD31: 20.00001547 | DE31: 20.00002018 | DF31: 20.00002633 | DG31: 20.00003434 | DH31: 20.0000448 | DI31: 20.00005844 | DJ31: 20.00007623 | DK31: 20.00009945 | DL31: 20.00012973 | DM31: 20.00016923 | DN31: 20.00022075 | DO31: 20.00028797 | DP31: 20.00037566 | DQ31: 20.00049004 | DR31: 20.00063926 | DS31: 20.00083391 | DT31: 20.00108783 | DU31: 20.00141906 | DV31: 20.00185116 | DW31: 20.00241482 | DX31: 20.00315012 | DY31: 20.00410931 | DZ31: 20.00536056 | EA31: 20.00699282 | EB31: 20.00912208 | EC31: 20.0118997 | ED31: 20.01552307 | EE31: 20.02024974 | EF31: 20.02641564 | EG31: 20.03445902 | EH31: 20.04495155 | EI31: 20.05863898 | EJ31: 20.07649414 | EK31: 20.09978607 | EL31: 20.13017024 | EM31: 20.16980617 | EN31: 20.22151096 | EO31: 20.2889595 | EP31: 20.37694566 | EQ31: 20.49172298 | ER31: 20.6414492 | ES31: 20.83676601 | ET31: 21.09155543 | EU31: 21.42392644 | EV31: 21.85750212 | EX31: =A31 -> 4 | EY31: =C31 -> 46.69326792 | EZ31: =EV31 -> 21.85750212 | FA31: =$B$12 -> 1300 | FB31: =$B$11 -> 20 | FC31: =$B$13 -> 80 | FE31: t=0s | FF31: =C30 -> 20 | FG31: =D30 -> 20 | FH31: 20 | FI31: 20 | FJ31: 20 | FK31: 20 | FL31: 20 | FM31: 20 | FN31: 20 | FO31: 20 | FP31: 20 | FQ31: 20 | FR31: 20 | FS31: 20 | FT31: 20 | FU31: 20 | FV31: 20 | FW31: 20 | FX31: 20 | FY31: 20 | FZ31: 20 | GA31: 20 | GB31: 20 | GC31: 20 | GD31: 20 | GE31: 20 | GF31: 20 | GG31: 20 | GH31: 20 | GI31: 20 | GJ31: 20 | GK31: 20 | GL31: 20 | GM31: 20 | GN31: 20 | GO31: 20 | GP31: 20 | GQ31: 20 | GR31: 20 | GS31: 20 | GT31: 20 | GU31: 20 | GV31: 20 | GW31: 20 | GX31: 20 | GY31: 20 | GZ31: 20 | HA31: 20 | HB31: 20 | HC31: 20 | HD31: 20 | HE31: 20 | HF31: 20 | HG31: 20 | HH31: 20 | HI31: 20 | HJ31: 20 | HK31: 20 | HL31: 20 | HM31: 20 | HN31: 20 | HO31: 20 | HP31: 20 | HQ31: 20 | HR31: 20 | HS31: =BP30 -> 20 | HT31: 20 | HU31: 20 | HV31: 20 | HW31: 20 | HX31: 20 | HY31: 20 | HZ31: 20 | IA31: 20 | IB31: 20 | IC31: 20 | ID31: 20 | IE31: 20 | IF31: 20 | IG31: 20 | IH31: 20 | II31: 20 | IJ31: 20 | IK31: 20 | IL31: 20 | IM31: 20 | IN31: 20 | IO31: 20 | IP31: 20 | IQ31: 20 | IR31: 20 | IS31: 20 | IT31: 20 | IU31: 20 | IV31: 20 | IW31: 20 | IX31: 20 | IY31: 20 | IZ31: 20 | JA31: 20 | JB31: 20 | JC31: 20 | JD31: 20 | JE31: 20 | JF31: 20 | JG31: 20 | JH31: 20 | JI31: 20 | JJ31: 20 | JK31: 20 | JL31: 20 | JM31: 20 | JN31: 20 | JO31: 20 | JP31: 20 | JQ31: 20 | JR31: 20 | JS31: 20 | JT31: 20 | JU31: 20 | JV31: 20 | JW31: 20 | JX31: 20 | JY31: 20 | JZ31: 20 | KA31: 20 | KB31: 20 | KC31: 20 | KD31: 20 | KE31: =EB30 -> 20 | KF31: 20 | KG31: 20 | KH31: 20 | KI31: 20 | KJ31: 20 | KK31: 20 | KL31: 20 | KM31: 20 | KN31: 20 | KO31: 20 | KP31: 20 | KQ31: 20 | KR31: 20 | KS31: 20 | KT31: 20 | KU31: 20 | KV31: 20 | KW31: 20 | KX31: 20 | KY31: 20
A32: 8 | C32: 69.13980662 | D32: 63.02069057 | E32: 57.08085961 | F32: 51.57001239 | G32: 46.61151065 | H32: 42.24775342 | I32: 38.47125213 | J32: 35.24560993 | K32: 32.51942517 | L32: 30.23527923 | M32: 28.3353461 | N32: 26.76471093 | O32: 25.47316161 | P32: 24.41598536 | Q32: 23.55413722 | R32: 22.8540302 | S32: 22.2871147 | T32: 21.82935675 | U32: 21.46068551 | V32: 21.1644526 | W32: 20.92692788 | X32: 20.73684422 | Y32: 20.58499571 | Z32: 20.46388933 | AA32: 20.36744686 | AB32: 20.29075267 | AC32: 20.22984211 | AD32: 20.18152543 | AE32: 20.143242 | AF32: 20.11294042 | AG32: 20.08898031 | AH32: 20.0700522 | AI32: 20.05511241 | AJ32: 20.04333033 | AK32: 20.0340458 | AL32: 20.02673482 | AM32: 20.02098191 | AN32: 20.01645805 | AO32: 20.01290292 | AP32: 20.01011074 | AQ32: 20.00791906 | AR32: 20.00619965 | AS32: 20.00485147 | AT32: 20.00379488 | AU32: 20.00296722 | AV32: 20.00231918 | AW32: 20.001812 | AX32: 20.00141524 | AY32: 20.00110497 | AZ32: 20.00086244 | BA32: 20.00067293 | BB32: 20.0005249 | BC32: 20.00040931 | BD32: 20.00031908 | BE32: 20.00024868 | BF32: 20.00019376 | BG32: 20.00015092 | BH32: 20.00011753 | BI32: 20.0000915 | BJ32: 20.00007122 | BK32: 20.00005543 | BL32: 20.00004312 | BM32: 20.00003355 | BN32: 20.00002609 | BO32: 20.00002029 | BP32: 20.00001578 | BQ32: 20.00001227 | BR32: 20.00000954 | BS32: 20.00000742 | BT32: 20.00000577 | BU32: 20.0000045 | BV32: 20.00000351 | BW32: 20.00000274 | BX32: 20.00000216 | BY32: 20.00000171 | BZ32: 20.00000137 | CA32: 20.00000112 | CB32: 20.00000094 | CC32: 20.00000083 | CD32: 20.00000077 | CE32: 20.00000075 | CF32: 20.00000079 | CG32: 20.00000087 | CH32: 20.00000102 | CI32: 20.00000122 | CJ32: 20.00000151 | CK32: 20.00000189 | CL32: 20.00000239 | CM32: 20.00000305 | CN32: 20.00000389 | CO32: 20.00000498 | CP32: 20.00000639 | CQ32: 20.00000819 | CR32: 20.00001051 | CS32: 20.00001349 | CT32: 20.0000173 | CU32: 20.0000222 | CV32: 20.00002847 | CW32: 20.00003651 | CX32: 20.0000468 | CY32: 20.00005998 | CZ32: 20.00007685 | DA32: 20.00009842 | DB32: 20.00012601 | DC32: 20.00016128 | DD32: 20.00020635 | DE32: 20.0002639 | DF32: 20.00033737 | DG32: 20.00043112 | DH32: 20.00055067 | DI32: 20.00070307 | DJ32: 20.00089721 | DK32: 20.0011444 | DL32: 20.00145894 | DM32: 20.00185893 | DN32: 20.00236723 | DO32: 20.00301272 | DP32: 20.00383184 | DQ32: 20.00487046 | DR32: 20.00618632 | DS32: 20.00785194 | DT32: 20.00995833 | DU32: 20.01261948 | DV32: 20.01597794 | DW32: 20.02021163 | DX32: 20.02554216 | DY32: 20.03224497 | DZ32: 20.04066153 | EA32: 20.05121403 | EB32: 20.06442289 | EC32: 20.0809274 | ED32: 20.10150989 | EE32: 20.12712357 | EF32: 20.15892402 | EG32: 20.19830413 | EH32: 20.24693136 | EI32: 20.30678594 | EJ32: 20.38019663 | EK32: 20.46986944 | EL32: 20.57890143 | EM32: 20.71076796 | EN32: 20.86926595 | EO32: 21.05838743 | EP32: 21.2820864 | EQ32: 21.54388546 | ER32: 21.84624658 | ES32: 22.18959851 | ET32: 22.57087037 | EU32: 22.98132066 | EV32: 23.40336862 | EX32: 8 | EY32: 69.13980662 | EZ32: 23.40336862 | FA32: 1300 | FB32: 20 | FC32: 80 | FE32: t = 4s | FF32: =C31 -> 46.69326792 | FG32: 40.46256082 | FH32: 35.68621709 | FI32: 32.02476116 | FJ32: 29.2179574 | FK32: 27.06631405 | FL32: 25.41690442 | FM32: 24.15249779 | FN32: 23.18322728 | FO32: 22.4402026 | FP32: 21.87061376 | FQ32: 21.43397758 | FR32: 21.09926044 | FS32: 20.84267253 | FT32: 20.64597703 | FU32: 20.49519393 | FV32: 20.37960642 | FW32: 20.2909992 | FX32: 20.22307455 | FY32: 20.17100479 | FZ32: 20.13108908 | GA32: 20.10049044 | GB32: 20.07703409 | GC32: 20.0590529 | GD32: 20.04526885 | GE32: 20.03470225 | GF32: 20.0266021 | GG32: 20.02039267 | GH32: 20.01563264 | GI32: 20.01198369 | GJ32: 20.00918647 | GK32: 20.00704218 | GL32: 20.0053984 | GM32: 20.00413832 | GN32: 20.00317236 | GO32: 20.00243187 | GP32: 20.00186422 | GQ32: 20.00142908 | GR32: 20.00109551 | GS32: 20.00083979 | GT32: 20.00064377 | GU32: 20.0004935 | GV32: 20.00037831 | GW32: 20.00029001 | GX32: 20.00022231 | GY32: 20.00017042 | GZ32: 20.00013064 | HA32: 20.00010015 | HB32: 20.00007677 | HC32: 20.00005885 | HD32: 20.00004511 | HE32: 20.00003458 | HF32: 20.00002651 | HG32: 20.00002032 | HH32: 20.00001558 | HI32: 20.00001194 | HJ32: 20.00000916 | HK32: 20.00000702 | HL32: 20.00000538 | HM32: 20.00000412 | HN32: 20.00000316 | HO32: 20.00000242 | HP32: 20.00000186 | HQ32: 20.00000142 | HR32: 20.00000109 | HS32: 20.00000084 | HT32: 20.00000064 | HU32: 20.00000049 | HV32: 20.00000038 | HW32: 20.00000029 | HX32: 20.00000022 | HY32: 20.00000017 | HZ32: 20.00000013 | IA32: 20.0000001 | IB32: 20.00000008 | IC32: 20.00000006 | ID32: 20.00000005 | IE32: 20.00000004 | IF32: 20.00000004 | IG32: 20.00000004 | IH32: 20.00000004 | II32: 20.00000004 | IJ32: 20.00000004 | IK32: 20.00000005 | IL32: 20.00000006 | IM32: 20.00000008 | IN32: 20.0000001 | IO32: 20.00000013 | IP32: 20.00000017 | IQ32: 20.00000022 | IR32: 20.00000029 | IS32: 20.00000038 | IT32: 20.00000049 | IU32: 20.00000064 | IV32: 20.00000083 | IW32: 20.00000108 | IX32: 20.00000141 | IY32: 20.00000185 | IZ32: 20.00000241 | JA32: 20.00000314 | JB32: 20.0000041 | JC32: 20.00000534 | JD32: 20.00000697 | JE32: 20.00000909 | JF32: 20.00001186 | JG32: 20.00001547 | JH32: 20.00002018 | JI32: 20.00002633 | JJ32: 20.00003434 | JK32: 20.0000448 | JL32: 20.00005844 | JM32: 20.00007623 | JN32: 20.00009945 | JO32: 20.00012973 | JP32: 20.00016923 | JQ32: 20.00022075 | JR32: 20.00028797 | JS32: 20.00037566 | JT32: 20.00049004 | JU32: 20.00063926 | JV32: 20.00083391 | JW32: 20.00108783 | JX32: 20.00141906 | JY32: 20.00185116 | JZ32: 20.00241482 | KA32: 20.00315012 | KB32: 20.00410931 | KC32: 20.00536056 | KD32: 20.00699282 | KE32: 20.00912208 | KF32: 20.0118997 | KG32: 20.01552307 | KH32: 20.02024974 | KI32: 20.02641564 | KJ32: 20.03445902 | KK32: 20.04495155 | KL32: 20.05863898 | KM32: 20.07649414 | KN32: 20.09978607 | KO32: 20.13017024 | KP32: 20.16980617 | KQ32: 20.22151096 | KR32: 20.2889595 | KS32: 20.37694566 | KT32: 20.49172298 | KU32: 20.6414492 | KV32: 20.83676601 | KW32: 21.09155543 | KX32: 21.42392644 | KY32: 21.85750212
A33: 12 | C33: 79.80371383 | D33: 73.73761248 | E33: 68.31771966 | F33: 63.32248284 | G33: 58.65701491 | H33: 54.29239109 | I33: 50.22956736 | J33: 46.47899022 | K33: 43.04996861 | L33: 39.9459248 | M33: 37.16302395 | N33: 34.69060715 | O33: 32.51246384 | P33: 30.60837749 | Q33: 28.95563177 | R33: 27.5303231 | S33: 26.30841968 | T33: 25.26656192 | U33: 24.38262735 | V33: 23.63609563 | W33: 23.00825293 | X33: 22.48227256 | Y33: 22.0432049 | Z33: 21.67790387 | AA33: 21.37491213 | AB33: 21.12432196 | AC33: 20.9176247 | AD33: 20.74755811 | AE33: 20.60795786 | AF33: 20.49361756 | AG33: 20.40015964 | AH33: 20.32391854 | AI33: 20.2618364 | AJ33: 20.21137104 | AK33: 20.17041577 | AL33: 20.13722985 | AM33: 20.11037886 | AN33: 20.08868378 | AO33: 20.07117777 | AP33: 20.05706978 | AQ33: 20.04571388 | AR33: 20.03658368 | AS33: 20.02925098 | AT33: 20.02336805 | AU33: 20.01865298 | AV33: 20.01487755 | AW33: 20.01185726 | AX33: 20.00944322 | AY33: 20.00751535 | AZ33: 20.00597701 | BA33: 20.00475044 | BB33: 20.00377319 | BC33: 20.00299514 | BD33: 20.00237613 | BE33: 20.00188397 | BF33: 20.00149293 | BG33: 20.00118242 | BH33: 20.00093601 | BI33: 20.00074058 | BJ33: 20.00058567 | BK33: 20.00046295 | BL33: 20.00036579 | BM33: 20.00028889 | BN33: 20.00022807 | BO33: 20.00017999 | BP33: 20.000142 | BQ33: 20.00011201 | BR33: 20.00008834 | BS33: 20.00006968 | BT33: 20.00005498 | BU33: 20.00004341 | BV33: 20.00003433 | BW33: 20.00002722 | BX33: 20.00002168 | BY33: 20.00001739 | BZ33: 20.0000141 | CA33: 20.00001164 | CB33: 20.00000985 | CC33: 20.00000864 | CD33: 20.00000792 | CE33: 20.00000767 | CF33: 20.00000786 | CG33: 20.00000851 | CH33: 20.00000964 | CI33: 20.00001133 | CJ33: 20.00001365 | CK33: 20.00001675 | CL33: 20.00002078 | CM33: 20.00002598 | CN33: 20.00003261 | CO33: 20.00004105 | CP33: 20.00005174 | CQ33: 20.00006527 | CR33: 20.00008235 | CS33: 20.00010389 | CT33: 20.00013104 | CU33: 20.00016523 | CV33: 20.00020823 | CW33: 20.00026228 | CX33: 20.00033019 | CY33: 20.00041541 | CZ33: 20.0005223 | DA33: 20.00065626 | DB33: 20.00082399 | DC33: 20.00103384 | DD33: 20.00129616 | DE33: 20.00162374 | DF33: 20.00203245 | DG33: 20.00254187 | DH33: 20.00317613 | DI33: 20.00396497 | DJ33: 20.00494494 | DK33: 20.00616089 | DL33: 20.00766773 | DM33: 20.00953257 | DN33: 20.01183726 | DO33: 20.01468133 | DP33: 20.01818559 | DQ33: 20.02249621 | DR33: 20.02778956 | DS33: 20.03427775 | DT33: 20.04221501 | DU33: 20.0519049 | DV33: 20.06370839 | DW33: 20.07805275 | DX33: 20.09544126 | DY33: 20.1164634 | DZ33: 20.14180537 | EA33: 20.17226044 | EB33: 20.20873839 | EC33: 20.25227335 | ED33: 20.30402864 | EE33: 20.36529717 | EF33: 20.43749546 | EG33: 20.52214906 | EH33: 20.62086666 | EI33: 20.7353003 | EJ33: 20.86708915 | EK33: 21.01778524 | EL33: 21.18876169 | EM33: 21.38110747 | EN33: 21.59551974 | EO33: 21.83221557 | EP33: 22.09090273 | EQ33: 22.3708771 | ER33: 22.67135674 | ES33: 22.99222753 | ET33: 23.33547168 | EU33: 23.7076933 | EV33: 24.1243647 | EX33: 12 | EY33: 79.80371383 | EZ33: 24.1243647 | FA33: 1300 | FB33: 20 | FC33: 80 | FE33: t = 16s | FF33: =C34 -> 90.17489118 | FG33: =D34 -> 84.16034925 | FH33: 78.3200755 | FI33: 72.83770699 | FJ33: 67.76610084 | FK33: 63.0983974 | FL33: 58.80562722 | FM33: 54.85497576 | FN33: 51.21735218 | FO33: 47.86942309 | FP33: 44.79308635 | FQ33: 41.97401836 | FR33: 39.40012531 | FS33: 37.06026613 | FT33: 34.94336128 | FU33: 33.0378737 | FV33: 31.3315932 | FW33: 29.8116406 | FX33: 28.46461314 | FY33: 27.27680631 | FZ33: 26.23446361 | GA33: 25.32402036 | GB33: 24.53232076 | GC33: 23.84679669 | GD33: 23.25560416 | GE33: 22.7477179 | GF33: 22.31298779 | GG33: 21.9421623 | GH33: 21.62688475 | GI33: 21.35966837 | GJ33: 21.13385558 | GK33: 20.94356634 | GL33: 20.78363956 | GM33: 20.64957109 | GN33: 20.53745076 | GO33: 20.44390056 | GP33: 20.36601535 | GQ33: 20.30130712 | GR33: 20.24765339 | GS33: 20.20325009 | GT33: 20.16656899 | GU33: 20.13631968 | GV33: 20.1114158 | GW33: 20.09094532 | GX33: 20.07414466 | GY33: 20.06037606 | GZ33: 20.04910814 | HA33: 20.03989915 | HB33: 20.03238262 | HC33: 20.02625513 | HD33: 20.021266 | HE33: 20.01720842 | HF33: 20.01391212 | HG33: 20.01123716 | HH33: 20.00906865 | HI33: 20.00731248 | HJ33: 20.0058916 | HK33: 20.00474308 | HL33: 20.00381555 | HM33: 20.00306715 | HN33: 20.00246379 | HO33: 20.00197778 | HP33: 20.00158662 | HQ33: 20.00127204 | HR33: 20.00101925 | HS33: =BP34 -> 20.00081629 | HT33: 20.00065348 | HU33: 20.00052299 | HV33: 20.00041851 | HW33: 20.00033498 | HX33: 20.00026828 | HY33: 20.00021515 | HZ33: 20.00017295 | IA33: 20.00013959 | IB33: 20.00011338 | IC33: 20.00009302 | ID33: 20.00007746 | IE33: 20.00006593 | IF33: 20.00005782 | IG33: 20.00005271 | IH33: 20.00005035 | II33: 20.00005058 | IJ33: 20.0000534 | IK33: 20.00005895 | IL33: 20.00006746 | IM33: 20.00007933 | IN33: 20.00009512 | IO33: 20.00011557 | IP33: 20.00014163 | IQ33: 20.00017451 | IR33: 20.00021571 | IS33: 20.00026714 | IT33: 20.00033112 | IU33: 20.00041053 | IV33: 20.00050893 | IW33: 20.00063067 | IX33: 20.00078108 | IY33: 20.00096668 | IZ33: 20.00119545 | JA33: 20.00147708 | JB33: 20.0018234 | JC33: 20.00224873 | JD33: 20.00277049 | JE33: 20.0034097 | JF33: 20.0041918 | JG33: 20.00514741 | JH33: 20.00631341 | JI33: 20.007734 | JJ33: 20.00946213 | JK33: 20.01156104 | JL33: 20.01410603 | JM33: 20.01718654 | JN33: 20.02090847 | JO33: 20.02539682 | JP33: 20.03079862 | JQ33: 20.03728618 | JR33: 20.04506068 | JS33: 20.05435595 | JT33: 20.06544261 | JU33: 20.0786323 | JV33: 20.09428196 | JW33: 20.11279814 | JX33: 20.13464095 | JY33: 20.16032755 | JZ33: 20.19043488 | KA33: 20.2256013 | KB33: 20.26652667 | KC33: 20.31397054 | KD33: 20.36874815 | KE33: =EB34 -> 20.43172355 | KF33: 20.5038 | KG33: 20.58590731 | KH33: 20.67898658 | KI33: 20.78397305 | KJ33: 20.90177865 | KK33: 21.03327646 | KL33: 21.17929068 | KM33: 21.3405964 | KN33: 21.51793491 | KO33: 21.71205015 | KP33: 21.92375126 | KQ33: 22.15400197 | KR33: 22.40402889 | KS33: 22.67542272 | KT33: 22.97017433 | KU33: 23.2905311 | KV33: 23.63846549 | KW33: 24.01439463 | KX33: 24.41454648 | KY33: 24.82598581
A34: 16 | C34: 90.17489118 | D34: 84.16034925 | E34: 78.3200755 | F34: 72.83770699 | G34: 67.76610084 | H34: 63.0983974 | I34: 58.80562722 | J34: 54.85497576 | K34: 51.21735218 | L34: 47.86942309 | M34: 44.79308635 | N34: 41.97401836 | O34: 39.40012531 | P34: 37.06026613 | Q34: 34.94336128 | R34: 33.0378737 | S34: 31.3315932 | T34: 29.8116406 | U34: 28.46461314 | V34: 27.27680631 | W34: 26.23446361 | X34: 25.32402036 | Y34: 24.53232076 | Z34: 23.84679669 | AA34: 23.25560416 | AB34: 22.7477179 | AC34: 22.31298779 | AD34: 21.9421623 | AE34: 21.62688475 | AF34: 21.35966837 | AG34: 21.13385558 | AH34: 20.94356634 | AI34: 20.78363956 | AJ34: 20.64957109 | AK34: 20.53745076 | AL34: 20.44390056 | AM34: 20.36601535 | AN34: 20.30130712 | AO34: 20.24765339 | AP34: 20.20325009 | AQ34: 20.16656899 | AR34: 20.13631968 | AS34: 20.1114158 | AT34: 20.09094532 | AU34: 20.07414466 | AV34: 20.06037606 | AW34: 20.04910814 | AX34: 20.03989915 | AY34: 20.03238262 | AZ34: 20.02625513 | BA34: 20.021266 | BB34: 20.01720842 | BC34: 20.01391212 | BD34: 20.01123716 | BE34: 20.00906865 | BF34: 20.00731248 | BG34: 20.0058916 | BH34: 20.00474308 | BI34: 20.00381555 | BJ34: 20.00306715 | BK34: 20.00246379 | BL34: 20.00197778 | BM34: 20.00158662 | BN34: 20.00127204 | BO34: 20.00101925 | BP34: 20.00081629 | BQ34: 20.00065348 | BR34: 20.00052299 | BS34: 20.00041851 | BT34: 20.00033498 | BU34: 20.00026828 | BV34: 20.00021515 | BW34: 20.00017295 | BX34: 20.00013959 | BY34: 20.00011338 | BZ34: 20.00009302 | CA34: 20.00007746 | CB34: 20.00006593 | CC34: 20.00005782 | CD34: 20.00005271 | CE34: 20.00005035 | CF34: 20.00005058 | CG34: 20.0000534 | CH34: 20.00005895 | CI34: 20.00006746 | CJ34: 20.00007933 | CK34: 20.00009512 | CL34: 20.00011557 | CM34: 20.00014163 | CN34: 20.00017451 | CO34: 20.00021571 | CP34: 20.00026714 | CQ34: 20.00033112 | CR34: 20.00041053 | CS34: 20.00050893 | CT34: 20.00063067 | CU34: 20.00078108 | CV34: 20.00096668 | CW34: 20.00119545 | CX34: 20.00147708 | CY34: 20.0018234 | CZ34: 20.00224873 | DA34: 20.00277049 | DB34: 20.0034097 | DC34: 20.0041918 | DD34: 20.00514741 | DE34: 20.00631341 | DF34: 20.007734 | DG34: 20.00946213 | DH34: 20.01156104 | DI34: 20.01410603 | DJ34: 20.01718654 | DK34: 20.02090847 | DL34: 20.02539682 | DM34: 20.03079862 | DN34: 20.03728618 | DO34: 20.04506068 | DP34: 20.05435595 | DQ34: 20.06544261 | DR34: 20.0786323 | DS34: 20.09428196 | DT34: 20.11279814 | DU34: 20.13464095 | DV34: 20.16032755 | DW34: 20.19043488 | DX34: 20.2256013 | DY34: 20.26652667 | DZ34: 20.31397054 | EA34: 20.36874815 | EB34: 20.43172355 | EC34: 20.5038 | ED34: 20.58590731 | EE34: 20.67898658 | EF34: 20.78397305 | EG34: 20.90177865 | EH34: 21.03327646 | EI34: 21.17929068 | EJ34: 21.3405964 | EK34: 21.51793491 | EL34: 21.71205015 | EM34: 21.92375126 | EN34: 22.15400197 | EO34: 22.40402889 | EP34: 22.67542272 | EQ34: 22.97017433 | ER34: 23.2905311 | ES34: 23.63846549 | ET34: 24.01439463 | EU34: 24.41454648 | EV34: 24.82598581 | EX34: 16 | EY34: 90.17489118 | EZ34: 24.82598581 | FA34: 1300 | FB34: 20 | FC34: 80 | FE34: t = 64s | FF34: =C46 -> 147.3932831 | FG34: =D46 -> 141.6631975 | FH34: 136.0934921 | FI34: 130.7413678 | FJ34: 125.5878926 | FK34: 120.6153476 | FL34: 115.8162093 | FM34: 111.1881648 | FN34: 106.7297796 | FO34: 102.4387628 | FP34: 98.31182433 | FQ34: 94.34507813 | FR34: 90.53444477 | FS34: 86.87588595 | FT34: 83.36548408 | FU34: 79.99943247 | FV34: 76.77399352 | FW34: 73.68545864 | FX34: 70.73012306 | FY34: 67.90427606 | FZ34: 65.20420218 | GA34: 62.62618818 | GB34: 60.16653149 | GC34: 57.82154827 | GD34: 55.58757968 | GE34: 53.46099683 | GF34: 51.43820446 | GG34: 49.51564406 | GH34: 47.68979668 | GI34: 45.95718576 | GJ34: 44.3143801 | GK34: 42.75799691 | GL34: 41.28470495 | GM34: 39.89122767 | GN34: 38.57434629 | GO34: 37.33090271 | GP34: 36.15780232 | GQ34: 35.05201653 | GR34: 34.01058515 | GS34: 33.03061852 | GT34: 32.10929943 | GU34: 31.24388478 | GV34: 30.43170711 | GW34: 29.6701758 | GX34: 28.95677817 | GY34: 28.28908025 | GZ34: 27.66472742 | HA34: 27.08144479 | HB34: 26.53703743 | HC34: 26.02939033 | HD34: 25.5564682 | HE34: 25.11631507 | HF34: 24.70705373 | HG34: 24.32688497 | HH34: 23.97408665 | HI34: 23.64701267 | HJ34: 23.34409173 | HK34: 23.06382602 | HL34: 22.80478975 | HM34: 22.56562758 | HN34: 22.345053 | HO34: 22.14184653 | HP34: 21.95485395 | HQ34: 21.78298443 | HR34: 21.62520858 | HS34: =BP46 -> 21.48055649 | HT34: 21.34811575 | HU34: 21.22702944 | HV34: 21.1164941 | HW34: 21.01575771 | HX34: 20.92411767 | HY34: 20.84091884 | HZ34: 20.7655515 | IA34: 20.69744947 | IB34: 20.63608815 | IC34: 20.58098269 | ID34: 20.53168613 | IE34: 20.48778766 | IF34: 20.44891088 | IG34: 20.41471215 | IH34: 20.38487898 | II34: 20.35912849 | IJ34: 20.33720593 | IK34: 20.31888325 | IL34: 20.30395779 | IM34: 20.29225093 | IN34: 20.28360692 | IO34: 20.2778917 | IP34: 20.27499179 | IQ34: 20.27481324 | IR34: 20.2772807 | IS34: 20.28233643 | IT34: 20.28993948 | IU34: 20.30006486 | IV34: 20.31270275 | IW34: 20.3278578 | IX34: 20.34554846 | IY34: 20.36580632 | IZ34: 20.38867552 | JA34: 20.41421222 | JB34: 20.44248404 | JC34: 20.47356955 | JD34: 20.50755784 | JE34: 20.54454805 | JF34: 20.58464894 | JG34: 20.6279785 | JH34: 20.67466354 | JI34: 20.72483936 | JJ34: 20.77864935 | JK34: 20.83624463 | JL34: 20.89778375 | JM34: 20.96343235 | JN34: 21.03336278 | JO34: 21.10775387 | JP34: 21.18679049 | JQ34: 21.27066334 | JR34: 21.35956856 | JS34: 21.45370745 | JT34: 21.5532861 | JU34: 21.65851511 | JV34: 21.76960928 | JW34: 21.88678724 | JX34: 22.01027118 | JY34: 22.14028659 | JZ34: 22.27706191 | KA34: 22.42082833 | KB34: 22.57181952 | KC34: 22.73027137 | KD34: 22.89642166 | KE34: =EB46 -> 23.07050971 | KF34: 23.25277588 | KG34: 23.44346101 | KH34: 23.64280577 | KI34: 23.85105016 | KJ34: 24.06843341 | KK34: 24.29519468 | KL34: 24.53157476 | KM34: 24.77781893 | KN34: 25.03417981 | KO34: 25.30091807 | KP34: 25.57829678 | KQ34: 25.86656499 | KR34: 26.16592952 | KS34: 26.47652674 | KT34: 26.79843278 | KU34: 27.13178538 | KV34: 27.47708754 | KW34: 27.83555628 | KX34: 28.20849089 | KY34: 28.59184773
A35: 20 | C35: 97.65862554 | D35: 91.68128836 | E35: 86.15937215 | F35: 80.92320636 | G35: 75.92930281 | H35: 71.18252312 | I35: 66.69929472 | J35: 62.49252972 | K35: 58.56725744 | L35: 54.9209726 | M35: 51.54560727 | N35: 48.42966989 | O35: 45.55997407 | P35: 42.92282007 | Q35: 40.50468762 | R35: 38.29256507 | S35: 36.2740431 | T35: 34.43727826 | U35: 32.77090217 | V35: 31.26392432 | W35: 29.90565497 | X35: 28.68565879 | Y35: 27.59374024 | Z35: 26.61995554 | AA35: 25.7546442 | AB35: 24.98847198 | AC35: 24.31247834 | AD35: 23.71812252 | AE35: 23.19732402 | AF35: 22.74249482 | AG35: 22.34656177 | AH35: 22.00297888 | AI35: 21.70572981 | AJ35: 21.44932146 | AK35: 21.22876996 | AL35: 21.03958038 | AM35: 20.87772162 | AN35: 20.73959785 | AO35: 20.62201761 | AP35: 20.5221619 | AQ35: 20.43755182 | AR35: 20.36601689 | AS35: 20.30566427 | AT35: 20.25484955 | AU35: 20.21214926 | AV35: 20.17633544 | AW35: 20.14635222 | AX35: 20.12129444 | AY35: 20.1003885 | AZ35: 20.082975 | BA35: 20.06849341 | BB35: 20.05646847 | BC35: 20.04649813 | BD35: 20.03824313 | BE35: 20.03141777 | BF35: 20.02578197 | BG35: 20.02113443 | BH35: 20.01730664 | BI35: 20.01415784 | BJ35: 20.01157064 | BK35: 20.00944731 | BL35: 20.00770665 | BM35: 20.00628126 | BN35: 20.0051153 | BO35: 20.00416259 | BP35: 20.00338497 | BQ35: 20.00275099 | BR35: 20.00223473 | BS35: 20.00181489 | BT35: 20.00147399 | BU35: 20.00119769 | BV35: 20.00097428 | BW35: 20.00079421 | BX35: 20.00064973 | BY35: 20.00053454 | BZ35: 20.00044362 | CA35: 20.00037295 | CB35: 20.00031937 | CC35: 20.00028048 | CD35: 20.00025449 | CE35: 20.00024019 | CF35: 20.00023685 | CG35: 20.00024423 | CH35: 20.00026255 | CI35: 20.00029245 | CJ35: 20.00033507 | CK35: 20.00039208 | CL35: 20.00046567 | CM35: 20.00055871 | CN35: 20.00067478 | CO35: 20.00081834 | CP35: 20.00099483 | CQ35: 20.00121089 | CR35: 20.00147453 | CS35: 20.00179541 | CT35: 20.00218515 | CU35: 20.00265764 | CV35: 20.00322946 | CW35: 20.00392039 | CX35: 20.00475389 | CY35: 20.00575779 | CZ35: 20.00696502 | DA35: 20.00841436 | DB35: 20.01015149 | DC35: 20.01222997 | DD35: 20.01471244 | DE35: 20.01767201 | DF35: 20.02119364 | DG35: 20.02537583 | DH35: 20.03033233 | DI35: 20.03619406 | DJ35: 20.04311107 | DK35: 20.05125472 | DL35: 20.0608198 | DM35: 20.07202675 | DN35: 20.08512387 | DO35: 20.10038939 | DP35: 20.1181334 | DQ35: 20.13869956 | DR35: 20.16246644 | DS35: 20.18984841 | DT35: 20.22129598 | DU35: 20.25729562 | DV35: 20.29836873 | DW35: 20.34507003 | DX35: 20.39798524 | DY35: 20.45772813 | DZ35: 20.52493726 | EA35: 20.60027257 | EB35: 20.68441235 | EC35: 20.77805098 | ED35: 20.88189804 | EE35: 20.99667934 | EF35: 21.12314011 | EG35: 21.26205038 | EH35: 21.41421177 | EI35: 21.58046372 | EJ35: 21.76168606 | EK35: 21.95879226 | EL35: 22.17270632 | EM35: 22.40431415 | EN35: 22.6543808 | EO35: 22.92342951 | EP35: 23.2115923 | EQ35: 23.5184726 | ER35: 23.84312215 | ES35: 24.18434866 | ET35: 24.54177418 | EU35: 24.91841309 | EV35: 25.32612284 | EX35: 20 | EY35: 97.65862554 | EZ35: 25.32612284 | FA35: 1300 | FB35: 20 | FC35: 80 | FE35: t = 256s | FF35: =C94 -> 204.684236 | FG35: =D94 -> 199.2389674 | FH35: 193.9409156 | FI35: 188.7898983 | FJ35: 183.7787055 | FK35: 178.9046519 | FL35: 174.1645032 | FM35: 169.5546572 | FN35: 165.0716556 | FO35: 160.7122188 | FP35: 156.473168 | FQ35: 152.3513938 | FR35: 148.3438589 | FS35: 144.4476041 | FT35: 140.6597493 | FU35: 136.9774905 | FV35: 133.3980967 | FW35: 129.9189076 | FX35: 126.5373314 | FY35: 123.2508431 | FZ35: 120.0569831 | GA35: 116.9533553 | GB35: 113.9376251 | GC35: 111.0075182 | GD35: 108.1608184 | GE35: 105.3953667 | GF35: 102.7090591 | GG35: 100.0998459 | GH35: 97.56572929 | GI35: 95.10476287 | GJ35: 92.71504978 | GK35: 90.39474154 | GL35: 88.14203676 | GM35: 85.95517991 | GN35: 83.83246015 | GO35: 81.7722101 | GP35: 79.77280478 | GQ35: 77.83266047 | GR35: 75.9502337 | GS35: 74.12402015 | GT35: 72.35255371 | GU35: 70.6344055 | GV35: 68.9681829 | GW35: 67.35252867 | GX35: 65.78612008 | GY35: 64.26766801 | GZ35: 62.79591613 | HA35: 61.36964012 | HB35: 59.98764688 | HC35: 58.64877373 | HD35: 57.35188774 | HE35: 56.09588496 | HF35: 54.87968978 | HG35: 53.70225419 | HH35: 52.56255721 | HI35: 51.45960419 | HJ35: 50.39242624 | HK35: 49.36007961 | HL35: 48.36164512 | HM35: 47.39622763 | HN35: 46.46295544 | HO35: 45.56097981 | HP35: 44.68947444 | HQ35: 43.84763496 | HR35: 43.03467845 | HS35: =BP94 -> 42.24984301 | HT35: 41.49238723 | HU35: 40.76158985 | HV35: 40.05674923 | HW35: 39.37718303 | HX35: 38.72222772 | HY35: 38.09123828 | HZ35: 37.48358774 | IA35: 36.89866686 | IB35: 36.33588375 | IC35: 35.79466354 | ID35: 35.27444802 | IE35: 34.77469536 | IF35: 34.29487972 | IG35: 33.83449101 | IH35: 33.39303455 | II35: 32.97003079 | IJ35: 32.56501504 | IK35: 32.17753718 | IL35: 31.80716139 | IM35: 31.45346592 | IN35: 31.1160428 | IO35: 30.79449765 | IP35: 30.48844939 | IQ35: 30.19753003 | IR35: 29.92138447 | IS35: 29.65967026 | IT35: 29.41205741 | IU35: 29.17822816 | IV35: 28.95787684 | IW35: 28.75070961 | IX35: 28.55644434 | IY35: 28.37481039 | IZ35: 28.20554848 | JA35: 28.0484105 | JB35: 27.90315934 | JC35: 27.76956878 | JD35: 27.6474233 | JE35: 27.53651796 | JF35: 27.43665829 | JG35: 27.34766009 | JH35: 27.2693494 | JI35: 27.20156229 | JJ35: 27.14414483 | JK35: 27.09695291 | JL35: 27.05985221 | JM35: 27.03271803 | JN35: 27.01543527 | JO35: 27.0078983 | JP35: 27.01001089 | JQ35: 27.02168616 | JR35: 27.04284649 | JS35: 27.07342345 | JT35: 27.11335777 | JU35: 27.16259927 | JV35: 27.22110683 | JW35: 27.28884833 | JX35: 27.36580064 | JY35: 27.45194958 | JZ35: 27.54728991 | KA35: 27.65182528 | KB35: 27.76556827 | KC35: 27.88854036 | KD35: 28.02077192 | KE35: =EB94 -> 28.16230225 | KF35: 28.31317958 | KG35: 28.47346106 | KH35: 28.64321288 | KI35: 28.82251019 | KJ35: 29.01143721 | KK35: 29.21008725 | KL35: 29.41856274 | KM35: 29.63697536 | KN35: 29.86544615 | KO35: 30.10410567 | KP35: 30.35309383 | KQ35: 30.61255945 | KR35: 30.88265994 | KS35: 31.16356353 | KT35: 31.45545456 | KU35: 31.75853108 | KV35: 32.07296882 | KW35: 32.39890851 | KX35: 32.73681186 | KY35: 33.08665041
A36: 24 | C36: 104.9363631 | D36: 98.99520652 | E36: 93.22475706 | F36: 87.76883244 | G36: 82.64753695 | H36: 77.83954921 | I36: 73.31705246 | J36: 69.05769547 | K36: 65.04647277 | L36: 61.27395999 | M36: 57.73384643 | N36: 54.42090896 | O36: 51.32971167 | P36: 48.45395578 | Q36: 45.78629246 | R36: 43.31841226 | S36: 41.04126635 | T36: 38.94532337 | U36: 37.02080705 | V36: 35.2578897 | W36: 33.64683562 | X36: 32.17809945 | Y36: 30.84238857 | Z36: 29.63070017 | AA36: 28.53434188 | AB36: 27.54494323 | AC36: 26.65446295 | AD36: 25.85519486 | AE36: 25.13977409 | AF36: 24.50118373 | AG36: 23.93276173 | AH36: 23.42820743 | AI36: 22.98158672 | AJ36: 22.58733542 | AK36: 22.24026009 | AL36: 21.93553598 | AM36: 21.66870211 | AN36: 21.43565326 | AO36: 21.23262931 | AP36: 21.05620206 | AQ36: 20.90326005 | AR36: 20.77099165 | AS36: 20.65686702 | AT36: 20.55861928 | AU36: 20.47422526 | AV36: 20.40188624 | AW36: 20.340009 | AX36: 20.28718736 | AY36: 20.2421845 | AZ36: 20.20391611 | BA36: 20.17143467 | BB36: 20.14391464 | BC36: 20.12063891 | BD36: 20.10098631 | BE36: 20.08442022 | BF36: 20.07047826 | BG36: 20.05876304 | BH36: 20.04893383 | BI36: 20.04069919 | BJ36: 20.03381034 | BK36: 20.02805545 | BL36: 20.02325447 | BM36: 20.01925471 | BN36: 20.0159269 | BO36: 20.01316186 | BP36: 20.01086751 | BQ36: 20.00896636 | BR36: 20.00739332 | BS36: 20.00609382 | BT36: 20.0050222 | BU36: 20.00414035 | BV36: 20.00341652 | BW36: 20.00282439 | BX36: 20.00234214 | BY36: 20.00195184 | BZ36: 20.0016388 | CA36: 20.00139113 | CB36: 20.00119927 | CC36: 20.00105574 | CD36: 20.00095483 | CE36: 20.00089238 | CF36: 20.00086568 | CG36: 20.0008733 | CH36: 20.00091507 | CI36: 20.00099201 | CJ36: 20.00110638 | CK36: 20.0012617 | CL36: 20.00146281 | CM36: 20.00171604 | CN36: 20.00202931 | CO36: 20.00241238 | CP36: 20.00287702 | CQ36: 20.00343735 | CR36: 20.00411014 | CS36: 20.00491519 | CT36: 20.00587578 | CU36: 20.00701918 | CV36: 20.00837717 | CW36: 20.00998673 | CX36: 20.01189068 | CY36: 20.01413852 | CZ36: 20.01678724 | DA36: 20.01990226 | DB36: 20.02355848 | DC36: 20.0278413 | DD36: 20.03284782 | DE36: 20.03868803 | DF36: 20.04548608 | DG36: 20.05338157 | DH36: 20.06253086 | DI36: 20.0731084 | DJ36: 20.08530799 | DK36: 20.09934399 | DL36: 20.11545248 | DM36: 20.13389227 | DN36: 20.15494575 | DO36: 20.17891961 | DP36: 20.20614533 | DQ36: 20.23697947 | DR36: 20.27180375 | DS36: 20.31102495 | DT36: 20.3550746 | DU36: 20.40440858 | DV36: 20.45950659 | DW36: 20.52087163 | DX36: 20.58902945 | DY36: 20.66452811 | DZ36: 20.74793747 | EA36: 20.83984867 | EB36: 20.94087326 | EC36: 21.05164171 | ED36: 21.17280078 | EE36: 21.30500911 | EF36: 21.44893028 | EG36: 21.60522277 | EH36: 21.7745264 | EI36: 21.95744572 | EJ36: 22.15453208 | EK36: 22.36626826 | EL36: 22.59306235 | EM36: 22.83526112 | EN36: 23.0931957 | EO36: 23.36727288 | EP36: 23.658117 | EQ36: 23.96674254 | ER36: 24.29467686 | ES36: 24.64382713 | ET36: 25.01564049 | EU36: 25.4086552 | EV36: 25.81273621 | EX36: 24 | EY36: 104.9363631 | EZ36: 25.81273621 | FA36: 1300 | FB36: 20 | FC36: 80 | FE36: t = 1024s | FF36: =C286 -> 220.2147763 | FG36: =D286 -> 214.8467165 | FH36: 209.6232351 | FI36: 204.5404606 | FJ36: 199.5946235 | FK36: 194.7820586 | FL36: 190.0991972 | FM36: 185.542568 | FN36: 181.1087931 | FO36: 176.7945853 | FP36: 172.5967465 | FQ36: 168.5121646 | FR36: 164.5378115 | FS36: 160.6707409 | FT36: 156.9080859 | FU36: 153.2470573 | FV36: 149.6849408 | FW36: 146.2190958 | FX36: 142.8469529 | FY36: 139.5660122 | FZ36: 136.3738414 | GA36: 133.268074 | GB36: 130.2464076 | GC36: 127.3066021 | GD36: 124.4464781 | GE36: 121.6639153 | GF36: 118.9568509 | GG36: 116.3232779 | GH36: 113.761244 | GI36: 111.2688499 | GJ36: 108.8442478 | GK36: 106.4856403 | GL36: 104.1912787 | GM36: 101.9594622 | GN36: 99.78853623 | GO36: 97.6768913 | GP36: 95.62296195 | GQ36: 93.62522547 | GR36: 91.68220083 | GS36: 89.79244753 | GT36: 87.95456456 | GU36: 86.16718936 | GV36: 84.42899682 | GW36: 82.73869828 | GX36: 81.09504057 | GY36: 79.4968051 | GZ36: 77.94280696 | HA36: 76.43189401 | HB36: 74.96294605 | HC36: 73.53487399 | HD36: 72.14661904 | HE36: 70.79715192 | HF36: 69.48547209 | HG36: 68.21060703 | HH36: 66.97161149 | HI36: 65.76756683 | HJ36: 64.5975803 | HK36: 63.46078438 | HL36: 62.35633618 | HM36: 61.28341675 | HN36: 60.24123055 | HO36: 59.22900477 | HP36: 58.24598883 | HQ36: 57.29145381 | HR36: 56.36469186 | HS36: =BP286 -> 55.46501576 | HT36: 54.59175833 | HU36: 53.74427198 | HV36: 52.92192821 | HW36: 52.12411717 | HX36: 51.35024717 | HY36: 50.59974429 | HZ36: 49.87205189 | IA36: 49.16663027 | IB36: 48.48295621 | IC36: 47.82052261 | ID36: 47.17883813 | IE36: 46.55742677 | IF36: 45.95582758 | IG36: 45.37359429 | IH36: 44.81029496 | II36: 44.26551171 | IJ36: 43.73884036 | IK36: 43.22989015 | IL36: 42.73828346 | IM36: 42.26365553 | IN36: 41.80565415 | IO36: 41.36393946 | IP36: 40.93818366 | IQ36: 40.52807076 | IR36: 40.13329639 | IS36: 39.75356751 | IT36: 39.38860226 | IU36: 39.03812969 | IV36: 38.70188962 | IW36: 38.37963239 | IX36: 38.07111871 | IY36: 37.77611947 | IZ36: 37.49441557 | JA36: 37.22579778 | JB36: 36.97006654 | JC36: 36.72703185 | JD36: 36.49651312 | JE36: 36.27833903 | JF36: 36.07234739 | JG36: 35.87838508 | JH36: 35.69630784 | JI36: 35.52598024 | JJ36: 35.36727557 | JK36: 35.22007571 | JL36: 35.08427107 | JM36: 34.9597605 | JN36: 34.84645123 | JO36: 34.74425876 | JP36: 34.65310687 | JQ36: 34.57292749 | JR36: 34.50366067 | JS36: 34.44525458 | JT36: 34.39766541 | JU36: 34.36085738 | JV36: 34.33480268 | JW36: 34.31948149 | JX36: 34.31488192 | JY36: 34.32100004 | JZ36: 34.33783985 | KA36: 34.36541331 | KB36: 34.40374032 | KC36: 34.45284874 | KD36: 34.51277445 | KE36: =EB286 -> 34.58356131 | KF36: 34.66526125 | KG36: 34.75793428 | KH36: 34.86164853 | KI36: 34.97648034 | KJ36: 35.10251425 | KK36: 35.23984313 | KL36: 35.38856822 | KM36: 35.54879918 | KN36: 35.72065422 | KO36: 35.90426015 | KP36: 36.0997525 | KQ36: 36.3072756 | KR36: 36.5269827 | KS36: 36.75903607 | KT36: 37.00360716 | KU36: 37.26087662 | KV36: 37.53103465 | KW36: 37.81428081 | KX36: 38.11082457 | KY36: 38.42088508
A37: 28 | C37: 110.8008391 | D37: 104.8888373 | E37: 99.34215623 | F37: 94.02432538 | G37: 88.91696479 | H37: 84.03479189 | I37: 79.39322101 | J37: 74.9994339 | K37: 70.85256526 | L37: 66.94645032 | M37: 63.27230981 | N37: 59.82059138 | O37: 56.5819544 | P37: 53.54763456 | Q37: 50.70944641 | R37: 48.05962357 | S37: 45.5906238 | T37: 43.29496581 | U37: 41.16512317 | V37: 39.19347629 | W37: 37.3723113 | X37: 35.69385107 | Y37: 34.1503042 | Z37: 32.73392098 | AA37: 31.43704843 | AB37: 30.25217978 | AC37: 29.17199626 | AD37: 28.18940048 | AE37: 27.2975422 | AF37: 26.48983727 | AG37: 25.75998103 | AH37: 25.10195742 | AI37: 24.51004459 | AJ37: 23.97881791 | AK37: 23.50315074 | AL37: 23.07821356 | AM37: 22.69947143 | AN37: 22.36268005 | AO37: 22.06388054 | AP37: 21.79939283 | AQ37: 21.56580793 | AR37: 21.35997903 | AS37: 21.17901155 | AT37: 21.02025234 | AU37: 20.88127806 | AV37: 20.75988303 | AW37: 20.65406656 | AX37: 20.56202013 | AY37: 20.48211435 | AZ37: 20.41288609 | BA37: 20.35302569 | BB37: 20.30136456 | BC37: 20.25686318 | BD37: 20.21859963 | BE37: 20.18575861 | BF37: 20.15762121 | BG37: 20.13355521 | BH37: 20.11300614 | BI37: 20.09548897 | BJ37: 20.0805805 | BK37: 20.06791238 | BL37: 20.05716475 | BM37: 20.04806055 | BN37: 20.0403603 | BO37: 20.03385749 | BP37: 20.02837443 | BQ37: 20.02375857 | BR37: 20.01987926 | BS37: 20.01662479 | BT37: 20.01389997 | BU37: 20.01162381 | BV37: 20.00972764 | BW37: 20.0081534 | BX37: 20.00685223 | BY37: 20.00578313 | BZ37: 20.00491197 | CA37: 20.00421052 | CB37: 20.00365569 | CC37: 20.0032289 | CD37: 20.00291553 | CE37: 20.00270445 | CF37: 20.00258775 | CG37: 20.0025604 | CH37: 20.00262012 | CI37: 20.00276719 | CJ37: 20.00300448 | CK37: 20.00333738 | CL37: 20.00377387 | CM37: 20.00432468 | CN37: 20.00500339 | CO37: 20.0058267 | CP37: 20.00681468 | CQ37: 20.00799111 | CR37: 20.00938383 | CS37: 20.01102521 | CT37: 20.0129526 | CU37: 20.01520888 | CV37: 20.01784305 | CW37: 20.02091086 | CX37: 20.02447551 | CY37: 20.02860836 | CZ37: 20.03338974 | DA37: 20.03890971 | DB37: 20.04526895 | DC37: 20.05257958 | DD37: 20.06096605 | DE37: 20.07056602 | DF37: 20.08153124 | DG37: 20.09402835 | DH37: 20.10823976 | DI37: 20.12436438 | DJ37: 20.14261836 | DK37: 20.16323572 | DL37: 20.18646897 | DM37: 20.21258958 | DN37: 20.2418884 | DO37: 20.27467601 | DP37: 20.31128291 | DQ37: 20.35205966 | DR37: 20.39737694 | DS37: 20.44762539 | DT37: 20.50321539 | DU37: 20.56457661 | DV37: 20.63215734 | DW37: 20.70642349 | DX37: 20.78785723 | DY37: 20.87695517 | DZ37: 20.97422594 | EA37: 21.0801873 | EB37: 21.19536259 | EC37: 21.32027691 | ED37: 21.45545315 | EE37: 21.60140862 | EF37: 21.75865285 | EG37: 21.9276877 | EH37: 22.10901078 | EI37: 22.30312288 | EJ37: 22.51053941 | EK37: 22.73180406 | EL37: 22.96749995 | EM37: 23.21824933 | EN37: 23.48468794 | EO37: 23.7673959 | EP37: 24.06676872 | EQ37: 24.38282941 | ER37: 24.71503669 | ES37: 25.06227339 | ET37: 25.42347412 | EU37: 25.7998977 | EV37: 26.20108277 | EX37: 28 | EY37: 110.8008391 | EZ37: 26.20108277 | FA37: 1300 | FB37: 20 | FC37: 80
A38: 32 | C38: 116.5036552 | D38: 110.6200045 | E38: 104.9042535 | F38: 99.4726311 | G38: 94.32754376 | H38: 89.44401896 | I38: 84.79930652 | J38: 80.37911844 | K38: 76.17592804 | L38: 72.18574768 | M38: 68.40558935 | N38: 64.83202191 | O38: 61.46060707 | P38: 58.2858695 | Q38: 55.30151496 | R38: 52.50071239 | S38: 49.87634382 | T38: 47.42118656 | U38: 45.12802648 | V38: 42.98971717 | W38: 40.9992033 | X38: 39.14952505 | Y38: 37.43381563 | Z38: 35.84529947 | AA38: 34.37729497 | AB38: 33.02322267 | AC38: 31.77661828 | AD38: 30.63114911 | AE38: 29.5806322 | AF38: 28.61905261 | AG38: 27.74058069 | AH38: 26.93958746 | AI38: 26.2106575 | AJ38: 25.54859931 | AK38: 24.94845298 | AL38: 24.4054954 | AM38: 23.91524316 | AN38: 23.4734534 | AO38: 23.07612289 | AP38: 22.71948558 | AQ38: 22.40000876 | AR38: 22.11438817 | AS38: 21.85954202 | AT38: 21.63260421 | AU38: 21.43091692 | AV38: 21.25202246 | AW38: 21.09365476 | AX38: 20.95373038 | AY38: 20.83033931 | AZ38: 20.72173553 | BA38: 20.62632742 | BB38: 20.5426683 | BC38: 20.46944682 | BD38: 20.40547766 | BE38: 20.34969236 | BF38: 20.3011304 | BG38: 20.25893059 | BH38: 20.22232288 | BI38: 20.19062046 | BJ38: 20.16321235 | BK38: 20.13955639 | BL38: 20.11917269 | BM38: 20.10163751 | BN38: 20.0865776 | BO38: 20.07366497 | BP38: 20.06261208 | BQ38: 20.05316748 | BR38: 20.04511179 | BS38: 20.03825412 | BT38: 20.03242875 | BU38: 20.02749225 | BV38: 20.02332083 | BW38: 20.01980803 | BX38: 20.01686261 | BY38: 20.01440675 | BZ38: 20.01237446 | CA38: 20.01071012 | CB38: 20.00936736 | CC38: 20.00830794 | CD38: 20.00750088 | CE38: 20.00692175 | CF38: 20.00655199 | CG38: 20.00637847 | CH38: 20.00639306 | CI38: 20.00659233 | CJ38: 20.00697736 | CK38: 20.0075536 | CL38: 20.00833086 | CM38: 20.0093233 | CN38: 20.01054951 | CO38: 20.01203273 | CP38: 20.01380101 | CQ38: 20.0158875 | CR38: 20.01833077 | CS38: 20.0211752 | CT38: 20.02447137 | CU38: 20.02827655 | CV38: 20.03265517 | CW38: 20.03767936 | CX38: 20.04342954 | CY38: 20.04999496 | CZ38: 20.05747431 | DA38: 20.06597638 | DB38: 20.07562062 | DC38: 20.08653784 | DD38: 20.09887074 | DE38: 20.11277459 | DF38: 20.12841779 | DG38: 20.14598243 | DH38: 20.1656648 | DI38: 20.18767592 | DJ38: 20.21224194 | DK38: 20.23960451 | DL38: 20.27002111 | DM38: 20.30376528 | DN38: 20.34112674 | DO38: 20.38241142 | DP38: 20.42794135 | DQ38: 20.47805445 | DR38: 20.53310408 | DS38: 20.59345854 | DT38: 20.65950022 | DU38: 20.73162474 | DV38: 20.81023981 | DW38: 20.89576397 | DX38: 20.98862535 | DY38: 21.08926031 | DZ38: 21.19811232 | EA38: 21.315631 | EB38: 21.44227157 | EC38: 21.57849461 | ED38: 21.72476622 | EE38: 21.88155814 | EF38: 22.04934748 | EG38: 22.22861502 | EH38: 22.41984112 | EI38: 22.62349772 | EJ38: 22.84003561 | EK38: 23.06986699 | EL38: 23.31334572 | EM38: 23.57075222 | EN38: 23.84229575 | EO38: 24.1281541 | EP38: 24.42857491 | EQ38: 24.7440536 | ER38: 25.07555876 | ES38: 25.4246503 | ET38: 25.79304035 | EU38: 26.18051668 | EV38: 26.57888443 | EX38: 32 | EY38: 116.5036552 | EZ38: 26.57888443 | FA38: 1300 | FB38: 20 | FC38: 80
A39: 36 | C39: 121.3427017 | D39: 115.4831079 | E39: 109.9356364 | F39: 104.587543 | G39: 99.43430345 | H39: 94.49268112 | I39: 89.77405522 | J39: 85.28057276 | K39: 81.0079964 | L39: 76.9491493 | M39: 73.096222 | N39: 69.44186806 | O39: 65.97948465 | P39: 62.70308214 | Q39: 59.60702119 | R39: 56.68576788 | S39: 53.93372592 | T39: 51.34515205 | U39: 48.91413712 | V39: 46.63462912 | W39: 44.50047684 | X39: 42.50547937 | Y39: 40.64343216 | Z39: 38.90816568 | AA39: 37.29357575 | AB39: 35.79364646 | AC39: 34.40246745 | AD39: 33.11424729 | AE39: 31.92332439 | AF39: 30.8241766 | AG39: 29.81143007 | AH39: 28.87986765 | AI39: 28.02443682 | AJ39: 27.24025719 | AK39: 26.5226272 | AL39: 25.86702992 | AM39: 25.26913783 | AN39: 24.72481637 | AO39: 24.23012625 | AP39: 23.78132455 | AQ39: 23.37486459 | AR39: 23.00739463 | AS39: 22.67575552 | AT39: 22.37697742 | AU39: 22.10827564 | AV39: 21.86704576 | AW39: 21.65085814 | AX39: 21.45745184 | AY39: 21.28472819 | AZ39: 21.13074397 | BA39: 20.99370434 | BB39: 20.87195558 | BC39: 20.76397779 | BD39: 20.66837741 | BE39: 20.58387989 | BF39: 20.50932232 | BG39: 20.44364625 | BH39: 20.38589059 | BI39: 20.3351848 | BJ39: 20.29074218 | BK39: 20.25185354 | BL39: 20.21788103 | BM39: 20.18825236 | BN39: 20.16245523 | BO39: 20.14003217 | BP39: 20.12057561 | BQ39: 20.10372332 | BR39: 20.08915418 | BS39: 20.07658422 | BT39: 20.06576297 | BU39: 20.05647014 | BV39: 20.04851258 | BW39: 20.04172147 | BX39: 20.03594984 | BY39: 20.03107027 | BZ39: 20.02697285 | CA39: 20.02356338 | CB39: 20.02076176 | CC39: 20.01850055 | CD39: 20.01672373 | CE39: 20.01538561 | CF39: 20.01444994 | CG39: 20.01388908 | CH39: 20.0136834 | CI39: 20.01382067 | CJ39: 20.01429571 | CK39: 20.01511002 | CL39: 20.01627158 | CM39: 20.01779471 | CN39: 20.01969999 | CO39: 20.02201426 | CP39: 20.02477075 | CQ39: 20.02800917 | CR39: 20.0317759 | CS39: 20.03612426 | CT39: 20.04111477 | CU39: 20.04681548 | CV39: 20.05330233 | CW39: 20.0606595 | CX39: 20.06897987 | CY39: 20.07836538 | CZ39: 20.08892749 | DA39: 20.10078763 | DB39: 20.11407762 | DC39: 20.12894009 | DD39: 20.1455289 | DE39: 20.16400958 | DF39: 20.18455964 | DG39: 20.20736894 | DH39: 20.23263999 | DI39: 20.26058817 | DJ39: 20.29144195 | DK39: 20.325443 | DL39: 20.36284624 | DM39: 20.40391981 | DN39: 20.44894497 | DO39: 20.49821588 | DP39: 20.55203934 | DQ39: 20.61073441 | DR39: 20.67463199 | DS39: 20.74407429 | DT39: 20.81941433 | DU39: 20.90101529 | DV39: 20.98924995 | DW39: 21.08450005 | DX39: 21.18715555 | DY39: 21.29761391 | DZ39: 21.41627908 | EA39: 21.54356032 | EB39: 21.67987055 | EC39: 21.82562424 | ED39: 21.98123469 | EE39: 22.14711081 | EF39: 22.32365366 | EG39: 22.51125341 | EH39: 22.71028775 | EI39: 22.92112328 | EJ39: 23.14412144 | EK39: 23.3796503 | EL39: 23.62810176 | EM39: 23.88990987 | EN39: 24.16555996 | EO39: 24.45556874 | EP39: 24.76040748 | EQ39: 25.08034024 | ER39: 25.41518284 | ES39: 25.76410417 | ET39: 26.12589765 | EU39: 26.50085295 | EV39: 26.8968496 | EX39: 36 | EY39: 121.3427017 | EZ39: 26.8968496 | FA39: 1300 | FB39: 20 | FC39: 80 | FF39: X | FG39: CRANK-NICOLSON | FH39: EULERO ESPLICITO | FI39: SOLUZIONE ANALITICA
A40: 40 | C40: 126.0482599 | D40: 120.2120594 | E40: 114.5414353 | F40: 109.1321527 | G40: 103.9764562 | H40: 99.04976596 | I40: 94.33443619 | J40: 89.82155691 | K40: 85.50732347 | L40: 81.38961617 | M40: 77.46604216 | N40: 73.73321321 | O40: 70.18673556 | P40: 66.82148753 | Q40: 63.63193527 | R40: 60.6123767 | S40: 57.75708922 | T40: 55.06039699 | U40: 52.5166861 | V40: 50.12039386 | W40: 47.86599082 | X40: 45.7479664 | Y40: 43.76082273 | Z40: 41.89907696 | AA40: 40.15727061 | AB40: 38.5299835 | AC40: 37.01184986 | AD40: 35.59757494 | AE40: 34.28195076 | AF40: 33.05987039 | AG40: 31.92634041 | AH40: 30.87649157 | AI40: 29.90558782 | AJ40: 29.0090339 | AK40: 28.18238156 | AL40: 27.42133488 | AM40: 26.72175444 | AN40: 26.07966075 | AO40: 25.49123684 | AP40: 24.95282997 | AQ40: 24.46095268 | AR40: 24.01228298 | AS40: 23.60366388 | AT40: 23.23210213 | AU40: 22.89476632 | AV40: 22.58898428 | AW40: 22.31223995 | AX40: 22.06216963 | AY40: 21.83655783 | AZ40: 21.63333267 | BA40: 21.45056087 | BB40: 21.28644253 | BC40: 21.13930565 | BD40: 21.00760044 | BE40: 20.88989357 | BF40: 20.7848623 | BG40: 20.69128864 | BH40: 20.60805347 | BI40: 20.53413076 | BJ40: 20.46858186 | BK40: 20.41054998 | BL40: 20.35925468 | BM40: 20.31398669 | BN40: 20.27410279 | BO40: 20.23902101 | BP40: 20.20821596 | BQ40: 20.18121441 | BR40: 20.15759115 | BS40: 20.13696504 | BT40: 20.11899531 | BU40: 20.10337814 | BV40: 20.08984339 | BW40: 20.07815168 | BX40: 20.06809162 | BY40: 20.05947728 | BZ40: 20.05214586 | CA40: 20.04595564 | CB40: 20.04078403 | CC40: 20.03652587 | CD40: 20.0330919 | CE40: 20.03040738 | CF40: 20.02841089 | CG40: 20.02705328 | CH40: 20.02629673 | CI40: 20.026114 | CJ40: 20.02648774 | CK40: 20.02740994 | CL40: 20.02888151 | CM40: 20.03091189 | CN40: 20.0335188 | CO40: 20.03672809 | CP40: 20.04057358 | CQ40: 20.04509706 | CR40: 20.05034826 | CS40: 20.05638498 | CT40: 20.06327313 | CU40: 20.07108694 | CV40: 20.07990912 | CW40: 20.08983107 | CX40: 20.10095314 | CY40: 20.11338483 | CZ40: 20.12724511 | DA40: 20.14266262 | DB40: 20.159776 | DC40: 20.17873404 | DD40: 20.199696 | DE40: 20.2228318 | DF40: 20.24832219 | DG40: 20.27635889 | DH40: 20.30714478 | DI40: 20.34089389 | DJ40: 20.3778315 | DK40: 20.41819411 | DL40: 20.46222934 | DM40: 20.5101959 | DN40: 20.56236336 | DO40: 20.61901194 | DP40: 20.68043227 | DQ40: 20.74692506 | DR40: 20.81880065 | DS40: 20.89637863 | DT40: 20.9799872 | DU40: 21.06996256 | DV40: 21.16664815 | DW40: 21.27039373 | DX40: 21.38155437 | DY40: 21.50048936 | DZ40: 21.62756101 | EA40: 21.76313352 | EB40: 21.90757201 | EC40: 22.06124184 | ED40: 22.22450849 | EE40: 22.39773798 | EF40: 22.58129784 | EG40: 22.77555845 | EH40: 22.9808937 | EI40: 23.19767998 | EJ40: 23.42629146 | EK40: 23.66708969 | EL40: 23.92040658 | EM40: 24.18652228 | EN40: 24.4656459 | EO40: 24.75791633 | EP40: 25.06345311 | EQ40: 25.38249384 | ER40: 25.71563374 | ES40: 26.06407942 | ET40: 26.42952107 | EU40: 26.81246483 | EV40: 27.20615495 | EX40: 40 | EY40: 126.0482599 | EZ40: 27.20615495 | FA40: 1300 | FB40: 20 | FC40: 80 | FF40: 0 | FG40: 220.2049968
A41: 44 | C41: 130.163028 | D41: 124.3472837 | E41: 118.8084755 | F41: 113.4517983 | G41: 108.2807249 | H41: 103.3110968 | I41: 98.5502023 | J41: 93.99672057 | K41: 89.64487829 | L41: 85.48772458 | M41: 81.51874252 | N41: 77.73227472 | O41: 74.12336722 | P41: 70.68744545 | Q41: 67.42002986 | R41: 64.31655866 | S41: 61.37231272 | T41: 58.58241112 | U41: 55.94184405 | V41: 53.44551814 | W41: 51.08829958 | X41: 48.86504833 | Y41: 46.77064252 | Z41: 44.79999469 | AA41: 42.94806239 | AB41: 41.20985575 | AC41: 39.58044391 | AD41: 38.05496136 | AE41: 36.62861483 | AF41: 35.2966908 | AG41: 34.05456342 | AH41: 32.89770252 | AI41: 31.82168151 | AJ41: 30.82218478 | AK41: 29.89501447 | AL41: 29.03609644 | AM41: 28.24148538 | AN41: 27.50736913 | AO41: 26.83007209 | AP41: 26.20605779 | AQ41: 25.63193083 | AR41: 25.10443793 | AS41: 24.62046844 | AT41: 24.17705419 | AU41: 23.77136874 | AV41: 23.40072612 | AW41: 23.06257903 | AX41: 22.75451661 | AY41: 22.47426176 | AZ41: 22.2196681 | BA41: 21.98871656 | BB41: 21.77951166 | BC41: 21.59027754 | BD41: 21.41935375 | BE41: 21.2651909 | BF41: 21.12634608 | BG41: 21.00147827 | BH41: 20.8893436 | BI41: 20.78879068 | BJ41: 20.69875578 | BK41: 20.6182582 | BL41: 20.54639557 | BM41: 20.48233929 | BN41: 20.42533007 | BO41: 20.37467358 | BP41: 20.32973623 | BQ41: 20.28994111 | BR41: 20.25476411 | BS41: 20.22373016 | BT41: 20.1964097 | BU41: 20.17241533 | BV41: 20.1513986 | BW41: 20.13304706 | BX41: 20.11708141 | BY41: 20.10325295 | BZ41: 20.09134108 | CA41: 20.08115111 | CB41: 20.07251217 | CC41: 20.06527532 | CD41: 20.0593118 | CE41: 20.05451146 | CF41: 20.05078136 | CG41: 20.04804449 | CH41: 20.0462386 | CI41: 20.04531525 | CJ41: 20.04523886 | CK41: 20.04598601 | CL41: 20.04754473 | CM41: 20.04991395 | CN41: 20.05310303 | CO41: 20.05713137 | CP41: 20.06202813 | CQ41: 20.06783193 | CR41: 20.07459075 | CS41: 20.08236173 | CT41: 20.09121117 | CU41: 20.10121447 | CV41: 20.1124561 | CW41: 20.12502971 | CX41: 20.13903814 | CY41: 20.15459351 | CZ41: 20.17181732 | DA41: 20.19084052 | DB41: 20.21180363 | DC41: 20.23485683 | DD41: 20.26016005 | DE41: 20.287883 | DF41: 20.31820528 | DG41: 20.35131637 | DH41: 20.38741564 | DI41: 20.42671236 | DJ41: 20.46942557 | DK41: 20.51578407 | DL41: 20.56602622 | DM41: 20.62039979 | DN41: 20.67916169 | DO41: 20.74257777 | DP41: 20.81092238 | DQ41: 20.88447806 | DR41: 20.96353502 | DS41: 21.04839071 | DT41: 21.13934921 | DU41: 21.23672068 | DV41: 21.3408208 | DW41: 21.45197016 | DX41: 21.57049375 | DY41: 21.69672044 | DZ41: 21.83098254 | EA41: 21.97361534 | EB41: 22.12495657 | EC41: 22.28534565 | ED41: 22.45512256 | EE41: 22.6346261 | EF41: 22.82419153 | EG41: 23.02414754 | EH41: 23.23481308 | EI41: 23.45649511 | EJ41: 23.68948889 | EK41: 23.93408334 | EL41: 24.19057347 | EM41: 24.45928027 | EN41: 24.74057344 | EO41: 25.0348822 | EP41: 25.34266527 | EQ41: 25.66429781 | ER41: 25.99984191 | ES41: 26.34875582 | ET41: 26.70989937 | EU41: 27.08300285 | EV41: 27.47469047 | EX41: 44 | EY41: 130.163028 | EZ41: 27.47469047 | FA41: 1300 | FB41: 20 | FC41: 80 | FF41: 0.0006711409396 | FG41: 214.8368884
A42: 48 | C42: 134.164262 | D42: 128.3684094 | E42: 122.736156 | F42: 117.3474519 | G42: 112.1886045 | H42: 107.236973 | I42: 102.4791789 | J42: 97.90970345 | K42: 93.52643086 | L42: 89.32762478 | M42: 85.31067709 | N42: 81.47195044 | O42: 77.8070696 | P42: 74.31127922 | Q42: 70.97970861 | R42: 67.80751455 | S42: 64.78992958 | T42: 61.92225611 | U42: 59.19983922 | V42: 56.61803915 | W42: 54.1722129 | X42: 51.85770728 | Y42: 49.66986143 | Z42: 47.60401585 | AA42: 45.65552459 | AB42: 43.81976843 | AC42: 42.09216739 | AD42: 40.468192 | AE42: 38.94337305 | AF42: 37.51331009 | AG42: 36.1736787 | AH42: 34.92023707 | AI42: 33.74883186 | AJ42: 32.65540368 | AK42: 31.63599214 | AL42: 30.68674048 | AM42: 29.80389992 | AN42: 28.98383344 | AO42: 28.22301916 | AP42: 27.51805325 | AQ42: 26.8656522 | AR42: 26.26265461 | AS42: 25.70602248 | AT42: 25.19284184 | AU42: 24.720323 | AV42: 24.2858002 | AW42: 23.88673088 | AX42: 23.52069444 | AY42: 23.18539069 | AZ42: 22.87863785 | BA42: 22.5983703 | BB42: 22.34263591 | BC42: 22.10959327 | BD42: 21.89750854 | BE42: 21.70475218 | BF42: 21.52979548 | BG42: 21.37120693 | BH42: 21.22764855 | BI42: 21.09787204 | BJ42: 20.98071496 | BK42: 20.87509682 | BL42: 20.78001518 | BM42: 20.6945418 | BN42: 20.61781877 | BO42: 20.54905475 | BP42: 20.48752122 | BQ42: 20.43254888 | BR42: 20.38352415 | BS42: 20.33988568 | BT42: 20.30112118 | BU42: 20.26676414 | BV42: 20.23639091 | BW42: 20.20961778 | BX42: 20.18609826 | BY42: 20.16552052 | BZ42: 20.14760491 | CA42: 20.13210177 | CB42: 20.11878923 | CC42: 20.10747123 | CD42: 20.09797576 | CE42: 20.09015307 | CF42: 20.08387417 | CG42: 20.07902941 | CH42: 20.07552714 | CI42: 20.07329257 | CJ42: 20.0722667 | CK42: 20.07240536 | CL42: 20.07367838 | CM42: 20.07606884 | CN42: 20.0795724 | CO42: 20.08419674 | CP42: 20.08996103 | CQ42: 20.09689557 | CR42: 20.10504137 | CS42: 20.11444987 | CT42: 20.12518269 | CU42: 20.13731142 | CV42: 20.15091746 | CW42: 20.16609191 | CX42: 20.18293541 | CY42: 20.20155812 | CZ42: 20.22207962 | DA42: 20.24462887 | DB42: 20.26934418 | DC42: 20.29637314 | DD42: 20.3258726 | DE42: 20.35800858 | DF42: 20.39295626 | DG42: 20.43089988 | DH42: 20.47203263 | DI42: 20.51655654 | DJ42: 20.56468233 | DK42: 20.61662925 | DL42: 20.67262489 | DM42: 20.73290491 | DN42: 20.79771281 | DO42: 20.8672996 | DP42: 20.94192355 | DQ42: 21.02184978 | DR42: 21.10734991 | DS42: 21.1987017 | DT42: 21.29618859 | DU42: 21.40009929 | DV42: 21.51072732 | DW42: 21.62837039 | DX42: 21.7533299 | DY42: 21.88591016 | DZ42: 22.0264176 | EA42: 22.17515992 | EB42: 22.33244513 | EC42: 22.49858069 | ED42: 22.67387291 | EE42: 22.85862673 | EF42: 23.05314625 | EG42: 23.25773598 | EH42: 23.47270283 | EI42: 23.69835796 | EJ42: 23.9350172 | EK42: 24.18299767 | EL42: 24.44260774 | EM42: 24.7141285 | EN42: 24.99778872 | EO42: 25.29374455 | EP42: 25.60209076 | EQ42: 25.92294862 | ER42: 26.25667794 | ES42: 26.60418905 | ET42: 26.96703983 | EU42: 27.34615687 | EV42: 27.73589664 | EX42: 48 | EY42: 134.164262 | EZ42: 27.73589664 | FA42: 1300 | FB42: 20 | FC42: 80 | FF42: 0.001342281879 | FG42: 209.6133695
A43: 52 | C43: 137.7328524 | D43: 131.9547408 | E43: 126.4286256 | F43: 121.0737482 | G43: 115.8982144 | H43: 110.9158292 | I43: 106.1304424 | J43: 101.5385563 | K43: 97.13391787 | L43: 92.91024493 | M43: 88.8621518 | N43: 84.98510546 | O43: 81.27506516 | P43: 77.72814192 | Q43: 74.3403883 | R43: 71.10771398 | S43: 68.02588376 | T43: 65.09055429 | U43: 62.29731941 | V43: 59.64174848 | W43: 57.11941273 | X43: 54.72590058 | Y43: 52.45682537 | Z43: 50.30782894 | AA43: 48.27458388 | AB43: 46.3527962 | AC43: 44.538209 | AD43: 42.82660742 | AE43: 41.21382449 | AF43: 39.69574753 | AG43: 38.26832477 | AH43: 36.9275718 | AI43: 35.66957762 | AJ43: 34.49051028 | AK43: 33.38662201 | AL43: 32.35425372 | AM43: 31.38983911 | AN43: 30.48990822 | AO43: 29.65109052 | AP43: 28.8701176 | AQ43: 28.14382544 | AR43: 27.46915621 | AS43: 26.84315973 | AT43: 26.2629945 | AU43: 25.72592834 | AV43: 25.22933865 | AW43: 24.77071228 | AX43: 24.34764505 | AY43: 23.95784095 | AZ43: 23.59911094 | BA43: 23.26937155 | BB43: 22.96664309 | BC43: 22.68904768 | BD43: 22.43480702 | BE43: 22.20223994 | BF43: 21.9897598 | BG43: 21.79587171 | BH43: 21.61916958 | BI43: 21.45833317 | BJ43: 21.3121249 | BK43: 21.17938675 | BL43: 21.05903697 | BM43: 20.95006692 | BN43: 20.85153773 | BO43: 20.76257713 | BP43: 20.68237619 | BQ43: 20.6101862 | BR43: 20.54531549 | BS43: 20.48712644 | BT43: 20.4350325 | BU43: 20.38849529 | BV43: 20.34702181 | BW43: 20.31016179 | BX43: 20.27750511 | BY43: 20.2486793 | BZ43: 20.22334726 | CA43: 20.20120497 | CB43: 20.18197946 | CC43: 20.16542674 | CD43: 20.15133003 | CE43: 20.13949794 | CF43: 20.12976289 | CG43: 20.1219796 | CH43: 20.11602367 | CI43: 20.11179031 | CJ43: 20.10919313 | CK43: 20.10816311 | CL43: 20.10864755 | CM43: 20.11060923 | CN43: 20.11402554 | CO43: 20.11888781 | CP43: 20.12520062 | CQ43: 20.13298122 | CR43: 20.14225902 | CS43: 20.1530751 | CT43: 20.16548184 | CU43: 20.17954254 | CV43: 20.19533109 | CW43: 20.21293171 | CX43: 20.23243868 | CY43: 20.25395612 | CZ43: 20.27759782 | DA43: 20.30348701 | DB43: 20.33175621 | DC43: 20.36254706 | DD43: 20.39601018 | DE43: 20.43230498 | DF43: 20.47159955 | DG43: 20.51407041 | DH43: 20.55990242 | DI43: 20.60928854 | DJ43: 20.66242963 | DK43: 20.71953429 | DL43: 20.78081854 | DM43: 20.84650563 | DN43: 20.91682578 | DO43: 20.99201582 | DP43: 21.07231896 | DQ43: 21.15798436 | DR43: 21.24926684 | DS43: 21.3464264 | DT43: 21.44972785 | DU43: 21.5594403 | DV43: 21.6758367 | DW43: 21.79919334 | DX43: 21.92978938 | DY43: 22.06790644 | DZ43: 22.21382819 | EA43: 22.36784012 | EB43: 22.53022931 | EC43: 22.70128432 | ED43: 22.88129484 | EE43: 23.07055121 | EF43: 23.26934334 | EG43: 23.47795883 | EH43: 23.69668028 | EI43: 23.92578218 | EJ43: 24.16552827 | EK43: 24.41617179 | EL43: 24.67796137 | EM43: 24.9511558 | EN43: 25.23604791 | EO43: 25.53298973 | EP43: 25.84239545 | EQ43: 26.16467634 | ER43: 26.50004955 | ES43: 26.84821647 | ET43: 27.20818114 | EU43: 27.57934992 | EV43: 27.96736361 | EX43: 52 | EY43: 137.7328524 | EZ43: 27.96736361 | FA43: 1300 | FB43: 20 | FC43: 80 | FF43: 0.002013422819 | FG43: 204.5305348
A44: 56 | C44: 141.2029914 | D44: 135.4421313 | E44: 129.8431563 | F44: 124.4734518 | G44: 119.3159174 | H44: 114.3503528 | I44: 109.5667152 | J44: 104.9615304 | K44: 100.533297 | L44: 96.28008841 | M44: 92.19892794 | N44: 88.28599543 | O44: 84.53703177 | P44: 80.94765789 | Q44: 77.51354434 | R44: 74.23046275 | S44: 71.09427193 | T44: 68.10088155 | U44: 65.24621833 | V44: 62.52620485 | W44: 59.93675174 | X44: 57.47375987 | Y44: 55.13312836 | Z44: 52.91076473 | AA44: 50.80259512 | AB44: 48.80457323 | AC44: 46.91268782 | AD44: 45.12296902 | AE44: 43.43149351 | AF44: 41.83438936 | AG44: 40.32784037 | AH44: 38.90809041 | AI44: 37.5714476 | AJ44: 36.31428851 | AK44: 35.13306217 | AL44: 34.02429395 | AM44: 32.98458917 | AN44: 32.01063648 | AO44: 31.09921085 | AP44: 30.24717623 | AQ44: 29.45148789 | AR44: 28.70919434 | AS44: 28.01743896 | AT44: 27.37346117 | AU44: 26.77459739 | AV44: 26.21828159 | AW44: 25.70204553 | AX44: 25.22351872 | AY44: 24.78042805 | AZ44: 24.3705972 | BA44: 23.99194575 | BB44: 23.64248801 | BC44: 23.32033169 | BD44: 23.0236763 | BE44: 22.75081141 | BF44: 22.50011464 | BG44: 22.27004958 | BH44: 22.05916353 | BI44: 21.86608512 | BJ44: 21.68952182 | BK44: 21.52825741 | BL44: 21.38114928 | BM44: 21.2471258 | BN44: 21.12518358 | BO44: 21.01438472 | BP44: 20.91385408 | BQ44: 20.82277653 | BR44: 20.74039427 | BS44: 20.66600408 | BT44: 20.59895476 | BU44: 20.5386445 | BV44: 20.48451835 | BW44: 20.43606582 | BX44: 20.39281844 | BY44: 20.35434752 | BZ44: 20.32026191 | CA44: 20.29020588 | CB44: 20.26385713 | CC44: 20.24092484 | CD44: 20.22114784 | CE44: 20.20429287 | CF44: 20.19015299 | CG44: 20.17854595 | CH44: 20.16931286 | CI44: 20.16231675 | CJ44: 20.15744136 | CK44: 20.15458995 | CL44: 20.15368423 | CM44: 20.15466334 | CN44: 20.15748295 | CO44: 20.1621144 | CP44: 20.16854392 | CQ44: 20.1767719 | CR44: 20.18681227 | CS44: 20.19869191 | CT44: 20.21245007 | CU44: 20.22813791 | CV44: 20.24581801 | CW44: 20.26556404 | CX44: 20.28746027 | CY44: 20.31160134 | CZ44: 20.33809184 | DA44: 20.36704607 | DB44: 20.39858776 | DC44: 20.43284976 | DD44: 20.46997383 | DE44: 20.51011038 | DF44: 20.5534182 | DG44: 20.60006427 | DH44: 20.65022346 | DI44: 20.70407833 | DJ44: 20.76181885 | DK44: 20.82364216 | DL44: 20.88975228 | DM44: 20.96035981 | DN44: 21.03568169 | DO44: 21.11594083 | DP44: 21.20136583 | DQ44: 21.29219063 | DR44: 21.38865415 | DS44: 21.49099999 | DT44: 21.59947602 | DU44: 21.71433411 | DV44: 21.83582972 | DW44: 21.96422158 | DX44: 22.09977132 | DY44: 22.2427431 | DZ44: 22.39340308 | EA44: 22.55201894 | EB44: 22.71885917 | EC44: 22.89419243 | ED44: 23.07828671 | EE44: 23.27140887 | EF44: 23.47382442 | EG44: 23.68579808 | EH44: 23.90759527 | EI44: 24.13948446 | EJ44: 24.38173974 | EK44: 24.63464173 | EL44: 24.89847401 | EM44: 25.17351117 | EN44: 25.45999648 | EO44: 25.75811359 | EP44: 26.06797219 | EQ44: 26.38965202 | ER44: 26.72337113 | ES44: 27.06980787 | ET44: 27.43035152 | EU44: 27.80617068 | EV44: 28.19250546 | EX44: 56 | EY44: 141.2029914 | EZ44: 28.19250546 | FA44: 1300 | FB44: 20 | FC44: 80 | FF44: 0.002684563758 | FG44: 199.5846612
A45: 60 | C45: 144.3414118 | D45: 138.5961541 | E45: 133.0843703 | F45: 127.7365693 | G45: 122.5634457 | H45: 117.5764436 | I45: 112.7767188 | J45: 108.1595084 | K45: 103.7186301 | L45: 99.44854501 | M45: 95.34472345 | N45: 91.40332295 | O45: 87.62077679 | P45: 83.99351786 | Q45: 80.51786027 | R45: 77.18998725 | S45: 74.00598799 | T45: 70.96190422 | U45: 68.05376732 | V45: 65.27762092 | W45: 62.6295313 | X45: 60.10559012 | Y45: 57.70191399 | Z45: 55.41464359 | AA45: 53.23994405 | AB45: 51.1740069 | AC45: 49.21305346 | AD45: 47.35333921 | AE45: 45.59115857 | AF45: 43.92284989 | AG45: 42.3448002 | AH45: 40.85344972 | AI45: 39.445296 | AJ45: 38.1168978 | AK45: 36.86487857 | AL45: 35.68592974 | AM45: 34.57681375 | AN45: 33.53436683 | AO45: 32.55550155 | AP45: 31.63720918 | AQ45: 30.77656174 | AR45: 29.97071387 | AS45: 29.21690437 | AT45: 28.51245756 | AU45: 27.85478425 | AV45: 27.24138259 | AW45: 26.6698385 | AX45: 26.13782599 | AY45: 25.64310708 | AZ45: 25.18353159 | BA45: 24.75703664 | BB45: 24.36164597 | BC45: 23.99546901 | BD45: 23.65669977 | BE45: 23.34361558 | BF45: 23.05457562 | BG45: 22.78801932 | BH45: 22.54246463 | BI45: 22.31650614 | BJ45: 22.10881312 | BK45: 21.91812748 | BL45: 21.74326157 | BM45: 21.58309601 | BN45: 21.43657742 | BO45: 21.30271612 | BP45: 21.18058379 | BQ45: 21.06931117 | BR45: 20.96808565 | BS45: 20.876149 | BT45: 20.79279501 | BU45: 20.71736722 | BV45: 20.64925668 | BW45: 20.58789968 | BX45: 20.53277566 | BY45: 20.48340507 | BZ45: 20.43934731 | CA45: 20.40019881 | CB45: 20.36559104 | CC45: 20.33518876 | CD45: 20.30868821 | CE45: 20.28581543 | CF45: 20.26632469 | CG45: 20.24999692 | CH45: 20.23663831 | CI45: 20.22607891 | CJ45: 20.21817134 | CK45: 20.2127896 | CL45: 20.20982792 | CM45: 20.20919968 | CN45: 20.21083642 | CO45: 20.21468692 | CP45: 20.22071632 | CQ45: 20.2289053 | CR45: 20.23924937 | CS45: 20.25175813 | CT45: 20.26645466 | CU45: 20.2833749 | CV45: 20.3025671 | CW45: 20.32409131 | CX45: 20.3480189 | CY45: 20.37443211 | CZ45: 20.40342361 | DA45: 20.43509614 | DB45: 20.46956213 | DC45: 20.50694333 | DD45: 20.54737048 | DE45: 20.590983 | DF45: 20.63792865 | DG45: 20.68836324 | DH45: 20.74245034 | DI45: 20.80036094 | DJ45: 20.86227319 | DK45: 20.92837207 | DL45: 20.99884915 | DM45: 21.0739022 | DN45: 21.15373498 | DO45: 21.23855686 | DP45: 21.32858257 | DQ45: 21.42403183 | DR45: 21.52512908 | DS45: 21.63210312 | DT45: 21.74518677 | DU45: 21.86461653 | DV45: 21.99063218 | DW45: 22.1234764 | DX45: 22.26339442 | DY45: 22.41063355 | DZ45: 22.56544295 | EA45: 22.72807327 | EB45: 22.89877653 | EC45: 23.07780609 | ED45: 23.26541662 | EE45: 23.4618642 | EF45: 23.66740605 | EG45: 23.8822998 | EH45: 24.10680192 | EI45: 24.34116508 | EJ45: 24.58563491 | EK45: 24.84044741 | EL45: 25.10582983 | EM45: 25.38200899 | EN45: 25.66923063 | EO45: 25.96778827 | EP45: 26.27804561 | EQ45: 26.60041073 | ER45: 26.93519132 | ES45: 27.28227933 | ET45: 27.6408455 | EU45: 28.01011534 | EV45: 28.39494054 | EX45: 60 | EY45: 144.3414118 | EZ45: 28.39494054 | FA45: 1300 | FB45: 20 | FC45: 80 | FF45: 0.003355704698 | FG45: 194.7720478
A46: 64 | C46: 147.3932831 | D46: 141.6631975 | E46: 136.0934921 | F46: 130.7413678 | G46: 125.5878926 | H46: 120.6153476 | I46: 115.8162093 | J46: 111.1881648 | K46: 106.7297796 | L46: 102.4387628 | M46: 98.31182433 | N46: 94.34507813 | O46: 90.53444477 | P46: 86.87588595 | Q46: 83.36548408 | R46: 79.99943247 | S46: 76.77399352 | T46: 73.68545864 | U46: 70.73012306 | V46: 67.90427606 | W46: 65.20420218 | X46: 62.62618818 | Y46: 60.16653149 | Z46: 57.82154827 | AA46: 55.58757968 | AB46: 53.46099683 | AC46: 51.43820446 | AD46: 49.51564406 | AE46: 47.68979668 | AF46: 45.95718576 | AG46: 44.3143801 | AH46: 42.75799691 | AI46: 41.28470495 | AJ46: 39.89122767 | AK46: 38.57434629 | AL46: 37.33090271 | AM46: 36.15780232 | AN46: 35.05201653 | AO46: 34.01058515 | AP46: 33.03061852 | AQ46: 32.10929943 | AR46: 31.24388478 | AS46: 30.43170711 | AT46: 29.6701758 | AU46: 28.95677817 | AV46: 28.28908025 | AW46: 27.66472742 | AX46: 27.08144479 | AY46: 26.53703743 | AZ46: 26.02939033 | BA46: 25.5564682 | BB46: 25.11631507 | BC46: 24.70705373 | BD46: 24.32688497 | BE46: 23.97408665 | BF46: 23.64701267 | BG46: 23.34409173 | BH46: 23.06382602 | BI46: 22.80478975 | BJ46: 22.56562758 | BK46: 22.345053 | BL46: 22.14184653 | BM46: 21.95485395 | BN46: 21.78298443 | BO46: 21.62520858 | BP46: 21.48055649 | BQ46: 21.34811575 | BR46: 21.22702944 | BS46: 21.1164941 | BT46: 21.01575771 | BU46: 20.92411767 | BV46: 20.84091884 | BW46: 20.7655515 | BX46: 20.69744947 | BY46: 20.63608815 | BZ46: 20.58098269 | CA46: 20.53168613 | CB46: 20.48778766 | CC46: 20.44891088 | CD46: 20.41471215 | CE46: 20.38487898 | CF46: 20.35912849 | CG46: 20.33720593 | CH46: 20.31888325 | CI46: 20.30395779 | CJ46: 20.29225093 | CK46: 20.28360692 | CL46: 20.2778917 | CM46: 20.27499179 | CN46: 20.27481324 | CO46: 20.2772807 | CP46: 20.28233643 | CQ46: 20.28993948 | CR46: 20.30006486 | CS46: 20.31270275 | CT46: 20.3278578 | CU46: 20.34554846 | CV46: 20.36580632 | CW46: 20.38867552 | CX46: 20.41421222 | CY46: 20.44248404 | CZ46: 20.47356955 | DA46: 20.50755784 | DB46: 20.54454805 | DC46: 20.58464894 | DD46: 20.6279785 | DE46: 20.67466354 | DF46: 20.72483936 | DG46: 20.77864935 | DH46: 20.83624463 | DI46: 20.89778375 | DJ46: 20.96343235 | DK46: 21.03336278 | DL46: 21.10775387 | DM46: 21.18679049 | DN46: 21.27066334 | DO46: 21.35956856 | DP46: 21.45370745 | DQ46: 21.5532861 | DR46: 21.65851511 | DS46: 21.76960928 | DT46: 21.88678724 | DU46: 22.01027118 | DV46: 22.14028659 | DW46: 22.27706191 | DX46: 22.42082833 | DY46: 22.57181952 | DZ46: 22.73027137 | EA46: 22.89642166 | EB46: 23.07050971 | EC46: 23.25277588 | ED46: 23.44346101 | EE46: 23.64280577 | EF46: 23.85105016 | EG46: 24.06843341 | EH46: 24.29519468 | EI46: 24.53157476 | EJ46: 24.77781893 | EK46: 25.03417981 | EL46: 25.30091807 | EM46: 25.57829678 | EN46: 25.86656499 | EO46: 26.16592952 | EP46: 26.47652674 | EQ46: 26.79843278 | ER46: 27.13178538 | ES46: 27.47708754 | ET46: 27.83555628 | EU46: 28.20849089 | EV46: 28.59184773 | EX46: 64 | EY46: 147.3932831 | EZ46: 28.59184773 | FA46: 1300 | FB46: 20 | FC46: 80 | FF46: 0.004026845638 | FG46: 190.0891423
A47: 68 | C47: 150.1822868 | D47: 144.4660665 | E47: 138.9690922 | F47: 133.631073 | G47: 128.4640068 | H47: 123.4770044 | I47: 118.6691879 | J47: 114.0351368 | K47: 109.568996 | L47: 105.2658936 | M47: 101.1218975 | N47: 97.13356182 | O47: 93.2975491 | P47: 89.61044307 | Q47: 86.06870707 | R47: 82.66871518 | S47: 79.4068012 | T47: 76.27929829 | U47: 73.2825616 | V47: 70.41297684 | W47: 67.66696039 | X47: 65.04095624 | Y47: 62.53143312 | Z47: 60.13488327 | AA47: 57.84782307 | AB47: 55.66679521 | AC47: 53.5883718 | AD47: 51.60915783 | AE47: 49.72579467 | AF47: 47.93496343 | AG47: 46.23338805 | AH47: 44.6178382 | AI47: 43.08513192 | AJ47: 41.63213819 | AK47: 40.25577932 | AL47: 38.95303327 | AM47: 37.72093588 | AN47: 36.55658296 | AO47: 35.45713233 | AP47: 34.41980562 | AQ47: 33.44189003 | AR47: 32.52073986 | AS47: 31.65377791 | AT47: 30.83849663 | AU47: 30.07245922 | AV47: 29.35330039 | AW47: 28.6787271 | AX47: 28.04651899 | AY47: 27.45452869 | AZ47: 26.90068199 | BA47: 26.38297779 | BB47: 25.8994879 | BC47: 25.4483567 | BD47: 25.02780063 | BE47: 24.63610758 | BF47: 24.27163606 | BG47: 23.93281435 | BH47: 23.61813944 | BI47: 23.3261759 | BJ47: 23.05555466 | BK47: 22.80497165 | BL47: 22.57318643 | BM47: 22.35902066 | BN47: 22.16135657 | BO47: 21.97913535 | BP47: 21.8113555 | BQ47: 21.65707115 | BR47: 21.51539029 | BS47: 21.38547308 | BT47: 21.26653008 | BU47: 21.15782046 | BV47: 21.0586503 | BW47: 20.96837076 | BX47: 20.88637639 | BY47: 20.81210342 | BZ47: 20.74502803 | CA47: 20.68466468 | CB47: 20.63056453 | CC47: 20.5823138 | CD47: 20.53953224 | CE47: 20.5018716 | CF47: 20.4690142 | CG47: 20.44067148 | CH47: 20.41658265 | CI47: 20.39651341 | CJ47: 20.38025463 | CK47: 20.36762119 | CL47: 20.35845078 | CM47: 20.35260283 | CN47: 20.34995746 | CO47: 20.35041443 | CP47: 20.35389223 | CQ47: 20.36032718 | CR47: 20.3696725 | CS47: 20.38189761 | CT47: 20.39698723 | CU47: 20.41494076 | CV47: 20.43577152 | CW47: 20.45950611 | CX47: 20.48618381 | CY47: 20.51585597 | CZ47: 20.54858545 | DA47: 20.58444611 | DB47: 20.62352229 | DC47: 20.66590835 | DD47: 20.71170818 | DE47: 20.76103477 | DF47: 20.81400983 | DG47: 20.87076332 | DH47: 20.93143312 | DI47: 20.9961646 | DJ47: 21.06511028 | DK47: 21.13842948 | DL47: 21.21628797 | DM47: 21.29885758 | DN47: 21.38631596 | DO47: 21.47884616 | DP47: 21.57663638 | DQ47: 21.67987963 | DR47: 21.78877342 | DS47: 21.90351951 | DT47: 22.02432353 | DU47: 22.15139479 | DV47: 22.28494588 | DW47: 22.42519244 | DX47: 22.57235284 | DY47: 22.72664781 | DZ47: 22.8883002 | EA47: 23.05753466 | EB47: 23.23457745 | EC47: 23.41965638 | ED47: 23.61300081 | EE47: 23.81484185 | EF47: 24.02541253 | EG47: 24.24494774 | EH47: 24.47368365 | EI47: 24.71185606 | EJ47: 24.95969764 | EK47: 25.21743442 | EL47: 25.48528372 | EM47: 25.76345694 | EN47: 26.05217284 | EO47: 26.3516839 | EP47: 26.6623081 | EQ47: 26.98443178 | ER47: 27.31841004 | ES47: 27.66427868 | ET47: 28.02137299 | EU47: 28.38882756 | EV47: 28.77084956 | EX47: 68 | EY47: 150.1822868 | EZ47: 28.77084956 | FA47: 1300 | FB47: 20 | FC47: 80 | FF47: 0.004697986577 | FG47: 185.5324705
A48: 72 | C48: 152.8944255 | D48: 147.1916884 | E48: 141.6479975 | F48: 136.312172 | G48: 131.1644542 | H48: 126.1894461 | I48: 121.381483 | J48: 116.7388453 | K48: 112.2599063 | L48: 107.9420052 | M48: 103.7816412 | N48: 99.77495199 | O48: 95.91805606 | P48: 92.20719704 | Q48: 88.63875577 | R48: 85.20920809 | S48: 81.91507768 | T48: 78.75290456 | U48: 75.71923163 | V48: 72.81060411 | W48: 70.02357538 | X48: 67.35471448 | Y48: 64.80061254 | Z48: 62.35788758 | AA48: 60.02318749 | AB48: 57.79319213 | AC48: 55.66461483 | AD48: 53.63420384 | AE48: 51.69874404 | AF48: 49.85505873 | AG48: 48.10001179 | AH48: 46.43050984 | AI48: 44.84350452 | AJ48: 43.33599475 | AK48: 41.90502887 | AL48: 40.54770677 | AM48: 39.26118181 | AN48: 38.04266271 | AO48: 36.8894152 | AP48: 35.7987637 | AQ48: 34.76809273 | AR48: 33.79484829 | AS48: 32.87653906 | AT48: 32.01073746 | AU48: 31.19508066 | AV48: 30.42727128 | AW48: 29.70507815 | AX48: 29.02633675 | AY48: 28.38894962 | AZ48: 27.79088655 | BA48: 27.23018471 | BB48: 26.70494855 | BC48: 26.21334964 | BD48: 25.75362632 | BE48: 25.32408331 | BF48: 24.92309106 | BG48: 24.54908515 | BH48: 24.20056545 | BI48: 23.87609527 | BJ48: 23.57430033 | BK48: 23.29386774 | BL48: 23.03354484 | BM48: 22.79213794 | BN48: 22.56851107 | BO48: 22.36158464 | BP48: 22.17033404 | BQ48: 21.99378816 | BR48: 21.83102801 | BS48: 21.68118512 | BT48: 21.54344008 | BU48: 21.41702099 | BV48: 21.30120189 | BW48: 21.19530124 | BX48: 21.09868034 | BY48: 21.01074182 | BZ48: 20.93092809 | CA48: 20.85871984 | CB48: 20.79363453 | CC48: 20.73522496 | CD48: 20.68307781 | CE48: 20.6368122 | CF48: 20.59607841 | CG48: 20.56055644 | CH48: 20.52995478 | CI48: 20.50400915 | CJ48: 20.48248123 | CK48: 20.46515755 | CL48: 20.45184831 | CM48: 20.44238632 | CN48: 20.43662594 | CO48: 20.43444207 | CP48: 20.43572921 | CQ48: 20.44040051 | CR48: 20.4483869 | CS48: 20.45963629 | CT48: 20.4741127 | CU48: 20.49179553 | CV48: 20.51267886 | CW48: 20.5367707 | CX48: 20.56409236 | CY48: 20.59467782 | CZ48: 20.62857314 | DA48: 20.66583584 | DB48: 20.70653441 | DC48: 20.75074777 | DD48: 20.79856474 | DE48: 20.85008361 | DF48: 20.90541163 | DG48: 20.96466464 | DH48: 21.02796658 | DI48: 21.09544911 | DJ48: 21.16725122 | DK48: 21.24351887 | DL48: 21.32440457 | DM48: 21.41006709 | DN48: 21.50067106 | DO48: 21.59638669 | DP48: 21.6973894 | DQ48: 21.80385951 | DR48: 21.91598195 | DS48: 22.03394594 | DT48: 22.15794469 | DU48: 22.28817511 | DV48: 22.42483756 | DW48: 22.56813559 | DX48: 22.7182757 | DY48: 22.87546714 | DZ48: 23.03992174 | EA48: 23.21185373 | EB48: 23.39147952 | EC48: 23.57901744 | ED48: 23.77468734 | EE48: 23.9787101 | EF48: 24.19130709 | EG48: 24.41269966 | EH48: 24.64310922 | EI48: 24.88275809 | EJ48: 25.13187177 | EK48: 25.39068212 | EL48: 25.65943035 | EM48: 25.93836612 | EN48: 26.2277374 | EO48: 26.5277664 | EP48: 26.83861612 | EQ48: 27.16037685 | ER48: 27.49314538 | ES48: 27.83729519 | ET48: 28.19388171 | EU48: 28.56426379 | EV48: 28.94498722 | EX48: 72 | EY48: 152.8944255 | EZ48: 28.94498722 | FA48: 1300 | FB48: 20 | FC48: 80 | FF48: 0.005369127517 | FG48: 181.0986531
A49: 76 | C49: 155.3930186 | D49: 149.702703 | E49: 144.2204222 | F49: 138.8935009 | G49: 133.7344173 | H49: 128.750128 | I49: 123.9382606 | J49: 119.2931274 | K49: 114.8092933 | L49: 110.4824294 | M49: 106.3089963 | N49: 102.2857582 | O49: 98.40947892 | P49: 94.67681766 | Q49: 91.08434123 | R49: 87.62857388 | S49: 84.30604271 | T49: 81.11330428 | U49: 78.0469541 | V49: 75.1036258 | W49: 72.27998647 | X49: 69.57273213 | Y49: 66.9785852 | Z49: 64.49429402 | AA49: 62.1166341 | AB49: 59.8424101 | AC49: 57.66845835 | AD49: 55.59164913 | AE49: 53.60888899 | AF49: 51.71712266 | AG49: 49.91333496 | AH49: 48.19455249 | AI49: 46.55784533 | AJ49: 45.00032867 | AK49: 43.51916447 | AL49: 42.11156306 | AM49: 40.77478474 | AN49: 39.50614128 | AO49: 38.30299744 | AP49: 37.16277232 | AQ49: 36.08294065 | AR49: 35.06103399 | AS49: 34.09464181 | AT49: 33.18141245 | AU49: 32.31905398 | AV49: 31.50533491 | AW49: 30.73808485 | AX49: 30.01519498 | AY49: 29.33461845 | AZ49: 28.69437061 | BA49: 28.09252918 | BB49: 27.52723427 | BC49: 26.9966883 | BD49: 26.49915577 | BE49: 26.03296302 | BF49: 25.59649774 | BG49: 25.18820851 | BH49: 24.80660418 | BI49: 24.45025316 | BJ49: 24.11778265 | BK49: 23.80787776 | BL49: 23.51928059 | BM49: 23.25078921 | BN49: 23.00125659 | BO49: 22.76958949 | BP49: 22.55474723 | BQ49: 22.35574055 | BR49: 22.17163026 | BS49: 22.00152602 | BT49: 21.84458498 | BU49: 21.70001044 | BV49: 21.56705049 | BW49: 21.44499667 | BX49: 21.33318254 | BY49: 21.23098236 | BZ49: 21.13780966 | CA49: 21.05311594 | CB49: 20.97638924 | CC49: 20.90715286 | CD49: 20.844964 | CE49: 20.78941247 | CF49: 20.74011943 | CG49: 20.6967361 | CH49: 20.6589426 | CI49: 20.62644666 | CJ49: 20.59898258 | CK49: 20.57630998 | CL49: 20.55821281 | CM49: 20.54449822 | CN49: 20.53499558 | CO49: 20.52955546 | CP49: 20.52804868 | CQ49: 20.53036544 | CR49: 20.53641436 | CS49: 20.5461217 | CT49: 20.5594305 | CU49: 20.57629985 | CV49: 20.59670408 | CW49: 20.62063209 | CX49: 20.64808664 | CY49: 20.67908372 | CZ49: 20.7136519 | DA49: 20.75183171 | DB49: 20.79367512 | DC49: 20.83924493 | DD49: 20.88861429 | DE49: 20.94186617 | DF49: 20.99909285 | DG49: 21.06039551 | DH49: 21.12588376 | DI49: 21.19567518 | DJ49: 21.26989497 | DK49: 21.34867547 | DL49: 21.43215587 | DM49: 21.52048176 | DN49: 21.61380483 | DO49: 21.71228249 | DP49: 21.81607758 | DQ49: 21.92535801 | DR49: 22.04029647 | DS49: 22.16107016 | DT49: 22.2878605 | DU49: 22.42085286 | DV49: 22.5602363 | DW49: 22.70620333 | DX49: 22.85894965 | DY49: 23.01867386 | DZ49: 23.18557726 | EA49: 23.35986354 | EB49: 23.54173858 | EC49: 23.73141026 | ED49: 23.92908851 | EE49: 24.13498532 | EF49: 24.3493151 | EG49: 24.57229489 | EH49: 24.80414441 | EI49: 25.04508533 | EJ49: 25.29533939 | EK49: 25.55512518 | EL49: 25.82465459 | EM49: 26.10413203 | EN49: 26.39376166 | EO49: 26.69376872 | EP49: 27.00443359 | EQ49: 27.32611378 | ER49: 27.65918393 | ES49: 28.00378545 | ET49: 28.35940535 | EU49: 28.72514487 | EV49: 29.10467748 | EX49: 76 | EY49: 155.3930186 | EZ49: 29.10467748 | FA49: 1300 | FB49: 20 | FC49: 80 | FF49: 0.006040268456 | FG49: 176.7844039
A50: 80 | C50: 157.8228073 | D50: 152.1445712 | E50: 146.6241904 | F50: 141.3035024 | G50: 136.162573 | H50: 131.1880855 | I50: 126.3757175 | J50: 121.7239859 | K50: 117.2309683 | L50: 112.8936922 | M50: 108.7085403 | N50: 104.6717268 | O50: 100.7795572 | P50: 97.02849447 | Q50: 93.41512893 | R50: 89.93612436 | S50: 86.58817753 | T50: 83.36799851 | U50: 80.27230695 | V50: 77.29783673 | W50: 74.44134271 | X50: 71.69960657 | Y50: 69.06944055 | Z50: 66.54768941 | AA50: 64.13123126 | AB50: 61.81697803 | AC50: 59.60187593 | AD50: 57.48290616 | AE50: 55.45708598 | AF50: 53.52146994 | AG50: 51.67315134 | AH50: 49.90926374 | AI50: 48.22698247 | AJ50: 46.62352611 | AK50: 45.09615794 | AL50: 43.64218729 | AM50: 42.25897087 | AN50: 40.94391404 | AO50: 39.69447198 | AP50: 38.50815083 | AQ50: 37.38250878 | AR50: 36.31515704 | AS50: 35.30376079 | AT50: 34.34603998 | AU50: 33.43977012 | AV50: 32.58278294 | AW50: 31.7729669 | AX50: 31.00826773 | AY50: 30.28668874 | AZ50: 29.60629113 | BA50: 28.96519414 | BB50: 28.36157512 | BC50: 27.79366952 | BD50: 27.25977077 | BE50: 26.75823006 | BF50: 26.28745603 | BG50: 25.84591439 | BH50: 25.43212747 | BI50: 25.0446736 | BJ50: 24.68218655 | BK50: 24.34335477 | BL50: 24.02692064 | BM50: 23.73167964 | BN50: 23.45647945 | BO50: 23.20021898 | BP50: 22.96184739 | BQ50: 22.74036305 | BR50: 22.53481242 | BS50: 22.34428899 | BT50: 22.16793207 | BU50: 22.00492568 | BV50: 21.85449729 | BW50: 21.71591664 | BX50: 21.58849455 | BY50: 21.47158162 | BZ50: 21.36456705 | CA50: 21.26687741 | CB50: 21.17797537 | CC50: 21.0973585 | CD50: 21.02455807 | CE50: 20.95913784 | CF50: 20.90069286 | CG50: 20.84884833 | CH50: 20.80325846 | CI50: 20.76360531 | CJ50: 20.72959773 | CK50: 20.70097029 | CL50: 20.67748217 | CM50: 20.65891624 | CN50: 20.64507799 | CO50: 20.6357946 | CP50: 20.63091401 | CQ50: 20.63030403 | CR50: 20.63385142 | CS50: 20.64146113 | CT50: 20.6530554 | CU50: 20.66857303 | CV50: 20.68796863 | CW50: 20.71121188 | CX50: 20.73828681 | CY50: 20.76919118 | CZ50: 20.8039358 | DA50: 20.84254392 | DB50: 20.88505065 | DC50: 20.93150237 | DD50: 20.9819562 | DE50: 21.03647945 | DF50: 21.09514917 | DG50: 21.15805159 | DH50: 21.22528173 | DI50: 21.29694292 | DJ50: 21.37314635 | DK50: 21.4540107 | DL50: 21.53966175 | DM50: 21.63023195 | DN50: 21.72586012 | DO50: 21.82669106 | DP50: 21.93287523 | DQ50: 22.04456844 | DR50: 22.16193153 | DS50: 22.28513007 | DT50: 22.41433409 | DU50: 22.54971778 | DV50: 22.69145925 | DW50: 22.83974029 | DX50: 22.99474613 | DY50: 23.15666524 | DZ50: 23.32568919 | EA50: 23.50201252 | EB50: 23.68583258 | EC50: 23.87734941 | ED50: 24.07676551 | EE50: 24.28428553 | EF50: 24.50011575 | EG50: 24.72446362 | EH50: 24.95753729 | EI50: 25.19954592 | EJ50: 25.45070094 | EK50: 25.71121891 | EL50: 25.98132519 | EM50: 26.26125608 | EN50: 26.55125406 | EO50: 26.85154958 | EP50: 27.16232764 | EQ50: 27.48369946 | ER50: 27.81574549 | ES50: 28.15874545 | ET50: 28.51360951 | EU50: 28.88171005 | EV50: 29.26008378 | EX50: 80 | EY50: 157.8228073 | EZ50: 29.26008378 | FA50: 1300 | FB50: 20 | FC50: 80 | FF50: 0.006711409396 | FG50: 172.5865247
A51: 84 | C51: 160.075727 | D51: 154.4086911 | E51: 148.9406776 | F51: 143.6253849 | G51: 138.4752406 | H51: 133.4952829 | I51: 128.6820688 | J51: 124.0298852 | K51: 119.533724 | L51: 115.1896719 | M51: 110.9944327 | N51: 106.944869 | O51: 103.0377832 | P51: 99.26988012 | Q51: 95.63781035 | R51: 92.13822239 | S51: 88.76779751 | T51: 85.52326336 | U51: 82.40139406 | V51: 79.39900459 | W51: 76.51294491 | X51: 73.74009607 | Y51: 71.07736882 | Z51: 68.52170387 | AA51: 66.07007319 | AB51: 63.71948163 | AC51: 61.46696846 | AD51: 59.30960874 | AE51: 57.24451446 | AF51: 55.2688356 | AG51: 53.3797611 | AH51: 51.57451984 | AI51: 49.85038163 | AJ51: 48.20465828 | AK51: 46.63470467 | AL51: 45.13791979 | AM51: 43.71174785 | AN51: 42.35367928 | AO51: 41.06125179 | AP51: 39.83205126 | AQ51: 38.66371271 | AR51: 37.55392107 | AS51: 36.50041201 | AT51: 35.50097263 | AU51: 34.55344211 | AV51: 33.65571224 | AW51: 32.80572795 | AX51: 32.00148774 | AY51: 31.24104395 | AZ51: 30.52250308 | BA51: 29.84402591 | BB51: 29.20382763 | BC51: 28.60017785 | BD51: 28.0314005 | BE51: 27.4958737 | BF51: 26.99202952 | BG51: 26.51835371 | BH51: 26.07338527 | BI51: 25.65571605 | BJ51: 25.26399021 | BK51: 24.89690361 | BL51: 24.55320325 | BM51: 24.23168645 | BN51: 23.93120022 | BO51: 23.65064034 | BP51: 23.38895059 | BQ51: 23.1451218 | BR51: 22.91819093 | BS51: 22.70724012 | BT51: 22.51139565 | BU51: 22.32982693 | BV51: 22.16174546 | BW51: 22.00640374 | BX51: 21.86309418 | BY51: 21.73114802 | BZ51: 21.60993421 | CA51: 21.49885831 | CB51: 21.39736136 | CC51: 21.30491876 | CD51: 21.22103921 | CE51: 21.14526355 | CF51: 21.07716371 | CG51: 21.01634159 | CH51: 20.96242806 | CI51: 20.91508183 | CJ51: 20.87398846 | CK51: 20.83885937 | CL51: 20.80943079 | CM51: 20.78546283 | CN51: 20.76673851 | CO51: 20.75306286 | CP51: 20.74426199 | CQ51: 20.74018223 | CR51: 20.74068929 | CS51: 20.74566741 | CT51: 20.75501859 | CU51: 20.76866178 | CV51: 20.78653217 | CW51: 20.80858044 | CX51: 20.83477209 | CY51: 20.86508674 | CZ51: 20.89951748 | DA51: 20.93807028 | DB51: 20.98076336 | DC51: 21.0276266 | DD51: 21.07870103 | DE51: 21.13403825 | DF51: 21.19369993 | DG51: 21.25775732 | DH51: 21.32629079 | DI51: 21.39938934 | DJ51: 21.47715019 | DK51: 21.55967835 | DL51: 21.64708624 | DM51: 21.73949325 | DN51: 21.83702544 | DO51: 21.93981514 | DP51: 22.04800063 | DQ51: 22.16172579 | DR51: 22.28113985 | DS51: 22.40639703 | DT51: 22.53765633 | DU51: 22.67508121 | DV51: 22.8188394 | DW51: 22.96910264 | DX51: 23.12604648 | DY51: 23.28985003 | DZ51: 23.46069577 | EA51: 23.63876931 | EB51: 23.82425914 | EC51: 24.01735649 | ED51: 24.21825519 | EE51: 24.4271517 | EF51: 24.64424527 | EG51: 24.86973833 | EH51: 25.10383677 | EI51: 25.34674993 | EJ51: 25.59868952 | EK51: 25.85986719 | EL51: 26.13049078 | EM51: 26.41076131 | EN51: 26.70087553 | EO51: 27.0010413 | EP51: 27.3115097 | EQ51: 27.63260838 | ER51: 27.96471399 | ES51: 28.30804347 | ET51: 28.6622187 | EU51: 29.02634456 | EV51: 29.40364771 | EX51: 84 | EY51: 160.075727 | EZ51: 29.40364771 | FA51: 1300 | FB51: 20 | FC51: 80 | FF51: 0.007382550336 | FG51: 168.5019033
A52: 88 | C52: 162.2666706 | D52: 156.6105268 | E52: 151.1111689 | F52: 145.8045624 | G52: 140.6710149 | H52: 135.6990306 | I52: 130.8852347 | J52: 126.2281612 | K52: 121.7255721 | L52: 117.3742563 | M52: 113.1705522 | N52: 109.1107742 | O52: 105.1913891 | P52: 101.4090238 | Q52: 97.76041273 | R52: 94.24234552 | S52: 90.85163805 | T52: 87.58512306 | U52: 84.43965288 | V52: 81.41210568 | W52: 78.49939121 | X52: 75.69845419 | Y52: 73.0062757 | Z52: 70.41987324 | AA52: 67.9363004 | AB52: 65.55264654 | AC52: 63.26603682 | AD52: 61.07363255 | AE52: 58.97263182 | AF52: 56.96027031 | AG52: 55.03382215 | AH52: 53.19060085 | AI52: 51.42796019 | AJ52: 49.74329512 | AK52: 48.13404255 | AL52: 46.59768227 | AM52: 45.1317377 | AN52: 43.73377672 | AO52: 42.40141241 | AP52: 41.13230388 | AQ52: 39.92415689 | AR52: 38.77472463 | AS52: 37.68180828 | AT52: 36.64325766 | AU52: 35.65697171 | AV52: 34.72089903 | AW52: 33.83303825 | AX52: 32.99143841 | AY52: 32.19419923 | AZ52: 31.43947135 | BA52: 30.72545649 | BB52: 30.05040753 | BC52: 29.41262853 | BD52: 28.8104747 | BE52: 28.24235226 | BF52: 27.70671829 | BG52: 27.20208046 | BH52: 26.72699676 | BI52: 26.28007505 | BJ52: 25.85997274 | BK52: 25.46539621 | BL52: 25.09510031 | BM52: 24.74788776 | BN52: 24.42260848 | BO52: 24.11815893 | BP52: 23.83348137 | BQ52: 23.56756306 | BR52: 23.31943545 | BS52: 23.08817337 | BT52: 22.87289409 | BU52: 22.67275647 | BV52: 22.48696 | BW52: 22.31474384 | BX52: 22.15538588 | BY52: 22.00820174 | BZ52: 21.87254379 | CA52: 21.7478001 | CB52: 21.63339349 | CC52: 21.52878051 | CD52: 21.43345037 | CE52: 21.346924 | CF52: 21.26875301 | CG52: 21.1985187 | CH52: 21.13583106 | CI52: 21.08032781 | CJ52: 21.03167342 | CK52: 20.98955814 | CL52: 20.95369712 | CM52: 20.92382942 | CN52: 20.89971715 | CO52: 20.88114458 | CP52: 20.86791727 | CQ52: 20.85986123 | CR52: 20.8568221 | CS52: 20.85866434 | CT52: 20.86527045 | CU52: 20.87654025 | CV52: 20.89239009 | CW52: 20.91275217 | CX52: 20.93757386 | CY52: 20.966817 | CZ52: 21.00045729 | DA52: 21.03848365 | DB52: 21.08089762 | DC52: 21.12771276 | DD52: 21.17895415 | DE52: 21.23465778 | DF52: 21.29487007 | DG52: 21.35964739 | DH52: 21.42905553 | DI52: 21.50316929 | DJ52: 21.58207198 | DK52: 21.66585507 | DL52: 21.75461773 | DM52: 21.84846645 | DN52: 21.94751469 | DO52: 22.05188249 | DP52: 22.16169616 | DQ52: 22.27708797 | DR52: 22.3981958 | DS52: 22.52516287 | DT52: 22.65813748 | DU52: 22.79727271 | DV52: 22.94272619 | DW52: 23.09465983 | DX52: 23.25323965 | DY52: 23.41863553 | DZ52: 23.59102109 | EA52: 23.7705735 | EB52: 23.95747343 | EC52: 24.15190495 | ED52: 24.35405539 | EE52: 24.56411518 | EF52: 24.7822775 | EG52: 25.00873784 | EH52: 25.24369341 | EI52: 25.48734295 | EJ52: 25.7398873 | EK52: 26.0015314 | EL52: 26.27248786 | EM52: 26.55298062 | EN52: 26.84324434 | EO52: 27.14351199 | EP52: 27.45398484 | EQ52: 27.77479598 | ER52: 28.10602445 | ES52: 28.44788345 | ET52: 28.80115573 | EU52: 29.16719741 | EV52: 29.54345798 | EX52: 88 | EY52: 162.2666706 | EZ52: 29.54345798 | FA52: 1300 | FB52: 20 | FC52: 80 | FF52: 0.008053691275 | FG52: 164.5275116
A53: 92 | C53: 164.3088345 | D53: 158.6628431 | E53: 153.2085123 | F53: 147.9049219 | G53: 142.7641094 | H53: 137.7894419 | I53: 132.9767305 | J53: 128.3203797 | K53: 123.8157733 | L53: 119.4593017 | M53: 115.2478079 | N53: 111.1781899 | O53: 107.2472614 | P53: 103.451763 | Q53: 99.78841807 | R53: 96.25397914 | S53: 92.84524985 | T53: 89.55908847 | U53: 86.39240244 | V53: 83.34214125 | W53: 80.40529124 | X53: 77.578873 | Y53: 74.85994091 | Z53: 72.24558373 | AA53: 69.73292564 | AB53: 67.31912719 | AC53: 65.00138598 | AD53: 62.77693725 | AE53: 60.64305426 | AF53: 58.59704868 | AG53: 56.63627102 | AH53: 54.75811109 | AI53: 52.95999857 | AJ53: 51.23940355 | AK53: 49.59383724 | AL53: 48.02085251 | AM53: 46.51804462 | AN53: 45.08305183 | AO53: 43.71355597 | AP53: 42.4072831 | AQ53: 41.16200405 | AR53: 39.97553497 | AS53: 38.84573778 | AT53: 37.77052073 | AU53: 36.74783874 | AV53: 35.77569384 | AW53: 34.85213549 | AX53: 33.97526087 | AY53: 33.14321511 | AZ53: 32.3541915 | BA53: 31.60643157 | BB53: 30.89822524 | BC53: 30.22791077 | BD53: 29.59387476 | BE53: 28.99455205 | BF53: 28.42842555 | BG53: 27.89402605 | BH53: 27.38993198 | BI53: 26.91476905 | BJ53: 26.4672099 | BK53: 26.04597369 | BL53: 25.64982566 | BM53: 25.27757654 | BN53: 24.92808206 | BO53: 24.60024234 | BP53: 24.29300121 | BQ53: 24.00534557 | BR53: 23.73630466 | BS53: 23.48494932 | BT53: 23.25039122 | BU53: 23.03178203 | BV53: 22.82831264 | BW53: 22.63921226 | BX53: 22.46374758 | BY53: 22.30122192 | BZ53: 22.15097425 | CA53: 22.01237837 | CB53: 21.88484194 | CC53: 21.76780559 | CD53: 21.66074198 | CE53: 21.56315485 | CF53: 21.47457817 | CG53: 21.39457513 | CH53: 21.32273728 | CI53: 21.25868361 | CJ53: 21.20205962 | CK53: 21.15253646 | CL53: 21.10981005 | CM53: 21.07360018 | CN53: 21.04364967 | CO53: 21.01972357 | CP53: 21.00160827 | CQ53: 20.98911073 | CR53: 20.9820577 | CS53: 20.98029491 | CT53: 20.98368638 | CU53: 20.9921136 | CV53: 21.00547491 | CW53: 21.02368473 | CX53: 21.04667292 | CY53: 21.07438412 | CZ53: 21.10677713 | DA53: 21.14382427 | DB53: 21.18551078 | DC53: 21.23183428 | DD53: 21.2828042 | DE53: 21.33844122 | DF53: 21.39877678 | DG53: 21.46385258 | DH53: 21.53372009 | DI53: 21.6084401 | DJ53: 21.68808228 | DK53: 21.77272471 | DL53: 21.86245357 | DM53: 21.95736264 | DN53: 22.05755302 | DO53: 22.16313269 | DP53: 22.27421626 | DQ53: 22.39092457 | DR53: 22.51338441 | DS53: 22.64172823 | DT53: 22.77609389 | DU53: 22.91662434 | DV53: 23.06346747 | DW53: 23.21677579 | DX53: 23.37670632 | DY53: 23.54342031 | DZ53: 23.71708312 | EA53: 23.89786397 | EB53: 24.08593576 | EC53: 24.28147487 | ED53: 24.48466101 | EE53: 24.69567713 | EF53: 24.9147095 | EG53: 25.14194802 | EH53: 25.37758657 | EI53: 25.62182338 | EJ53: 25.87486066 | EK53: 26.136903 | EL53: 26.40815409 | EM53: 26.68881273 | EN53: 26.97907198 | EO53: 27.27912901 | EP53: 27.58921281 | EQ53: 27.90962307 | ER53: 28.24072797 | ES53: 28.58279671 | ET53: 28.9355684 | EU53: 29.29817518 | EV53: 29.67346626 | EX53: 92 | EY53: 164.3088345 | EZ53: 29.67346626 | FA53: 1300 | FB53: 20 | FC53: 80 | FF53: 0.008724832215 | FG53: 160.6604033
A54: 96 | C54: 166.2948875 | D54: 160.6587696 | E54: 155.1784731 | F54: 149.8849846 | G54: 144.7591196 | H54: 139.7909505 | I54: 134.9777508 | J54: 130.3179447 | K54: 125.8089979 | L54: 121.4475315 | M54: 117.2298876 | N54: 113.1524856 | O54: 109.2119238 | P54: 105.4049478 | Q54: 101.7283901 | R54: 98.17912675 | S54: 94.75405923 | T54: 91.45011324 | U54: 88.26424429 | V54: 85.19344359 | W54: 82.23474174 | X54: 79.38521001 | Y54: 76.64195995 | Z54: 74.00214251 | AA54: 71.46294712 | AB54: 69.0216011 | AC54: 66.6753695 | AD54: 64.42155517 | AE54: 62.25749908 | AF54: 60.1805807 | AG54: 58.18821839 | AH54: 56.27786986 | AI54: 54.44703252 | AJ54: 52.69324395 | AK54: 51.0140823 | AL54: 49.4071667 | AM54: 47.8701577 | AN54: 46.40075773 | AO54: 44.99671152 | AP54: 43.65580655 | AQ54: 42.37587347 | AR54: 41.1547865 | AS54: 39.99046386 | AT54: 38.88086805 | AU54: 37.82400626 | AV54: 36.81793063 | AW54: 35.8607385 | AX54: 34.95057264 | AY54: 34.08562147 | AZ54: 33.26411912 | BA54: 32.4843456 | BB54: 31.74462681 | BC54: 31.04333456 | BD54: 30.37888652 | BE54: 29.74974613 | BF54: 29.15442245 | BG54: 28.59147003 | BH54: 28.05948859 | BI54: 27.55712284 | BJ54: 27.08306209 | BK54: 26.63603989 | BL54: 26.21483366 | BM54: 25.81826421 | BN54: 25.44519525 | BO54: 25.09453287 | BP54: 24.76522497 | BQ54: 24.45626066 | BR54: 24.16666963 | BS54: 23.8955215 | BT54: 23.64192512 | BU54: 23.40502783 | BV54: 23.18401479 | BW54: 22.97810813 | BX54: 22.78656625 | BY54: 22.60868298 | BZ54: 22.44378678 | CA54: 22.29123993 | CB54: 22.15043768 | CC54: 22.02080744 | CD54: 21.90180787 | CE54: 21.79292813 | CF54: 21.69368694 | CG54: 21.60363176 | CH54: 21.52233797 | CI54: 21.44940799 | CJ54: 21.38447043 | CK54: 21.32717929 | CL54: 21.27721314 | CM54: 21.23427425 | CN54: 21.19808783 | CO54: 21.16840123 | CP54: 21.14498315 | CQ54: 21.12762286 | CR54: 21.11612947 | CS54: 21.1103312 | CT54: 21.11007459 | CU54: 21.1152239 | CV54: 21.1256603 | CW54: 21.14128132 | CX54: 21.16200008 | CY54: 21.18774475 | CZ54: 21.21845784 | DA54: 21.25409568 | DB54: 21.29462779 | DC54: 21.34003632 | DD54: 21.3903155 | DE54: 21.44547115 | DF54: 21.50552012 | DG54: 21.5704898 | DH54: 21.64041768 | DI54: 21.71535088 | DJ54: 21.79534568 | DK54: 21.88046715 | DL54: 21.9707887 | DM54: 22.06639171 | DN54: 22.16736515 | DO54: 22.27380526 | DP54: 22.38581516 | DQ54: 22.50350458 | DR54: 22.62698951 | DS54: 22.75639195 | DT54: 22.89183963 | DU54: 23.03346573 | DV54: 23.18140864 | DW54: 23.33581175 | DX54: 23.49682321 | DY54: 23.66459575 | DZ54: 23.83928646 | EA54: 24.02105671 | EB54: 24.21007201 | EC54: 24.4065019 | ED54: 24.61051998 | EE54: 24.82230372 | EF54: 25.04203431 | EG54: 25.2698963 | EH54: 25.50607708 | EI54: 25.75076639 | EJ54: 26.00415636 | EK54: 26.2664427 | EL54: 26.53782763 | EM54: 26.81852412 | EN54: 27.10875797 | EO54: 27.40876066 | EP54: 27.71874425 | EQ54: 28.03886177 | ER54: 28.36919937 | ES54: 28.70992431 | ET54: 29.06170922 | EU54: 29.42587495 | EV54: 29.80022081 | EX54: 96 | EY54: 166.2948875 | EZ54: 29.80022081 | FA54: 1300 | FB54: 20 | FC54: 80 | FF54: 0.009395973154 | FG54: 156.8977116
A55: 100 | C55: 168.1541923 | D55: 162.5273178 | E55: 157.0860103 | F55: 151.7939277 | G55: 146.6625045 | H55: 141.6936724 | I55: 136.8827433 | J55: 132.2243171 | K55: 127.7141158 | L55: 123.3487431 | M55: 119.1251117 | N55: 115.0401221 | O55: 111.0905905 | P55: 107.2732903 | Q55: 103.5850098 | R55: 100.0225878 | S55: 96.58292449 | T55: 93.26297766 | U55: 90.05975519 | V55: 86.97030813 | W55: 83.99172692 | X55: 81.12113995 | Y55: 78.35571359 | Z55: 75.69265279 | AA55: 73.12920152 | AB55: 70.66264312 | AC55: 68.29030033 | AD55: 66.00953523 | AE55: 63.81774918 | AF55: 61.71238273 | AG55: 59.69091575 | AH55: 57.75086746 | AI55: 55.88979671 | AJ55: 54.10530214 | AK55: 52.39502251 | AL55: 50.75663699 | AM55: 49.18786542 | AN55: 47.68646864 | AO55: 46.2502488 | AP55: 44.87704963 | AQ55: 43.56475679 | AR55: 42.31129808 | AS55: 41.11464375 | AT55: 39.97280676 | AU55: 38.88384298 | AV55: 37.84585145 | AW55: 36.85697449 | AX55: 35.91539794 | AY55: 35.01935122 | AZ55: 34.16710745 | BA55: 33.35698349 | BB55: 32.58733999 | BC55: 31.85658132 | BD55: 31.16315557 | BE55: 30.50555443 | BF55: 29.88231302 | BG55: 29.2920098 | BH55: 28.73326626 | BI55: 28.20474676 | BJ55: 27.70515816 | BK55: 27.23324953 | BL55: 26.78781179 | BM55: 26.36767728 | BN55: 25.97171936 | BO55: 25.59885189 | BP55: 25.24802876 | BQ55: 24.91824335 | BR55: 24.60852796 | BS55: 24.31795321 | BT55: 24.04562744 | BU55: 23.79069605 | BV55: 23.55234086 | BW55: 23.32977938 | BX55: 23.12226416 | BY55: 22.92908204 | BZ55: 22.74955342 | CA55: 22.5830315 | CB55: 22.42890155 | CC55: 22.28658012 | CD55: 22.15551427 | CE55: 22.03518081 | CF55: 21.92508549 | CG55: 21.82476222 | CH55: 21.73377228 | CI55: 21.65170358 | CJ55: 21.5781698 | CK55: 21.51280968 | CL55: 21.45528621 | CM55: 21.40528589 | CN55: 21.36251793 | CO55: 21.32671356 | CP55: 21.29762525 | CQ55: 21.27502597 | CR55: 21.25870852 | CS55: 21.24848478 | CT55: 21.24418505 | CU55: 21.24565736 | CV55: 21.2527668 | CW55: 21.26539488 | CX55: 21.28343891 | CY55: 21.30681135 | CZ55: 21.33543926 | DA55: 21.36926364 | DB55: 21.40823893 | DC55: 21.45233245 | DD55: 21.50152382 | DE55: 21.55580448 | DF55: 21.61517719 | DG55: 21.67965551 | DH55: 21.74926339 | DI55: 21.82403467 | DJ55: 21.90401266 | DK55: 21.98924973 | DL55: 22.07980692 | DM55: 22.17575353 | DN55: 22.27716677 | DO55: 22.38413141 | DP55: 22.49673943 | DQ55: 22.61508973 | DR55: 22.7392878 | DS55: 22.86944545 | DT55: 23.00568051 | DU55: 23.14811662 | DV55: 23.29688297 | DW55: 23.45211409 | DX55: 23.61394965 | DY55: 23.78253424 | DZ55: 23.95801728 | EA55: 24.14055277 | EB55: 24.33029914 | EC55: 24.52741908 | ED55: 24.73207934 | EE55: 24.94445062 | EF55: 25.16470754 | EG55: 25.39302881 | EH55: 25.62959757 | EI55: 25.87460188 | EJ55: 26.12823486 | EK55: 26.39069382 | EL55: 26.66217775 | EM55: 26.94288315 | EN55: 27.2330011 | EO55: 27.53272229 | EP55: 27.84225949 | EQ55: 28.16188763 | ER55: 28.4919605 | ES55: 28.83278185 | ET55: 29.18419118 | EU55: 29.54536261 | EV55: 29.91882402 | EX55: 100 | EY55: 168.1541923 | EZ55: 29.91882402 | FA55: 1300 | FB55: 20 | FC55: 80 | FF55: 0.01006711409 | FG55: 153.2366472
A56: 104 | C56: 169.962481 | D56: 164.3445963 | E56: 158.8816598 | F56: 153.6004077 | G56: 148.4823274 | H56: 143.5188262 | I56: 138.707603 | J56: 134.0469029 | K56: 129.533934 | L56: 125.165208 | M56: 120.9371003 | N56: 116.8461292 | O56: 112.8889956 | P56: 109.0625292 | Q56: 105.3636294 | R56: 101.7892334 | S56: 98.33630717 | T56: 95.00184966 | U56: 91.78289852 | V56: 88.6765347 | W56: 85.67988411 | X56: 82.79011715 | Y56: 80.00444745 | Z56: 77.32013045 | AA56: 74.73446235 | AB56: 72.24477943 | AC56: 69.84845773 | AD56: 67.54291295 | AE56: 65.3256004 | AF56: 63.19401503 | AG56: 61.14569146 | AH56: 59.17820401 | AI56: 57.28916672 | AJ56: 55.47623347 | AK56: 53.73709801 | AL56: 52.0694941 | AM56: 50.47119567 | AN56: 48.94001693 | AO56: 47.47381259 | AP56: 46.07047801 | AQ56: 44.72794939 | AR56: 43.44420393 | AS56: 42.21726001 | AT56: 41.04517735 | AU56: 39.92605716 | AV56: 38.85804223 | AW56: 37.83931711 | AX56: 36.86810812 | AY56: 35.94268347 | AZ56: 35.06135327 | BA56: 34.22246958 | BB56: 33.42442635 | BC56: 32.66565939 | BD56: 31.9446463 | BE56: 31.25990639 | BF56: 30.61000048 | BG56: 29.99353077 | BH56: 29.40914061 | BI56: 28.85551431 | BJ56: 28.33137679 | BK56: 27.83549334 | BL56: 27.36666926 | BM56: 26.9237495 | BN56: 26.50561824 | BO56: 26.11119851 | BP56: 25.73945166 | BQ56: 25.38937695 | BR56: 25.06001099 | BS56: 24.75042723 | BT56: 24.45973538 | BU56: 24.18708086 | BV56: 23.93164416 | BW56: 23.69264023 | BX56: 23.46931787 | BY56: 23.26095903 | BZ56: 23.06687817 | CA56: 22.88642157 | CB56: 22.71896662 | CC56: 22.56392114 | CD56: 22.42072269 | CE56: 22.28883777 | CF56: 22.16776118 | CG56: 22.05701527 | CH56: 21.95614919 | CI56: 21.86473819 | CJ56: 21.78238287 | CK56: 21.70870846 | CL56: 21.64336413 | CM56: 21.5860222 | CN56: 21.53637753 | CO56: 21.49414669 | CP56: 21.45906739 | CQ56: 21.43089769 | CR56: 21.40941538 | CS56: 21.39441729 | CT56: 21.38571862 | CU56: 21.38315233 | CV56: 21.38656845 | CW56: 21.39583352 | CX56: 21.41082993 | CY56: 21.43145538 | CZ56: 21.45762223 | DA56: 21.48925699 | DB56: 21.52629977 | DC56: 21.5687037 | DD56: 21.61643445 | DE56: 21.66946971 | DF56: 21.72779871 | DG56: 21.79142173 | DH56: 21.86034967 | DI56: 21.93460358 | DJ56: 22.01421424 | DK56: 22.09922178 | DL56: 22.18967526 | DM56: 22.28563227 | DN56: 22.38715864 | DO56: 22.49432802 | DP56: 22.60722158 | DQ56: 22.72592773 | DR56: 22.85054176 | DS56: 22.9811656 | DT56: 23.11790755 | DU56: 23.26088204 | DV56: 23.41020934 | DW56: 23.56601542 | DX56: 23.72843166 | DY56: 23.89759471 | DZ56: 24.07364628 | EA56: 24.25673299 | EB56: 24.44700627 | EC56: 24.64462226 | ED56: 24.84974176 | EE56: 25.06253021 | EF56: 25.28315757 | EG56: 25.51179808 | EH56: 25.74862985 | EI56: 25.99383433 | EJ56: 26.24759595 | EK56: 26.51010264 | EL56: 26.78154802 | EM56: 27.06213541 | EN56: 27.35208162 | EO56: 27.65161396 | EP56: 27.96095069 | EQ56: 28.28026166 | ER56: 28.6096445 | ES56: 28.94923588 | ET56: 29.29961428 | EU56: 29.66205343 | EV56: 30.03465111 | EX56: 104 | EY56: 169.962481 | EZ56: 30.03465111 | FA56: 1300 | FB56: 20 | FC56: 80 | FF56: 0.01073825503 | FG56: 149.6744958
A57: 108 | C57: 171.661645 | D57: 166.0522075 | E57: 160.6232373 | F57: 155.3423116 | G57: 150.2201345 | H57: 145.2574178 | I57: 140.4491583 | J57: 135.790187 | K57: 131.276507 | L57: 126.904864 | M57: 122.6721968 | N57: 118.5753934 | O57: 114.6112717 | P57: 110.7766373 | Q57: 107.068336 | R57: 103.4832775 | S57: 100.0184373 | T57: 96.67084945 | U57: 93.43759838 | V57: 90.31581339 | W57: 87.30266614 | X57: 84.39536999 | Y57: 81.59118022 | Z57: 78.8873942 | AA57: 76.28135145 | AB57: 73.77043326 | AC57: 71.35206238 | AD57: 69.02370247 | AE57: 66.78285778 | AF57: 64.62707276 | AG57: 62.5539319 | AH57: 60.56105956 | AI57: 58.64611988 | AJ57: 56.80681676 | AK57: 55.04089383 | AL57: 53.34613446 | AM57: 51.72036179 | AN57: 50.16143876 | AO57: 48.66726819 | AP57: 47.23579279 | AQ57: 45.8649953 | AR57: 44.55289846 | AS57: 43.2975652 | AT57: 42.09709859 | AU57: 40.94964198 | AV57: 39.85337905 | AW57: 38.80653378 | AX57: 37.80737057 | AY57: 36.85419417 | AZ57: 35.94534971 | BA57: 35.07922268 | BB57: 34.25423884 | BC57: 33.46886416 | BD57: 32.72160474 | BE57: 32.01100667 | BF57: 31.33565585 | BG57: 30.69417786 | BH57: 30.08523774 | BI57: 29.50753974 | BJ57: 28.95982706 | BK57: 28.44088158 | BL57: 27.94952355 | BM57: 27.48461121 | BN57: 27.04504047 | BO57: 26.62974446 | BP57: 26.23769317 | BQ57: 25.86789295 | BR57: 25.51938609 | BS57: 25.1912503 | BT57: 24.88259821 | BU57: 24.59257684 | BV57: 24.32036702 | BW57: 24.06518288 | BX57: 23.82627121 | BY57: 23.60291089 | BZ57: 23.39441227 | CA57: 23.20011654 | CB57: 23.01939509 | CC57: 22.85164887 | CD57: 22.69630773 | CE57: 22.55282976 | CF57: 22.42070064 | CG57: 22.29943292 | CH57: 22.18856538 | CI57: 22.08766238 | CJ57: 21.9963131 | CK57: 21.91413095 | CL57: 21.84075284 | CM57: 21.77583853 | CN57: 21.71906996 | CO57: 21.67015059 | CP57: 21.62880471 | CQ57: 21.59477685 | CR57: 21.56783108 | CS57: 21.54775041 | CT57: 21.53433614 | CU57: 21.52740728 | CV57: 21.5267999 | CW57: 21.53236657 | CX57: 21.54397577 | CY57: 21.56151132 | CZ57: 21.5848718 | DA57: 21.61397006 | DB57: 21.64873262 | DC57: 21.68909921 | DD57: 21.73502224 | DE57: 21.78646632 | DF57: 21.84340777 | DG57: 21.90583418 | DH57: 21.97374397 | DI57: 22.04714592 | DJ57: 22.12605881 | DK57: 22.21051098 | DL57: 22.30053995 | DM57: 22.39619209 | DN57: 22.4975222 | DO57: 22.60459323 | DP57: 22.71747593 | DQ57: 22.83624855 | DR57: 22.96099655 | DS57: 23.09181229 | DT57: 23.22879483 | DU57: 23.37204962 | DV57: 23.5216883 | DW57: 23.6778285 | DX57: 23.84059361 | DY57: 24.01011264 | DZ57: 24.18652002 | EA57: 24.36995549 | EB57: 24.56056391 | EC57: 24.75849511 | ED57: 24.96390373 | EE57: 25.17694906 | EF57: 25.39779495 | EG57: 25.62660985 | EH57: 25.86356709 | EI57: 26.10884534 | EJ57: 26.36262903 | EK57: 26.62510809 | EL57: 26.89647623 | EM57: 27.17692713 | EN57: 27.4666504 | EO57: 27.76583281 | EP57: 28.07467543 | EQ57: 28.393432 | ER57: 28.72243899 | ES57: 29.06202146 | ET57: 29.41210386 | EU57: 29.77191102 | EV57: 30.14369554 | EX57: 108 | EY57: 171.661645 | EZ57: 30.14369554 | FA57: 1300 | FB57: 20 | FC57: 80 | FF57: 0.01140939597 | FG57: 146.2086169
A58: 112 | C58: 173.3142589 | D58: 167.7130372 | E58: 162.2659711 | F58: 156.9961466 | G58: 151.8858176 | H58: 146.9275186 | I58: 142.1192078 | J58: 137.4589202 | K58: 132.9436504 | L58: 128.5698465 | M58: 124.3339332 | N58: 120.2325154 | O58: 116.2623721 | P58: 112.4203911 | Q58: 108.7035182 | R58: 105.1087355 | S58: 101.63306 | T58: 98.27354959 | U58: 95.02730831 | V58: 91.89148898 | W58: 88.86329321 | X58: 85.93996987 | Y58: 83.11881334 | Z58: 80.39716201 | AA58: 77.77239718 | AB58: 75.24194237 | AC58: 72.80326288 | AD58: 70.45386541 | AE58: 68.19129777 | AF58: 66.01314862 | AG58: 63.91704713 | AH58: 61.90066279 | AI58: 59.96170513 | AJ58: 58.09792353 | AK58: 56.30710706 | AL58: 54.58708439 | AM58: 52.93572364 | AN58: 51.35093235 | AO58: 49.83065744 | AP58: 48.3728851 | AQ58: 46.97564088 | AR58: 45.63698955 | AS58: 44.35503516 | AT58: 43.12792103 | AU58: 41.95382966 | AV58: 40.8309828 | AW58: 39.75764135 | AX58: 38.73210538 | AY58: 37.75271403 | AZ58: 36.81784551 | BA58: 35.92591696 | BB58: 35.07538442 | BC58: 34.26474268 | BD58: 33.49252519 | BE58: 32.75730387 | BF58: 32.05768898 | BG58: 31.39232891 | BH58: 30.75990998 | BI58: 30.15915622 | BJ58: 29.58882905 | BK58: 29.04772711 | BL58: 28.53468583 | BM58: 28.04857723 | BN58: 27.58830947 | BO58: 27.15282654 | BP58: 26.74110786 | BQ58: 26.35216783 | BR58: 25.98505545 | BS58: 25.63885384 | BT58: 25.31267976 | BU58: 25.00568313 | BV58: 24.71704652 | BW58: 24.44598464 | BX58: 24.19174378 | BY58: 23.95360127 | BZ58: 23.7308649 | CA58: 23.52287236 | CB58: 23.32899064 | CC58: 23.14861546 | CD58: 22.98117061 | CE58: 22.82610738 | CF58: 22.68290392 | CG58: 22.55106464 | CH58: 22.43011956 | CI58: 22.31962369 | CJ58: 22.21915637 | CK58: 22.1283207 | CL58: 22.04674284 | CM58: 21.97407144 | CN58: 21.90997696 | CO58: 21.85415108 | CP58: 21.80630609 | CQ58: 21.76617422 | CR58: 21.73350712 | CS58: 21.70807516 | CT58: 21.68966694 | CU58: 21.67808861 | CV58: 21.67316337 | CW58: 21.67473085 | CX58: 21.68264659 | CY58: 21.69678149 | CZ58: 21.71702125 | DA58: 21.74326588 | DB58: 21.77542918 | DC58: 21.81343822 | DD58: 21.8572329 | DE58: 21.90676544 | DF58: 21.96199993 | DG58: 22.02291191 | DH58: 22.0894879 | DI58: 22.161725 | DJ58: 22.23963051 | DK58: 22.32322151 | DL58: 22.41252449 | DM58: 22.507575 | DN58: 22.60841732 | DO58: 22.71510408 | DP58: 22.827696 | DQ58: 22.94626157 | DR58: 23.07087673 | DS58: 23.20162466 | DT58: 23.33859548 | DU58: 23.48188604 | DV58: 23.63159965 | DW58: 23.78784594 | DX58: 23.95074057 | DY58: 24.12040512 | DZ58: 24.29696686 | EA58: 24.48055864 | EB58: 24.67131872 | EC58: 24.86939069 | ED58: 25.07492342 | EE58: 25.28807107 | EF58: 25.50899297 | EG58: 25.73785356 | EH58: 25.97482207 | EI58: 26.22007202 | EJ58: 26.47378069 | EK58: 26.73612915 | EL58: 27.00730364 | EM58: 27.28749912 | EN58: 27.57692371 | EO58: 27.87579904 | EP58: 28.18434589 | EQ58: 28.50274745 | ER58: 28.83111472 | ES58: 29.16956506 | ET58: 29.5185971 | EU58: 29.87943051 | EV58: 30.25041918 | EX58: 112 | EY58: 173.3142589 | EZ58: 30.25041918 | FA58: 1300 | FB58: 20 | FC58: 80 | FF58: 0.01208053691 | FG58: 142.836441
A59: 116 | C59: 174.8720793 | D59: 169.2786022 | E59: 163.8612844 | F59: 158.5910767 | G59: 153.4778834 | H59: 148.5213882 | I59: 143.7164088 | J59: 139.0580163 | K59: 134.5424404 | L59: 130.1665155 | M59: 125.92718 | N59: 121.8213047 | O59: 117.8457116 | P59: 113.9972382 | Q59: 110.2727802 | R59: 106.6693045 | S59: 103.1838455 | T59: 99.81349604 | U59: 96.55539981 | V59: 93.40674756 | W59: 90.36477551 | X59: 87.42676513 | Y59: 84.59004318 | Z59: 81.8519815 | AA59: 79.20999648 | AB59: 76.66154844 | AC59: 74.20414081 | AD59: 71.8353195 | AE59: 69.55267224 | AF59: 67.35382807 | AG59: 65.23645695 | AH59: 63.19826938 | AI59: 61.23701608 | AJ59: 59.35048775 | AK59: 57.53651479 | AL59: 55.79296713 | AM59: 54.117754 | AN59: 52.50882375 | AO59: 50.96416376 | AP59: 49.48180021 | AQ59: 48.05979808 | AR59: 46.69626095 | AS59: 45.38933093 | AT59: 44.13718859 | AU59: 42.93805287 | AV59: 41.79018096 | AW59: 40.69186825 | AX59: 39.64144819 | AY59: 38.63729226 | AZ59: 37.6778098 | BA59: 36.76144791 | BB59: 35.88669135 | BC59: 35.05206235 | BD59: 34.2561205 | BE59: 33.49746256 | BF59: 32.77472226 | BG59: 32.08657015 | BH59: 31.43171329 | BI59: 30.80889512 | BJ59: 30.2168951 | BK59: 29.65452851 | BL59: 29.12064612 | BM59: 28.61413388 | BN59: 28.13391258 | BO59: 27.67893753 | BP59: 27.24819815 | BQ59: 26.84071759 | BR59: 26.45555237 | BS59: 26.09179186 | BT59: 25.74855795 | BU59: 25.42500452 | BV59: 25.12031697 | BW59: 24.83371178 | BX59: 24.56443597 | BY59: 24.31176659 | BZ59: 24.07501024 | CA59: 23.85350244 | CB59: 23.6466072 | CC59: 23.45371638 | CD59: 23.27424915 | CE59: 23.10765145 | CF59: 22.95339535 | CG59: 22.81097856 | CH59: 22.67992375 | CI59: 22.55977803 | CJ59: 22.45011233 | CK59: 22.35052081 | CL59: 22.26062029 | CM59: 22.18004963 | CN59: 22.10846916 | CO59: 22.04556009 | CP59: 21.99102393 | CQ59: 21.9445819 | CR59: 21.90597439 | CS59: 21.87496033 | CT59: 21.85131671 | CU59: 21.83483794 | CV59: 21.82533539 | CW59: 21.82263676 | CX59: 21.82658565 | CY59: 21.83704095 | CZ59: 21.85387639 | DA59: 21.87698001 | DB59: 21.90625371 | DC59: 21.9416127 | DD59: 21.98298512 | DE59: 22.03031153 | DF59: 22.08354448 | DG59: 22.14264809 | DH59: 22.20759763 | DI59: 22.27837913 | DJ59: 22.35498896 | DK59: 22.43743346 | DL59: 22.52572863 | DM59: 22.6198997 | DN59: 22.71998086 | DO59: 22.82601489 | DP59: 22.93805289 | DQ59: 23.05615398 | DR59: 23.18038501 | DS59: 23.3108203 | DT59: 23.44754139 | DU59: 23.5906368 | DV59: 23.74020182 | DW59: 23.8963383 | DX59: 24.05915444 | DY59: 24.22876465 | DZ59: 24.40528938 | EA59: 24.588855 | EB59: 24.77959363 | EC59: 24.97764303 | ED59: 25.18314642 | EE59: 25.39625238 | EF59: 25.61711468 | EG59: 25.84589223 | EH59: 26.08274929 | EI59: 26.32785582 | EJ59: 26.58138803 | EK59: 26.84352853 | EL59: 27.11446532 | EM59: 27.3943887 | EN59: 27.68348667 | EO59: 27.98194361 | EP59: 28.28995219 | EQ59: 28.60774851 | ER59: 28.93565069 | ES59: 29.27399529 | ET59: 29.62277801 | EU59: 29.98127906 | EV59: 30.35151386 | EX59: 116 | EY59: 174.8720793 | EZ59: 30.35151386 | FA59: 1300 | FB59: 20 | FC59: 80 | FF59: 0.01275167785 | FG59: 139.5554682
A60: 120 | C60: 176.3872946 | D60: 170.8013502 | E60: 165.3688398 | F60: 160.1096994 | G60: 155.0069961 | H60: 150.0542093 | I60: 145.2494353 | J60: 140.5904918 | K60: 136.0742024 | L60: 131.6969858 | M60: 127.4553225 | N60: 123.34589 | O60: 119.3655247 | P60: 115.5111546 | Q60: 111.7797582 | R60: 108.1683522 | S60: 104.673995 | T60: 101.2937929 | U60: 98.02490389 | V60: 94.8645388 | W60: 91.80995979 | X60: 88.85847841 | Y60: 86.00745368 | Z60: 83.25429067 | AA60: 80.59643936 | AB60: 78.03139398 | AC60: 75.55669235 | AD60: 73.16991533 | AE60: 70.86868628 | AF60: 68.65067052 | AG60: 66.51357484 | AH60: 64.45514699 | AI60: 62.47317524 | AJ60: 60.56548802 | AK60: 58.72995352 | AL60: 56.96447943 | AM60: 55.26701261 | AN60: 53.63553886 | AO60: 52.06808266 | AP60: 50.56270703 | AQ60: 49.11751323 | AR60: 47.73064067 | AS60: 46.40026669 | AT60: 45.12460642 | AU60: 43.9019126 | AV60: 42.73047546 | AW60: 41.60862257 | AX60: 40.53471866 | AY60: 39.50716551 | AZ60: 38.52440177 | BA60: 37.58490281 | BB60: 36.68718058 | BC60: 35.82978337 | BD60: 35.01129571 | BE60: 34.2303381 | BF60: 33.48556685 | BG60: 32.77567385 | BH60: 32.09938634 | BI60: 31.45546665 | BJ60: 30.84271193 | BK60: 30.25995393 | BL60: 29.70605863 | BM60: 29.17992599 | BN60: 28.68048959 | BO60: 28.20671632 | BP60: 27.75760599 | BQ60: 27.332191 | BR60: 26.92953593 | BS60: 26.54873714 | BT60: 26.18892234 | BU60: 25.84925022 | BV60: 25.52890992 | BW60: 25.22712065 | BX60: 24.94313119 | BY60: 24.6762194 | BZ60: 24.42569175 | CA60: 24.19088282 | CB60: 23.97115478 | CC60: 23.76589688 | CD60: 23.57452493 | CE60: 23.39648073 | CF60: 23.23123161 | CG60: 23.0782698 | CH60: 22.93711196 | CI60: 22.80729856 | CJ60: 22.6883934 | CK60: 22.579983 | CL60: 22.48167605 | CM60: 22.39310292 | CN60: 22.313915 | CO60: 22.24378427 | CP60: 22.18240263 | CQ60: 22.12948146 | CR60: 22.08475102 | CS60: 22.04795992 | CT60: 22.01887459 | CU60: 21.99727879 | CV60: 21.98297303 | CW60: 21.97577412 | CX60: 21.97551463 | CY60: 21.98204239 | CZ60: 21.99522004 | DA60: 22.01492451 | DB60: 22.04104661 | DC60: 22.07349051 | DD60: 22.11217332 | DE60: 22.15702468 | DF60: 22.2079863 | DG60: 22.26501156 | DH60: 22.32806512 | DI60: 22.39712252 | DJ60: 22.4721698 | DK60: 22.55320316 | DL60: 22.64022859 | DM60: 22.73326151 | DN60: 22.83232652 | DO60: 22.937457 | DP60: 23.04869487 | DQ60: 23.1660903 | DR60: 23.2897014 | DS60: 23.41959402 | DT60: 23.55584147 | DU60: 23.6985243 | DV60: 23.84773011 | DW60: 24.00355331 | DX60: 24.16609495 | DY60: 24.33546256 | DZ60: 24.51176995 | EA60: 24.69513709 | EB60: 24.88568995 | EC60: 25.08356043 | ED60: 25.28888625 | EE60: 25.50181097 | EF60: 25.72248396 | EG60: 25.95106034 | EH60: 26.18770084 | EI60: 26.43257132 | EJ60: 26.68584228 | EK60: 26.94768849 | EL60: 27.21828976 | EM60: 27.49783373 | EN60: 27.7865205 | EO60: 28.0845652 | EP60: 28.39218843 | EQ60: 28.70958345 | ER60: 29.03687486 | ES60: 29.37416896 | ET60: 29.72189709 | EU60: 30.08122132 | EV60: 30.45071635 | EX60: 120 | EY60: 176.3872946 | EZ60: 30.45071635 | FA60: 1300 | FB60: 20 | FC60: 80 | FF60: 0.01342281879 | FG60: 136.3632663
A61: 124 | C61: 177.8195343 | D61: 172.2407102 | E61: 166.8343767 | F61: 161.5744024 | G61: 156.4698622 | H61: 151.5195793 | I61: 146.718291 | J61: 142.061302 | K61: 137.5450194 | L61: 133.1663275 | M61: 128.92215 | N61: 124.8093407 | O61: 120.8247294 | P61: 116.9651839 | Q61: 113.2276422 | R61: 109.6091174 | S61: 106.1066899 | T61: 102.7174981 | U61: 99.43873254 | V61: 96.26763293 | W61: 93.20148772 | X61: 90.23763365 | Y61: 87.37345557 | Z61: 84.60638579 | AA61: 81.93390323 | AB61: 79.35353244 | AC61: 76.86284266 | AD61: 74.45944696 | AE61: 72.14100146 | AF61: 69.90520471 | AG61: 67.74979705 | AH61: 65.67256014 | AI61: 63.67131642 | AJ61: 61.74392865 | AK61: 59.88829954 | AL61: 58.10237127 | AM61: 56.38412521 | AN61: 54.73158152 | AO61: 53.14279884 | AP61: 51.61587407 | AQ61: 50.14894198 | AR61: 48.74017509 | AS61: 47.38778333 | AT61: 46.09001387 | AU61: 44.84515089 | AV61: 43.65151537 | AW61: 42.5074649 | AX61: 41.41139345 | AY61: 40.36173124 | AZ61: 39.35694445 | BA61: 38.3955351 | BB61: 37.47604082 | BC61: 36.59703462 | BD61: 35.75712473 | BE61: 34.95495431 | BF61: 34.18920129 | BG61: 33.4585781 | BH61: 32.76183143 | BI61: 32.09774195 | BJ61: 31.46512407 | BK61: 30.86282566 | BL61: 30.28972773 | BM61: 29.74474414 | BN61: 29.22682129 | BO61: 28.73493776 | BP61: 28.26810401 | BQ61: 27.82536197 | BR61: 27.40578471 | BS61: 27.00847604 | BT61: 26.63257012 | BU61: 26.27723106 | BV61: 25.94165247 | BW61: 25.62505708 | BX61: 25.32669624 | BY61: 25.04584952 | BZ61: 24.78182424 | CA61: 24.53395497 | CB61: 24.3016031 | CC61: 24.0841563 | CD61: 23.88102809 | CE61: 23.69165729 | CF61: 23.51550753 | CG61: 23.35206677 | CH61: 23.20084675 | CI61: 23.06138249 | CJ61: 22.93323179 | CK61: 22.81597469 | CL61: 22.70921292 | CM61: 22.61256946 | CN61: 22.52568794 | CO61: 22.44823217 | CP61: 22.37988561 | CQ61: 22.32035084 | CR61: 22.26934906 | CS61: 22.2266196 | CT61: 22.1919194 | CU61: 22.16502251 | CV61: 22.14571961 | CW61: 22.13381752 | CX61: 22.12913872 | CY61: 22.13152088 | CZ61: 22.14081641 | DA61: 22.15689199 | DB61: 22.17962812 | DC61: 22.2089187 | DD61: 22.24467062 | DE61: 22.28680328 | DF61: 22.33524827 | DG61: 22.38994889 | DH61: 22.45085984 | DI61: 22.51794678 | DJ61: 22.59118603 | DK61: 22.67056419 | DL61: 22.75607778 | DM61: 22.84773296 | DN61: 22.94554519 | DO61: 23.04953894 | DP61: 23.1597474 | DQ61: 23.2762122 | DR61: 23.39898316 | DS61: 23.52811801 | DT61: 23.66368222 | DU61: 23.80574871 | DV61: 23.95439765 | DW61: 24.10971633 | DX61: 24.2717989 | DY61: 24.44074622 | DZ61: 24.61666579 | EA61: 24.79967149 | EB61: 24.9898836 | EC61: 25.18742857 | ED61: 25.39243896 | EE61: 25.60505327 | EF61: 25.82541582 | EG61: 26.05367663 | EH61: 26.28999154 | EI61: 26.53452244 | EJ61: 26.78743781 | EK61: 27.0489132 | EL61: 27.31913071 | EM61: 27.59827671 | EN61: 27.88653735 | EO61: 28.18409531 | EP61: 28.49113736 | EQ61: 28.80788511 | ER61: 29.13463862 | ES61: 29.4717387 | ET61: 29.81924038 | EU61: 30.17648115 | EV61: 30.54527108 | EX61: 124 | EY61: 177.8195343 | EZ61: 30.54527108 | FA61: 1300 | FB61: 20 | FC61: 80 | FF61: 0.01409395973 | FG61: 133.2574687
A62: 128 | C62: 179.2126753 | D62: 173.6407771 | E62: 168.2216545 | F62: 162.972513 | G62: 157.8772475 | H62: 152.9301247 | I62: 148.1292908 | J62: 143.4723538 | K62: 138.9560045 | L62: 134.5766565 | M62: 130.3308465 | N62: 126.2153108 | O62: 122.2269271 | P62: 118.3626507 | Q62: 114.619484 | R62: 110.9944716 | S62: 107.4847063 | T62: 104.0873343 | U62: 100.7995579 | V62: 97.61863489 | W62: 94.54187613 | X62: 91.56664378 | Y62: 88.69034921 | Z62: 85.91045165 | AA62: 83.22445716 | AB62: 80.62991784 | AC62: 78.12443099 | AD62: 75.70563842 | AE62: 73.37122569 | AF62: 71.11892138 | AG62: 68.94649642 | AH62: 66.85176341 | AI62: 64.83257606 | AJ62: 62.88682862 | AK62: 61.0124554 | AL62: 59.20743024 | AM62: 57.46976615 | AN62: 55.79751486 | AO62: 54.18876646 | AP62: 52.64164902 | AQ62: 51.15432828 | AR62: 49.72500733 | AS62: 48.35192631 | AT62: 47.03336211 | AU62: 45.76762812 | AV62: 44.55307396 | AW62: 43.38808523 | AX62: 42.27108326 | AY62: 41.20052487 | AZ62: 40.17490213 | BA62: 39.19274214 | BB62: 38.25260676 | BC62: 37.35309239 | BD62: 36.49282975 | BE62: 35.6704836 | BF62: 34.88475249 | BG62: 34.13436855 | BH62: 33.41809715 | BI62: 32.73473672 | BJ62: 32.08311839 | BK62: 31.46210575 | BL62: 30.87059453 | BM62: 30.30751233 | BN62: 29.77181823 | BO62: 29.26250254 | BP62: 28.77858643 | BQ62: 28.31912156 | BR62: 27.88318977 | BS62: 27.46990267 | BT62: 27.07840127 | BU62: 26.7078556 | BV62: 26.35746432 | BW62: 26.02645426 | BX62: 25.71408008 | BY62: 25.41962378 | BZ62: 25.14239428 | CA62: 24.88172701 | CB62: 24.63698341 | CC62: 24.40755051 | CD62: 24.19284045 | CE62: 23.99229001 | CF62: 23.80536016 | CG62: 23.63153553 | CH62: 23.470324 | CI62: 23.32125615 | CJ62: 23.18388482 | CK62: 23.05778458 | CL62: 22.94255129 | CM62: 22.83780155 | CN62: 22.74317227 | CO62: 22.65832013 | CP62: 22.58292113 | CQ62: 22.51667009 | CR62: 22.45928016 | CS62: 22.41048235 | CT62: 22.37002507 | CU62: 22.3376736 | CV62: 22.31320972 | CW62: 22.29643117 | CX62: 22.28715122 | CY62: 22.28519824 | CZ62: 22.29041524 | DA62: 22.30265945 | DB62: 22.32180188 | DC62: 22.34772693 | DD62: 22.38033195 | DE62: 22.41952688 | DF62: 22.46523384 | DG62: 22.51738673 | DH62: 22.57593091 | DI62: 22.64082281 | DJ62: 22.7120296 | DK62: 22.78952882 | DL62: 22.87330812 | DM62: 22.96336489 | DN62: 23.05970596 | DO62: 23.16234735 | DP62: 23.27131398 | DQ62: 23.38663937 | DR62: 23.50836543 | DS62: 23.63654222 | DT62: 23.77122767 | DU62: 23.91248743 | DV62: 24.06039465 | DW62: 24.21502977 | DX62: 24.37648038 | DY62: 24.54484104 | DZ62: 24.72021311 | EA62: 24.90270464 | EB62: 25.0924302 | EC62: 25.28951082 | ED62: 25.49407388 | EE62: 25.70625308 | EF62: 25.92618849 | EG62: 26.15402647 | EH62: 26.38991964 | EI62: 26.63402656 | EJ62: 26.88651123 | EK62: 27.14754254 | EL62: 27.41729455 | EM62: 27.69594853 | EN62: 27.9836973 | EO62: 28.28074926 | EP62: 28.58732292 | EQ62: 28.90361869 | ER62: 29.2297741 | ES62: 29.56589038 | ET62: 29.91234244 | EU62: 30.27023349 | EV62: 30.63832947 | EX62: 128 | EY62: 179.2126753 | EZ62: 30.63832947 | FA62: 1300 | FB62: 20 | FC62: 80 | FF62: 0.01476510067 | FG62: 130.2357731
A63: 132 | C63: 180.5327037 | D63: 174.9673679 | E63: 169.5713766 | F63: 164.3211325 | G63: 159.2248781 | H63: 154.280721 | I63: 149.4833893 | J63: 144.8284052 | K63: 140.3123106 | L63: 135.932013 | M63: 131.6844139 | N63: 127.5663537 | O63: 123.5746725 | P63: 119.7062663 | Q63: 115.9581087 | R63: 112.3272496 | S63: 108.8108053 | T63: 105.4059502 | U63: 102.1099122 | V63: 98.91997088 | W63: 95.8334574 | X63: 92.84775379 | Y63: 89.96029248 | Z63: 87.16855532 | AA63: 84.47007245 | AB63: 81.86242112 | AC63: 79.34322466 | AD63: 76.91015148 | AE63: 74.56091421 | AF63: 72.29326894 | AG63: 70.10501444 | AH63: 67.99399156 | AI63: 65.95808252 | AJ63: 63.99521034 | AK63: 62.10333825 | AL63: 60.28046915 | AM63: 58.52464515 | AN63: 56.83394702 | AO63: 55.20649381 | AP63: 53.64044239 | AQ63: 52.13398709 | AR63: 50.68535931 | AS63: 49.29282714 | AT63: 47.95469507 | AU63: 46.66930366 | AV63: 45.43502917 | AW63: 44.25028335 | AX63: 43.11351309 | AY63: 42.02320014 | AZ63: 40.97786087 | BA63: 39.97604594 | BB63: 39.01634009 | BC63: 38.09736182 | BD63: 37.21776316 | BE63: 36.37622937 | BF63: 35.57147868 | BG63: 34.80226202 | BH63: 34.06736273 | BI63: 33.36559628 | BJ63: 32.69580997 | BK63: 32.05688267 | BL63: 31.44772445 | BM63: 30.86727634 | BN63: 30.31450998 | BO63: 29.78842728 | BP63: 29.28806011 | BQ63: 28.81246995 | BR63: 28.36074755 | BS63: 27.93201253 | BT63: 27.52541307 | BU63: 27.1401255 | BV63: 26.77535392 | BW63: 26.43032981 | BX63: 26.10431164 | BY63: 25.79658445 | BZ63: 25.50645943 | CA63: 25.23327352 | CB63: 24.97638899 | CC63: 24.73519297 | CD63: 24.50909703 | CE63: 24.29753675 | CF63: 24.09997126 | CG63: 23.9158828 | CH63: 23.74477624 | CI63: 23.58617864 | CJ63: 23.43963881 | CK63: 23.30472681 | CL63: 23.18103351 | CM63: 23.06817012 | CN63: 22.96576775 | CO63: 22.87347691 | CP63: 22.79096707 | CQ63: 22.71792621 | CR63: 22.65406036 | CS63: 22.59909312 | CT63: 22.55276526 | CU63: 22.51483421 | CV63: 22.48507369 | CW63: 22.46327321 | CX63: 22.44923769 | CY63: 22.44278701 | CZ63: 22.44375559 | DA63: 22.45199197 | DB63: 22.46735845 | DC63: 22.48973065 | DD63: 22.51899714 | DE63: 22.55505904 | DF63: 22.5978297 | DG63: 22.64723427 | DH63: 22.70320941 | DI63: 22.7657029 | DJ63: 22.83467336 | DK63: 22.91008987 | DL63: 22.99193168 | DM63: 23.08018795 | DN63: 23.1748574 | DO63: 23.27594807 | DP63: 23.38347705 | DQ63: 23.4974702 | DR63: 23.61796195 | DS63: 23.74499504 | DT63: 23.87862029 | DU63: 24.01889643 | DV63: 24.16588988 | DW63: 24.31967459 | DX63: 24.48033183 | DY63: 24.64795007 | DZ63: 24.82262484 | EA63: 25.00445859 | EB63: 25.19356062 | EC63: 25.39004692 | ED63: 25.59404012 | EE63: 25.80566936 | EF63: 26.02507014 | EG63: 26.25238422 | EH63: 26.48775962 | EI63: 26.73135078 | EJ63: 26.98331904 | EK63: 27.24383319 | EL63: 27.51306951 | EM63: 27.7912101 | EN63: 28.07843885 | EO63: 28.37493711 | EP63: 28.68088753 | EQ63: 28.99649999 | ER63: 29.32205745 | ES63: 29.65789983 | ET63: 30.00413118 | EU63: 30.36014634 | EV63: 30.72757679 | EX63: 132 | EY63: 180.5327037 | EZ63: 30.72757679 | FA63: 1300 | FB63: 20 | FC63: 80 | FF63: 0.01543624161 | FG63: 127.2959393
A64: 136 | C64: 181.8167672 | D64: 176.257815 | E64: 170.8510367 | F64: 165.6112614 | G64: 160.5232048 | H64: 155.581785 | I64: 150.7851366 | J64: 146.1306721 | K64: 141.6149835 | L64: 137.2344955 | M64: 132.9857975 | N64: 128.865672 | O64: 124.8710256 | P64: 120.9988324 | Q64: 117.2461131 | R64: 113.6099354 | S64: 110.0874208 | T64: 106.6757489 | U64: 103.3721585 | V64: 100.1739452 | W64: 97.07845979 | X64: 94.0831055 | Y64: 91.18533649 | Z64: 88.38265651 | AA64: 85.67261779 | AB64: 83.05282018 | AC64: 80.5209102 | AD64: 78.0745801 | AE64: 75.71156704 | AF64: 73.42965215 | AG64: 71.22665975 | AH64: 69.10045657 | AI64: 67.048951 | AJ64: 65.0700925 | AK64: 63.16187085 | AL64: 61.32231567 | AM64: 59.54949579 | AN64: 57.84151873 | AO64: 56.19653025 | AP64: 54.6127138 | AQ64: 53.08829013 | AR64: 51.62151684 | AS64: 50.21068798 | AT64: 48.85413364 | AU64: 47.55021962 | AV64: 46.29734706 | AW64: 45.09395207 | AX64: 43.93850541 | AY64: 42.82951222 | AZ64: 41.76551162 | BA64: 40.74507647 | BB64: 39.76681302 | BC64: 38.82936065 | BD64: 37.93139155 | BE64: 37.07161045 | BF64: 36.24875428 | BG64: 35.46159192 | BH64: 34.70892388 | BI64: 33.98958201 | BJ64: 33.30242918 | BK64: 32.64635902 | BL64: 32.02029554 | BM64: 31.42319287 | BN64: 30.85403493 | BO64: 30.31183509 | BP64: 29.79563581 | BQ64: 29.30450839 | BR64: 28.83755252 | BS64: 28.393896 | BT64: 27.97269436 | BU64: 27.57313048 | BV64: 27.19441423 | BW64: 26.83578211 | BX64: 26.49649683 | BY64: 26.17584696 | BZ64: 25.8731465 | CA64: 25.58773448 | CB64: 25.31897458 | CC64: 25.06625471 | CD64: 24.82898655 | CE64: 24.60660521 | CF64: 24.39856872 | CG64: 24.20435767 | CH64: 24.02347474 | CI64: 23.85544428 | CJ64: 23.69981187 | CK64: 23.5561439 | CL64: 23.42402711 | CM64: 23.30306816 | CN64: 23.19289321 | CO64: 23.09314745 | CP64: 23.00349471 | CQ64: 22.92361697 | CR64: 22.85321397 | CS64: 22.79200276 | CT64: 22.73971731 | CU64: 22.69610802 | CV64: 22.66094137 | CW64: 22.63399947 | CX64: 22.61507964 | CY64: 22.60399406 | CZ64: 22.60056932 | DA64: 22.60464604 | DB64: 22.6160785 | DC64: 22.63473427 | DD64: 22.66049381 | DE64: 22.69325013 | DF64: 22.73290843 | DG64: 22.77938577 | DH64: 22.83261069 | DI64: 22.89252296 | DJ64: 22.95907317 | DK64: 23.03222251 | DL64: 23.1119424 | DM64: 23.19821424 | DN64: 23.29102915 | DO64: 23.39038766 | DP64: 23.49629949 | DQ64: 23.60878327 | DR64: 23.72786634 | DS64: 23.85358454 | DT64: 23.98598194 | DU64: 24.12511071 | DV64: 24.27103088 | DW64: 24.42381023 | DX64: 24.58352405 | DY64: 24.75025506 | DZ64: 24.92409324 | EA64: 25.10513569 | EB64: 25.29348654 | EC64: 25.4892568 | ED64: 25.69256432 | EE64: 25.90353374 | EF64: 26.12229648 | EG64: 26.34899078 | EH64: 26.58376165 | EI64: 26.82676074 | EJ64: 27.07814583 | EK64: 27.33808033 | EL64: 27.60673308 | EM64: 27.88427975 | EN64: 28.17090669 | EO64: 28.46681571 | EP64: 28.77222196 | EQ64: 29.08733057 | ER64: 29.4122908 | ES64: 29.74720304 | ET64: 30.09239515 | EU64: 30.44891186 | EV64: 30.81568527 | EX64: 136 | EY64: 181.8167672 | EZ64: 30.81568527 | FA64: 1300 | FB64: 20 | FC64: 80 | FF64: 0.01610738255 | FG64: 124.435788
A65: 140 | C65: 183.0360352 | D65: 177.4831445 | E65: 172.0968837 | F65: 166.8558644 | G65: 161.7675123 | H65: 156.8293434 | I65: 152.0361263 | J65: 147.3835797 | K65: 142.8683455 | L65: 138.4873352 | M65: 134.2374266 | N65: 130.1154505 | O65: 126.1182591 | P65: 122.2427738 | Q65: 118.485998 | R65: 114.8450107 | S65: 111.3169563 | T65: 107.8990381 | U65: 104.5885142 | V65: 101.3826972 | W65: 98.27895339 | X65: 95.27470222 | Y65: 92.36741541 | Z65: 89.55461564 | AA65: 86.83387533 | AB65: 84.20281531 | AC65: 81.65910372 | AD65: 79.20045492 | AE65: 76.82462858 | AF65: 74.52942875 | AG65: 72.31270305 | AH65: 70.17234186 | AI65: 68.10627755 | AJ65: 66.11248377 | AK65: 64.18897476 | AL65: 62.33380467 | AM65: 60.54506698 | AN65: 58.82089389 | AO65: 57.15945579 | AP65: 55.55896072 | AQ65: 54.01765388 | AR65: 52.53381713 | AS65: 51.1057686 | AT65: 49.73186217 | AU65: 48.41048713 | AV65: 47.14006776 | AW65: 45.91906293 | AX65: 44.74596575 | AY65: 43.61930318 | AZ65: 42.53763573 | BA65: 41.49955709 | BB65: 40.5036938 | BC65: 39.54870491 | BD65: 38.6332817 | BE65: 37.7561473 | BF65: 36.91605644 | BG65: 36.11179508 | BH65: 35.34218013 | BI65: 34.60605913 | BJ65: 33.90230991 | BK65: 33.2298403 | BL65: 32.58758783 | BM65: 31.97451934 | BN65: 31.38963073 | BO65: 30.83194658 | BP65: 30.30051983 | BQ65: 29.79443147 | BR65: 29.31279016 | BS65: 28.85473189 | BT65: 28.41941965 | BU65: 28.00604306 | BV65: 27.61381799 | BW65: 27.24198622 | BX65: 26.88981507 | BY65: 26.556597 | BZ65: 26.24164924 | CA65: 25.9443134 | CB65: 25.66395509 | CC65: 25.39996353 | CD65: 25.15175112 | CE65: 24.91875307 | CF65: 24.70042701 | CG65: 24.49625252 | CH65: 24.30573077 | CI65: 24.12838413 | CJ65: 23.96375569 | CK65: 23.81140889 | CL65: 23.67092711 | CM65: 23.54191322 | CN65: 23.4239892 | CO65: 23.31679572 | CP65: 23.21999171 | CQ65: 23.13325396 | CR65: 23.05627671 | CS65: 22.98877123 | CT65: 22.93046545 | CU65: 22.88110353 | CV65: 22.84044547 | CW65: 22.8082667 | CX65: 22.78435773 | CY65: 22.76852374 | CZ65: 22.76058421 | DA65: 22.76037256 | DB65: 22.76773574 | DC65: 22.78253394 | DD65: 22.80464018 | DE65: 22.83393999 | DF65: 22.87033107 | DG65: 22.91372297 | DH65: 22.96403675 | DI65: 23.02120468 | DJ65: 23.08516996 | DK65: 23.15588636 | DL65: 23.23331802 | DM65: 23.3174391 | DN65: 23.40823357 | DO65: 23.50569494 | DP65: 23.60982597 | DQ65: 23.72063853 | DR65: 23.83815329 | DS65: 23.96239955 | DT65: 24.09341502 | DU65: 24.23124568 | DV65: 24.37594552 | DW65: 24.52757643 | DX65: 24.68620803 | DY65: 24.85191755 | DZ65: 25.02478963 | EA65: 25.20491629 | EB65: 25.3923968 | EC65: 25.58733758 | ED65: 25.78985213 | EE65: 26.00006094 | EF65: 26.21809138 | EG65: 26.44407756 | EH65: 26.67816029 | EI65: 26.92048719 | EJ65: 27.17121301 | EK65: 27.43050028 | EL65: 27.69851961 | EM65: 27.97544869 | EN65: 28.26146886 | EO65: 28.55676022 | EP65: 28.86150251 | EQ65: 29.17589631 | ER65: 29.50020883 | ES65: 29.83477552 | ET65: 30.17974059 | EU65: 30.53455508 | EV65: 30.90069457 | EX65: 140 | EY65: 183.0360352 | EZ65: 30.90069457 | FA65: 1300 | FB65: 20 | FC65: 80 | FF65: 0.01677852349 | FG65: 121.6531988
A66: 144 | C66: 184.2221515 | D66: 178.6751575 | E66: 173.2797865 | F66: 168.0487921 | G66: 162.9676894 | H66: 158.0319321 | I66: 153.2395999 | J66: 148.5879296 | K66: 144.073442 | L66: 139.6925831 | M66: 135.4419893 | N66: 131.318479 | O66: 127.3189784 | P66: 123.4404746 | Q66: 119.6800026 | R66: 116.03465 | S66: 112.5015627 | T66: 109.0779481 | U66: 105.7610747 | V66: 102.5482695 | W66: 99.43691562 | X66: 96.42445019 | Y66: 93.5083627 | Z66: 90.68619372 | AA66: 87.95553385 | AB66: 85.31402263 | AC66: 82.75934755 | AD66: 80.28924293 | AE66: 77.90148898 | AF66: 75.59391079 | AG66: 73.36437741 | AH66: 71.21080098 | AI66: 69.13113593 | AJ66: 67.12337818 | AK66: 65.18556444 | AL66: 63.31577148 | AM66: 61.51211547 | AN66: 59.7727514 | AO66: 58.09587241 | AP66: 56.47970926 | AQ66: 54.92252981 | AR66: 53.42263843 | AS66: 51.97837556 | AT66: 50.58811724 | AU66: 49.25027461 | AV66: 47.96329351 | AW66: 46.72565406 | AX66: 45.53587023 | AY66: 44.39248947 | AZ66: 43.29409232 | BA66: 42.23929203 | BB66: 41.22673422 | BC66: 40.25509652 | BD66: 39.3230882 | BE66: 38.42944987 | BF66: 37.5729531 | BG66: 36.75240012 | BH66: 35.96662346 | BI66: 35.21448566 | BJ66: 34.49487888 | BK66: 33.80672464 | BL66: 33.14897346 | BM66: 32.52060452 | BN66: 31.92062534 | BO66: 31.34807147 | BP66: 30.80200609 | BQ66: 30.28151976 | BR66: 29.78573001 | BS66: 29.31378103 | BT66: 28.86484331 | BU66: 28.43811327 | BV66: 28.03281297 | BW66: 27.64818967 | BX66: 27.28351553 | BY66: 26.93808722 | BZ66: 26.61122553 | CA66: 26.30227504 | CB66: 26.01060371 | CC66: 25.73560254 | CD66: 25.47668514 | CE66: 25.23328736 | CF66: 25.00486694 | CG66: 24.79090306 | CH66: 24.59089602 | CI66: 24.40436677 | CJ66: 24.23085658 | CK66: 24.06992662 | CL66: 23.92115756 | CM66: 23.78414917 | CN66: 23.65851998 | CO66: 23.54390679 | CP66: 23.43996438 | CQ66: 23.34636505 | CR66: 23.26279824 | CS66: 23.18897019 | CT66: 23.12460349 | CU66: 23.06943675 | CV66: 23.02322421 | CW66: 22.98573534 | CX66: 22.95675451 | CY66: 22.93608061 | CZ66: 22.92352667 | DA66: 22.91891957 | DB66: 22.9220996 | DC66: 22.93292019 | DD66: 22.95124757 | DE66: 22.97696039 | DF66: 23.00994947 | DG66: 23.05011743 | DH66: 23.09737841 | DI66: 23.15165776 | DJ66: 23.21289179 | DK66: 23.28102742 | DL66: 23.35602198 | DM66: 23.43784289 | DN66: 23.52646747 | DO66: 23.62188261 | DP66: 23.72408462 | DQ66: 23.83307898 | DR66: 23.9488801 | DS66: 24.07151114 | DT66: 24.20100383 | DU66: 24.33739827 | DV66: 24.48074276 | DW66: 24.63109365 | DX66: 24.78851519 | DY66: 24.95307941 | DZ66: 25.12486598 | EA66: 25.30396207 | EB66: 25.49046229 | EC66: 25.68446855 | ED66: 25.88609002 | EE66: 26.09544302 | EF66: 26.3126511 | EG66: 26.53784501 | EH66: 26.77116272 | EI66: 27.01274939 | EJ66: 27.26275698 | EK66: 27.52134373 | EL66: 27.78867373 | EM66: 28.06491774 | EN66: 28.3502564 | EO66: 28.64488529 | EP66: 28.94901548 | EQ66: 29.2628548 | ER66: 29.58656283 | ES66: 29.92024208 | ET66: 30.2641814 | EU66: 30.61936839 | EV66: 30.98488009 | EX66: 144 | EY66: 184.2221515 | EZ66: 30.98488009 | FA66: 1300 | FB66: 20 | FC66: 80 | FF66: 0.01744966443 | FG66: 118.9461088
A67: 148 | C67: 185.35055 | D67: 179.8091658 | E67: 174.4320563 | F67: 169.1997654 | G67: 164.1189287 | H67: 159.1865766 | I67: 154.3975523 | J67: 149.7477474 | K67: 145.233876 | L67: 140.8528411 | M67: 136.6014975 | N67: 132.4766705 | O67: 128.4752254 | P67: 124.594106 | Q67: 120.8303401 | R67: 117.1810295 | S67: 113.6433414 | T67: 110.214502 | U67: 106.8917949 | V67: 103.6725596 | W67: 100.5541918 | X67: 97.53414208 | Y67: 94.6099147 | Z67: 91.77906628 | AA67: 89.03920436 | AB67: 86.38798606 | AC67: 83.82311692 | AD67: 81.34234971 | AE67: 78.9434835 | AF67: 76.62436261 | AG67: 74.38287569 | AH67: 72.21695484 | AI67: 70.12457472 | AJ67: 68.10375177 | AK67: 66.15254338 | AL67: 64.26904719 | AM67: 62.45140035 | AN67: 60.69777887 | AO67: 59.00639697 | AP67: 57.37550644 | AQ67: 55.8033961 | AR67: 54.28839124 | AS67: 52.82885304 | AT67: 51.42317809 | AU67: 50.06979791 | AV67: 48.76717846 | AW67: 47.51381966 | AX67: 46.30825502 | AY67: 45.14905114 | AZ67: 44.03480736 | BA67: 42.96415531 | BB67: 41.93575857 | BC67: 40.94831224 | BD67: 40.00054263 | BE67: 39.09120683 | BF67: 38.21909241 | BG67: 37.38301703 | BH67: 36.58182811 | BI67: 35.81440248 | BJ67: 35.07964606 | BK67: 34.37649346 | BL67: 33.70390772 | BM67: 33.06087992 | BN67: 32.44642885 | BO67: 31.85960071 | BP67: 31.29946869 | BQ67: 30.76513274 | BR67: 30.25571913 | BS67: 29.77038016 | BT67: 29.30829382 | BU67: 28.86866339 | BV67: 28.45071717 | BW67: 28.05370805 | BX67: 27.67691321 | BY67: 27.31963375 | BZ67: 26.98119431 | CA67: 26.66094274 | CB67: 26.3582497 | CC67: 26.07250833 | CD67: 25.80313387 | CE67: 25.54956329 | CF67: 25.31125488 | CG67: 25.08768796 | CH67: 24.87836242 | CI67: 24.68279841 | CJ67: 24.50053591 | CK67: 24.3311344 | CL67: 24.17417245 | CM67: 24.02924736 | CN67: 23.89597479 | CO67: 23.77398837 | CP67: 23.66293933 | CQ67: 23.56249612 | CR67: 23.47234408 | CS67: 23.39218502 | CT67: 23.32173689 | CU67: 23.26073339 | CV67: 23.20892364 | CW67: 23.16607182 | CX67: 23.1319568 | CY67: 23.1063718 | CZ67: 23.08912408 | DA67: 23.08003456 | DB67: 23.0789375 | DC67: 23.0856802 | DD67: 23.10012266 | DE67: 23.12213728 | DF67: 23.15160852 | DG67: 23.18843265 | DH67: 23.23251745 | DI67: 23.28378188 | DJ67: 23.34215586 | DK67: 23.40757999 | DL67: 23.48000526 | DM67: 23.55939284 | DN67: 23.64571382 | DO67: 23.73894898 | DP67: 23.83908857 | DQ67: 23.94613207 | DR67: 24.06008806 | DS67: 24.18097395 | DT67: 24.30881581 | DU67: 24.44364826 | DV67: 24.58551423 | DW67: 24.73446484 | DX67: 24.89055927 | DY67: 25.05386462 | DZ67: 25.22445579 | EA67: 25.40241536 | EB67: 25.58783354 | EC67: 25.78080806 | ED67: 25.98144414 | EE67: 26.18985438 | EF67: 26.4061587 | EG67: 26.6304842 | EH67: 26.86296511 | EI67: 27.1037428 | EJ67: 27.35296606 | EK67: 27.61079164 | EL67: 27.8773848 | EM67: 28.15291884 | EN67: 28.43757231 | EO67: 28.73152403 | EP67: 29.03495172 | EQ67: 29.34804864 | ER67: 29.67106779 | ES67: 30.00433776 | ET67: 30.34803541 | EU67: 30.70166599 | EV67: 31.06656854 | EX67: 148 | EY67: 185.35055 | EZ67: 31.06656854 | FA67: 1300 | FB67: 20 | FC67: 80 | FF67: 0.01812080537 | FG67: 116.3125114
A68: 152 | C68: 186.4483326 | D68: 180.9124059 | E68: 175.527597 | F68: 170.3048414 | G68: 165.2304221 | H68: 160.3002304 | I68: 155.5122627 | J68: 150.8636007 | K68: 146.3507164 | L68: 141.9700833 | M68: 137.7183786 | N68: 133.592447 | O68: 129.589228 | P68: 125.7057179 | Q68: 121.9389639 | R68: 118.2860703 | S68: 114.7442038 | T68: 111.3105951 | U68: 107.9825372 | V68: 104.7573829 | W68: 101.6325421 | X68: 98.60547983 | Y68: 95.67371509 | Z68: 92.83481919 | AA68: 90.08641476 | AB68: 87.42617459 | AC68: 84.85182044 | AD68: 82.36112193 | AE68: 79.95189544 | AF68: 77.62200301 | AG68: 75.3693514 | AH68: 73.19189109 | AI68: 71.0876154 | AJ68: 69.05455967 | AK68: 67.09080037 | AL68: 65.19445438 | AM68: 63.36367823 | AN68: 61.59666736 | AO68: 59.89165548 | AP68: 58.24691391 | AQ68: 56.66075091 | AR68: 55.13151115 | AS68: 53.65757512 | AT68: 52.23735855 | AU68: 50.86931192 | AV68: 49.55191995 | AW68: 48.28370109 | AX68: 47.06320709 | AY68: 45.8890225 | AZ68: 44.75976428 | BA68: 43.67408132 | BB68: 42.6306541 | BC68: 41.62819419 | BD68: 40.66544394 | BE68: 39.74117607 | BF68: 38.85419328 | BG68: 38.00332788 | BH68: 37.18744145 | BI68: 36.40542446 | BJ68: 35.65619592 | BK68: 34.93870303 | BL68: 34.25192083 | BM68: 33.59485187 | BN68: 32.96652583 | BO68: 32.36599922 | BP68: 31.79235499 | BQ68: 31.24470223 | BR68: 30.72217582 | BS68: 30.22393605 | BT68: 29.74916834 | BU68: 29.29708282 | BV68: 28.86691405 | BW68: 28.45792065 | BX68: 28.06938495 | BY68: 27.70061263 | BZ68: 27.35093238 | CA68: 27.01969555 | CB68: 26.70627582 | CC68: 26.41006877 | CD68: 26.13049162 | CE68: 25.86698279 | CF68: 25.6190016 | CG68: 25.38602788 | CH68: 25.16756161 | CI68: 24.96312258 | CJ68: 24.77225 | CK68: 24.59450218 | CL68: 24.42945611 | CM68: 24.27670718 | CN68: 24.13586874 | CO68: 24.00657179 | CP68: 23.88846462 | CQ68: 23.78121243 | CR68: 23.68449703 | CS68: 23.5980164 | CT68: 23.52148445 | CU68: 23.45463059 | CV68: 23.39719943 | CW68: 23.34895042 | CX68: 23.30965756 | CY68: 23.27910901 | CZ68: 23.25710681 | DA68: 23.24346653 | DB68: 23.23801697 | DC68: 23.24059988 | DD68: 23.2510696 | DE68: 23.26929278 | DF68: 23.29514813 | DG68: 23.32852608 | DH68: 23.36932855 | DI68: 23.41746863 | DJ68: 23.47287037 | DK68: 23.53546849 | DL68: 23.60520815 | DM68: 23.68204471 | DN68: 23.76594349 | DO68: 23.85687956 | DP68: 23.95483752 | DQ68: 24.05981131 | DR68: 24.17180401 | DS68: 24.29082765 | DT68: 24.41690305 | DU68: 24.55005963 | DV68: 24.69033529 | DW68: 24.83777623 | DX68: 24.99243688 | DY68: 25.15437969 | DZ68: 25.32367509 | EA68: 25.50040137 | EB68: 25.68464457 | EC68: 25.87649838 | ED68: 26.07606411 | EE68: 26.28345061 | EF68: 26.49877425 | EG68: 26.72215897 | EH68: 26.95373633 | EI68: 27.19364549 | EJ68: 27.44203299 | EK68: 27.69905223 | EL68: 27.96486299 | EM68: 28.23963167 | EN68: 28.52353394 | EO68: 28.81675967 | EP68: 29.11951545 | EQ68: 29.43201024 | ER68: 29.7544125 | ES68: 30.08682882 | ET68: 30.42951587 | EU68: 30.78340623 | EV68: 31.14770374 | EX68: 152 | EY68: 186.4483326 | EZ68: 31.14770374 | FA68: 1300 | FB68: 20 | FC68: 80 | FF68: 0.01879194631 | FG68: 113.7504539
A69: 156 | C69: 187.4944685 | D69: 181.9637425 | E69: 176.5952384 | F69: 171.3711944 | G69: 166.2974912 | H69: 161.3707634 | I69: 156.5859499 | J69: 151.9390933 | K69: 147.4269562 | L69: 143.0464261 | M69: 138.7943372 | N69: 134.6675124 | O69: 130.6628307 | P69: 126.7772553 | Q69: 123.0078334 | R69: 119.3516854 | S69: 115.8059964 | T69: 112.3680117 | U69: 109.0350357 | V69: 105.8044309 | W69: 102.6736174 | X69: 99.64007172 | Y69: 96.70132541 | Z69: 93.85496338 | AA69: 91.09862255 | AB69: 88.42999047 | AC69: 85.84680404 | AD69: 83.3468484 | AE69: 80.92795579 | AF69: 78.5880045 | AG69: 76.32491786 | AH69: 74.13666327 | AI69: 72.02125126 | AJ69: 69.97673458 | AK69: 68.00120734 | AL69: 66.09280422 | AM69: 64.24969965 | AN69: 62.4701071 | AO69: 60.75227832 | AP69: 59.0945027 | AQ69: 57.49510659 | AR69: 55.95245267 | AS69: 54.46493935 | AT69: 53.03100021 | AU69: 51.64910339 | AV69: 50.31775113 | AW69: 49.03547919 | AX69: 47.80085637 | AY69: 46.61248405 | AZ69: 45.4689957 | BA69: 44.36905644 | BB69: 43.31136261 | BC69: 42.29464132 | BD69: 41.31765007 | BE69: 40.37917631 | BF69: 39.47803708 | BG69: 38.61307859 | BH69: 37.78317587 | BI69: 36.98723236 | BJ69: 36.22417959 | BK69: 35.49297679 | BL69: 34.7926105 | BM69: 34.12209429 | BN69: 33.48046835 | BO69: 32.86679915 | BP69: 32.28017911 | BQ69: 31.71972624 | BR69: 31.1845838 | BS69: 30.67391994 | BT69: 30.18692741 | BU69: 29.72282314 | BV69: 29.28084796 | BW69: 28.86026622 | BX69: 28.46036548 | BY69: 28.08045611 | BZ69: 27.71987103 | CA69: 27.37796527 | CB69: 27.05411571 | CC69: 26.74772068 | CD69: 26.45819962 | CE69: 26.18499276 | CF69: 25.92756075 | CG69: 25.68538432 | CH69: 25.45796394 | CI69: 25.24481944 | CJ69: 25.04548972 | CK69: 24.85953234 | CL69: 24.68652322 | CM69: 24.52605628 | CN69: 24.37774309 | CO69: 24.24121255 | CP69: 24.1161105 | CQ69: 24.00209945 | CR69: 23.89885817 | CS69: 23.80608142 | CT69: 23.72347958 | CU69: 23.65077833 | CV69: 23.58771831 | CW69: 23.53405484 | CX69: 23.48955755 | CY69: 23.45401012 | CZ69: 23.42720991 | DA69: 23.40896769 | DB69: 23.39910737 | DC69: 23.39746563 | DD69: 23.40389169 | DE69: 23.41824702 | DF69: 23.44040504 | DG69: 23.47025086 | DH69: 23.50768104 | DI69: 23.55260328 | DJ69: 23.60493622 | DK69: 23.66460919 | DL69: 23.73156195 | DM69: 23.80574448 | DN69: 23.88711678 | DO69: 23.9756486 | DP69: 24.07131932 | DQ69: 24.1741177 | DR69: 24.28404171 | DS69: 24.40109836 | DT69: 24.52530353 | DU69: 24.65668183 | DV69: 24.79526642 | DW69: 24.94109893 | DX69: 25.09422926 | DY69: 25.25471553 | DZ69: 25.42262392 | EA69: 25.59802863 | EB69: 25.78101176 | EC69: 25.97166324 | ED69: 26.17008083 | EE69: 26.37637002 | EF69: 26.59064397 | EG69: 26.81302344 | EH69: 27.04363667 | EI69: 27.28261939 | EJ69: 27.53011498 | EK69: 27.78627496 | EL69: 28.05125964 | EM69: 28.32523805 | EN69: 28.60838584 | EO69: 28.90088047 | EP69: 29.20289824 | EQ69: 29.5146267 | ER69: 29.83630629 | ES69: 30.16825717 | ET69: 30.51068253 | EU69: 30.86313934 | EV69: 31.22684667 | EX69: 156 | EY69: 187.4944685 | EZ69: 31.22684667 | FA69: 1300 | FB69: 20 | FC69: 80 | FF69: 0.01946308725 | FG69: 111.2580372
A70: 160 | C70: 188.5122821 | D70: 182.9866161 | E70: 177.611604 | F70: 172.396584 | G70: 167.3285701 | H70: 162.4038082 | I70: 157.6201934 | J70: 152.9746729 | K70: 148.4636883 | L70: 144.0837428 | M70: 139.831548 | N70: 135.7039679 | O70: 131.6979505 | P70: 127.8104988 | Q70: 124.0386705 | R70: 120.3795845 | S70: 116.8304252 | T70: 113.3884426 | U70: 110.0509501 | V70: 106.8153217 | W70: 103.6789896 | X70: 100.6394424 | Y70: 97.69422354 | Z70: 94.84093021 | AA70: 92.07721198 | AB70: 89.4007696 | AC70: 86.80935374 | AD70: 84.30076376 | AE70: 81.87284658 | AF70: 79.5234955 | AG70: 77.2506492 | AH70: 75.0522907 | AI70: 72.92644638 | AJ70: 70.87118509 | AK70: 68.88461723 | AL70: 66.96489392 | AM70: 65.11020619 | AN70: 63.31878417 | AO70: 61.58889637 | AP70: 59.91884895 | AQ70: 58.30698506 | AR70: 56.75168412 | AS70: 55.25136125 | AT70: 53.80446662 | AU70: 52.40948487 | AV70: 51.06493458 | AW70: 49.76936768 | AX70: 48.52136895 | AY70: 47.31955552 | AZ70: 46.16257635 | BA70: 45.04911181 | BB70: 43.97787315 | BC70: 42.94760212 | BD70: 41.9570705 | BE70: 41.00507967 | BF70: 40.09046023 | BG70: 39.21207157 | BH70: 38.36880147 | BI70: 37.55956574 | BJ70: 36.78330783 | BK70: 36.03899844 | BL70: 35.32563516 | BM70: 34.64224212 | BN70: 33.98786961 | BO70: 33.36159372 | BP70: 32.76251603 | BQ70: 32.1897632 | BR70: 31.64248668 | BS70: 31.11986231 | BT70: 30.62109003 | BU70: 30.14539347 | BV70: 29.69201969 | BW70: 29.26023879 | BX70: 28.84934355 | BY70: 28.45864916 | BZ70: 28.0874928 | CA70: 27.73523338 | CB70: 27.40125113 | CC70: 27.08494731 | CD70: 26.78574386 | CE70: 26.50308305 | CF70: 26.23642717 | CG70: 25.98525816 | CH70: 25.74907729 | CI70: 25.52740482 | CJ70: 25.31977969 | CK70: 25.12575914 | CL70: 24.94491842 | CM70: 24.77685043 | CN70: 24.62116539 | CO70: 24.47749055 | CP70: 24.34546979 | CQ70: 24.22476338 | CR70: 24.11504759 | CS70: 24.0160144 | CT70: 23.92737119 | CU70: 23.84884039 | CV70: 23.78015922 | CW70: 23.72107934 | CX70: 23.67136656 | CY70: 23.63080054 | CZ70: 23.59917452 | DA70: 23.57629496 | DB70: 23.56198135 | DC70: 23.55606585 | DD70: 23.55839304 | DE70: 23.56881968 | DF70: 23.58721439 | DG70: 23.61345745 | DH70: 23.6474405 | DI70: 23.68906633 | DJ70: 23.73824863 | DK70: 23.79491174 | DL70: 23.85899048 | DM70: 23.93042987 | DN70: 24.00918496 | DO70: 24.09522064 | DP70: 24.1885114 | DQ70: 24.28904121 | DR70: 24.39680329 | DS70: 24.51179998 | DT70: 24.63404258 | DU70: 24.76355117 | DV70: 24.90035451 | DW70: 25.0444899 | DX70: 25.19600306 | DY70: 25.35494801 | DZ70: 25.52138699 | EA70: 25.69539038 | EB70: 25.87703659 | EC70: 26.06641198 | ED70: 26.26361083 | EE70: 26.46873528 | EF70: 26.68189526 | EG70: 26.90320861 | EH70: 27.13280106 | EI70: 27.37080632 | EJ70: 27.61736592 | EK70: 27.87262882 | EL70: 28.13675082 | EM70: 28.4098945 | EN70: 28.6922312 | EO70: 28.98394565 | EP70: 29.28523987 | EQ70: 29.59632274 | ER70: 29.91737018 | ES70: 30.24849413 | ET70: 30.58992488 | EU70: 30.94254254 | EV70: 31.30566214 | EX70: 160 | EY70: 188.5122821 | EZ70: 31.30566214 | FA70: 1300 | FB70: 20 | FC70: 80 | FF70: 0.02013422819 | FG70: 108.8334134
A71: 164 | C71: 189.4836937 | D71: 183.962857 | E71: 178.6024445 | F71: 173.3861852 | G71: 168.3192436 | H71: 163.3979346 | I71: 158.6173057 | J71: 153.9735283 | K71: 149.4633958 | L71: 145.0837763 | M71: 140.8314863 | N71: 136.7033495 | O71: 132.6962576 | P71: 128.8071907 | Q71: 125.0332115 | R71: 121.371455 | S71: 117.8191211 | T71: 114.3734711 | U71: 111.0318266 | V71: 107.7915696 | W71: 104.6501407 | X71: 101.6050382 | Y71: 98.65381656 | Z71: 95.79408441 | AA71: 93.02350341 | AB71: 90.33978674 | AC71: 87.74069783 | AD71: 85.22404915 | AE71: 82.78770106 | AF71: 80.42956064 | AG71: 78.1475807 | AH71: 75.93975864 | AI71: 73.80413552 | AJ71: 71.73879508 | AK71: 69.74186278 | AL71: 67.81150499 | AM71: 65.9459281 | AN71: 64.14337771 | AO71: 62.40213788 | AP71: 60.72053036 | AQ71: 59.09691387 | AR71: 57.52968345 | AS71: 56.01726976 | AT71: 54.55813844 | AU71: 53.15078953 | AV71: 51.79375688 | AW71: 50.48560752 | AX71: 49.22494121 | AY71: 48.01038982 | AZ71: 46.84061687 | BA71: 45.71431702 | BB71: 44.63021558 | BC71: 43.58706807 | BD71: 42.58365972 | BE71: 41.6188051 | BF71: 40.69134761 | BG71: 39.80015913 | BH71: 38.94413956 | BI71: 38.12221645 | BJ71: 37.33334461 | BK71: 36.57650569 | BL71: 35.85070782 | BM71: 35.15498528 | BN71: 34.48839804 | BO71: 33.85003149 | BP71: 33.23899602 | BQ71: 32.6544267 | BR71: 32.0954829 | BS71: 31.56134799 | BT71: 31.05122892 | BU71: 30.56435595 | BV71: 30.09998227 | BW71: 29.65738368 | BX71: 29.23585822 | BY71: 28.83472587 | BZ71: 28.4533282 | CA71: 28.09102804 | CB71: 27.74720915 | CC71: 27.42127586 | CD71: 27.11265279 | CE71: 26.82078448 | CF71: 26.54513509 | CG71: 26.28518802 | CH71: 26.04044566 | CI71: 25.810429 | CJ71: 25.59467735 | CK71: 25.39274798 | CL71: 25.20421582 | CM71: 25.02867313 | CN71: 24.8657292 | CO71: 24.71501002 | CP71: 24.57615795 | CQ71: 24.44883143 | CR71: 24.33270468 | CS71: 24.22746736 | CT71: 24.13282428 | CU71: 24.04849512 | CV71: 23.97421411 | CW71: 23.90972972 | CX71: 23.85480441 | CY71: 23.80921433 | CZ71: 23.77274901 | DA71: 23.74521112 | DB71: 23.72641617 | DC71: 23.71619227 | DD71: 23.71437984 | DE71: 23.72083136 | DF71: 23.73541113 | DG71: 23.75799501 | DH71: 23.7884702 | DI71: 23.82673499 | DJ71: 23.87269853 | DK71: 23.92628063 | DL71: 23.98741154 | DM71: 24.05603173 | DN71: 24.13209171 | DO71: 24.21555183 | DP71: 24.30638213 | DQ71: 24.40456209 | DR71: 24.51008057 | DS71: 24.62293555 | DT71: 24.74313406 | DU71: 24.870692 | DV71: 25.005634 | DW71: 25.14799335 | DX71: 25.29781184 | DY71: 25.45513967 | DZ71: 25.62003537 | EA71: 25.79256568 | EB71: 25.97280553 | EC71: 26.16083795 | ED71: 26.35675403 | EE71: 26.56065292 | EF71: 26.77264173 | EG71: 26.99283548 | EH71: 27.22135706 | EI71: 27.45833711 | EJ71: 27.70391416 | EK71: 27.95823504 | EL71: 28.22145554 | EM71: 28.49374065 | EN71: 28.77526307 | EO71: 29.06619887 | EP71: 29.36672326 | EQ71: 29.67701944 | ER71: 29.99731689 | ES71: 30.32792642 | ET71: 30.66907223 | EU71: 31.02036025 | EV71: 31.38290384 | EX71: 164 | EY71: 189.4836937 | EZ71: 31.38290384 | FA71: 1300 | FB71: 20 | FC71: 80 | FF71: 0.02080536913 | FG71: 106.4747851
A72: 168 | C72: 190.4288641 | D72: 184.9127263 | E72: 179.5468156 | F72: 174.3390635 | G72: 169.277175 | H72: 164.3576805 | I72: 159.5783637 | J72: 154.9360572 | K72: 150.4271859 | L72: 146.0482834 | M72: 141.7960896 | N72: 137.6674818 | O72: 133.6594134 | P72: 129.7688927 | Q72: 125.9929865 | R72: 122.3288264 | S72: 118.7736119 | T72: 115.3246091 | U72: 111.9791484 | V72: 108.7346214 | W72: 105.5884791 | X72: 102.5382295 | Y72: 99.58143713 | Z72: 96.71572079 | AA72: 93.93875289 | AB72: 91.24825781 | AC72: 88.64201067 | AD72: 86.11783605 | AE72: 83.67360676 | AF72: 81.30724271 | AG72: 79.01670973 | AH72: 76.80001856 | AI72: 74.65522381 | AJ72: 72.58042297 | AK72: 70.57375548 | AL72: 68.63340181 | AM72: 66.7575826 | AN72: 64.94455782 | AO72: 63.19262596 | AP72: 61.50012324 | AQ72: 59.86542294 | AR72: 58.28693458 | AS72: 56.76310331 | AT72: 55.29240922 | AU72: 53.87336673 | AV72: 52.50452394 | AW72: 51.18446203 | AX72: 49.91179476 | AY72: 48.68516783 | AZ72: 47.50325842 | BA72: 46.36477462 | BB72: 45.26845497 | BC72: 44.21306793 | BD72: 43.19741147 | BE72: 42.22031256 | BF72: 41.28062675 | BG72: 40.37723771 | BH72: 39.50905686 | BI72: 38.6750229 | BJ72: 37.87410143 | BK72: 37.10528456 | BL72: 36.36759052 | BM72: 35.66006323 | BN72: 34.98177203 | BO72: 34.33181119 | BP72: 33.70929962 | BQ72: 33.11338052 | BR72: 32.54322095 | BS72: 31.99801156 | BT72: 31.4769662 | BU72: 30.97932159 | BV72: 30.50433696 | BW72: 30.05129373 | BX72: 29.61949519 | BY72: 29.20826612 | BZ72: 28.8169525 | CA72: 28.44492115 | CB72: 28.09155943 | CC72: 27.7562749 | CD72: 27.43849498 | CE72: 27.13766666 | CF72: 26.85325616 | CG72: 26.58474859 | CH72: 26.33164769 | CI72: 26.09347544 | CJ72: 25.8697718 | CK72: 25.66009438 | CL72: 25.46401811 | CM72: 25.28113497 | CN72: 25.11105364 | CO72: 24.95339922 | CP72: 24.80781293 | CQ72: 24.67395178 | CR72: 24.55148832 | CS72: 24.44011029 | CT72: 24.33952037 | CU72: 24.24943588 | CV72: 24.16958849 | CW72: 24.09972394 | CX72: 24.03960175 | CY72: 23.98899497 | CZ72: 23.94768989 | DA72: 23.91548579 | DB72: 23.89219468 | DC72: 23.87764102 | DD72: 23.87166149 | DE72: 23.87410474 | DF72: 23.88483116 | DG72: 23.90371264 | DH72: 23.93063231 | DI72: 23.96548438 | DJ72: 24.00817388 | DK72: 24.05861646 | DL72: 24.11673819 | DM72: 24.18247537 | DN72: 24.25577433 | DO72: 24.33659129 | DP72: 24.42489211 | DQ72: 24.5206522 | DR72: 24.62385632 | DS72: 24.73449846 | DT72: 24.85258169 | DU72: 24.97811799 | DV72: 25.11112818 | DW72: 25.25164181 | DX72: 25.39969699 | DY72: 25.55534037 | DZ72: 25.718627 | EA72: 25.88962028 | EB72: 26.0683919 | EC72: 26.25502175 | ED72: 26.44959787 | EE72: 26.65221643 | EF72: 26.86298167 | EG72: 27.08200594 | EH72: 27.30940978 | EI72: 27.54532198 | EJ72: 27.78987953 | EK72: 28.04322728 | EL72: 28.30551744 | EM72: 28.57690921 | EN72: 28.85757016 | EO72: 29.14768049 | EP72: 29.44743771 | EQ72: 29.75704977 | ER72: 30.07669869 | ES72: 30.40650254 | ET72: 30.74667012 | EU72: 31.09803185 | EV72: 31.46000052 | EX72: 168 | EY72: 190.4288641 | EZ72: 31.46000052 | FA72: 1300 | FB72: 20 | FC72: 80 | FF72: 0.02147651007 | FG72: 104.1804037
A73: 172 | C73: 191.3321921 | D73: 185.820545 | E73: 180.4677421 | F73: 175.2588264 | G73: 170.1982877 | H73: 165.2821853 | I73: 160.5056815 | J73: 155.8650563 | K73: 151.3571202 | L73: 146.97872 | M73: 142.7266581 | N73: 138.5977607 | O73: 134.5889319 | P73: 130.6971655 | Q73: 126.919537 | R73: 123.2531931 | S73: 119.6953456 | T73: 116.2432692 | U73: 112.8943005 | V73: 109.6458376 | W73: 106.4953386 | X73: 103.4403201 | Y73: 100.4783558 | Z73: 97.60707439 | AA73: 94.82415854 | AB73: 92.1273431 | AC73: 89.51441403 | AD73: 86.98320701 | AE73: 84.53160632 | AF73: 82.15754362 | AG73: 79.8589968 | AH73: 77.63398891 | AI73: 75.48058714 | AJ73: 73.39690172 | AK73: 71.38108504 | AL73: 69.43133067 | AM73: 67.54587248 | AN73: 65.72298377 | AO73: 63.96097644 | AP73: 62.25820023 | AQ73: 60.61304187 | AR73: 59.02392445 | AS73: 57.48930663 | AT73: 56.00768197 | AU73: 54.5775783 | AV73: 53.19755706 | AW73: 51.86621269 | AX73: 50.58217204 | AY73: 49.34409381 | AZ73: 48.15066798 | BA73: 47.00061526 | BB73: 45.89268664 | BC73: 44.82566279 | BD73: 43.79835365 | BE73: 42.80959793 | BF73: 41.85826264 | BG73: 40.94324266 | BH73: 40.06346029 | BI73: 39.21786484 | BJ73: 38.40543218 | BK73: 37.62516437 | BL73: 36.87608926 | BM73: 36.15726006 | BN73: 35.46775501 | BO73: 34.80667695 | BP73: 34.173153 | BQ73: 33.56633416 | BR73: 32.98539498 | BS73: 32.42953316 | BT73: 31.89796926 | BU73: 31.3899463 | BV73: 30.90472945 | BW73: 30.4416057 | BX73: 29.99988347 | BY73: 29.57889235 | BZ73: 29.17798272 | CA73: 28.79652545 | CB73: 28.43391155 | CC73: 28.08955188 | CD73: 27.7628768 | CE73: 27.45333587 | CF73: 27.16039755 | CG73: 26.88354884 | CH73: 26.62229502 | CI73: 26.3761593 | CJ73: 26.14468254 | CK73: 25.92742294 | CL73: 25.72395573 | CM73: 25.53387287 | CN73: 25.35678277 | CO73: 25.19230997 | CP73: 25.04009485 | CQ73: 24.89979337 | CR73: 24.77107675 | CS73: 24.65363118 | CT73: 24.5471576 | CU73: 24.45137133 | CV73: 24.36600188 | CW73: 24.29079261 | CX73: 24.22550055 | CY73: 24.16989602 | CZ73: 24.12376249 | DA73: 24.08689624 | DB73: 24.05910616 | DC73: 24.04021348 | DD73: 24.03005155 | DE73: 24.02846558 | DF73: 24.03531245 | DG73: 24.05046043 | DH73: 24.07378902 | DI73: 24.10518871 | DJ73: 24.14456077 | DK73: 24.19181708 | DL73: 24.2468799 | DM73: 24.30968171 | DN73: 24.38016502 | DO73: 24.45828222 | DP73: 24.54399537 | DQ73: 24.6372761 | DR73: 24.73810543 | DS73: 24.84647363 | DT73: 24.96238009 | DU73: 25.08583321 | DV73: 25.21685025 | DW73: 25.35545728 | DX73: 25.50168901 | DY73: 25.65558877 | DZ73: 25.81720837 | EA73: 25.98660806 | EB73: 26.16385646 | EC73: 26.34903051 | ED73: 26.54221546 | EE73: 26.74350481 | EF73: 26.9530003 | EG73: 27.17081187 | EH73: 27.39705757 | EI73: 27.63186354 | EJ73: 27.875364 | EK73: 28.12770159 | EL73: 28.38902802 | EM73: 28.65950452 | EN73: 28.93930093 | EO73: 29.2285918 | EP73: 29.52755157 | EQ73: 29.83636013 | ER73: 30.15523746 | ES73: 30.48448467 | ET73: 30.82434246 | EU73: 31.17446281 | EV73: 31.53586575 | EX73: 172 | EY73: 191.3321921 | EZ73: 31.53586575 | FA73: 1300 | FB73: 20 | FC73: 80 | FF73: 0.02214765101 | FG73: 101.9485683
A74: 176 | C74: 192.2111726 | D74: 186.7038953 | E74: 181.3464523 | F74: 176.1455331 | G74: 171.089492 | H74: 166.1750849 | I74: 161.3999802 | J74: 156.7609142 | K74: 152.2543055 | L74: 147.876717 | M74: 143.6249112 | N74: 139.4957746 | O74: 135.4862637 | P74: 131.5933912 | Q74: 127.8142321 | R74: 124.145929 | S74: 120.585694 | T74: 117.1308069 | U74: 113.7786121 | V74: 110.5265162 | W74: 107.3719857 | X74: 104.3125455 | Y74: 101.3457774 | Z74: 98.46931901 | AA74: 95.68086192 | AB74: 92.97815061 | AC74: 90.35898102 | AD74: 87.82119918 | AE74: 85.3627 | AF74: 82.98142606 | AG74: 80.67536643 | AH74: 78.44255557 | AI74: 76.28107227 | AJ74: 74.18903861 | AK74: 72.16461897 | AL74: 70.20601908 | AM74: 68.3114851 | AN74: 66.47930273 | AO74: 64.70779635 | AP74: 62.99532825 | AQ74: 61.34029777 | AR74: 59.74114058 | AS74: 58.19632796 | AT74: 56.70436607 | AU74: 55.26379527 | AV74: 53.87318948 | AW74: 52.53115554 | AX74: 51.23633259 | AY74: 49.9873915 | AZ74: 48.78303427 | BA74: 47.62199351 | BB74: 46.50303187 | BC74: 45.42494155 | BD74: 44.38654379 | BE74: 43.38668837 | BF74: 42.42425315 | BG74: 41.4981436 | BH74: 40.60729235 | BI74: 39.75065876 | BJ74: 38.92722849 | BK74: 38.13601307 | BL74: 37.37604952 | BM74: 36.64639992 | BN74: 35.94615104 | BO74: 35.27441395 | BP74: 34.63032365 | BQ74: 34.01303868 | BR74: 33.42174078 | BS74: 32.85563452 | BT74: 32.31394695 | BU74: 31.79592726 | BV74: 31.30084642 | BW74: 30.82799684 | BX74: 30.37669207 | BY74: 29.94626642 | BZ74: 29.53607467 | CA74: 29.14549174 | CB74: 28.77391233 | CC74: 28.42075066 | CD74: 28.08544011 | CE74: 27.76743294 | CF74: 27.46619995 | CG74: 27.18123019 | CH74: 26.91203066 | CI74: 26.65812598 | CJ74: 26.41905814 | CK74: 26.19438614 | CL74: 25.98368575 | CM74: 25.78654919 | CN74: 25.60258485 | CO74: 25.431417 | CP74: 25.27268551 | CQ74: 25.12604555 | CR74: 24.99116736 | CS74: 24.86773593 | CT74: 24.75545073 | CU74: 24.65402549 | CV74: 24.56318787 | CW74: 24.48267927 | CX74: 24.4122545 | CY74: 24.35168158 | CZ74: 24.3007415 | DA74: 24.25922792 | DB74: 24.22694698 | DC74: 24.20371706 | DD74: 24.18936853 | DE74: 24.18374354 | DF74: 24.1866958 | DG74: 24.19809037 | DH74: 24.21780346 | DI74: 24.24572219 | DJ74: 24.28174444 | DK74: 24.32577866 | DL74: 24.37774363 | DM74: 24.43756836 | DN74: 24.50519186 | DO74: 24.58056302 | DP74: 24.66364043 | DQ74: 24.75439223 | DR74: 24.852796 | DS74: 24.95883858 | DT74: 25.07251598 | DU74: 25.19383328 | DV74: 25.32280445 | DW74: 25.45945232 | DX74: 25.60380845 | DY74: 25.75591308 | DZ74: 25.91581501 | EA74: 26.08357159 | EB74: 26.25924859 | EC74: 26.44292025 | ED74: 26.63466912 | EE74: 26.83458612 | EF74: 27.04277046 | EG74: 27.25932965 | EH74: 27.48437963 | EI74: 27.71804479 | EJ74: 27.96045801 | EK74: 28.21176046 | EL74: 28.47210105 | EM74: 28.74163599 | EN74: 29.02052963 | EO74: 29.30895816 | EP74: 29.60711483 | EQ74: 29.915206 | ER74: 30.23341864 | ES74: 30.56187725 | ET74: 30.90077333 | EU74: 31.2508905 | EV74: 31.61172773 | EX74: 176 | EY74: 192.2111726 | EZ74: 31.61172773 | FA74: 1300 | FB74: 20 | FC74: 80 | FF74: 0.02281879195 | FG74: 99.77762437
A75: 180 | C75: 193.0522971 | D75: 187.5492014 | E75: 182.2035558 | F75: 177.0015647 | G75: 171.9470854 | H75: 167.035975 | I75: 162.2635123 | J75: 157.6260675 | K75: 153.1204581 | L75: 148.7435094 | M75: 144.4920126 | N75: 140.3627985 | O75: 136.3527819 | P75: 132.4589683 | Q75: 128.6784433 | R75: 125.008363 | S75: 121.4459494 | T75: 117.9884882 | U75: 114.6333288 | V75: 111.3778831 | W75: 108.219624 | X75: 105.1560836 | Y75: 102.1848519 | Z75: 99.30357459 | AA75: 96.50995217 | AB75: 93.80173799 | AC75: 91.17673717 | AD75: 88.63280526 | AE75: 86.16784696 | AF75: 83.77981492 | AG75: 81.46670856 | AH75: 79.22657292 | AI75: 77.05749757 | AJ75: 74.95761559 | AK75: 72.92510249 | AL75: 70.95817532 | AM75: 69.05509164 | AN75: 67.21414871 | AO75: 65.43368252 | AP75: 63.71206705 | AQ75: 62.04771337 | AR75: 60.43906894 | AS75: 58.8846168 | AT75: 57.38287486 | AU75: 55.93239522 | AV75: 54.53176349 | AW75: 53.1795981 | AX75: 51.87454974 | AY75: 50.61530067 | AZ75: 49.40056421 | BA75: 48.22908413 | BB75: 47.09963409 | BC75: 46.01101713 | BD75: 44.96206515 | BE75: 43.95163838 | BF75: 42.97862494 | BG75: 42.04194031 | BH75: 41.14052694 | BI75: 40.27335372 | BJ75: 39.43941559 | BK75: 38.63773313 | BL75: 37.86735207 | BM75: 37.12734298 | BN75: 36.4168008 | BO75: 35.73484447 | BP75: 35.08061654 | BQ75: 34.45328284 | BR75: 33.85203203 | BS75: 33.27607533 | BT75: 32.72464609 | BU75: 32.19699947 | BV75: 31.69241211 | BW75: 31.21018176 | BX75: 30.74962696 | BY75: 30.31008672 | BZ75: 29.89092016 | CA75: 29.49150623 | CB75: 29.11124336 | CC75: 28.74954916 | CD75: 28.40586008 | CE75: 28.07963115 | CF75: 27.77033563 | CG75: 27.47746474 | CH75: 27.20052734 | CI75: 26.93904963 | CJ75: 26.69257487 | CK75: 26.46066311 | CL75: 26.24289083 | CM75: 26.03885076 | CN75: 25.84815149 | CO75: 25.67041729 | CP75: 25.50528776 | CQ75: 25.3524176 | CR75: 25.21147633 | CS75: 25.08214801 | CT75: 24.964131 | CU75: 24.8571377 | CV75: 24.76089429 | CW75: 24.67514047 | CX75: 24.59962922 | CY75: 24.53412657 | CZ75: 24.47841135 | DA75: 24.43227496 | DB75: 24.39552113 | DC75: 24.36796572 | DD75: 24.34943647 | DE75: 24.33977281 | DF75: 24.33882564 | DG75: 24.34645712 | DH75: 24.36254051 | DI75: 24.38695992 | DJ75: 24.41961015 | DK75: 24.46039652 | DL75: 24.50923471 | DM75: 24.56605053 | DN75: 24.63077982 | DO75: 24.70336828 | DP75: 24.7837713 | DQ75: 24.87195385 | DR75: 24.96789034 | DS75: 25.07156446 | DT75: 25.18296913 | DU75: 25.30210631 | DV75: 25.42898699 | DW75: 25.56363099 | DX75: 25.70606697 | DY75: 25.85633228 | DZ75: 26.01447295 | EA75: 26.18054359 | EB75: 26.35460732 | EC75: 26.53673579 | ED75: 26.72700911 | EE75: 26.92551584 | EF75: 27.13235301 | EG75: 27.34762604 | EH75: 27.57144874 | EI75: 27.80394322 | EJ75: 28.04523987 | EK75: 28.29547766 | EL75: 28.55480466 | EM75: 28.82337866 | EN75: 29.10136673 | EO75: 29.38894188 | EP75: 29.6862779 | EQ75: 29.99355226 | ER75: 30.3109768 | ES75: 30.63884288 | ET75: 30.97740395 | EU75: 31.32635512 | EV75: 31.68663377 | EX75: 180 | EY75: 193.0522971 | EZ75: 31.68663377 | FA75: 1300 | FB75: 20 | FC75: 80 | FF75: 0.02348993289 | FG75: 97.66596244
A76: 184 | C76: 193.8708015 | D76: 188.3717749 | E76: 183.0222204 | F76: 177.8277287 | G76: 172.7772616 | H76: 167.8677517 | I76: 163.0967515 | J76: 158.4609175 | K76: 153.9566699 | L76: 149.5805989 | M76: 145.3294849 | N76: 141.2002202 | O76: 137.1897627 | P76: 133.2951294 | Q76: 129.5134022 | R76: 125.8417335 | S76: 122.2773461 | T76: 118.8175312 | U76: 115.4596451 | V76: 112.2011067 | W76: 109.0393959 | X76: 105.9720518 | Y76: 102.9966712 | Z76: 100.1109074 | AA76: 97.31246856 | AB76: 94.59911619 | AC76: 91.96866404 | AD76: 89.41897648 | AE76: 86.94796735 | AF76: 84.55359867 | AG76: 82.23387942 | AH76: 79.98686447 | AI76: 77.8106534 | AJ76: 75.70338947 | AK76: 73.66325857 | AL76: 71.68848822 | AM76: 69.77734665 | AN76: 67.92814184 | AO76: 66.13922062 | AP76: 64.40896787 | AQ76: 62.73580561 | AR76: 61.11819228 | AS76: 59.55462192 | AT76: 58.04362344 | AU76: 56.58375992 | AV76: 55.17362789 | AW76: 53.81185668 | AX76: 52.49710778 | AY76: 51.22807417 | AZ76: 50.0034798 | BA76: 48.82207892 | BB76: 47.68265557 | BC76: 46.584023 | BD76: 45.52502315 | BE76: 44.50452615 | BF76: 43.52142979 | BG76: 42.57465907 | BH76: 41.66316569 | BI76: 40.78592761 | BJ76: 39.9419486 | BK76: 39.1302578 | BL76: 38.34990931 | BM76: 37.59998177 | BN76: 36.87957791 | BO76: 36.18782422 | BP76: 35.52387053 | BQ76: 34.88688962 | BR76: 34.27607688 | BS76: 33.69064989 | BT76: 33.12984813 | BU76: 32.59293256 | BV76: 32.07918533 | BW76: 31.5879094 | BX76: 31.11842821 | BY76: 30.67008538 | BZ76: 30.24224434 | CA76: 29.83428804 | CB76: 29.4456186 | CC76: 29.07565705 | CD76: 28.72384297 | CE76: 28.3896342 | CF76: 28.07250654 | CG76: 27.77195348 | CH76: 27.48748584 | CI76: 27.21863155 | CJ76: 26.9649353 | CK76: 26.72595832 | CL76: 26.50127803 | CM76: 26.29048781 | CN76: 26.09319672 | CO76: 25.90902921 | CP76: 25.73762487 | CQ76: 25.57863814 | CR76: 25.4317381 | CS76: 25.29660816 | CT76: 25.17294582 | CU76: 25.06046245 | CV76: 24.95888301 | CW76: 24.86794581 | CX76: 24.78740232 | CY76: 24.71701686 | CZ76: 24.65656642 | DA76: 24.60584043 | DB76: 24.56464055 | DC76: 24.53278042 | DD76: 24.51008547 | DE76: 24.49639272 | DF76: 24.49155058 | DG76: 24.49541864 | DH76: 24.5078675 | DI76: 24.52877857 | DJ76: 24.55804389 | DK76: 24.59556598 | DL76: 24.64125767 | DM76: 24.69504189 | DN76: 24.75685161 | DO76: 24.8266296 | DP76: 24.90432837 | DQ76: 24.98990996 | DR76: 25.08334589 | DS76: 25.18461698 | DT76: 25.29371327 | DU76: 25.41063392 | DV76: 25.53538709 | DW76: 25.66798989 | DX76: 25.80846825 | DY76: 25.9568569 | DZ76: 26.11319924 | EA76: 26.27754739 | EB76: 26.44996203 | EC76: 26.63051244 | ED76: 26.81927643 | EE76: 27.0163403 | EF76: 27.22179887 | EG76: 27.43575543 | EH76: 27.65832183 | EI76: 27.8896186 | EJ76: 28.12977495 | EK76: 28.37892872 | EL76: 28.63722585 | EM76: 28.90481991 | EN76: 29.18187246 | EO76: 29.46855621 | EP76: 29.76506047 | EQ76: 30.07158957 | ER76: 30.38833435 | ES76: 30.71542587 | ET76: 31.05304178 | EU76: 31.40192187 | EV76: 31.76164118 | EX76: 184 | EY76: 193.8708015 | EZ76: 31.76164118 | FA76: 1300 | FB76: 20 | FC76: 80 | FF76: 0.02416107383 | FG76: 95.61201702
A77: 188 | C77: 194.6549534 | D77: 189.1598251 | E77: 183.8209131 | F77: 178.62545 | G77: 173.5767023 | H77: 168.6703702 | I77: 163.9018467 | J77: 159.2675764 | K77: 154.7643759 | L77: 150.3890499 | M77: 146.1383819 | N77: 142.0092073 | O77: 137.9984512 | P77: 134.1031283 | Q77: 130.3203324 | R77: 126.6472273 | S77: 123.0810432 | T77: 119.6190757 | U77: 116.258685 | V77: 112.9972947 | W77: 109.8323902 | X77: 106.7615168 | Y77: 103.7822784 | Z77: 100.8923353 | AA77: 98.089403 | AB77: 95.37125081 | AC77: 92.73570024 | AD77: 90.18062383 | AE77: 87.70394383 | AF77: 85.30363091 | AG77: 82.97770299 | AH77: 80.72422404 | AI77: 78.54130293 | AJ77: 76.42709242 | AK77: 74.37978804 | AL77: 72.39762708 | AM77: 70.47888767 | AN77: 68.62188779 | AO77: 66.82498439 | AP77: 65.0865725 | AQ77: 63.40508437 | AR77: 61.7789887 | AS77: 60.20678981 | AT77: 58.68702691 | AU77: 57.21827334 | AV77: 55.79913589 | AW77: 54.42825408 | AX77: 53.10429954 | AY77: 51.82597535 | AZ77: 50.5920154 | BA77: 49.40118384 | BB77: 48.25227446 | BC77: 47.14411014 | BD77: 46.07554231 | BE77: 45.04545043 | BF77: 44.05274145 | BG77: 43.09634935 | BH77: 42.17523462 | BI77: 41.28838382 | BJ77: 40.4348091 | BK77: 39.61354777 | BL77: 38.82366188 | BM77: 38.06423774 | BN77: 37.33438558 | BO77: 36.6332391 | BP77: 35.95995509 | BQ77: 35.31371303 | BR77: 34.69371475 | BS77: 34.09918401 | BT77: 33.52936618 | BU77: 32.98352786 | BV77: 32.46095655 | BW77: 31.96096028 | BX77: 31.4828673 | BY77: 31.02602573 | BZ77: 30.58980324 | CA77: 30.17358674 | CB77: 29.77678205 | CC77: 29.3988136 | CD77: 29.03912409 | CE77: 28.69717424 | CF77: 28.37244245 | CG77: 28.06442452 | CH77: 27.77263337 | CI77: 27.49659873 | CJ77: 27.23586687 | CK77: 26.99000033 | CL77: 26.75857762 | CM77: 26.54119296 | CN77: 26.33745603 | CO77: 26.14699169 | CP77: 25.96943969 | CQ77: 25.80445448 | CR77: 25.65170488 | CS77: 25.51087389 | CT77: 25.38165843 | CU77: 25.26376906 | CV77: 25.1569298 | CW77: 25.06087785 | CX77: 24.97536339 | CY77: 24.90014934 | CZ77: 24.83501114 | DA77: 24.77973655 | DB77: 24.73412539 | DC77: 24.69798941 | DD77: 24.67115202 | DE77: 24.65344812 | DF77: 24.64472391 | DG77: 24.64483671 | DH77: 24.65365475 | DI77: 24.67105702 | DJ77: 24.6969331 | DK77: 24.73118299 | DL77: 24.77371693 | DM77: 24.8244553 | DN77: 24.88332842 | DO77: 24.95027643 | DP77: 25.0252492 | DQ77: 25.10820613 | DR77: 25.19911607 | DS77: 25.29795722 | DT77: 25.40471701 | DU77: 25.519392 | DV77: 25.64198779 | DW77: 25.77251895 | DX77: 25.91100892 | DY77: 26.05749 | DZ77: 26.21200321 | EA77: 26.37459829 | EB77: 26.54533368 | EC77: 26.7242764 | ED77: 26.91150214 | EE77: 27.10709516 | EF77: 27.31114834 | EG77: 27.52376318 | EH77: 27.74504973 | EI77: 27.97512655 | EJ77: 28.21412071 | EK77: 28.4621679 | EL77: 28.71941299 | EM77: 28.98601067 | EN77: 29.26212538 | EO77: 29.54792859 | EP77: 29.84359353 | EQ77: 30.1492959 | ER77: 30.46524065 | ES77: 30.79170958 | ET77: 31.1289658 | EU77: 31.47674463 | EV77: 31.8359101 | EX77: 188 | EY77: 194.6549534 | EZ77: 31.8359101 | FA77: 1300 | FB77: 20 | FC77: 80 | FF77: 0.02483221477 | FG77: 93.61426541
A78: 192 | C78: 195.4180644 | D78: 189.9267299 | E78: 184.5845332 | F78: 179.3960909 | G78: 174.3509314 | H78: 169.4461227 | I78: 164.6791044 | J78: 160.0464677 | K78: 155.54464 | L78: 151.1702363 | M78: 146.9200505 | N78: 142.7909783 | O78: 138.7799786 | P78: 134.8840719 | Q78: 131.1003465 | R78: 127.4259631 | S78: 123.8581538 | T78: 120.394219 | U78: 117.0315252 | V78: 113.767502 | W78: 110.5996404 | X78: 107.5254917 | Y78: 104.5426655 | Z78: 101.6488286 | AA78: 98.84170321 | AB78: 96.11906556 | AC78: 93.4787446 | AD78: 90.91862047 | AE78: 88.43662325 | AF78: 86.03073169 | AG78: 83.69897195 | AH78: 81.43941647 | AI78: 79.25018278 | AJ78: 77.12943244 | AK78: 75.07536995 | AL78: 73.08624173 | AM78: 71.16033511 | AN78: 69.29597743 | AO78: 67.49153504 | AP78: 65.74541247 | AQ78: 64.05605153 | AR78: 62.4219305 | AS78: 60.84156332 | AT78: 59.31349884 | AU78: 57.83632001 | AV78: 56.40864323 | AW78: 55.0291176 | AX78: 53.69642427 | AY78: 52.40927577 | AZ78: 51.16641538 | BA78: 49.96661654 | BB78: 48.80868224 | BC78: 47.69144443 | BD78: 46.6137635 | BE78: 45.57452772 | BF78: 44.57265269 | BG78: 43.6070809 | BH78: 42.67678118 | BI78: 41.78074824 | BJ78: 40.91800219 | BK78: 40.08758811 | BL78: 39.2885756 | BM78: 38.52005834 | BN78: 37.78115367 | BO78: 37.0710022 | BP78: 36.38876738 | BQ78: 35.73363515 | BR78: 35.1048135 | BS78: 34.50153217 | BT78: 33.92304221 | BU78: 33.36861567 | BV78: 32.83754524 | BW78: 32.32914389 | BX78: 31.84274455 | BY78: 31.37769976 | BZ78: 30.93338136 | CA78: 30.50918015 | CB78: 30.10450561 | CC78: 29.71878554 | CD78: 29.35146581 | CE78: 29.00201 | CF78: 28.66989916 | CG78: 28.35463147 | CH78: 28.05572199 | CI78: 27.77270237 | CJ78: 27.50512054 | CK78: 27.25254048 | CL78: 27.01454192 | CM78: 26.79072007 | CN78: 26.58068539 | CO78: 26.38406331 | CP78: 26.20049394 | CQ78: 26.0296319 | CR78: 25.87114598 | CS78: 25.724719 | CT78: 25.59004745 | CU78: 25.46684138 | CV78: 25.35482406 | CW78: 25.25373184 | CX78: 25.16331387 | CY78: 25.0833319 | CZ78: 25.01356008 | DA78: 24.95378473 | DB78: 24.90380417 | DC78: 24.86342847 | DD78: 24.83247929 | DE78: 24.8107897 | DF78: 24.79820394 | DG78: 24.79457733 | DH78: 24.79977602 | DI78: 24.81367684 | DJ78: 24.83616716 | DK78: 24.86714471 | DL78: 24.90651747 | DM78: 24.95420345 | DN78: 25.01013061 | DO78: 25.07423674 | DP78: 25.14646927 | DQ78: 25.22678521 | DR78: 25.31515101 | DS78: 25.41154246 | DT78: 25.51594461 | DU78: 25.62835163 | DV78: 25.74876678 | DW78: 25.8772023 | DX78: 26.01367935 | DY78: 26.15822797 | DZ78: 26.31088697 | EA78: 26.47170396 | EB78: 26.64073525 | EC78: 26.81804587 | ED78: 27.0037095 | EE78: 27.19780847 | EF78: 27.40043376 | EG78: 27.61168498 | EH78: 27.83167045 | EI78: 28.06050728 | EJ78: 28.29832145 | EK78: 28.54524779 | EL78: 28.80142963 | EM78: 29.06701814 | EN78: 29.34217251 | EO78: 29.62706247 | EP78: 29.92187368 | EQ78: 30.22680821 | ER78: 30.54205988 | ES78: 30.86776612 | ET78: 31.20409374 | EU78: 31.55174154 | EV78: 31.9103519 | EX78: 192 | EY78: 195.4180644 | EZ78: 31.9103519 | FA78: 1300 | FB78: 20 | FC78: 80 | FF78: 0.0255033557 | FG78: 91.67122656
A79: 196 | C79: 196.1499165 | D79: 190.6622203 | E79: 185.3296448 | F79: 180.1403352 | G79: 175.0970076 | H79: 170.1952428 | I79: 165.430544 | J79: 160.7994161 | K79: 156.298669 | L79: 151.9250889 | M79: 147.6754536 | N79: 143.5466039 | O79: 139.5354738 | P79: 135.6390856 | Q79: 131.8545395 | R79: 128.1790056 | S79: 124.6097214 | T79: 121.1439908 | U79: 117.7791832 | V79: 114.5127321 | W79: 111.3421337 | X79: 108.2649447 | Y79: 105.2787806 | Z79: 102.3813143 | AA79: 99.57027427 | AB79: 96.84344339 | AC79: 94.19865731 | AD79: 91.63380317 | AE79: 89.14681833 | AF79: 86.73568901 | AG79: 84.39844907 | AH79: 82.13317881 | AI79: 79.93800383 | AJ79: 77.81109391 | AK79: 75.75066189 | AL79: 73.75496268 | AM79: 71.82229223 | AN79: 69.95098656 | AO79: 68.13942085 | AP79: 66.38600847 | AQ79: 64.68920018 | AR79: 63.04748322 | AS79: 61.45938055 | AT79: 59.92345001 | AU79: 58.43828359 | AV79: 57.00250669 | AW79: 55.6147774 | AX79: 54.2737858 | AY79: 52.97825331 | AZ79: 51.72693207 | BA79: 50.51860424 | BB79: 49.35208147 | BC79: 48.22620428 | BD79: 47.13984151 | BE79: 46.09188974 | BF79: 45.08127279 | BG79: 44.10694117 | BH79: 43.16787162 | BI79: 42.26306658 | BJ79: 41.39155373 | BK79: 40.55238553 | BL79: 39.74463879 | BM79: 38.96741417 | BN79: 38.21983584 | BO79: 37.501051 | BP79: 36.8102295 | BQ79: 36.14656342 | BR79: 35.50926674 | BS79: 34.8975749 | BT79: 34.31074445 | BU79: 33.74805272 | BV79: 33.20879741 | BW79: 32.69229629 | BX79: 32.19788685 | BY79: 31.72492595 | BZ79: 31.2727895 | CA79: 30.84087216 | CB79: 30.42858698 | CC79: 30.03536516 | CD79: 29.66065565 | CE79: 29.30392496 | CF79: 28.96465678 | CG79: 28.64235172 | CH79: 28.33652705 | CI79: 28.04671637 | CJ79: 27.77246939 | CK79: 27.51335162 | CL79: 27.2689441 | CM79: 27.03884319 | CN79: 26.82266025 | CO79: 26.6200214 | CP79: 26.43056732 | CQ79: 26.25395293 | CR79: 26.08984721 | CS79: 25.93793292 | CT79: 25.7979064 | CU79: 25.66947732 | CV79: 25.55236847 | CW79: 25.44631552 | CX79: 25.35106684 | CY79: 25.26638323 | CZ79: 25.1920378 | DA79: 25.12781567 | DB79: 25.07351385 | DC79: 25.02894102 | DD79: 24.99391733 | DE79: 24.96827424 | DF79: 24.95185432 | DG79: 24.94451111 | DH79: 24.94610893 | DI79: 24.95652269 | DJ79: 24.97563783 | DK79: 25.00335006 | DL79: 25.03956527 | DM79: 25.08419941 | DN79: 25.13717832 | DO79: 25.19843762 | DP79: 25.26792258 | DQ79: 25.34558804 | DR79: 25.43139826 | DS79: 25.52532684 | DT79: 25.62735666 | DU79: 25.73747971 | DV79: 25.85569712 | DW79: 25.982019 | DX79: 26.1164644 | DY79: 26.25906131 | DZ79: 26.4098465 | EA79: 26.5688656 | EB79: 26.73617297 | EC79: 26.91183172 | ED79: 27.0959137 | EE79: 27.28849947 | EF79: 27.48967833 | EG79: 27.69954835 | EH79: 27.91821631 | EI79: 28.14579767 | EJ79: 28.38241655 | EK79: 28.62820582 | EL79: 28.88330753 | EM79: 29.14787359 | EN79: 29.422066 | EO79: 29.70605468 | EP79: 30.00001239 | EQ79: 30.30411355 | ER79: 30.61855732 | ES79: 30.94361631 | ET79: 31.27956071 | EU79: 31.62616323 | EV79: 31.98422271 | EX79: 196 | EY79: 196.1499165 | EZ79: 31.98422271 | FA79: 1300 | FB79: 20 | FC79: 80 | FF79: 0.02617449664 | FG79: 89.78145998
A80: 200 | C80: 196.8621746 | D80: 191.3780194 | E80: 186.0426931 | F80: 180.8599472 | G80: 175.819837 | H80: 170.9195317 | I80: 166.1563629 | J80: 161.526869 | K80: 157.0274886 | L80: 152.6548585 | M80: 148.405783 | N80: 144.2771591 | O80: 140.2659465 | P80: 136.3691686 | Q80: 132.5839198 | R80: 128.9073678 | S80: 125.3367524 | T80: 121.8693821 | U80: 118.5026319 | V80: 115.2339402 | W80: 112.0608079 | X80: 108.9807966 | Y80: 105.991527 | Z80: 103.0906773 | AA80: 100.2759818 | AB80: 97.54522957 | AC80: 94.89626246 | AD80: 92.32697426 | AE80: 89.83530904 | AF80: 87.41926001 | AG80: 85.07686815 | AH80: 82.80622112 | AI80: 80.605452 | AJ80: 78.47273821 | AK80: 76.4063004 | AL80: 74.40440138 | AM80: 72.46534515 | AN80: 70.58747586 | AO80: 68.76917689 | AP80: 67.00886992 | AQ80: 65.30501405 | AR80: 63.65610493 | AS80: 62.06067393 | AT80: 60.51728736 | AU80: 59.02454566 | AV80: 57.58108269 | AW80: 56.18556496 | AX80: 54.83669096 | AY80: 53.53319048 | AZ80: 52.27382395 | BA80: 51.05738178 | BB80: 49.88268378 | BC80: 48.74857855 | BD80: 47.65394289 | BE80: 46.59768127 | BF80: 45.57872524 | BG80: 44.59603294 | BH80: 43.64858859 | BI80: 42.73540196 | BJ80: 41.85550792 | BK80: 41.00796596 | BL80: 40.19185973 | BM80: 39.40629657 | BN80: 38.65040716 | BO80: 37.92334498 | BP80: 37.22428601 | BQ80: 36.55242826 | BR80: 35.9069914 | BS80: 35.28721638 | BT80: 34.69236506 | BU80: 34.12171984 | BV80: 33.5745833 | BW80: 33.05027786 | BX80: 32.54814542 | BY80: 32.06754707 | BZ80: 31.60786271 | CA80: 31.16849075 | CB80: 30.7488478 | CC80: 30.34836836 | CD80: 29.96650453 | CE80: 29.60272565 | CF80: 29.25651811 | CG80: 28.92738496 | CH80: 28.6148457 | CI80: 28.31843599 | CJ80: 28.03770733 | CK80: 27.77222686 | CL80: 27.52157705 | CM80: 27.28535546 | CN80: 27.0631745 | CO80: 26.85466113 | CP80: 26.65945669 | CQ80: 26.47721659 | CR80: 26.30761011 | CS80: 26.15032019 | CT80: 26.00504312 | CU80: 25.87148843 | CV80: 25.74937858 | CW80: 25.63844878 | CX80: 25.53844679 | CY80: 25.44913272 | CZ80: 25.37027879 | DA80: 25.30166918 | DB80: 25.24309981 | DC80: 25.19437817 | DD80: 25.15532313 | DE80: 25.12576477 | DF80: 25.10554422 | DG80: 25.09451346 | DH80: 25.09253521 | DI80: 25.09948273 | DJ80: 25.11523969 | DK80: 25.13970004 | DL80: 25.17276784 | DM80: 25.21435716 | DN80: 25.26439194 | DO80: 25.32280586 | DP80: 25.38954227 | DQ80: 25.46455401 | DR80: 25.54780337 | DS80: 25.639262 | DT80: 25.73891076 | DU80: 25.84673971 | DV80: 25.96274799 | DW80: 26.08694377 | DX80: 26.2193442 | DY80: 26.35997535 | DZ80: 26.50887214 | EA80: 26.66607837 | EB80: 26.83164661 | EC80: 27.00563826 | ED80: 27.18812345 | EE80: 27.37918112 | EF80: 27.57889893 | EG80: 27.78737331 | EH80: 28.0047095 | EI80: 28.23102164 | EJ80: 28.46643287 | EK80: 28.7110754 | EL80: 28.96509013 | EM80: 29.22862619 | EN80: 29.5018407 | EO80: 29.78490083 | EP80: 30.07798897 | EQ80: 30.38130478 | ER80: 30.69504424 | ES80: 31.01935098 | ET80: 31.35438336 | EU80: 31.70080204 | EV80: 32.05830905 | EX80: 200 | EY80: 196.8621746 | EZ80: 32.05830905 | FA80: 1300 | FB80: 20 | FC80: 80 | FF80: 0.02684563758 | FG80: 87.94356466
A81: 204 | C81: 197.5459169 | D81: 192.0651608 | E81: 186.73855 | F81: 181.5550407 | G81: 176.5168378 | H81: 171.6194338 | I81: 166.8584366 | J81: 162.230399 | K81: 157.7321206 | L81: 153.3603709 | M81: 149.1119239 | N81: 144.9836266 | O81: 140.97242 | P81: 137.0753329 | Q81: 133.2894705 | R81: 129.6120083 | S81: 126.0401898 | T81: 122.5713262 | U81: 119.2027947 | V81: 115.9320375 | W81: 112.7565599 | X81: 109.6739282 | Y81: 106.6817682 | Z81: 103.7777633 | AA81: 100.9596533 | AB81: 98.22523271 | AC81: 95.57234939 | AD81: 92.9989031 | AE81: 90.50284423 | AF81: 88.08217244 | AG81: 85.73493539 | AH81: 83.45922757 | AI81: 81.25318904 | AJ81: 79.11500437 | AK81: 77.04290146 | AL81: 75.03515053 | AM81: 73.09006306 | AN81: 71.20599082 | AO81: 69.38132486 | AP81: 67.61449461 | AQ81: 65.903967 | AR81: 64.24824554 | AS81: 62.64586949 | AT81: 61.0954131 | AU81: 59.59548474 | AV81: 58.14472619 | AW81: 56.74181189 | AX81: 55.38544825 | AY81: 54.0743729 | AZ81: 52.80735409 | BA81: 51.58319001 | BB81: 50.40070815 | BC81: 49.25876474 | BD81: 48.1562441 | BE81: 47.09205815 | BF81: 46.06514575 | BG81: 45.07447228 | BH81: 44.11902903 | BI81: 43.19783274 | BJ81: 42.30992511 | BK81: 41.45437229 | BL81: 40.63026446 | BM81: 39.83671534 | BN81: 39.07286177 | BO81: 38.33786329 | BP81: 37.63090172 | BQ81: 36.95118073 | BR81: 36.29792548 | BS81: 35.67038222 | BT81: 35.06781791 | BU81: 34.48951984 | BV81: 33.9347953 | BW81: 33.40297122 | BX81: 32.89339381 | BY81: 32.40542824 | BZ81: 31.9384583 | CA81: 31.49188611 | CB81: 31.06513175 | CC81: 30.65763299 | CD81: 30.268845 | CE81: 29.89824 | CF81: 29.54530703 | CG81: 29.20955161 | CH81: 28.89049551 | CI81: 28.58767644 | CJ81: 28.3006478 | CK81: 28.02897839 | CL81: 27.77225218 | CM81: 27.53006805 | CN81: 27.30203953 | CO81: 27.08779456 | CP81: 26.88697523 | CQ81: 26.69923758 | CR81: 26.52425136 | CS81: 26.36169976 | CT81: 26.21127927 | CU81: 26.07269937 | CV81: 25.94568239 | CW81: 25.82996326 | CX81: 25.72528933 | CY81: 25.63142014 | CZ81: 25.54812728 | DA81: 25.47519415 | DB81: 25.41241578 | DC81: 25.35959869 | DD81: 25.31656067 | DE81: 25.28313063 | DF81: 25.25914846 | DG81: 25.24446481 | DH81: 25.23894099 | DI81: 25.24244881 | DJ81: 25.25487041 | DK81: 25.27609818 | DL81: 25.30603455 | DM81: 25.34459193 | DN81: 25.39169256 | DO81: 25.44726841 | DP81: 25.51126105 | DQ81: 25.58362158 | DR81: 25.6643105 | DS81: 25.75329767 | DT81: 25.85056215 | DU81: 25.95609222 | DV81: 26.06988524 | DW81: 26.1919476 | DX81: 26.32229472 | DY81: 26.46095091 | DZ81: 26.60794941 | EA81: 26.76333234 | EB81: 26.92715061 | EC81: 27.09946401 | ED81: 27.2803411 | EE81: 27.46985928 | EF81: 27.66810478 | EG81: 27.8751727 | EH81: 28.09116696 | EI81: 28.31620035 | EJ81: 28.55039443 | EK81: 28.79387959 | EL81: 29.04679542 | EM81: 29.30929139 | EN81: 29.58152724 | EO81: 29.86367141 | EP81: 30.15589614 | EQ81: 30.45837502 | ER81: 30.77130238 | ES81: 31.09494212 | ET81: 31.42956938 | EU81: 31.77499153 | EV81: 32.1319494 | EX81: 204 | EY81: 197.5459169 | EZ81: 32.1319494 | FA81: 1300 | FB81: 20 | FC81: 80 | FF81: 0.02751677852 | FG81: 86.15617804
A82: 208 | C82: 198.2113936 | D82: 192.7339458 | E82: 187.4050413 | F82: 182.227662 | G82: 177.192352 | H82: 172.2963533 | I82: 167.5368954 | J82: 162.9104751 | K82: 158.4135446 | L82: 154.0427599 | M82: 149.7949325 | N82: 145.6669597 | O82: 141.6558016 | P82: 137.7584845 | Q82: 133.9721081 | R82: 130.2938462 | S82: 126.7209452 | T82: 123.2507203 | U82: 119.8805536 | V82: 116.6078913 | W82: 113.4302428 | X82: 110.3451785 | Y82: 107.3503284 | Z82: 104.4433809 | AA82: 101.6220806 | AB82: 98.88422746 | AC82: 96.22767468 | AD82: 93.65032774 | AE82: 91.15014287 | AF82: 88.72512576 | AG82: 86.37333029 | AH82: 84.09285729 | AI82: 81.88185335 | AJ82: 79.73850969 | AK82: 77.661061 | AL82: 75.64778441 | AM82: 73.69699841 | AN82: 71.80706186 | AO82: 69.976373 | AP82: 68.20336854 | AQ82: 66.48652271 | AR82: 64.82434639 | AS82: 63.21538627 | AT82: 61.65822399 | AU82: 60.1514754 | AV82: 58.69378973 | AW82: 57.28384886 | AX82: 55.92036663 | AY82: 54.60208807 | AZ82: 53.32778879 | BA82: 52.09627431 | BB82: 50.90637936 | BC82: 49.75696738 | BD82: 48.64692979 | BE82: 47.57518554 | BF82: 46.54068043 | BG82: 45.54238667 | BH82: 44.57930228 | BI82: 43.6504506 | BJ82: 42.7548798 | BK82: 41.89166239 | BL82: 41.05989474 | BM82: 40.25869666 | BN82: 39.48721089 | BO82: 38.74460272 | BP82: 38.03005958 | BQ82: 37.34279055 | BR82: 36.68202607 | BS82: 36.04701746 | BT82: 35.43703659 | BU82: 34.85137548 | BV82: 34.28934597 | BW82: 33.75027935 | BX82: 33.23352599 | BY82: 32.73845504 | BZ82: 32.26445411 | CA82: 31.81092889 | CB82: 31.3773029 | CC82: 30.96301711 | CD82: 30.56752973 | CE82: 30.19031582 | CF82: 29.83086706 | CG82: 29.48869146 | CH82: 29.16331305 | CI82: 28.85427163 | CJ82: 28.56112252 | CK82: 28.28343625 | CL82: 28.02079837 | CM82: 27.77280912 | CN82: 27.53908324 | CO82: 27.31924973 | CP82: 27.11295158 | CQ82: 26.91984555 | CR82: 26.73960194 | CS82: 26.57190441 | CT82: 26.41644969 | CU82: 26.27294742 | CV82: 26.14111992 | CW82: 26.02070201 | CX82: 25.91144078 | CY82: 25.81309541 | CZ82: 25.72543698 | DA82: 25.64824831 | DB82: 25.58132374 | DC82: 25.52446898 | DD82: 25.47750093 | DE82: 25.44024754 | DF82: 25.41254761 | DG82: 25.39425069 | DH82: 25.38521687 | DI82: 25.38531669 | DJ82: 25.39443098 | DK82: 25.41245073 | DL82: 25.43927696 | DM82: 25.4748206 | DN82: 25.51900239 | DO82: 25.57175276 | DP82: 25.63301172 | DQ82: 25.70272877 | DR82: 25.78086284 | DS82: 25.86738215 | DT82: 25.96226417 | DU82: 26.06549554 | DV82: 26.17707201 | DW82: 26.29699837 | DX82: 26.42528843 | DY82: 26.56196494 | DZ82: 26.70705958 | EA82: 26.8606129 | EB82: 27.02267435 | EC82: 27.19330222 | ED82: 27.37256366 | EE82: 27.56053468 | EF82: 27.75730011 | EG82: 27.96295364 | EH82: 28.17759787 | EI82: 28.40134437 | EJ82: 28.63431381 | EK82: 28.87663605 | EL82: 29.12844989 | EM82: 29.38990262 | EN82: 29.66114957 | EO82: 29.94235575 | EP82: 30.23370061 | EQ82: 30.53538138 | ER82: 30.84759554 | ES82: 31.17049255 | ET82: 31.50422441 | EU82: 31.84941632 | EV82: 32.2058233 | EX82: 208 | EY82: 198.2113936 | EZ82: 32.2058233 | FA82: 1300 | FB82: 20 | FC82: 80 | FF82: 0.02818791946 | FG82: 84.41797499
A83: 212 | C83: 198.8507962 | D83: 193.3765273 | E83: 188.0555329 | F83: 182.8774912 | G83: 177.8441334 | H83: 172.9508894 | I83: 168.1934652 | J83: 163.5684508 | K83: 159.0726334 | L83: 154.7027677 | M83: 150.4556259 | N83: 146.3280605 | O83: 142.3170191 | P83: 138.4195352 | Q83: 134.6327183 | R83: 130.9537482 | S83: 127.3798739 | T83: 123.9084126 | U83: 120.5367484 | V83: 117.262331 | W83: 114.0826734 | X83: 110.9953502 | Y83: 107.9979959 | Z83: 105.0883032 | AA83: 102.2640215 | AB83: 99.52295553 | AC83: 96.86296357 | AD83: 94.28195636 | AE83: 91.77789556 | AF83: 89.34879251 | AG83: 86.99270686 | AH83: 84.70774538 | AI83: 82.49206077 | AJ83: 80.34385043 | AK83: 78.26135542 | AL83: 76.24285931 | AM83: 74.28668714 | AN83: 72.39120443 | AO83: 70.55481614 | AP83: 68.77596578 | AQ83: 67.05313443 | AR83: 65.38483989 | AS83: 63.76963579 | AT83: 62.20611076 | AU83: 60.69288763 | AV83: 59.22862263 | AW83: 57.81200467 | AX83: 56.44175454 | AY83: 55.11662427 | AZ83: 53.8353964 | BA83: 52.59688333 | BB83: 51.39992667 | BC83: 50.24339661 | BD83: 49.12619133 | BE83: 48.04723639 | BF83: 47.00548418 | BG83: 45.99991338 | BH83: 45.02952837 | BI83: 44.09335876 | BJ83: 43.19045889 | BK83: 42.31990729 | BL83: 41.48080624 | BM83: 40.67228133 | BN83: 39.89348093 | BO83: 39.14357585 | BP83: 38.42175884 | BQ83: 37.72724421 | BR83: 37.05926742 | BS83: 36.41708468 | BT83: 35.79997259 | BU83: 35.20722771 | BV83: 34.63816627 | BW83: 34.09212376 | BX83: 33.56845462 | BY83: 33.06653187 | BZ83: 32.58574677 | CA83: 32.12550856 | CB83: 31.68524408 | CC83: 31.26439749 | CD83: 30.86242994 | CE83: 30.47881932 | CF83: 30.11305995 | CG83: 29.76466227 | CH83: 29.43315261 | CI83: 29.11807288 | CJ83: 28.81898033 | CK83: 28.53544728 | CL83: 28.26706087 | CM83: 28.01342279 | CN83: 27.77414907 | CO83: 27.54886983 | CP83: 27.33722903 | CQ83: 27.13888427 | CR83: 26.95350654 | CS83: 26.78078001 | CT83: 26.62040183 | CU83: 26.4720819 | CV83: 26.33554269 | CW83: 26.21051903 | CX83: 26.09675789 | CY83: 25.99401825 | CZ83: 25.90207086 | DA83: 25.82069809 | DB83: 25.74969376 | DC83: 25.68886294 | DD83: 25.63802182 | DE83: 25.59699754 | DF83: 25.56562803 | DG83: 25.54376186 | DH83: 25.53125812 | DI83: 25.52798625 | DJ83: 25.53382594 | DK83: 25.54866696 | DL83: 25.5724091 | DM83: 25.60496199 | DN83: 25.64624505 | DO83: 25.69618734 | DP83: 25.75472748 | DQ83: 25.82181357 | DR83: 25.89740309 | DS83: 25.98146283 | DT83: 26.07396879 | DU83: 26.17490616 | DV83: 26.28426923 | DW83: 26.40206134 | DX83: 26.52829485 | DY83: 26.66299107 | DZ83: 26.80618025 | EA83: 26.95790156 | EB83: 27.11820307 | EC83: 27.2871417 | ED83: 27.46478326 | EE83: 27.65120247 | EF83: 27.84648291 | EG83: 28.05071714 | EH83: 28.26400666 | EI83: 28.4864619 | EJ83: 28.7182022 | EK83: 28.95935583 | EL83: 29.21006024 | EM83: 29.47046273 | EN83: 29.74072102 | EO83: 30.02100207 | EP83: 30.31147767 | EQ83: 30.61232084 | ER83: 30.92372194 | ES83: 31.24593669 | ET83: 31.57924344 | EU83: 31.92348166 | EV83: 32.27934042 | EX83: 212 | EY83: 198.8507962 | EZ83: 32.27934042 | FA83: 1300 | FB83: 20 | FC83: 80 | FF83: 0.0288590604 | FG83: 82.72766686
A84: 216 | C84: 199.4731551 | D84: 194.0019801 | E84: 188.6790838 | F84: 183.5067626 | G84: 178.476013 | H84: 173.5841269 | I84: 168.8282384 | J84: 164.2048119 | K84: 159.7103148 | L84: 155.3414192 | M84: 151.0949418 | N84: 146.9677793 | O84: 142.9568921 | P84: 139.0593095 | Q84: 135.2721355 | R84: 131.5925495 | S84: 128.0178031 | T84: 124.5452175 | U84: 121.1721808 | V84: 117.896146 | W84: 114.7146295 | X84: 111.6252094 | Y84: 108.625524 | Z84: 105.7132703 | AA84: 102.8862018 | AB84: 100.1421279 | AC84: 97.47891162 | AD84: 94.89446863 | AE84: 92.38676567 | AF84: 89.95381929 | AG84: 87.59369457 | AH84: 85.30450381 | AI84: 83.08440537 | AJ84: 80.93160249 | AK84: 78.84434215 | AL84: 76.82091394 | AM84: 74.85964905 | AN84: 72.95891922 | AO84: 71.11713571 | AP84: 69.33274839 | AQ84: 67.60424479 | AR84: 65.93014919 | AS84: 64.30902172 | AT84: 62.73945758 | AU84: 61.22008617 | AV84: 59.7495703 | AW84: 58.32660546 | AX84: 56.94991904 | AY84: 55.61826961 | AZ84: 54.33044627 | BA84: 53.0852679 | BB84: 51.88158259 | BC84: 50.71826694 | BD84: 49.59422548 | BE84: 48.50839006 | BF84: 47.45971929 | BG84: 46.44719796 | BH84: 45.46983651 | BI84: 44.5266705 | BJ84: 43.61676009 | BK84: 42.73918958 | BL84: 41.89306686 | BM84: 41.07752302 | BN84: 40.29171182 | BO84: 39.53480931 | BP84: 38.80601335 | BQ84: 38.10454325 | BR84: 37.42963927 | BS84: 36.78056234 | BT84: 36.15659356 | BU84: 35.55703392 | BV84: 34.98120384 | BW84: 34.42844291 | BX84: 33.89810946 | BY84: 33.38958026 | BZ84: 32.90225019 | CA84: 32.43553188 | CB84: 31.98885544 | CC84: 31.56166811 | CD84: 31.15343401 | CE84: 30.76363377 | CF84: 30.39176431 | CG84: 30.03733853 | CH84: 29.699885 | CI84: 29.37894778 | CJ84: 29.07408607 | CK84: 28.78487398 | CL84: 28.51090029 | CM84: 28.2517682 | CN84: 28.00709508 | CO84: 27.77651224 | CP84: 27.5596647 | CQ84: 27.35621095 | CR84: 27.16582276 | CS84: 26.98818495 | CT84: 26.82299516 | CU84: 26.66996369 | CV84: 26.52881326 | CW84: 26.39927882 | CX84: 26.28110741 | CY84: 26.17405788 | CZ84: 26.07790083 | DA84: 25.99241832 | DB84: 25.91740378 | DC84: 25.85266182 | DD84: 25.79800805 | DE84: 25.75326898 | DF84: 25.7182818 | DG84: 25.69289431 | DH84: 25.67696471 | DI84: 25.67036153 | DJ84: 25.67296347 | DK84: 25.68465928 | DL84: 25.70534765 | DM84: 25.73493709 | DN84: 25.77334586 | DO84: 25.8205018 | DP84: 25.87634232 | DQ84: 25.94081426 | DR84: 26.01387383 | DS84: 26.09548651 | DT84: 26.18562702 | DU84: 26.28427922 | DV84: 26.39143611 | DW84: 26.5070997 | DX84: 26.63128103 | DY84: 26.76400011 | DZ84: 26.90528592 | EA84: 27.05517634 | EB84: 27.21371817 | EC84: 27.38096711 | ED84: 27.55698778 | EE84: 27.7418537 | EF84: 27.9356473 | EG84: 28.13845995 | EH84: 28.35039197 | EI84: 28.57155273 | EJ84: 28.80206075 | EK84: 29.04204385 | EL84: 29.29163896 | EM84: 29.55099172 | EN84: 29.82025597 | EO84: 30.09959483 | EP84: 30.38918521 | EQ84: 30.68922188 | ER84: 30.99990331 | ES84: 31.32138438 | ET84: 31.65381243 | EU84: 31.99777979 | EV84: 32.3530886 | EX84: 216 | EY84: 199.4731551 | EZ84: 32.3530886 | FA84: 1300 | FB84: 20 | FC84: 80 | FF84: 0.02953020134 | FG84: 81.08400048
A85: 220 | C85: 200.0716216 | D85: 194.6034218 | E85: 189.2877176 | F85: 184.1148305 | G85: 179.0860534 | H85: 174.1967749 | I85: 169.4427918 | J85: 164.8207227 | K85: 160.3273408 | L85: 155.9593882 | M85: 151.7136365 | N85: 147.5869436 | O85: 143.5762625 | P85: 139.6786305 | Q85: 135.8911605 | R85: 132.2110362 | S85: 128.6355111 | T85: 125.1619077 | U85: 121.7876162 | V85: 118.5100925 | W85: 115.3268563 | X85: 112.2354893 | Y85: 109.2336338 | Z85: 106.3189902 | AA85: 103.4893164 | AB85: 100.7424259 | AC85: 98.07618607 | AD85: 95.48851716 | AE85: 92.97739068 | AF85: 90.54082806 | AG85: 88.17689942 | AH85: 85.88372226 | AI85: 83.65946025 | AJ85: 81.50232205 | AK85: 79.41056017 | AL85: 77.38246988 | AM85: 75.41638809 | AN85: 73.51069237 | AO85: 71.6637999 | AP85: 69.87416651 | AQ85: 68.14028578 | AR85: 66.46068804 | AS85: 64.83393958 | AT85: 63.25864174 | AU85: 61.7334301 | AV85: 60.25697366 | AW85: 58.82797412 | AX85: 57.44516504 | AY85: 56.1073112 | AZ85: 54.81320786 | BA85: 53.56168003 | BB85: 52.35158191 | BC85: 51.18179615 | BD85: 50.05123328 | BE85: 48.95883112 | BF85: 47.90355414 | BG85: 46.88439295 | BH85: 45.90036372 | BI85: 44.95050766 | BJ85: 44.03389049 | BK85: 43.14960194 | BL85: 42.29675527 | BM85: 41.47448681 | BN85: 40.68195546 | BO85: 39.91834226 | BP85: 39.18284999 | BQ85: 38.47470269 | BR85: 37.79314529 | BS85: 37.13744317 | BT85: 36.50688183 | BU85: 35.90076644 | BV85: 35.31842154 | BW85: 34.75919063 | BX85: 34.22243581 | BY85: 33.7075375 | BZ85: 33.21389406 | CA85: 32.74092146 | CB85: 32.28805297 | CC85: 31.85473888 | CD85: 31.44044617 | CE85: 31.04465819 | CF85: 30.66687443 | CG85: 30.3066102 | CH85: 29.96339635 | CI85: 29.63677904 | CJ85: 29.32631944 | CK85: 29.03159348 | CL85: 28.75219162 | CM85: 28.48771857 | CN85: 28.23779311 | CO85: 28.00204778 | CP85: 27.78012873 | CQ85: 27.57169542 | CR85: 27.37642048 | CS85: 27.19398945 | CT85: 27.02410057 | CU85: 26.86646463 | CV85: 26.72080469 | CW85: 26.58685599 | CX85: 26.46436567 | CY85: 26.35309266 | CZ85: 26.25280746 | DA85: 26.16329199 | DB85: 26.08433943 | DC85: 26.01575405 | DD85: 25.95735104 | DE85: 25.9089564 | DF85: 25.87040674 | DG85: 25.84154922 | DH85: 25.82224133 | DI85: 25.81235082 | DJ85: 25.81175556 | DK85: 25.82034341 | DL85: 25.83801214 | DM85: 25.86466927 | DN85: 25.90023205 | DO85: 25.94462727 | DP85: 25.99779127 | DQ85: 26.05966977 | DR85: 26.13021784 | DS85: 26.20939983 | DT85: 26.2971893 | DU85: 26.39356893 | DV85: 26.49853052 | DW85: 26.61207493 | DX85: 26.734212 | DY85: 26.86496058 | DZ85: 27.00434846 | EA85: 27.15241236 | EB85: 27.30919795 | EC85: 27.4747598 | ED85: 27.64916139 | EE85: 27.83247515 | EF85: 28.02478247 | EG85: 28.22617371 | EH85: 28.43674829 | EI85: 28.65661463 | EJ85: 28.88589015 | EK85: 29.12470128 | EL85: 29.37318364 | EM85: 29.63148264 | EN85: 29.89975414 | EO85: 30.17816373 | EP85: 30.46688272 | EQ85: 30.76608381 | ER85: 31.07595407 | ES85: 31.39674168 | ET85: 31.72872674 | EU85: 32.07177839 | EV85: 32.42653947 | EX85: 220 | EY85: 200.0716216 | EZ85: 32.42653947 | FA85: 1300 | FB85: 20 | FC85: 80 | FF85: 0.03020134228 | FG85: 79.48575726
A86: 224 | C86: 200.6541697 | D86: 195.188866 | E86: 189.8715959 | F86: 184.7040439 | G86: 179.6776252 | H86: 174.7896619 | I86: 170.0372003 | J86: 165.4166802 | K86: 160.9245846 | L86: 156.5575995 | M86: 152.3125448 | N86: 148.1863161 | O86: 144.1758742 | P86: 140.278251 | Q86: 136.4905546 | R86: 132.8099689 | S86: 129.2337501 | T86: 125.7592244 | U86: 122.3837851 | V86: 119.104891 | W86: 115.9200646 | X86: 112.8268909 | Y86: 109.8230151 | Z86: 106.9061415 | AA86: 104.0740317 | AB86: 101.324503 | AC86: 98.65542719 | AD86: 96.06472861 | AE86: 93.55038322 | AF86: 91.11041704 | AG86: 88.74290488 | AH86: 86.44596908 | AI86: 84.21777828 | AJ86: 82.05654623 | AK86: 79.96053063 | AL86: 77.92803202 | AM86: 75.95739272 | AN86: 74.04699574 | AO86: 72.1952638 | AP86: 70.40065836 | AQ86: 68.66167863 | AR86: 66.97686068 | AS86: 65.34477653 | AT86: 63.76403331 | AU86: 62.23327242 | AV86: 60.7511687 | AW86: 59.31642965 | AX86: 57.92779471 | AY86: 56.58403446 | AZ86: 55.28394998 | BA86: 54.02637209 | BB86: 52.81016073 | BC86: 51.63420428 | BD86: 50.49741897 | BE86: 49.39874822 | BF86: 48.33716209 | BG86: 47.31165669 | BH86: 46.32125363 | BI86: 45.36499948 | BJ86: 44.44196522 | BK86: 43.5512458 | BL86: 42.69195955 | BM86: 41.8632478 | BN86: 41.06427434 | BO86: 40.29422502 | BP86: 39.55230726 | BQ86: 38.83774967 | BR86: 38.14980161 | BS86: 37.4877328 | BT86: 36.85083289 | BU86: 36.23841114 | BV86: 35.649796 | BW86: 35.08433475 | BX86: 34.54139318 | BY86: 34.02035521 | BZ86: 33.52062257 | CA86: 33.04161447 | CB86: 32.5827673 | CC86: 32.14353429 | CD86: 31.72338522 | CE86: 31.32180613 | CF86: 30.93829904 | CG86: 30.57238163 | CH86: 30.22358701 | CI86: 29.89146344 | CJ86: 29.57557405 | CK86: 29.2754966 | CL86: 28.99082325 | CM86: 28.72116027 | CN86: 28.46612785 | CO86: 28.22535983 | CP86: 27.99850353 | CQ86: 27.78521946 | CR86: 27.58518115 | CS86: 27.39807495 | CT86: 27.22359978 | CU86: 27.06146699 | CV86: 26.91140012 | CW86: 26.77313473 | CX86: 26.64641822 | CY86: 26.53100968 | CZ86: 26.42667964 | DA86: 26.33321 | DB86: 26.25039379 | DC86: 26.17803507 | DD86: 26.11594874 | DE86: 26.06396042 | DF86: 26.02190629 | DG86: 25.98963298 | DH86: 25.96699741 | DI86: 25.9538667 | DJ86: 25.95011801 | DK86: 25.95563847 | DL86: 25.97032504 | DM86: 25.99408443 | DN86: 26.02683298 | DO86: 26.0684966 | DP86: 26.11901065 | DQ86: 26.17831991 | DR86: 26.24637844 | DS86: 26.32314958 | DT86: 26.40860584 | DU86: 26.50272888 | DV86: 26.60550944 | DW86: 26.7169473 | DX86: 26.83705126 | DY86: 26.96583909 | DZ86: 27.10333754 | EA86: 27.24958227 | EB86: 27.40461791 | EC86: 27.56849799 | ED86: 27.74128502 | EE86: 27.92305042 | EF86: 28.11387462 | EG86: 28.31384697 | EH86: 28.52306589 | EI86: 28.74163886 | EJ86: 28.96968255 | EK86: 29.20732299 | EL86: 29.45469549 | EM86: 29.71194422 | EN86: 29.9792217 | EO86: 30.25668953 | EP86: 30.5445223 | EQ86: 30.84291247 | ER86: 31.15205902 | ES86: 31.47212183 | ET86: 31.803245 | EU86: 32.14599041 | EV86: 32.50020217 | EX86: 224 | EY86: 200.6541697 | EZ86: 32.50020217 | FA86: 1300 | FB86: 20 | FC86: 80 | FF86: 0.03087248322 | FG86: 77.93175227
